Workbook

Sheet Optioneering Summary
B8: Carbon Optioneering Summary
B11: SOP | G11: Contractor Name | J11: Date Produced
B12: IMSE50017 | G12: CH2M | J12: 2016-07-25
B14: Project Name | G14: Contractor Project No. | J14: Version
B15: Oxford FAS | G15: 661656 | J15: 0
B17: Project Manager | G17: Project Manger | J17: Produced by
B18: Heather Taylor | G18: Phil Marsh | J18: VHJ
B20: Project Executive
B21: Richard Harding
C89: Stage | H89: Option 1 | I89: Option 2 | J89: Option 3 | K89: Option 4 | L89: Option 5 | M89: (All values are tonnes of CO2e)
C90: Capital carbon | H90: =SUM(Option_1[[Capital - Materials]:[Capital - Installation]]) -> 10725.12 | I90: =SUM(Option_2[[Capital - Materials]:[Capital - Installation]]) -> 16185.38 | J90: =SUM(Option_3[[Capital - Materials]:[Capital - Installation]]) -> 9577.63 | K90: =SUM(Option_4[[Capital - Materials]:[Capital - Installation]]) -> 0 | L90: =SUM(Option_5[[Capital - Materials]:[Capital - Installation]]) -> 0
C91: Operational carbon | H91: =SUM(Option_1[[Operational - Use]:[Operational - Energy]]) -> 19596.125 | I91: =SUM(Option_2[[Operational - Use]:[Operational - Energy]]) -> 47125.125 | J91: =SUM(Option_3[[Operational - Use]:[Operational - Energy]]) -> 18584.125 | K91: =SUM(Option_4[[Operational - Use]:[Operational - Energy]]) -> 0 | L91: =SUM(Option_5[[Operational - Use]:[Operational - Energy]]) -> 0
C92: Replacement carbon | H92: =SUM(Option_1[[Replacement - Materials]:[Replacement - Installation]]) -> 1242.15 | I92: =SUM(Option_2[[Replacement - Materials]:[Replacement - Installation]]) -> 3904.75 | J92: =SUM(Option_3[[Replacement - Materials]:[Replacement - Installation]]) -> 1242.15 | K92: =SUM(Option_4[[Replacement - Materials]:[Replacement - Installation]]) -> 0 | L92: =SUM(Option_5[[Replacement - Materials]:[Replacement - Installation]]) -> 0
C93: Refurbishment carbon | H93: =SUM(Option_1[Refurbishment]) -> 367.5 | I93: =SUM(Option_2[Refurbishment]) -> 1155.5 | J93: =SUM(Option_3[Refurbishment]) -> 367.5 | K93: =SUM(Option_4[Refurbishment]) -> 0 | L93: =SUM(Option_5[Refurbishment]) -> 0
C94: Demolition carbon | H94: =SUM(Option_1[Demolition]) -> 6 | I94: =SUM(Option_2[Demolition]) -> 19 | J94: =SUM(Option_3[Demolition]) -> 6 | K94: =SUM(Option_4[Demolition]) -> 0 | L94: =SUM(Option_5[Demolition]) -> 0
C95: Residual carbon | H95: =SUM(Option_1[Residual]) -> -735 | I95: =SUM(Option_2[Residual]) -> -2310 | J95: =SUM(Option_3[Residual]) -> -735 | K95: =SUM(Option_4[Residual]) -> 0 | L95: =SUM(Option_5[Residual]) -> 0
C96: Whole Life carbon | H96: =SUM(Option_1[Whole Life Carbon]) -> 31202 | I96: =SUM(Option_2[Whole Life Carbon]) -> 66078 | J96: =SUM(Option_3[Whole Life Carbon]) -> 29043 | K96: =SUM(Option_4[Whole Life Carbon]) -> 0 | L96: =SUM(Option_5[Whole Life Carbon]) -> 0

Sheet Options
C2: Stage | H2: Capital - Materials (tonnes CO2e) | I2: Capital - Transport (tonnes CO2e) | J2: Capital - Installation (tonnes CO2e) | K2: Operational - Use (tonnes CO2e) | L2: Operational - Maintenance (tonnes CO2e) | M2: Operational -Repair (tonnes CO2e) | N2: Operational - Energy (tonnes CO2e) | O2: Replacement - Materials (tonnes CO2e) | P2: Replacement - Transport (tonnes CO2e) | Q2: Replacement - Installation (tonnes CO2e) | R2: Refurbishment (tonnes CO2e) | S2: Demolition (tonnes CO2e) | T2: Residual (tonnes CO2e) | U2: Whole Life Carbon (tonnes CO2e)
B4: Option 1 | H4: =SUM(Option_1[Capital - Materials]) -> 7052.64 | I4: =SUM(Option_1[Capital - Transport]) -> 505.98 | J4: =SUM(Option_1[Capital - Installation]) -> 3166.5 | K4: =SUM(Option_1[Operational - Use]) -> 6.125 | L4: =SUM(Option_1[Operational - Maintenance]) -> 17385 | M4: =SUM(Option_1[Operational -Repair]) -> 2205 | N4: =SUM(Option_1[Operational - Energy]) -> 0 | O4: =SUM(Option_1[Replacement - Materials]) -> 1225 | P4: =SUM(Option_1[Replacement - Transport]) -> 8.575 | Q4: =SUM(Option_1[Replacement - Installation]) -> 8.575 | R4: =SUM(Option_1[Refurbishment]) -> 367.5 | S4: =SUM(Option_1[Demolition]) -> 6 | T4: =SUM(Option_1[Residual]) -> -735 | U4: =SUM(Option_1[Whole Life Carbon]) -> 31202
C8: Option | D8: Asset | E8: Asset Description | F8: Asset Unit | G8: Asset Measurement | H8: Capital - Materials | I8: Capital - Transport | J8: Capital - Installation | K8: Operational - Use | L8: Operational - Maintenance | M8: Operational -Repair | N8: Operational - Energy | O8: Replacement - Materials | P8: Replacement - Transport | Q8: Replacement - Installation | R8: Refurbishment | S8: Demolition | T8: Residual | U8: Whole Life Carbon
C9: Option 1 | D9: Other | E9: Widen right bank | F9: m3 | G9: 100800 | H9: 4112.64 | I9: 481.48 | J9: 3142 | K9: =IF(OR(Option_1[[#This Row],[Asset]]="",Option_1[[#This Row],[Asset Measurement]]=""),"",SUMIF('Carbon Curve Data'!$D:$D,Option_1[[#This Row],[Asset]],'Carbon Curve Data'!L:L)+(SUMIF('Carbon Curve Data'!$D:$D,Option_1[[#This Row],[Asset]],'Carbon Curve Data'!M:M))*Option_1[[#This Row],[Asset Measurement]]) -> 0 | L9: 6360 | M9: =IF(OR(Option_1[[#This Row],[Asset]]="",Option_1[[#This Row],[Asset Measurement]]=""),"",SUMIF('Carbon Curve Data'!$D:$D,Option_1[[#This Row],[Asset]],'Carbon Curve Data'!P:P)+(SUMIF('Carbon Curve Data'!$D:$D,Option_1[[#This Row],[Asset]],'Carbon Curve Data'!Q:Q))*Option_1[[#This Row],[Asset Measurement]]) -> 0 | N9: =IF(OR(Option_1[[#This Row],[Asset]]="",Option_1[[#This Row],[Asset Measurement]]=""),"",SUMIF('Carbon Curve Data'!$D:$D,Option_1[[#This Row],[Asset]],'Carbon Curve Data'!R:R)+(SUMIF('Carbon Curve Data'!$D:$D,Option_1[[#This Row],[Asset]],'Carbon Curve Data'!S:S))*Option_1[[#This Row],[Asset Measurement]]) -> 0 | O9: =IF(OR(Option_1[[#This Row],[Asset]]="",Option_1[[#This Row],[Asset Measurement]]=""),"",SUMIF('Carbon Curve Data'!$D:$D,Option_1[[#This Row],[Asset]],'Carbon Curve Data'!T:T)+(SUMIF('Carbon Curve Data'!$D:$D,Option_1[[#This Row],[Asset]],'Carbon Curve Data'!U:U))*Option_1[[#This Row],[Asset Measurement]]) -> 0 | P9: =IF(OR(Option_1[[#This Row],[Asset]]="",Option_1[[#This Row],[Asset Measurement]]=""),"",SUMIF('Carbon Curve Data'!$D:$D,Option_1[[#This Row],[Asset]],'Carbon Curve Data'!V:V)+(SUMIF('Carbon Curve Data'!$D:$D,Option_1[[#This Row],[Asset]],'Carbon Curve Data'!W:W))*Option_1[[#This Row],[Asset Measurement]]) -> 0 | Q9: =IF(OR(Option_1[[#This Row],[Asset]]="",Option_1[[#This Row],[Asset Measurement]]=""),"",SUMIF('Carbon Curve Data'!$D:$D,Option_1[[#This Row],[Asset]],'Carbon Curve Data'!X:X)+(SUMIF('Carbon Curve Data'!$D:$D,Option_1[[#This Row],[Asset]],'Carbon Curve Data'!Y:Y))*Option_1[[#This Row],[Asset Measurement]]) -> 0 | R9: =IF(OR(Option_1[[#This Row],[Asset]]="",Option_1[[#This Row],[Asset Measurement]]=""),"",SUMIF('Carbon Curve Data'!$D:$D,Option_1[[#This Row],[Asset]],'Carbon Curve Data'!Z:Z)+(SUMIF('Carbon Curve Data'!$D:$D,Option_1[[#This Row],[Asset]],'Carbon Curve Data'!AA:AA))*Option_1[[#This Row],[Asset Measurement]]) -> 0 | S9: =IF(OR(Option_1[[#This Row],[Asset]]="",Option_1[[#This Row],[Asset Measurement]]=""),"",SUMIF('Carbon Curve Data'!$D:$D,Option_1[[#This Row],[Asset]],'Carbon Curve Data'!AB:AB)+(SUMIF('Carbon Curve Data'!$D:$D,Option_1[[#This Row],[Asset]],'Carbon Curve Data'!AC:AC))*Option_1[[#This Row],[Asset Measurement]]) -> 0 | T9: =IF(OR(Option_1[[#This Row],[Asset]]="",Option_1[[#This Row],[Asset Measurement]]=""),"",SUMIF('Carbon Curve Data'!$D:$D,Option_1[[#This Row],[Asset]],'Carbon Curve Data'!AD:AD)+(SUMIF('Carbon Curve Data'!$D:$D,Option_1[[#This Row],[Asset]],'Carbon Curve Data'!AE:AE))*Option_1[[#This Row],[Asset Measurement]]) -> 0 | U9: 14096
D10: Other | E10: Bridge | F10: m2 | G10: 122.5 | H10: 2940 | I10: 24.5 | J10: 24.5 | K10: 6.125 | L10: 11025 | M10: 2205 | N10: 0 | O10: 1225 | P10: 8.575 | Q10: 8.575 | R10: 367.5 | S10: 6 | T10: -735 | U10: 17106
F11: =IF(Option_1[Asset]="","",INDEX('Carbon Curve Data'!E:E,(MATCH(Option_1[Asset],'Carbon Curve Data'!D:D,0)))) ->  | H11: =IF(OR(Option_1[[#This Row],[Asset]]="",Option_1[[#This Row],[Asset Measurement]]=""),"",SUMIF('Carbon Curve Data'!$D:$D,Option_1[[#This Row],[Asset]],'Carbon Curve Data'!F:F)+(SUMIF('Carbon Curve Data'!$D:$D,Option_1[[#This Row],[Asset]],'Carbon Curve Data'!G:G))*Option_1[[#This Row],[Asset Measurement]]) ->  | I11: =IF(OR(Option_1[[#This Row],[Asset]]="",Option_1[[#This Row],[Asset Measurement]]=""),"",SUMIF('Carbon Curve Data'!$D:$D,Option_1[[#This Row],[Asset]],'Carbon Curve Data'!H:H)+(SUMIF('Carbon Curve Data'!$D:$D,Option_1[[#This Row],[Asset]],'Carbon Curve Data'!I:I))*Option_1[[#This Row],[Asset Measurement]]) ->  | J11: =IF(OR(Option_1[[#This Row],[Asset]]="",Option_1[[#This Row],[Asset Measurement]]=""),"",SUMIF('Carbon Curve Data'!$D:$D,Option_1[[#This Row],[Asset]],'Carbon Curve Data'!J:J)+(SUMIF('Carbon Curve Data'!$D:$D,Option_1[[#This Row],[Asset]],'Carbon Curve Data'!K:K))*Option_1[[#This Row],[Asset Measurement]]) ->  | K11: =IF(OR(Option_1[[#This Row],[Asset]]="",Option_1[[#This Row],[Asset Measurement]]=""),"",SUMIF('Carbon Curve Data'!$D:$D,Option_1[[#This Row],[Asset]],'Carbon Curve Data'!L:L)+(SUMIF('Carbon Curve Data'!$D:$D,Option_1[[#This Row],[Asset]],'Carbon Curve Data'!M:M))*Option_1[[#This Row],[Asset Measurement]]) ->  | L11: =IF(OR(Option_1[[#This Row],[Asset]]="",Option_1[[#This Row],[Asset Measurement]]=""),"",SUMIF('Carbon Curve Data'!$D:$D,Option_1[[#This Row],[Asset]],'Carbon Curve Data'!N:N)+(SUMIF('Carbon Curve Data'!$D:$D,Option_1[[#This Row],[Asset]],'Carbon Curve Data'!O:O))*Option_1[[#This Row],[Asset Measurement]]) ->  | M11: =IF(OR(Option_1[[#This Row],[Asset]]="",Option_1[[#This Row],[Asset Measurement]]=""),"",SUMIF('Carbon Curve Data'!$D:$D,Option_1[[#This Row],[Asset]],'Carbon Curve Data'!P:P)+(SUMIF('Carbon Curve Data'!$D:$D,Option_1[[#This Row],[Asset]],'Carbon Curve Data'!Q:Q))*Option_1[[#This Row],[Asset Measurement]]) ->  | N11: =IF(OR(Option_1[[#This Row],[Asset]]="",Option_1[[#This Row],[Asset Measurement]]=""),"",SUMIF('Carbon Curve Data'!$D:$D,Option_1[[#This Row],[Asset]],'Carbon Curve Data'!R:R)+(SUMIF('Carbon Curve Data'!$D:$D,Option_1[[#This Row],[Asset]],'Carbon Curve Data'!S:S))*Option_1[[#This Row],[Asset Measurement]]) ->  | O11: =IF(OR(Option_1[[#This Row],[Asset]]="",Option_1[[#This Row],[Asset Measurement]]=""),"",SUMIF('Carbon Curve Data'!$D:$D,Option_1[[#This Row],[Asset]],'Carbon Curve Data'!T:T)+(SUMIF('Carbon Curve Data'!$D:$D,Option_1[[#This Row],[Asset]],'Carbon Curve Data'!U:U))*Option_1[[#This Row],[Asset Measurement]]) ->  | P11: =IF(OR(Option_1[[#This Row],[Asset]]="",Option_1[[#This Row],[Asset Measurement]]=""),"",SUMIF('Carbon Curve Data'!$D:$D,Option_1[[#This Row],[Asset]],'Carbon Curve Data'!V:V)+(SUMIF('Carbon Curve Data'!$D:$D,Option_1[[#This Row],[Asset]],'Carbon Curve Data'!W:W))*Option_1[[#This Row],[Asset Measurement]]) ->  | Q11: =IF(OR(Option_1[[#This Row],[Asset]]="",Option_1[[#This Row],[Asset Measurement]]=""),"",SUMIF('Carbon Curve Data'!$D:$D,Option_1[[#This Row],[Asset]],'Carbon Curve Data'!X:X)+(SUMIF('Carbon Curve Data'!$D:$D,Option_1[[#This Row],[Asset]],'Carbon Curve Data'!Y:Y))*Option_1[[#This Row],[Asset Measurement]]) ->  | R11: =IF(OR(Option_1[[#This Row],[Asset]]="",Option_1[[#This Row],[Asset Measurement]]=""),"",SUMIF('Carbon Curve Data'!$D:$D,Option_1[[#This Row],[Asset]],'Carbon Curve Data'!Z:Z)+(SUMIF('Carbon Curve Data'!$D:$D,Option_1[[#This Row],[Asset]],'Carbon Curve Data'!AA:AA))*Option_1[[#This Row],[Asset Measurement]]) ->  | S11: =IF(OR(Option_1[[#This Row],[Asset]]="",Option_1[[#This Row],[Asset Measurement]]=""),"",SUMIF('Carbon Curve Data'!$D:$D,Option_1[[#This Row],[Asset]],'Carbon Curve Data'!AB:AB)+(SUMIF('Carbon Curve Data'!$D:$D,Option_1[[#This Row],[Asset]],'Carbon Curve Data'!AC:AC))*Option_1[[#This Row],[Asset Measurement]]) ->  | T11: =IF(OR(Option_1[[#This Row],[Asset]]="",Option_1[[#This Row],[Asset Measurement]]=""),"",SUMIF('Carbon Curve Data'!$D:$D,Option_1[[#This Row],[Asset]],'Carbon Curve Data'!AD:AD)+(SUMIF('Carbon Curve Data'!$D:$D,Option_1[[#This Row],[Asset]],'Carbon Curve Data'!AE:AE))*Option_1[[#This Row],[Asset Measurement]]) ->  | U11: =IF(OR(Option_1[[#This Row],[Asset]]="",Option_1[[#This Row],[Asset Measurement]]=""),"",SUMIF('Carbon Curve Data'!$D:$D,Option_1[[#This Row],[Asset]],'Carbon Curve Data'!AF:AF)+(SUMIF('Carbon Curve Data'!$D:$D,Option_1[[#This Row],[Asset]],'Carbon Curve Data'!AG:AG))*Option_1[[#This Row],[Asset Measurement]]) -> 
C12: Total | H12: =SUBTOTAL(109,Option_1[Capital - Materials]) -> 7052.64 | I12: =SUBTOTAL(109,Option_1[Capital - Transport]) -> 505.98 | J12: =SUBTOTAL(109,Option_1[Capital - Installation]) -> 3166.5 | K12: =SUBTOTAL(109,Option_1[Operational - Use]) -> 6.125 | L12: =SUBTOTAL(109,Option_1[Operational - Maintenance]) -> 17385 | M12: =SUBTOTAL(109,Option_1[Operational -Repair]) -> 2205 | N12: =SUBTOTAL(109,Option_1[Operational - Energy]) -> 0 | O12: =SUBTOTAL(109,Option_1[Replacement - Materials]) -> 1225 | P12: =SUBTOTAL(109,Option_1[Replacement - Transport]) -> 8.575 | Q12: =SUBTOTAL(109,Option_1[Replacement - Installation]) -> 8.575 | R12: =SUBTOTAL(109,Option_1[Refurbishment]) -> 367.5 | S12: =SUBTOTAL(109,Option_1[Demolition]) -> 6 | T12: =SUBTOTAL(109,Option_1[Residual]) -> -735 | U12: =SUBTOTAL(109,Option_1[Whole Life Carbon]) -> 31202
B15: Option 2 | H15: =SUM(Option_2[Capital - Materials]) -> 12812.86 | I15: =SUM(Option_2[Capital - Transport]) -> 540.17 | J15: =SUM(Option_2[Capital - Installation]) -> 2832.35 | K15: =SUM(Option_2[Operational - Use]) -> 19.125 | L15: =SUM(Option_2[Operational - Maintenance]) -> 40176 | M15: =SUM(Option_2[Operational -Repair]) -> 6930 | N15: =SUM(Option_2[Operational - Energy]) -> 0 | O15: =SUM(Option_2[Replacement - Materials]) -> 3850 | P15: =SUM(Option_2[Replacement - Transport]) -> 27.375 | Q15: =SUM(Option_2[Replacement - Installation]) -> 27.375 | R15: =SUM(Option_2[Refurbishment]) -> 1155.5 | S15: =SUM(Option_2[Demolition]) -> 19 | T15: =SUM(Option_2[Residual]) -> -2310 | U15: =SUM(Option_2[Whole Life Carbon]) -> 66078
C19: Option | D19: Asset | E19: Asset Description | F19: Asset Unit | G19: Asset Measurement | H19: Capital - Materials | I19: Capital - Transport | J19: Capital - Installation | K19: Operational - Use | L19: Operational - Maintenance | M19: Operational -Repair | N19: Operational - Energy | O19: Replacement - Materials | P19: Replacement - Transport | Q19: Replacement - Installation | R19: Refurbishment | S19: Demolition | T19: Residual | U19: Whole Life Carbon
C20: Option 2 | D20: Other | E20: New constrained channel | F20: m3 | G20: 87569.7 | H20: 3572.86 | I20: 462.67 | J20: 2754.85 | K20: =IF(OR(Option_2[[#This Row],[Asset]]="",Option_2[[#This Row],[Asset Measurement]]=""),"",SUMIF('Carbon Curve Data'!$D:$D,Option_2[[#This Row],[Asset]],'Carbon Curve Data'!L:L)+(SUMIF('Carbon Curve Data'!$D:$D,Option_2[[#This Row],[Asset]],'Carbon Curve Data'!M:M))*Option_2[[#This Row],[Asset Measurement]]) -> 0 | L20: 5526 | M20: =IF(OR(Option_2[[#This Row],[Asset]]="",Option_2[[#This Row],[Asset Measurement]]=""),"",SUMIF('Carbon Curve Data'!$D:$D,Option_2[[#This Row],[Asset]],'Carbon Curve Data'!P:P)+(SUMIF('Carbon Curve Data'!$D:$D,Option_2[[#This Row],[Asset]],'Carbon Curve Data'!Q:Q))*Option_2[[#This Row],[Asset Measurement]]) -> 0 | N20: =IF(OR(Option_2[[#This Row],[Asset]]="",Option_2[[#This Row],[Asset Measurement]]=""),"",SUMIF('Carbon Curve Data'!$D:$D,Option_2[[#This Row],[Asset]],'Carbon Curve Data'!R:R)+(SUMIF('Carbon Curve Data'!$D:$D,Option_2[[#This Row],[Asset]],'Carbon Curve Data'!S:S))*Option_2[[#This Row],[Asset Measurement]]) -> 0 | O20: =IF(OR(Option_2[[#This Row],[Asset]]="",Option_2[[#This Row],[Asset Measurement]]=""),"",SUMIF('Carbon Curve Data'!$D:$D,Option_2[[#This Row],[Asset]],'Carbon Curve Data'!T:T)+(SUMIF('Carbon Curve Data'!$D:$D,Option_2[[#This Row],[Asset]],'Carbon Curve Data'!U:U))*Option_2[[#This Row],[Asset Measurement]]) -> 0 | P20: =IF(OR(Option_2[[#This Row],[Asset]]="",Option_2[[#This Row],[Asset Measurement]]=""),"",SUMIF('Carbon Curve Data'!$D:$D,Option_2[[#This Row],[Asset]],'Carbon Curve Data'!V:V)+(SUMIF('Carbon Curve Data'!$D:$D,Option_2[[#This Row],[Asset]],'Carbon Curve Data'!W:W))*Option_2[[#This Row],[Asset Measurement]]) -> 0 | Q20: =IF(OR(Option_2[[#This Row],[Asset]]="",Option_2[[#This Row],[Asset Measurement]]=""),"",SUMIF('Carbon Curve Data'!$D:$D,Option_2[[#This Row],[Asset]],'Carbon Curve Data'!X:X)+(SUMIF('Carbon Curve Data'!$D:$D,Option_2[[#This Row],[Asset]],'Carbon Curve Data'!Y:Y))*Option_2[[#This Row],[Asset Measurement]]) -> 0 | R20: =IF(OR(Option_2[[#This Row],[Asset]]="",Option_2[[#This Row],[Asset Measurement]]=""),"",SUMIF('Carbon Curve Data'!$D:$D,Option_2[[#This Row],[Asset]],'Carbon Curve Data'!Z:Z)+(SUMIF('Carbon Curve Data'!$D:$D,Option_2[[#This Row],[Asset]],'Carbon Curve Data'!AA:AA))*Option_2[[#This Row],[Asset Measurement]]) -> 0 | S20: =IF(OR(Option_2[[#This Row],[Asset]]="",Option_2[[#This Row],[Asset Measurement]]=""),"",SUMIF('Carbon Curve Data'!$D:$D,Option_2[[#This Row],[Asset]],'Carbon Curve Data'!AB:AB)+(SUMIF('Carbon Curve Data'!$D:$D,Option_2[[#This Row],[Asset]],'Carbon Curve Data'!AC:AC))*Option_2[[#This Row],[Asset Measurement]]) -> 0 | T20: =IF(OR(Option_2[[#This Row],[Asset]]="",Option_2[[#This Row],[Asset Measurement]]=""),"",SUMIF('Carbon Curve Data'!$D:$D,Option_2[[#This Row],[Asset]],'Carbon Curve Data'!AD:AD)+(SUMIF('Carbon Curve Data'!$D:$D,Option_2[[#This Row],[Asset]],'Carbon Curve Data'!AE:AE))*Option_2[[#This Row],[Asset Measurement]]) -> 0 | U20: 12316
C21: Option 2 | D21: Other | E21: Bridge 1 | F21: m2 | G21: 123 | H21: 2940 | I21: 25 | J21: 25 | K21: 6 | L21: 11025 | M21: 2205 | N21: =IF(OR(Option_2[[#This Row],[Asset]]="",Option_2[[#This Row],[Asset Measurement]]=""),"",SUMIF('Carbon Curve Data'!$D:$D,Option_2[[#This Row],[Asset]],'Carbon Curve Data'!R:R)+(SUMIF('Carbon Curve Data'!$D:$D,Option_2[[#This Row],[Asset]],'Carbon Curve Data'!S:S))*Option_2[[#This Row],[Asset Measurement]]) -> 0 | O21: 1225 | P21: 9 | Q21: 9 | R21: 368 | S21: 6 | T21: -735 | U21: 17106
D22: Other | E22: Bridge 2 | F22: m2 | G22: 140 | H22: 3360 | I22: 28 | J22: 28 | K22: 7 | L22: 12600 | M22: 2520 | N22: 0 | O22: 1400 | P22: 9.8 | Q22: 9.8 | R22: 420 | S22: 7 | T22: -840 | U22: 19550
D23: Other | E23: Bridge 3 | F23: m2 | G23: 123 | H23: 2940 | I23: 24.5 | J23: 24.5 | K23: 6.125 | L23: 11025 | M23: 2205 | N23: 0 | O23: 1225 | P23: 8.575 | Q23: 8.575 | R23: 367.5 | S23: 6 | T23: -735 | U23: 17106
C24: Total | H24: =SUBTOTAL(109,Option_2[Capital - Materials]) -> 12812.86 | I24: =SUBTOTAL(109,Option_2[Capital - Transport]) -> 540.17 | J24: =SUBTOTAL(109,Option_2[Capital - Installation]) -> 2832.35 | K24: =SUBTOTAL(109,Option_2[Operational - Use]) -> 19.125 | L24: =SUBTOTAL(109,Option_2[Operational - Maintenance]) -> 40176 | M24: =SUBTOTAL(109,Option_2[Operational -Repair]) -> 6930 | N24: =SUBTOTAL(109,Option_2[Operational - Energy]) -> 0 | O24: =SUBTOTAL(109,Option_2[Replacement - Materials]) -> 3850 | P24: =SUBTOTAL(109,Option_2[Replacement - Transport]) -> 27.375 | Q24: =SUBTOTAL(109,Option_2[Replacement - Installation]) -> 27.375 | R24: =SUBTOTAL(109,Option_2[Refurbishment]) -> 1155.5 | S24: =SUBTOTAL(109,Option_2[Demolition]) -> 19 | T24: =SUBTOTAL(109,Option_2[Residual]) -> -2310 | U24: =SUBTOTAL(109,Option_2[Whole Life Carbon]) -> 66078
B27: Option 3 | H27: =SUM(Option_3[Capital - Materials]) -> 6397.96 | I27: =SUM(Option_3[Capital - Transport]) -> 483.17 | J27: =SUM(Option_3[Capital - Installation]) -> 2696.5 | K27: =SUM(Option_3[Operational - Use]) -> 6.125 | L27: =SUM(Option_3[Operational - Maintenance]) -> 16373 | M27: =SUM(Option_3[Operational -Repair]) -> 2205 | N27: =SUM(Option_3[Operational - Energy]) -> 0 | O27: =SUM(Option_3[Replacement - Materials]) -> 1225 | P27: =SUM(Option_3[Replacement - Transport]) -> 8.575 | Q27: =SUM(Option_3[Replacement - Installation]) -> 8.575 | R27: =SUM(Option_3[Refurbishment]) -> 367.5 | S27: =SUM(Option_3[Demolition]) -> 6 | T27: =SUM(Option_3[Residual]) -> -735 | U27: =SUM(Option_3[Whole Life Carbon]) -> 29043
C31: Option | D31: Asset | E31: Asset Description | F31: Asset Unit | G31: Asset Measurement | H31: Capital - Materials | I31: Capital - Transport | J31: Capital - Installation | K31: Operational - Use | L31: Operational - Maintenance | M31: Operational -Repair | N31: Operational - Energy | O31: Replacement - Materials | P31: Replacement - Transport | Q31: Replacement - Installation | R31: Refurbishment | S31: Demolition | T31: Residual | U31: Whole Life Carbon
C32: Option 3 | D32: Other | E32: New constrained channel | F32: m3 | G32: 84754.49 | H32: 3457.96 | I32: 458.67 | J32: 2672 | K32: =IF(OR(Option_3[[#This Row],[Asset]]="",Option_3[[#This Row],[Asset Measurement]]=""),"",SUMIF('Carbon Curve Data'!$D:$D,Option_3[[#This Row],[Asset]],'Carbon Curve Data'!L:L)+(SUMIF('Carbon Curve Data'!$D:$D,Option_3[[#This Row],[Asset]],'Carbon Curve Data'!M:M))*Option_3[[#This Row],[Asset Measurement]]) -> 0 | L32: 5348 | M32: =IF(OR(Option_3[[#This Row],[Asset]]="",Option_3[[#This Row],[Asset Measurement]]=""),"",SUMIF('Carbon Curve Data'!$D:$D,Option_3[[#This Row],[Asset]],'Carbon Curve Data'!P:P)+(SUMIF('Carbon Curve Data'!$D:$D,Option_3[[#This Row],[Asset]],'Carbon Curve Data'!Q:Q))*Option_3[[#This Row],[Asset Measurement]]) -> 0 | N32: =IF(OR(Option_3[[#This Row],[Asset]]="",Option_3[[#This Row],[Asset Measurement]]=""),"",SUMIF('Carbon Curve Data'!$D:$D,Option_3[[#This Row],[Asset]],'Carbon Curve Data'!R:R)+(SUMIF('Carbon Curve Data'!$D:$D,Option_3[[#This Row],[Asset]],'Carbon Curve Data'!S:S))*Option_3[[#This Row],[Asset Measurement]]) -> 0 | O32: =IF(OR(Option_3[[#This Row],[Asset]]="",Option_3[[#This Row],[Asset Measurement]]=""),"",SUMIF('Carbon Curve Data'!$D:$D,Option_3[[#This Row],[Asset]],'Carbon Curve Data'!T:T)+(SUMIF('Carbon Curve Data'!$D:$D,Option_3[[#This Row],[Asset]],'Carbon Curve Data'!U:U))*Option_3[[#This Row],[Asset Measurement]]) -> 0 | P32: =IF(OR(Option_3[[#This Row],[Asset]]="",Option_3[[#This Row],[Asset Measurement]]=""),"",SUMIF('Carbon Curve Data'!$D:$D,Option_3[[#This Row],[Asset]],'Carbon Curve Data'!V:V)+(SUMIF('Carbon Curve Data'!$D:$D,Option_3[[#This Row],[Asset]],'Carbon Curve Data'!W:W))*Option_3[[#This Row],[Asset Measurement]]) -> 0 | Q32: =IF(OR(Option_3[[#This Row],[Asset]]="",Option_3[[#This Row],[Asset Measurement]]=""),"",SUMIF('Carbon Curve Data'!$D:$D,Option_3[[#This Row],[Asset]],'Carbon Curve Data'!X:X)+(SUMIF('Carbon Curve Data'!$D:$D,Option_3[[#This Row],[Asset]],'Carbon Curve Data'!Y:Y))*Option_3[[#This Row],[Asset Measurement]]) -> 0 | R32: =IF(OR(Option_3[[#This Row],[Asset]]="",Option_3[[#This Row],[Asset Measurement]]=""),"",SUMIF('Carbon Curve Data'!$D:$D,Option_3[[#This Row],[Asset]],'Carbon Curve Data'!Z:Z)+(SUMIF('Carbon Curve Data'!$D:$D,Option_3[[#This Row],[Asset]],'Carbon Curve Data'!AA:AA))*Option_3[[#This Row],[Asset Measurement]]) -> 0 | S32: =IF(OR(Option_3[[#This Row],[Asset]]="",Option_3[[#This Row],[Asset Measurement]]=""),"",SUMIF('Carbon Curve Data'!$D:$D,Option_3[[#This Row],[Asset]],'Carbon Curve Data'!AB:AB)+(SUMIF('Carbon Curve Data'!$D:$D,Option_3[[#This Row],[Asset]],'Carbon Curve Data'!AC:AC))*Option_3[[#This Row],[Asset Measurement]]) -> 0 | T32: =IF(OR(Option_3[[#This Row],[Asset]]="",Option_3[[#This Row],[Asset Measurement]]=""),"",SUMIF('Carbon Curve Data'!$D:$D,Option_3[[#This Row],[Asset]],'Carbon Curve Data'!AD:AD)+(SUMIF('Carbon Curve Data'!$D:$D,Option_3[[#This Row],[Asset]],'Carbon Curve Data'!AE:AE))*Option_3[[#This Row],[Asset Measurement]]) -> 0 | U32: 11937
C33: Option 3 | D33: Other | E33: Bridge 1 | F33: m2 | G33: 123 | H33: 2940 | I33: 24.5 | J33: 24.5 | K33: 6.125 | L33: 11025 | M33: 2205 | N33: 0 | O33: 1225 | P33: 8.575 | Q33: 8.575 | R33: 367.5 | S33: 6 | T33: -735 | U33: 17106
D34: Other | E34: Bridge 2 | F34: m2 | G34: 140 | H34: =IF(OR(Option_3[[#This Row],[Asset]]="",Option_3[[#This Row],[Asset Measurement]]=""),"",SUMIF('Carbon Curve Data'!$D:$D,Option_3[[#This Row],[Asset]],'Carbon Curve Data'!F:F)+(SUMIF('Carbon Curve Data'!$D:$D,Option_3[[#This Row],[Asset]],'Carbon Curve Data'!G:G))*Option_3[[#This Row],[Asset Measurement]]) -> 0 | I34: =IF(OR(Option_3[[#This Row],[Asset]]="",Option_3[[#This Row],[Asset Measurement]]=""),"",SUMIF('Carbon Curve Data'!$D:$D,Option_3[[#This Row],[Asset]],'Carbon Curve Data'!H:H)+(SUMIF('Carbon Curve Data'!$D:$D,Option_3[[#This Row],[Asset]],'Carbon Curve Data'!I:I))*Option_3[[#This Row],[Asset Measurement]]) -> 0 | J34: =IF(OR(Option_3[[#This Row],[Asset]]="",Option_3[[#This Row],[Asset Measurement]]=""),"",SUMIF('Carbon Curve Data'!$D:$D,Option_3[[#This Row],[Asset]],'Carbon Curve Data'!J:J)+(SUMIF('Carbon Curve Data'!$D:$D,Option_3[[#This Row],[Asset]],'Carbon Curve Data'!K:K))*Option_3[[#This Row],[Asset Measurement]]) -> 0 | K34: =IF(OR(Option_3[[#This Row],[Asset]]="",Option_3[[#This Row],[Asset Measurement]]=""),"",SUMIF('Carbon Curve Data'!$D:$D,Option_3[[#This Row],[Asset]],'Carbon Curve Data'!L:L)+(SUMIF('Carbon Curve Data'!$D:$D,Option_3[[#This Row],[Asset]],'Carbon Curve Data'!M:M))*Option_3[[#This Row],[Asset Measurement]]) -> 0 | L34: =IF(OR(Option_3[[#This Row],[Asset]]="",Option_3[[#This Row],[Asset Measurement]]=""),"",SUMIF('Carbon Curve Data'!$D:$D,Option_3[[#This Row],[Asset]],'Carbon Curve Data'!N:N)+(SUMIF('Carbon Curve Data'!$D:$D,Option_3[[#This Row],[Asset]],'Carbon Curve Data'!O:O))*Option_3[[#This Row],[Asset Measurement]]) -> 0 | M34: =IF(OR(Option_3[[#This Row],[Asset]]="",Option_3[[#This Row],[Asset Measurement]]=""),"",SUMIF('Carbon Curve Data'!$D:$D,Option_3[[#This Row],[Asset]],'Carbon Curve Data'!P:P)+(SUMIF('Carbon Curve Data'!$D:$D,Option_3[[#This Row],[Asset]],'Carbon Curve Data'!Q:Q))*Option_3[[#This Row],[Asset Measurement]]) -> 0 | N34: =IF(OR(Option_3[[#This Row],[Asset]]="",Option_3[[#This Row],[Asset Measurement]]=""),"",SUMIF('Carbon Curve Data'!$D:$D,Option_3[[#This Row],[Asset]],'Carbon Curve Data'!R:R)+(SUMIF('Carbon Curve Data'!$D:$D,Option_3[[#This Row],[Asset]],'Carbon Curve Data'!S:S))*Option_3[[#This Row],[Asset Measurement]]) -> 0 | O34: =IF(OR(Option_3[[#This Row],[Asset]]="",Option_3[[#This Row],[Asset Measurement]]=""),"",SUMIF('Carbon Curve Data'!$D:$D,Option_3[[#This Row],[Asset]],'Carbon Curve Data'!T:T)+(SUMIF('Carbon Curve Data'!$D:$D,Option_3[[#This Row],[Asset]],'Carbon Curve Data'!U:U))*Option_3[[#This Row],[Asset Measurement]]) -> 0 | P34: =IF(OR(Option_3[[#This Row],[Asset]]="",Option_3[[#This Row],[Asset Measurement]]=""),"",SUMIF('Carbon Curve Data'!$D:$D,Option_3[[#This Row],[Asset]],'Carbon Curve Data'!V:V)+(SUMIF('Carbon Curve Data'!$D:$D,Option_3[[#This Row],[Asset]],'Carbon Curve Data'!W:W))*Option_3[[#This Row],[Asset Measurement]]) -> 0 | Q34: =IF(OR(Option_3[[#This Row],[Asset]]="",Option_3[[#This Row],[Asset Measurement]]=""),"",SUMIF('Carbon Curve Data'!$D:$D,Option_3[[#This Row],[Asset]],'Carbon Curve Data'!X:X)+(SUMIF('Carbon Curve Data'!$D:$D,Option_3[[#This Row],[Asset]],'Carbon Curve Data'!Y:Y))*Option_3[[#This Row],[Asset Measurement]]) -> 0 | R34: =IF(OR(Option_3[[#This Row],[Asset]]="",Option_3[[#This Row],[Asset Measurement]]=""),"",SUMIF('Carbon Curve Data'!$D:$D,Option_3[[#This Row],[Asset]],'Carbon Curve Data'!Z:Z)+(SUMIF('Carbon Curve Data'!$D:$D,Option_3[[#This Row],[Asset]],'Carbon Curve Data'!AA:AA))*Option_3[[#This Row],[Asset Measurement]]) -> 0 | S34: =IF(OR(Option_3[[#This Row],[Asset]]="",Option_3[[#This Row],[Asset Measurement]]=""),"",SUMIF('Carbon Curve Data'!$D:$D,Option_3[[#This Row],[Asset]],'Carbon Curve Data'!AB:AB)+(SUMIF('Carbon Curve Data'!$D:$D,Option_3[[#This Row],[Asset]],'Carbon Curve Data'!AC:AC))*Option_3[[#This Row],[Asset Measurement]]) -> 0 | T34: =IF(OR(Option_3[[#This Row],[Asset]]="",Option_3[[#This Row],[Asset Measurement]]=""),"",SUMIF('Carbon Curve Data'!$D:$D,Option_3[[#This Row],[Asset]],'Carbon Curve Data'!AD:AD)+(SUMIF('Carbon Curve Data'!$D:$D,Option_3[[#This Row],[Asset]],'Carbon Curve Data'!AE:AE))*Option_3[[#This Row],[Asset Measurement]]) -> 0 | U34: =IF(OR(Option_3[[#This Row],[Asset]]="",Option_3[[#This Row],[Asset Measurement]]=""),"",SUMIF('Carbon Curve Data'!$D:$D,Option_3[[#This Row],[Asset]],'Carbon Curve Data'!AF:AF)+(SUMIF('Carbon Curve Data'!$D:$D,Option_3[[#This Row],[Asset]],'Carbon Curve Data'!AG:AG))*Option_3[[#This Row],[Asset Measurement]]) -> 0
C35: Total | H35: =SUBTOTAL(109,Option_3[Capital - Materials]) -> 6397.96 | I35: =SUBTOTAL(109,Option_3[Capital - Transport]) -> 483.17 | J35: =SUBTOTAL(109,Option_3[Capital - Installation]) -> 2696.5 | K35: =SUBTOTAL(109,Option_3[Operational - Use]) -> 6.125 | L35: =SUBTOTAL(109,Option_3[Operational - Maintenance]) -> 16373 | M35: =SUBTOTAL(109,Option_3[Operational -Repair]) -> 2205 | N35: =SUBTOTAL(109,Option_3[Operational - Energy]) -> 0 | O35: =SUBTOTAL(109,Option_3[Replacement - Materials]) -> 1225 | P35: =SUBTOTAL(109,Option_3[Replacement - Transport]) -> 8.575 | Q35: =SUBTOTAL(109,Option_3[Replacement - Installation]) -> 8.575 | R35: =SUBTOTAL(109,Option_3[Refurbishment]) -> 367.5 | S35: =SUBTOTAL(109,Option_3[Demolition]) -> 6 | T35: =SUBTOTAL(109,Option_3[Residual]) -> -735 | U35: =SUBTOTAL(109,Option_3[Whole Life Carbon]) -> 29043
B38: Option 4 | H38: =SUM(Option_4[Capital - Materials]) -> 0 | I38: =SUM(Option_4[Capital - Transport]) -> 0 | J38: =SUM(Option_4[Capital - Installation]) -> 0 | K38: =SUM(Option_4[Operational - Use]) -> 0 | L38: =SUM(Option_4[Operational - Maintenance]) -> 0 | M38: =SUM(Option_4[Operational -Repair]) -> 0 | N38: =SUM(Option_4[Operational - Energy]) -> 0 | O38: =SUM(Option_4[Replacement - Materials]) -> 0 | P38: =SUM(Option_4[Replacement - Transport]) -> 0 | Q38: =SUM(Option_4[Replacement - Installation]) -> 0 | R38: =SUM(Option_4[Refurbishment]) -> 0 | S38: =SUM(Option_4[Demolition]) -> 0 | T38: =SUM(Option_4[Residual]) -> 0 | U38: =SUM(Option_4[Whole Life Carbon]) -> 0
C42: Option | D42: Asset | E42: Asset Description | F42: Asset Unit | G42: Asset Measurement | H42: Capital - Materials | I42: Capital - Transport | J42: Capital - Installation | K42: Operational - Use | L42: Operational - Maintenance | M42: Operational -Repair | N42: Operational - Energy | O42: Replacement - Materials | P42: Replacement - Transport | Q42: Replacement - Installation | R42: Refurbishment | S42: Demolition | T42: Residual | U42: Whole Life Carbon
C43: Option 4 | F43: =IF(Option_4[Asset]="","",INDEX('Carbon Curve Data'!E:E,(MATCH(Option_4[Asset],'Carbon Curve Data'!D:D,0)))) ->  | H43: =IF(OR(Option_4[[#This Row],[Asset]]="",Option_4[[#This Row],[Asset Measurement]]=""),"",SUMIF('Carbon Curve Data'!$D:$D,Option_4[[#This Row],[Asset]],'Carbon Curve Data'!F:F)+(SUMIF('Carbon Curve Data'!$D:$D,Option_4[[#This Row],[Asset]],'Carbon Curve Data'!G:G))*Option_4[[#This Row],[Asset Measurement]]) ->  | I43: =IF(OR(Option_4[[#This Row],[Asset]]="",Option_4[[#This Row],[Asset Measurement]]=""),"",SUMIF('Carbon Curve Data'!$D:$D,Option_4[[#This Row],[Asset]],'Carbon Curve Data'!H:H)+(SUMIF('Carbon Curve Data'!$D:$D,Option_4[[#This Row],[Asset]],'Carbon Curve Data'!I:I))*Option_4[[#This Row],[Asset Measurement]]) ->  | J43: =IF(OR(Option_4[[#This Row],[Asset]]="",Option_4[[#This Row],[Asset Measurement]]=""),"",SUMIF('Carbon Curve Data'!$D:$D,Option_4[[#This Row],[Asset]],'Carbon Curve Data'!J:J)+(SUMIF('Carbon Curve Data'!$D:$D,Option_4[[#This Row],[Asset]],'Carbon Curve Data'!K:K))*Option_4[[#This Row],[Asset Measurement]]) ->  | K43: =IF(OR(Option_4[[#This Row],[Asset]]="",Option_4[[#This Row],[Asset Measurement]]=""),"",SUMIF('Carbon Curve Data'!$D:$D,Option_4[[#This Row],[Asset]],'Carbon Curve Data'!L:L)+(SUMIF('Carbon Curve Data'!$D:$D,Option_4[[#This Row],[Asset]],'Carbon Curve Data'!M:M))*Option_4[[#This Row],[Asset Measurement]]) ->  | L43: =IF(OR(Option_4[[#This Row],[Asset]]="",Option_4[[#This Row],[Asset Measurement]]=""),"",SUMIF('Carbon Curve Data'!$D:$D,Option_4[[#This Row],[Asset]],'Carbon Curve Data'!N:N)+(SUMIF('Carbon Curve Data'!$D:$D,Option_4[[#This Row],[Asset]],'Carbon Curve Data'!O:O))*Option_4[[#This Row],[Asset Measurement]]) ->  | M43: =IF(OR(Option_4[[#This Row],[Asset]]="",Option_4[[#This Row],[Asset Measurement]]=""),"",SUMIF('Carbon Curve Data'!$D:$D,Option_4[[#This Row],[Asset]],'Carbon Curve Data'!P:P)+(SUMIF('Carbon Curve Data'!$D:$D,Option_4[[#This Row],[Asset]],'Carbon Curve Data'!Q:Q))*Option_4[[#This Row],[Asset Measurement]]) ->  | N43: =IF(OR(Option_4[[#This Row],[Asset]]="",Option_4[[#This Row],[Asset Measurement]]=""),"",SUMIF('Carbon Curve Data'!$D:$D,Option_4[[#This Row],[Asset]],'Carbon Curve Data'!R:R)+(SUMIF('Carbon Curve Data'!$D:$D,Option_4[[#This Row],[Asset]],'Carbon Curve Data'!S:S))*Option_4[[#This Row],[Asset Measurement]]) ->  | O43: =IF(OR(Option_4[[#This Row],[Asset]]="",Option_4[[#This Row],[Asset Measurement]]=""),"",SUMIF('Carbon Curve Data'!$D:$D,Option_4[[#This Row],[Asset]],'Carbon Curve Data'!T:T)+(SUMIF('Carbon Curve Data'!$D:$D,Option_4[[#This Row],[Asset]],'Carbon Curve Data'!U:U))*Option_4[[#This Row],[Asset Measurement]]) ->  | P43: =IF(OR(Option_4[[#This Row],[Asset]]="",Option_4[[#This Row],[Asset Measurement]]=""),"",SUMIF('Carbon Curve Data'!$D:$D,Option_4[[#This Row],[Asset]],'Carbon Curve Data'!V:V)+(SUMIF('Carbon Curve Data'!$D:$D,Option_4[[#This Row],[Asset]],'Carbon Curve Data'!W:W))*Option_4[[#This Row],[Asset Measurement]]) ->  | Q43: =IF(OR(Option_4[[#This Row],[Asset]]="",Option_4[[#This Row],[Asset Measurement]]=""),"",SUMIF('Carbon Curve Data'!$D:$D,Option_4[[#This Row],[Asset]],'Carbon Curve Data'!X:X)+(SUMIF('Carbon Curve Data'!$D:$D,Option_4[[#This Row],[Asset]],'Carbon Curve Data'!Y:Y))*Option_4[[#This Row],[Asset Measurement]]) ->  | R43: =IF(OR(Option_4[[#This Row],[Asset]]="",Option_4[[#This Row],[Asset Measurement]]=""),"",SUMIF('Carbon Curve Data'!$D:$D,Option_4[[#This Row],[Asset]],'Carbon Curve Data'!Z:Z)+(SUMIF('Carbon Curve Data'!$D:$D,Option_4[[#This Row],[Asset]],'Carbon Curve Data'!AA:AA))*Option_4[[#This Row],[Asset Measurement]]) ->  | S43: =IF(OR(Option_4[[#This Row],[Asset]]="",Option_4[[#This Row],[Asset Measurement]]=""),"",SUMIF('Carbon Curve Data'!$D:$D,Option_4[[#This Row],[Asset]],'Carbon Curve Data'!AB:AB)+(SUMIF('Carbon Curve Data'!$D:$D,Option_4[[#This Row],[Asset]],'Carbon Curve Data'!AC:AC))*Option_4[[#This Row],[Asset Measurement]]) ->  | T43: =IF(OR(Option_4[[#This Row],[Asset]]="",Option_4[[#This Row],[Asset Measurement]]=""),"",SUMIF('Carbon Curve Data'!$D:$D,Option_4[[#This Row],[Asset]],'Carbon Curve Data'!AD:AD)+(SUMIF('Carbon Curve Data'!$D:$D,Option_4[[#This Row],[Asset]],'Carbon Curve Data'!AE:AE))*Option_4[[#This Row],[Asset Measurement]]) ->  | U43: =IF(OR(Option_4[[#This Row],[Asset]]="",Option_4[[#This Row],[Asset Measurement]]=""),"",SUMIF('Carbon Curve Data'!$D:$D,Option_4[[#This Row],[Asset]],'Carbon Curve Data'!AF:AF)+(SUMIF('Carbon Curve Data'!$D:$D,Option_4[[#This Row],[Asset]],'Carbon Curve Data'!AG:AG))*Option_4[[#This Row],[Asset Measurement]]) -> 
C44: Option 4 | F44: =IF(Option_4[Asset]="","",INDEX('Carbon Curve Data'!E:E,(MATCH(Option_4[Asset],'Carbon Curve Data'!D:D,0)))) ->  | H44: =IF(OR(Option_4[[#This Row],[Asset]]="",Option_4[[#This Row],[Asset Measurement]]=""),"",SUMIF('Carbon Curve Data'!$D:$D,Option_4[[#This Row],[Asset]],'Carbon Curve Data'!F:F)+(SUMIF('Carbon Curve Data'!$D:$D,Option_4[[#This Row],[Asset]],'Carbon Curve Data'!G:G))*Option_4[[#This Row],[Asset Measurement]]) ->  | I44: =IF(OR(Option_4[[#This Row],[Asset]]="",Option_4[[#This Row],[Asset Measurement]]=""),"",SUMIF('Carbon Curve Data'!$D:$D,Option_4[[#This Row],[Asset]],'Carbon Curve Data'!H:H)+(SUMIF('Carbon Curve Data'!$D:$D,Option_4[[#This Row],[Asset]],'Carbon Curve Data'!I:I))*Option_4[[#This Row],[Asset Measurement]]) ->  | J44: =IF(OR(Option_4[[#This Row],[Asset]]="",Option_4[[#This Row],[Asset Measurement]]=""),"",SUMIF('Carbon Curve Data'!$D:$D,Option_4[[#This Row],[Asset]],'Carbon Curve Data'!J:J)+(SUMIF('Carbon Curve Data'!$D:$D,Option_4[[#This Row],[Asset]],'Carbon Curve Data'!K:K))*Option_4[[#This Row],[Asset Measurement]]) ->  | K44: =IF(OR(Option_4[[#This Row],[Asset]]="",Option_4[[#This Row],[Asset Measurement]]=""),"",SUMIF('Carbon Curve Data'!$D:$D,Option_4[[#This Row],[Asset]],'Carbon Curve Data'!L:L)+(SUMIF('Carbon Curve Data'!$D:$D,Option_4[[#This Row],[Asset]],'Carbon Curve Data'!M:M))*Option_4[[#This Row],[Asset Measurement]]) ->  | L44: =IF(OR(Option_4[[#This Row],[Asset]]="",Option_4[[#This Row],[Asset Measurement]]=""),"",SUMIF('Carbon Curve Data'!$D:$D,Option_4[[#This Row],[Asset]],'Carbon Curve Data'!N:N)+(SUMIF('Carbon Curve Data'!$D:$D,Option_4[[#This Row],[Asset]],'Carbon Curve Data'!O:O))*Option_4[[#This Row],[Asset Measurement]]) ->  | M44: =IF(OR(Option_4[[#This Row],[Asset]]="",Option_4[[#This Row],[Asset Measurement]]=""),"",SUMIF('Carbon Curve Data'!$D:$D,Option_4[[#This Row],[Asset]],'Carbon Curve Data'!P:P)+(SUMIF('Carbon Curve Data'!$D:$D,Option_4[[#This Row],[Asset]],'Carbon Curve Data'!Q:Q))*Option_4[[#This Row],[Asset Measurement]]) ->  | N44: =IF(OR(Option_4[[#This Row],[Asset]]="",Option_4[[#This Row],[Asset Measurement]]=""),"",SUMIF('Carbon Curve Data'!$D:$D,Option_4[[#This Row],[Asset]],'Carbon Curve Data'!R:R)+(SUMIF('Carbon Curve Data'!$D:$D,Option_4[[#This Row],[Asset]],'Carbon Curve Data'!S:S))*Option_4[[#This Row],[Asset Measurement]]) ->  | O44: =IF(OR(Option_4[[#This Row],[Asset]]="",Option_4[[#This Row],[Asset Measurement]]=""),"",SUMIF('Carbon Curve Data'!$D:$D,Option_4[[#This Row],[Asset]],'Carbon Curve Data'!T:T)+(SUMIF('Carbon Curve Data'!$D:$D,Option_4[[#This Row],[Asset]],'Carbon Curve Data'!U:U))*Option_4[[#This Row],[Asset Measurement]]) ->  | P44: =IF(OR(Option_4[[#This Row],[Asset]]="",Option_4[[#This Row],[Asset Measurement]]=""),"",SUMIF('Carbon Curve Data'!$D:$D,Option_4[[#This Row],[Asset]],'Carbon Curve Data'!V:V)+(SUMIF('Carbon Curve Data'!$D:$D,Option_4[[#This Row],[Asset]],'Carbon Curve Data'!W:W))*Option_4[[#This Row],[Asset Measurement]]) ->  | Q44: =IF(OR(Option_4[[#This Row],[Asset]]="",Option_4[[#This Row],[Asset Measurement]]=""),"",SUMIF('Carbon Curve Data'!$D:$D,Option_4[[#This Row],[Asset]],'Carbon Curve Data'!X:X)+(SUMIF('Carbon Curve Data'!$D:$D,Option_4[[#This Row],[Asset]],'Carbon Curve Data'!Y:Y))*Option_4[[#This Row],[Asset Measurement]]) ->  | R44: =IF(OR(Option_4[[#This Row],[Asset]]="",Option_4[[#This Row],[Asset Measurement]]=""),"",SUMIF('Carbon Curve Data'!$D:$D,Option_4[[#This Row],[Asset]],'Carbon Curve Data'!Z:Z)+(SUMIF('Carbon Curve Data'!$D:$D,Option_4[[#This Row],[Asset]],'Carbon Curve Data'!AA:AA))*Option_4[[#This Row],[Asset Measurement]]) ->  | S44: =IF(OR(Option_4[[#This Row],[Asset]]="",Option_4[[#This Row],[Asset Measurement]]=""),"",SUMIF('Carbon Curve Data'!$D:$D,Option_4[[#This Row],[Asset]],'Carbon Curve Data'!AB:AB)+(SUMIF('Carbon Curve Data'!$D:$D,Option_4[[#This Row],[Asset]],'Carbon Curve Data'!AC:AC))*Option_4[[#This Row],[Asset Measurement]]) ->  | T44: =IF(OR(Option_4[[#This Row],[Asset]]="",Option_4[[#This Row],[Asset Measurement]]=""),"",SUMIF('Carbon Curve Data'!$D:$D,Option_4[[#This Row],[Asset]],'Carbon Curve Data'!AD:AD)+(SUMIF('Carbon Curve Data'!$D:$D,Option_4[[#This Row],[Asset]],'Carbon Curve Data'!AE:AE))*Option_4[[#This Row],[Asset Measurement]]) ->  | U44: =IF(OR(Option_4[[#This Row],[Asset]]="",Option_4[[#This Row],[Asset Measurement]]=""),"",SUMIF('Carbon Curve Data'!$D:$D,Option_4[[#This Row],[Asset]],'Carbon Curve Data'!AF:AF)+(SUMIF('Carbon Curve Data'!$D:$D,Option_4[[#This Row],[Asset]],'Carbon Curve Data'!AG:AG))*Option_4[[#This Row],[Asset Measurement]]) -> 
F45: =IF(Option_4[Asset]="","",INDEX('Carbon Curve Data'!E:E,(MATCH(Option_4[Asset],'Carbon Curve Data'!D:D,0)))) ->  | H45: =IF(OR(Option_4[[#This Row],[Asset]]="",Option_4[[#This Row],[Asset Measurement]]=""),"",SUMIF('Carbon Curve Data'!$D:$D,Option_4[[#This Row],[Asset]],'Carbon Curve Data'!F:F)+(SUMIF('Carbon Curve Data'!$D:$D,Option_4[[#This Row],[Asset]],'Carbon Curve Data'!G:G))*Option_4[[#This Row],[Asset Measurement]]) ->  | I45: =IF(OR(Option_4[[#This Row],[Asset]]="",Option_4[[#This Row],[Asset Measurement]]=""),"",SUMIF('Carbon Curve Data'!$D:$D,Option_4[[#This Row],[Asset]],'Carbon Curve Data'!H:H)+(SUMIF('Carbon Curve Data'!$D:$D,Option_4[[#This Row],[Asset]],'Carbon Curve Data'!I:I))*Option_4[[#This Row],[Asset Measurement]]) ->  | J45: =IF(OR(Option_4[[#This Row],[Asset]]="",Option_4[[#This Row],[Asset Measurement]]=""),"",SUMIF('Carbon Curve Data'!$D:$D,Option_4[[#This Row],[Asset]],'Carbon Curve Data'!J:J)+(SUMIF('Carbon Curve Data'!$D:$D,Option_4[[#This Row],[Asset]],'Carbon Curve Data'!K:K))*Option_4[[#This Row],[Asset Measurement]]) ->  | K45: =IF(OR(Option_4[[#This Row],[Asset]]="",Option_4[[#This Row],[Asset Measurement]]=""),"",SUMIF('Carbon Curve Data'!$D:$D,Option_4[[#This Row],[Asset]],'Carbon Curve Data'!L:L)+(SUMIF('Carbon Curve Data'!$D:$D,Option_4[[#This Row],[Asset]],'Carbon Curve Data'!M:M))*Option_4[[#This Row],[Asset Measurement]]) ->  | L45: =IF(OR(Option_4[[#This Row],[Asset]]="",Option_4[[#This Row],[Asset Measurement]]=""),"",SUMIF('Carbon Curve Data'!$D:$D,Option_4[[#This Row],[Asset]],'Carbon Curve Data'!N:N)+(SUMIF('Carbon Curve Data'!$D:$D,Option_4[[#This Row],[Asset]],'Carbon Curve Data'!O:O))*Option_4[[#This Row],[Asset Measurement]]) ->  | M45: =IF(OR(Option_4[[#This Row],[Asset]]="",Option_4[[#This Row],[Asset Measurement]]=""),"",SUMIF('Carbon Curve Data'!$D:$D,Option_4[[#This Row],[Asset]],'Carbon Curve Data'!P:P)+(SUMIF('Carbon Curve Data'!$D:$D,Option_4[[#This Row],[Asset]],'Carbon Curve Data'!Q:Q))*Option_4[[#This Row],[Asset Measurement]]) ->  | N45: =IF(OR(Option_4[[#This Row],[Asset]]="",Option_4[[#This Row],[Asset Measurement]]=""),"",SUMIF('Carbon Curve Data'!$D:$D,Option_4[[#This Row],[Asset]],'Carbon Curve Data'!R:R)+(SUMIF('Carbon Curve Data'!$D:$D,Option_4[[#This Row],[Asset]],'Carbon Curve Data'!S:S))*Option_4[[#This Row],[Asset Measurement]]) ->  | O45: =IF(OR(Option_4[[#This Row],[Asset]]="",Option_4[[#This Row],[Asset Measurement]]=""),"",SUMIF('Carbon Curve Data'!$D:$D,Option_4[[#This Row],[Asset]],'Carbon Curve Data'!T:T)+(SUMIF('Carbon Curve Data'!$D:$D,Option_4[[#This Row],[Asset]],'Carbon Curve Data'!U:U))*Option_4[[#This Row],[Asset Measurement]]) ->  | P45: =IF(OR(Option_4[[#This Row],[Asset]]="",Option_4[[#This Row],[Asset Measurement]]=""),"",SUMIF('Carbon Curve Data'!$D:$D,Option_4[[#This Row],[Asset]],'Carbon Curve Data'!V:V)+(SUMIF('Carbon Curve Data'!$D:$D,Option_4[[#This Row],[Asset]],'Carbon Curve Data'!W:W))*Option_4[[#This Row],[Asset Measurement]]) ->  | Q45: =IF(OR(Option_4[[#This Row],[Asset]]="",Option_4[[#This Row],[Asset Measurement]]=""),"",SUMIF('Carbon Curve Data'!$D:$D,Option_4[[#This Row],[Asset]],'Carbon Curve Data'!X:X)+(SUMIF('Carbon Curve Data'!$D:$D,Option_4[[#This Row],[Asset]],'Carbon Curve Data'!Y:Y))*Option_4[[#This Row],[Asset Measurement]]) ->  | R45: =IF(OR(Option_4[[#This Row],[Asset]]="",Option_4[[#This Row],[Asset Measurement]]=""),"",SUMIF('Carbon Curve Data'!$D:$D,Option_4[[#This Row],[Asset]],'Carbon Curve Data'!Z:Z)+(SUMIF('Carbon Curve Data'!$D:$D,Option_4[[#This Row],[Asset]],'Carbon Curve Data'!AA:AA))*Option_4[[#This Row],[Asset Measurement]]) ->  | S45: =IF(OR(Option_4[[#This Row],[Asset]]="",Option_4[[#This Row],[Asset Measurement]]=""),"",SUMIF('Carbon Curve Data'!$D:$D,Option_4[[#This Row],[Asset]],'Carbon Curve Data'!AB:AB)+(SUMIF('Carbon Curve Data'!$D:$D,Option_4[[#This Row],[Asset]],'Carbon Curve Data'!AC:AC))*Option_4[[#This Row],[Asset Measurement]]) ->  | T45: =IF(OR(Option_4[[#This Row],[Asset]]="",Option_4[[#This Row],[Asset Measurement]]=""),"",SUMIF('Carbon Curve Data'!$D:$D,Option_4[[#This Row],[Asset]],'Carbon Curve Data'!AD:AD)+(SUMIF('Carbon Curve Data'!$D:$D,Option_4[[#This Row],[Asset]],'Carbon Curve Data'!AE:AE))*Option_4[[#This Row],[Asset Measurement]]) ->  | U45: =IF(OR(Option_4[[#This Row],[Asset]]="",Option_4[[#This Row],[Asset Measurement]]=""),"",SUMIF('Carbon Curve Data'!$D:$D,Option_4[[#This Row],[Asset]],'Carbon Curve Data'!AF:AF)+(SUMIF('Carbon Curve Data'!$D:$D,Option_4[[#This Row],[Asset]],'Carbon Curve Data'!AG:AG))*Option_4[[#This Row],[Asset Measurement]]) -> 
C46: Total | H46: =SUBTOTAL(109,Option_4[Capital - Materials]) -> 0 | I46: =SUBTOTAL(109,Option_4[Capital - Transport]) -> 0 | J46: =SUBTOTAL(109,Option_4[Capital - Installation]) -> 0 | K46: =SUBTOTAL(109,Option_4[Operational - Use]) -> 0 | L46: =SUBTOTAL(109,Option_4[Operational - Maintenance]) -> 0 | M46: =SUBTOTAL(109,Option_4[Operational -Repair]) -> 0 | N46: =SUBTOTAL(109,Option_4[Operational - Energy]) -> 0 | O46: =SUBTOTAL(109,Option_4[Replacement - Materials]) -> 0 | P46: =SUBTOTAL(109,Option_4[Replacement - Transport]) -> 0 | Q46: =SUBTOTAL(109,Option_4[Replacement - Installation]) -> 0 | R46: =SUBTOTAL(109,Option_4[Refurbishment]) -> 0 | S46: =SUBTOTAL(109,Option_4[Demolition]) -> 0 | T46: =SUBTOTAL(109,Option_4[Residual]) -> 0 | U46: =SUBTOTAL(109,Option_4[Whole Life Carbon]) -> 0
B49: Option 5 | H49: =SUM(Option_5[Capital - Materials]) -> 0 | I49: =SUM(Option_5[Capital - Transport]) -> 0 | J49: =SUM(Option_5[Capital - Installation]) -> 0 | K49: =SUM(Option_5[Operational - Use]) -> 0 | L49: =SUM(Option_5[Operational - Maintenance]) -> 0 | M49: =SUM(Option_5[Operational -Repair]) -> 0 | N49: =SUM(Option_5[Operational - Energy]) -> 0 | O49: =SUM(Option_5[Replacement - Materials]) -> 0 | P49: =SUM(Option_5[Replacement - Transport]) -> 0 | Q49: =SUM(Option_5[Replacement - Installation]) -> 0 | R49: =SUM(Option_5[Refurbishment]) -> 0 | S49: =SUM(Option_5[Demolition]) -> 0 | T49: =SUM(Option_5[Residual]) -> 0 | U49: =SUM(Option_5[Whole Life Carbon]) -> 0
C53: Option | D53: Asset | E53: Asset Description | F53: Asset Unit | G53: Asset Measurement | H53: Capital - Materials | I53: Capital - Transport | J53: Capital - Installation | K53: Operational - Use | L53: Operational - Maintenance | M53: Operational -Repair | N53: Operational - Energy | O53: Replacement - Materials | P53: Replacement - Transport | Q53: Replacement - Installation | R53: Refurbishment | S53: Demolition | T53: Residual | U53: Whole Life Carbon
C54: Option 5 | F54: =IF(Option_5[Asset]="","",INDEX('Carbon Curve Data'!E:E,(MATCH(Option_5[Asset],'Carbon Curve Data'!D:D,0)))) ->  | H54: =IF(OR(Option_5[[#This Row],[Asset]]="",Option_5[[#This Row],[Asset Measurement]]=""),"",SUMIF('Carbon Curve Data'!$D:$D,Option_5[[#This Row],[Asset]],'Carbon Curve Data'!F:F)+(SUMIF('Carbon Curve Data'!$D:$D,Option_5[[#This Row],[Asset]],'Carbon Curve Data'!G:G))*Option_5[[#This Row],[Asset Measurement]]) ->  | I54: =IF(OR(Option_5[[#This Row],[Asset]]="",Option_5[[#This Row],[Asset Measurement]]=""),"",SUMIF('Carbon Curve Data'!$D:$D,Option_5[[#This Row],[Asset]],'Carbon Curve Data'!H:H)+(SUMIF('Carbon Curve Data'!$D:$D,Option_5[[#This Row],[Asset]],'Carbon Curve Data'!I:I))*Option_5[[#This Row],[Asset Measurement]]) ->  | J54: =IF(OR(Option_5[[#This Row],[Asset]]="",Option_5[[#This Row],[Asset Measurement]]=""),"",SUMIF('Carbon Curve Data'!$D:$D,Option_5[[#This Row],[Asset]],'Carbon Curve Data'!J:J)+(SUMIF('Carbon Curve Data'!$D:$D,Option_5[[#This Row],[Asset]],'Carbon Curve Data'!K:K))*Option_5[[#This Row],[Asset Measurement]]) ->  | K54: =IF(OR(Option_5[[#This Row],[Asset]]="",Option_5[[#This Row],[Asset Measurement]]=""),"",SUMIF('Carbon Curve Data'!$D:$D,Option_5[[#This Row],[Asset]],'Carbon Curve Data'!L:L)+(SUMIF('Carbon Curve Data'!$D:$D,Option_5[[#This Row],[Asset]],'Carbon Curve Data'!M:M))*Option_5[[#This Row],[Asset Measurement]]) ->  | L54: =IF(OR(Option_5[[#This Row],[Asset]]="",Option_5[[#This Row],[Asset Measurement]]=""),"",SUMIF('Carbon Curve Data'!$D:$D,Option_5[[#This Row],[Asset]],'Carbon Curve Data'!N:N)+(SUMIF('Carbon Curve Data'!$D:$D,Option_5[[#This Row],[Asset]],'Carbon Curve Data'!O:O))*Option_5[[#This Row],[Asset Measurement]]) ->  | M54: =IF(OR(Option_5[[#This Row],[Asset]]="",Option_5[[#This Row],[Asset Measurement]]=""),"",SUMIF('Carbon Curve Data'!$D:$D,Option_5[[#This Row],[Asset]],'Carbon Curve Data'!P:P)+(SUMIF('Carbon Curve Data'!$D:$D,Option_5[[#This Row],[Asset]],'Carbon Curve Data'!Q:Q))*Option_5[[#This Row],[Asset Measurement]]) ->  | N54: =IF(OR(Option_5[[#This Row],[Asset]]="",Option_5[[#This Row],[Asset Measurement]]=""),"",SUMIF('Carbon Curve Data'!$D:$D,Option_5[[#This Row],[Asset]],'Carbon Curve Data'!R:R)+(SUMIF('Carbon Curve Data'!$D:$D,Option_5[[#This Row],[Asset]],'Carbon Curve Data'!S:S))*Option_5[[#This Row],[Asset Measurement]]) ->  | O54: =IF(OR(Option_5[[#This Row],[Asset]]="",Option_5[[#This Row],[Asset Measurement]]=""),"",SUMIF('Carbon Curve Data'!$D:$D,Option_5[[#This Row],[Asset]],'Carbon Curve Data'!T:T)+(SUMIF('Carbon Curve Data'!$D:$D,Option_5[[#This Row],[Asset]],'Carbon Curve Data'!U:U))*Option_5[[#This Row],[Asset Measurement]]) ->  | P54: =IF(OR(Option_5[[#This Row],[Asset]]="",Option_5[[#This Row],[Asset Measurement]]=""),"",SUMIF('Carbon Curve Data'!$D:$D,Option_5[[#This Row],[Asset]],'Carbon Curve Data'!V:V)+(SUMIF('Carbon Curve Data'!$D:$D,Option_5[[#This Row],[Asset]],'Carbon Curve Data'!W:W))*Option_5[[#This Row],[Asset Measurement]]) ->  | Q54: =IF(OR(Option_5[[#This Row],[Asset]]="",Option_5[[#This Row],[Asset Measurement]]=""),"",SUMIF('Carbon Curve Data'!$D:$D,Option_5[[#This Row],[Asset]],'Carbon Curve Data'!X:X)+(SUMIF('Carbon Curve Data'!$D:$D,Option_5[[#This Row],[Asset]],'Carbon Curve Data'!Y:Y))*Option_5[[#This Row],[Asset Measurement]]) ->  | R54: =IF(OR(Option_5[[#This Row],[Asset]]="",Option_5[[#This Row],[Asset Measurement]]=""),"",SUMIF('Carbon Curve Data'!$D:$D,Option_5[[#This Row],[Asset]],'Carbon Curve Data'!Z:Z)+(SUMIF('Carbon Curve Data'!$D:$D,Option_5[[#This Row],[Asset]],'Carbon Curve Data'!AA:AA))*Option_5[[#This Row],[Asset Measurement]]) ->  | S54: =IF(OR(Option_5[[#This Row],[Asset]]="",Option_5[[#This Row],[Asset Measurement]]=""),"",SUMIF('Carbon Curve Data'!$D:$D,Option_5[[#This Row],[Asset]],'Carbon Curve Data'!AB:AB)+(SUMIF('Carbon Curve Data'!$D:$D,Option_5[[#This Row],[Asset]],'Carbon Curve Data'!AC:AC))*Option_5[[#This Row],[Asset Measurement]]) ->  | T54: =IF(OR(Option_5[[#This Row],[Asset]]="",Option_5[[#This Row],[Asset Measurement]]=""),"",SUMIF('Carbon Curve Data'!$D:$D,Option_5[[#This Row],[Asset]],'Carbon Curve Data'!AD:AD)+(SUMIF('Carbon Curve Data'!$D:$D,Option_5[[#This Row],[Asset]],'Carbon Curve Data'!AE:AE))*Option_5[[#This Row],[Asset Measurement]]) ->  | U54: =IF(OR(Option_5[[#This Row],[Asset]]="",Option_5[[#This Row],[Asset Measurement]]=""),"",SUMIF('Carbon Curve Data'!$D:$D,Option_5[[#This Row],[Asset]],'Carbon Curve Data'!AF:AF)+(SUMIF('Carbon Curve Data'!$D:$D,Option_5[[#This Row],[Asset]],'Carbon Curve Data'!AG:AG))*Option_5[[#This Row],[Asset Measurement]]) -> 
C55: Option 5 | F55: =IF(Option_5[Asset]="","",INDEX('Carbon Curve Data'!E:E,(MATCH(Option_5[Asset],'Carbon Curve Data'!D:D,0)))) ->  | H55: =IF(OR(Option_5[[#This Row],[Asset]]="",Option_5[[#This Row],[Asset Measurement]]=""),"",SUMIF('Carbon Curve Data'!$D:$D,Option_5[[#This Row],[Asset]],'Carbon Curve Data'!F:F)+(SUMIF('Carbon Curve Data'!$D:$D,Option_5[[#This Row],[Asset]],'Carbon Curve Data'!G:G))*Option_5[[#This Row],[Asset Measurement]]) ->  | I55: =IF(OR(Option_5[[#This Row],[Asset]]="",Option_5[[#This Row],[Asset Measurement]]=""),"",SUMIF('Carbon Curve Data'!$D:$D,Option_5[[#This Row],[Asset]],'Carbon Curve Data'!H:H)+(SUMIF('Carbon Curve Data'!$D:$D,Option_5[[#This Row],[Asset]],'Carbon Curve Data'!I:I))*Option_5[[#This Row],[Asset Measurement]]) ->  | J55: =IF(OR(Option_5[[#This Row],[Asset]]="",Option_5[[#This Row],[Asset Measurement]]=""),"",SUMIF('Carbon Curve Data'!$D:$D,Option_5[[#This Row],[Asset]],'Carbon Curve Data'!J:J)+(SUMIF('Carbon Curve Data'!$D:$D,Option_5[[#This Row],[Asset]],'Carbon Curve Data'!K:K))*Option_5[[#This Row],[Asset Measurement]]) ->  | K55: =IF(OR(Option_5[[#This Row],[Asset]]="",Option_5[[#This Row],[Asset Measurement]]=""),"",SUMIF('Carbon Curve Data'!$D:$D,Option_5[[#This Row],[Asset]],'Carbon Curve Data'!L:L)+(SUMIF('Carbon Curve Data'!$D:$D,Option_5[[#This Row],[Asset]],'Carbon Curve Data'!M:M))*Option_5[[#This Row],[Asset Measurement]]) ->  | L55: =IF(OR(Option_5[[#This Row],[Asset]]="",Option_5[[#This Row],[Asset Measurement]]=""),"",SUMIF('Carbon Curve Data'!$D:$D,Option_5[[#This Row],[Asset]],'Carbon Curve Data'!N:N)+(SUMIF('Carbon Curve Data'!$D:$D,Option_5[[#This Row],[Asset]],'Carbon Curve Data'!O:O))*Option_5[[#This Row],[Asset Measurement]]) ->  | M55: =IF(OR(Option_5[[#This Row],[Asset]]="",Option_5[[#This Row],[Asset Measurement]]=""),"",SUMIF('Carbon Curve Data'!$D:$D,Option_5[[#This Row],[Asset]],'Carbon Curve Data'!P:P)+(SUMIF('Carbon Curve Data'!$D:$D,Option_5[[#This Row],[Asset]],'Carbon Curve Data'!Q:Q))*Option_5[[#This Row],[Asset Measurement]]) ->  | N55: =IF(OR(Option_5[[#This Row],[Asset]]="",Option_5[[#This Row],[Asset Measurement]]=""),"",SUMIF('Carbon Curve Data'!$D:$D,Option_5[[#This Row],[Asset]],'Carbon Curve Data'!R:R)+(SUMIF('Carbon Curve Data'!$D:$D,Option_5[[#This Row],[Asset]],'Carbon Curve Data'!S:S))*Option_5[[#This Row],[Asset Measurement]]) ->  | O55: =IF(OR(Option_5[[#This Row],[Asset]]="",Option_5[[#This Row],[Asset Measurement]]=""),"",SUMIF('Carbon Curve Data'!$D:$D,Option_5[[#This Row],[Asset]],'Carbon Curve Data'!T:T)+(SUMIF('Carbon Curve Data'!$D:$D,Option_5[[#This Row],[Asset]],'Carbon Curve Data'!U:U))*Option_5[[#This Row],[Asset Measurement]]) ->  | P55: =IF(OR(Option_5[[#This Row],[Asset]]="",Option_5[[#This Row],[Asset Measurement]]=""),"",SUMIF('Carbon Curve Data'!$D:$D,Option_5[[#This Row],[Asset]],'Carbon Curve Data'!V:V)+(SUMIF('Carbon Curve Data'!$D:$D,Option_5[[#This Row],[Asset]],'Carbon Curve Data'!W:W))*Option_5[[#This Row],[Asset Measurement]]) ->  | Q55: =IF(OR(Option_5[[#This Row],[Asset]]="",Option_5[[#This Row],[Asset Measurement]]=""),"",SUMIF('Carbon Curve Data'!$D:$D,Option_5[[#This Row],[Asset]],'Carbon Curve Data'!X:X)+(SUMIF('Carbon Curve Data'!$D:$D,Option_5[[#This Row],[Asset]],'Carbon Curve Data'!Y:Y))*Option_5[[#This Row],[Asset Measurement]]) ->  | R55: =IF(OR(Option_5[[#This Row],[Asset]]="",Option_5[[#This Row],[Asset Measurement]]=""),"",SUMIF('Carbon Curve Data'!$D:$D,Option_5[[#This Row],[Asset]],'Carbon Curve Data'!Z:Z)+(SUMIF('Carbon Curve Data'!$D:$D,Option_5[[#This Row],[Asset]],'Carbon Curve Data'!AA:AA))*Option_5[[#This Row],[Asset Measurement]]) ->  | S55: =IF(OR(Option_5[[#This Row],[Asset]]="",Option_5[[#This Row],[Asset Measurement]]=""),"",SUMIF('Carbon Curve Data'!$D:$D,Option_5[[#This Row],[Asset]],'Carbon Curve Data'!AB:AB)+(SUMIF('Carbon Curve Data'!$D:$D,Option_5[[#This Row],[Asset]],'Carbon Curve Data'!AC:AC))*Option_5[[#This Row],[Asset Measurement]]) ->  | T55: =IF(OR(Option_5[[#This Row],[Asset]]="",Option_5[[#This Row],[Asset Measurement]]=""),"",SUMIF('Carbon Curve Data'!$D:$D,Option_5[[#This Row],[Asset]],'Carbon Curve Data'!AD:AD)+(SUMIF('Carbon Curve Data'!$D:$D,Option_5[[#This Row],[Asset]],'Carbon Curve Data'!AE:AE))*Option_5[[#This Row],[Asset Measurement]]) ->  | U55: =IF(OR(Option_5[[#This Row],[Asset]]="",Option_5[[#This Row],[Asset Measurement]]=""),"",SUMIF('Carbon Curve Data'!$D:$D,Option_5[[#This Row],[Asset]],'Carbon Curve Data'!AF:AF)+(SUMIF('Carbon Curve Data'!$D:$D,Option_5[[#This Row],[Asset]],'Carbon Curve Data'!AG:AG))*Option_5[[#This Row],[Asset Measurement]]) -> 
F56: =IF(Option_5[Asset]="","",INDEX('Carbon Curve Data'!E:E,(MATCH(Option_5[Asset],'Carbon Curve Data'!D:D,0)))) ->  | H56: =IF(OR(Option_5[[#This Row],[Asset]]="",Option_5[[#This Row],[Asset Measurement]]=""),"",SUMIF('Carbon Curve Data'!$D:$D,Option_5[[#This Row],[Asset]],'Carbon Curve Data'!F:F)+(SUMIF('Carbon Curve Data'!$D:$D,Option_5[[#This Row],[Asset]],'Carbon Curve Data'!G:G))*Option_5[[#This Row],[Asset Measurement]]) ->  | I56: =IF(OR(Option_5[[#This Row],[Asset]]="",Option_5[[#This Row],[Asset Measurement]]=""),"",SUMIF('Carbon Curve Data'!$D:$D,Option_5[[#This Row],[Asset]],'Carbon Curve Data'!H:H)+(SUMIF('Carbon Curve Data'!$D:$D,Option_5[[#This Row],[Asset]],'Carbon Curve Data'!I:I))*Option_5[[#This Row],[Asset Measurement]]) ->  | J56: =IF(OR(Option_5[[#This Row],[Asset]]="",Option_5[[#This Row],[Asset Measurement]]=""),"",SUMIF('Carbon Curve Data'!$D:$D,Option_5[[#This Row],[Asset]],'Carbon Curve Data'!J:J)+(SUMIF('Carbon Curve Data'!$D:$D,Option_5[[#This Row],[Asset]],'Carbon Curve Data'!K:K))*Option_5[[#This Row],[Asset Measurement]]) ->  | K56: =IF(OR(Option_5[[#This Row],[Asset]]="",Option_5[[#This Row],[Asset Measurement]]=""),"",SUMIF('Carbon Curve Data'!$D:$D,Option_5[[#This Row],[Asset]],'Carbon Curve Data'!L:L)+(SUMIF('Carbon Curve Data'!$D:$D,Option_5[[#This Row],[Asset]],'Carbon Curve Data'!M:M))*Option_5[[#This Row],[Asset Measurement]]) ->  | L56: =IF(OR(Option_5[[#This Row],[Asset]]="",Option_5[[#This Row],[Asset Measurement]]=""),"",SUMIF('Carbon Curve Data'!$D:$D,Option_5[[#This Row],[Asset]],'Carbon Curve Data'!N:N)+(SUMIF('Carbon Curve Data'!$D:$D,Option_5[[#This Row],[Asset]],'Carbon Curve Data'!O:O))*Option_5[[#This Row],[Asset Measurement]]) ->  | M56: =IF(OR(Option_5[[#This Row],[Asset]]="",Option_5[[#This Row],[Asset Measurement]]=""),"",SUMIF('Carbon Curve Data'!$D:$D,Option_5[[#This Row],[Asset]],'Carbon Curve Data'!P:P)+(SUMIF('Carbon Curve Data'!$D:$D,Option_5[[#This Row],[Asset]],'Carbon Curve Data'!Q:Q))*Option_5[[#This Row],[Asset Measurement]]) ->  | N56: =IF(OR(Option_5[[#This Row],[Asset]]="",Option_5[[#This Row],[Asset Measurement]]=""),"",SUMIF('Carbon Curve Data'!$D:$D,Option_5[[#This Row],[Asset]],'Carbon Curve Data'!R:R)+(SUMIF('Carbon Curve Data'!$D:$D,Option_5[[#This Row],[Asset]],'Carbon Curve Data'!S:S))*Option_5[[#This Row],[Asset Measurement]]) ->  | O56: =IF(OR(Option_5[[#This Row],[Asset]]="",Option_5[[#This Row],[Asset Measurement]]=""),"",SUMIF('Carbon Curve Data'!$D:$D,Option_5[[#This Row],[Asset]],'Carbon Curve Data'!T:T)+(SUMIF('Carbon Curve Data'!$D:$D,Option_5[[#This Row],[Asset]],'Carbon Curve Data'!U:U))*Option_5[[#This Row],[Asset Measurement]]) ->  | P56: =IF(OR(Option_5[[#This Row],[Asset]]="",Option_5[[#This Row],[Asset Measurement]]=""),"",SUMIF('Carbon Curve Data'!$D:$D,Option_5[[#This Row],[Asset]],'Carbon Curve Data'!V:V)+(SUMIF('Carbon Curve Data'!$D:$D,Option_5[[#This Row],[Asset]],'Carbon Curve Data'!W:W))*Option_5[[#This Row],[Asset Measurement]]) ->  | Q56: =IF(OR(Option_5[[#This Row],[Asset]]="",Option_5[[#This Row],[Asset Measurement]]=""),"",SUMIF('Carbon Curve Data'!$D:$D,Option_5[[#This Row],[Asset]],'Carbon Curve Data'!X:X)+(SUMIF('Carbon Curve Data'!$D:$D,Option_5[[#This Row],[Asset]],'Carbon Curve Data'!Y:Y))*Option_5[[#This Row],[Asset Measurement]]) ->  | R56: =IF(OR(Option_5[[#This Row],[Asset]]="",Option_5[[#This Row],[Asset Measurement]]=""),"",SUMIF('Carbon Curve Data'!$D:$D,Option_5[[#This Row],[Asset]],'Carbon Curve Data'!Z:Z)+(SUMIF('Carbon Curve Data'!$D:$D,Option_5[[#This Row],[Asset]],'Carbon Curve Data'!AA:AA))*Option_5[[#This Row],[Asset Measurement]]) ->  | S56: =IF(OR(Option_5[[#This Row],[Asset]]="",Option_5[[#This Row],[Asset Measurement]]=""),"",SUMIF('Carbon Curve Data'!$D:$D,Option_5[[#This Row],[Asset]],'Carbon Curve Data'!AB:AB)+(SUMIF('Carbon Curve Data'!$D:$D,Option_5[[#This Row],[Asset]],'Carbon Curve Data'!AC:AC))*Option_5[[#This Row],[Asset Measurement]]) ->  | T56: =IF(OR(Option_5[[#This Row],[Asset]]="",Option_5[[#This Row],[Asset Measurement]]=""),"",SUMIF('Carbon Curve Data'!$D:$D,Option_5[[#This Row],[Asset]],'Carbon Curve Data'!AD:AD)+(SUMIF('Carbon Curve Data'!$D:$D,Option_5[[#This Row],[Asset]],'Carbon Curve Data'!AE:AE))*Option_5[[#This Row],[Asset Measurement]]) ->  | U56: =IF(OR(Option_5[[#This Row],[Asset]]="",Option_5[[#This Row],[Asset Measurement]]=""),"",SUMIF('Carbon Curve Data'!$D:$D,Option_5[[#This Row],[Asset]],'Carbon Curve Data'!AF:AF)+(SUMIF('Carbon Curve Data'!$D:$D,Option_5[[#This Row],[Asset]],'Carbon Curve Data'!AG:AG))*Option_5[[#This Row],[Asset Measurement]]) -> 
C57: Total | H57: =SUBTOTAL(109,Option_5[Capital - Materials]) -> 0 | I57: =SUBTOTAL(109,Option_5[Capital - Transport]) -> 0 | J57: =SUBTOTAL(109,Option_5[Capital - Installation]) -> 0 | K57: =SUBTOTAL(109,Option_5[Operational - Use]) -> 0 | L57: =SUBTOTAL(109,Option_5[Operational - Maintenance]) -> 0 | M57: =SUBTOTAL(109,Option_5[Operational -Repair]) -> 0 | N57: =SUBTOTAL(109,Option_5[Operational - Energy]) -> 0 | O57: =SUBTOTAL(109,Option_5[Replacement - Materials]) -> 0 | P57: =SUBTOTAL(109,Option_5[Replacement - Transport]) -> 0 | Q57: =SUBTOTAL(109,Option_5[Replacement - Installation]) -> 0 | R57: =SUBTOTAL(109,Option_5[Refurbishment]) -> 0 | S57: =SUBTOTAL(109,Option_5[Demolition]) -> 0 | T57: =SUBTOTAL(109,Option_5[Residual]) -> 0 | U57: =SUBTOTAL(109,Option_5[Whole Life Carbon]) -> 0

Sheet Model Viewer
B3: Carbon Model Viewer
B4: Select Asset Model
B5: Sea Wall - Retaining - Concrete
B107: Asset Category | C107: Asset Unit | D107: Asset Measurment | E107: Capital Materials | F107: Capital Transport | G107: Capital Installation | H107: Operational Use | I107: Operational Maintenance | J107: Operational Repair | K107: Operational Energy | L107: Replacement Materials | M107: Replacement Transport | N107: Replacement Installation | O107: Refurbishment | P107: Demolition | Q107: Residual | R107: Whole Life Carbon
A108: =_xlfn.IFNA(B108,1) -> Sea Wall - Retaining - Concrete | B108: =IFERROR(INDEX('Model Data'!$B$6:$B$280,SMALL(IF('Model Data'!$B$6:$B$280=$B$5,ROW('Model Data'!$C$6:$C$280)-ROW('Model Data'!$B$6)+1),ROWS('Model Data'!$B$6:'Model Data'!B6))),NA()) -> Sea Wall - Retaining - Concrete | C108: =IFERROR(INDEX('Model Data'!$E$6:$E$280,SMALL(IF('Model Data'!$B$6:$B$280=$B$5,ROW('Model Data'!$E$6:$E$280)-ROW('Model Data'!$E$6)+1),ROWS('Model Data'!$E$6:'Model Data'!E6))),NA()) -> m3 | D108: =IFERROR(INDEX('Model Data'!$D$6:$D$280,SMALL(IF('Model Data'!$B$6:$B$280=$B$5,ROW('Model Data'!$D$6:$D$280)-ROW('Model Data'!$D$6)+1),ROWS('Model Data'!$D$6:'Model Data'!D6))),NA()) -> 43 | E108: =IFERROR(INDEX('Model Data'!$J$6:$J$280,SMALL(IF('Model Data'!$B$6:$B$280=$B$5,ROW('Model Data'!$J$6:$J$280)-ROW('Model Data'!$J$6)+1),ROWS('Model Data'!$J$6:'Model Data'!J6))),NA()) -> 22.466328 | F108: =IFERROR(INDEX('Model Data'!$K$6:$K$280,SMALL(IF('Model Data'!$B$6:$B$280=$B$5,ROW('Model Data'!$K$6:$K$280)-ROW('Model Data'!$K$6)+1),ROWS('Model Data'!$K$6:'Model Data'!K6))),NA()) -> 30.5179424 | G108: =IFERROR(INDEX('Model Data'!$L$6:$L$280,SMALL(IF('Model Data'!$B$6:$B$280=$B$5,ROW('Model Data'!$L$6:$L$280)-ROW('Model Data'!$L$6)+1),ROWS('Model Data'!$L$6:'Model Data'!L6))),NA()) -> 41.44141347 | H108: =IFERROR(INDEX('Model Data'!$M$6:$M$280,SMALL(IF('Model Data'!$B$6:$B$280=$B$5,ROW('Model Data'!$M$6:$M$280)-ROW('Model Data'!$M$6)+1),ROWS('Model Data'!$M$6:'Model Data'!M6))),NA()) -> 0 | I108: =IFERROR(INDEX('Model Data'!$N$6:$N$280,SMALL(IF('Model Data'!$B$6:$B$280=$B$5,ROW('Model Data'!$N$6:$N$280)-ROW('Model Data'!$N$6)+1),ROWS('Model Data'!$N$6:'Model Data'!N6))),NA()) -> 742.0956274 | J108: =IFERROR(INDEX('Model Data'!$O$6:$O$280,SMALL(IF('Model Data'!$B$6:$B$280=$B$5,ROW('Model Data'!$O$6:$O$280)-ROW('Model Data'!$O$6)+1),ROWS('Model Data'!$O$6:'Model Data'!O6))),NA()) -> 0 | K108: =IFERROR(INDEX('Model Data'!$P$6:$P$280,SMALL(IF('Model Data'!$B$6:$B$280=$B$5,ROW('Model Data'!$P$6:$P$280)-ROW('Model Data'!$P$6)+1),ROWS('Model Data'!$P$6:'Model Data'!P6))),NA()) -> 0 | L108: =IFERROR(INDEX('Model Data'!$Q$6:$Q$280,SMALL(IF('Model Data'!$B$6:$B$280=$B$5,ROW('Model Data'!$Q$6:$Q$280)-ROW('Model Data'!$Q$6)+1),ROWS('Model Data'!$Q$6:'Model Data'!Q6))),NA()) -> 0 | M108: =IFERROR(INDEX('Model Data'!$R$6:$R$280,SMALL(IF('Model Data'!$B$6:$B$280=$B$5,ROW('Model Data'!$R$6:$R$280)-ROW('Model Data'!$R$6)+1),ROWS('Model Data'!$R$6:'Model Data'!R6))),NA()) -> 0 | N108: =IFERROR(INDEX('Model Data'!$S$6:$S$280,SMALL(IF('Model Data'!$B$6:$B$280=$B$5,ROW('Model Data'!$S$6:$S$280)-ROW('Model Data'!$S$6)+1),ROWS('Model Data'!$S$6:'Model Data'!S6))),NA()) -> 0 | O108: =IFERROR(INDEX('Model Data'!$T$6:$T$280,SMALL(IF('Model Data'!$B$6:$B$280=$B$5,ROW('Model Data'!$T$6:$T$280)-ROW('Model Data'!$T$6)+1),ROWS('Model Data'!$T$6:'Model Data'!T6))),NA()) -> 3.274318457 | P108: =IFERROR(INDEX('Model Data'!$U$6:$U$280,SMALL(IF('Model Data'!$B$6:$B$280=$B$5,ROW('Model Data'!$U$6:$U$280)-ROW('Model Data'!$U$6)+1),ROWS('Model Data'!$U$6:'Model Data'!U6))),NA()) -> 0 | Q108: =IFERROR(INDEX('Model Data'!$V$6:$V$280,SMALL(IF('Model Data'!$B$6:$B$280=$B$5,ROW('Model Data'!$V$6:$V$280)-ROW('Model Data'!$V$6)+1),ROWS('Model Data'!$V$6:'Model Data'!V6))),NA()) -> 0 | R108: =IFERROR(INDEX('Model Data'!$W$6:$W$280,SMALL(IF('Model Data'!$B$6:$B$280=$B$5,ROW('Model Data'!$W$6:$W$280)-ROW('Model Data'!$W$6)+1),ROWS('Model Data'!$W$6:'Model Data'!W6))),NA()) -> 839.7956297
A109: =_xlfn.IFNA(B109,1) -> Sea Wall - Retaining - Concrete | B109: =IFERROR(INDEX('Model Data'!$B$6:$B$280,SMALL(IF('Model Data'!$B$6:$B$280=$B$5,ROW('Model Data'!$C$6:$C$280)-ROW('Model Data'!$B$6)+1),ROWS('Model Data'!$B$6:'Model Data'!B7))),NA()) -> Sea Wall - Retaining - Concrete | C109: =IFERROR(INDEX('Model Data'!$E$6:$E$280,SMALL(IF('Model Data'!$B$6:$B$280=$B$5,ROW('Model Data'!$E$6:$E$280)-ROW('Model Data'!$E$6)+1),ROWS('Model Data'!$E$6:'Model Data'!E7))),NA()) -> m3 | D109: =IFERROR(INDEX('Model Data'!$D$6:$D$280,SMALL(IF('Model Data'!$B$6:$B$280=$B$5,ROW('Model Data'!$D$6:$D$280)-ROW('Model Data'!$D$6)+1),ROWS('Model Data'!$D$6:'Model Data'!D7))),NA()) -> 133 | E109: =IFERROR(INDEX('Model Data'!$J$6:$J$280,SMALL(IF('Model Data'!$B$6:$B$280=$B$5,ROW('Model Data'!$J$6:$J$280)-ROW('Model Data'!$J$6)+1),ROWS('Model Data'!$J$6:'Model Data'!J7))),NA()) -> 61.260864 | F109: =IFERROR(INDEX('Model Data'!$K$6:$K$280,SMALL(IF('Model Data'!$B$6:$B$280=$B$5,ROW('Model Data'!$K$6:$K$280)-ROW('Model Data'!$K$6)+1),ROWS('Model Data'!$K$6:'Model Data'!K7))),NA()) -> 30.77752977 | G109: =IFERROR(INDEX('Model Data'!$L$6:$L$280,SMALL(IF('Model Data'!$B$6:$B$280=$B$5,ROW('Model Data'!$L$6:$L$280)-ROW('Model Data'!$L$6)+1),ROWS('Model Data'!$L$6:'Model Data'!L7))),NA()) -> 54.31106473 | H109: =IFERROR(INDEX('Model Data'!$M$6:$M$280,SMALL(IF('Model Data'!$B$6:$B$280=$B$5,ROW('Model Data'!$M$6:$M$280)-ROW('Model Data'!$M$6)+1),ROWS('Model Data'!$M$6:'Model Data'!M7))),NA()) -> 0 | I109: =IFERROR(INDEX('Model Data'!$N$6:$N$280,SMALL(IF('Model Data'!$B$6:$B$280=$B$5,ROW('Model Data'!$N$6:$N$280)-ROW('Model Data'!$N$6)+1),ROWS('Model Data'!$N$6:'Model Data'!N7))),NA()) -> 1833.563178 | J109: =IFERROR(INDEX('Model Data'!$O$6:$O$280,SMALL(IF('Model Data'!$B$6:$B$280=$B$5,ROW('Model Data'!$O$6:$O$280)-ROW('Model Data'!$O$6)+1),ROWS('Model Data'!$O$6:'Model Data'!O7))),NA()) -> 0 | K109: =IFERROR(INDEX('Model Data'!$P$6:$P$280,SMALL(IF('Model Data'!$B$6:$B$280=$B$5,ROW('Model Data'!$P$6:$P$280)-ROW('Model Data'!$P$6)+1),ROWS('Model Data'!$P$6:'Model Data'!P7))),NA()) -> 0 | L109: =IFERROR(INDEX('Model Data'!$Q$6:$Q$280,SMALL(IF('Model Data'!$B$6:$B$280=$B$5,ROW('Model Data'!$Q$6:$Q$280)-ROW('Model Data'!$Q$6)+1),ROWS('Model Data'!$Q$6:'Model Data'!Q7))),NA()) -> 0 | M109: =IFERROR(INDEX('Model Data'!$R$6:$R$280,SMALL(IF('Model Data'!$B$6:$B$280=$B$5,ROW('Model Data'!$R$6:$R$280)-ROW('Model Data'!$R$6)+1),ROWS('Model Data'!$R$6:'Model Data'!R7))),NA()) -> 0 | N109: =IFERROR(INDEX('Model Data'!$S$6:$S$280,SMALL(IF('Model Data'!$B$6:$B$280=$B$5,ROW('Model Data'!$S$6:$S$280)-ROW('Model Data'!$S$6)+1),ROWS('Model Data'!$S$6:'Model Data'!S7))),NA()) -> 0 | O109: =IFERROR(INDEX('Model Data'!$T$6:$T$280,SMALL(IF('Model Data'!$B$6:$B$280=$B$5,ROW('Model Data'!$T$6:$T$280)-ROW('Model Data'!$T$6)+1),ROWS('Model Data'!$T$6:'Model Data'!T7))),NA()) -> 5.074834658 | P109: =IFERROR(INDEX('Model Data'!$U$6:$U$280,SMALL(IF('Model Data'!$B$6:$B$280=$B$5,ROW('Model Data'!$U$6:$U$280)-ROW('Model Data'!$U$6)+1),ROWS('Model Data'!$U$6:'Model Data'!U7))),NA()) -> 0 | Q109: =IFERROR(INDEX('Model Data'!$V$6:$V$280,SMALL(IF('Model Data'!$B$6:$B$280=$B$5,ROW('Model Data'!$V$6:$V$280)-ROW('Model Data'!$V$6)+1),ROWS('Model Data'!$V$6:'Model Data'!V7))),NA()) -> 0 | R109: =IFERROR(INDEX('Model Data'!$W$6:$W$280,SMALL(IF('Model Data'!$B$6:$B$280=$B$5,ROW('Model Data'!$W$6:$W$280)-ROW('Model Data'!$W$6)+1),ROWS('Model Data'!$W$6:'Model Data'!W7))),NA()) -> 1984.987471
A110: Sea Wall - Retaining - Concrete | B110: =IFERROR(INDEX('Model Data'!$B$6:$B$280,SMALL(IF('Model Data'!$B$6:$B$280=$B$5,ROW('Model Data'!$C$6:$C$280)-ROW('Model Data'!$B$6)+1),ROWS('Model Data'!$B$6:'Model Data'!B8))),NA()) -> Sea Wall - Retaining - Concrete | C110: =IFERROR(INDEX('Model Data'!$E$6:$E$280,SMALL(IF('Model Data'!$B$6:$B$280=$B$5,ROW('Model Data'!$E$6:$E$280)-ROW('Model Data'!$E$6)+1),ROWS('Model Data'!$E$6:'Model Data'!E8))),NA()) -> m3 | D110: =IFERROR(INDEX('Model Data'!$D$6:$D$280,SMALL(IF('Model Data'!$B$6:$B$280=$B$5,ROW('Model Data'!$D$6:$D$280)-ROW('Model Data'!$D$6)+1),ROWS('Model Data'!$D$6:'Model Data'!D8))),NA()) -> 81 | E110: =IFERROR(INDEX('Model Data'!$J$6:$J$280,SMALL(IF('Model Data'!$B$6:$B$280=$B$5,ROW('Model Data'!$J$6:$J$280)-ROW('Model Data'!$J$6)+1),ROWS('Model Data'!$J$6:'Model Data'!J8))),NA()) -> 37.366944 | F110: =IFERROR(INDEX('Model Data'!$K$6:$K$280,SMALL(IF('Model Data'!$B$6:$B$280=$B$5,ROW('Model Data'!$K$6:$K$280)-ROW('Model Data'!$K$6)+1),ROWS('Model Data'!$K$6:'Model Data'!K8))),NA()) -> 30.5952663 | G110: =IFERROR(INDEX('Model Data'!$L$6:$L$280,SMALL(IF('Model Data'!$B$6:$B$280=$B$5,ROW('Model Data'!$L$6:$L$280)-ROW('Model Data'!$L$6)+1),ROWS('Model Data'!$L$6:'Model Data'!L8))),NA()) -> 44.38659 | H110: =IFERROR(INDEX('Model Data'!$M$6:$M$280,SMALL(IF('Model Data'!$B$6:$B$280=$B$5,ROW('Model Data'!$M$6:$M$280)-ROW('Model Data'!$M$6)+1),ROWS('Model Data'!$M$6:'Model Data'!M8))),NA()) -> 0 | I110: =IFERROR(INDEX('Model Data'!$N$6:$N$280,SMALL(IF('Model Data'!$B$6:$B$280=$B$5,ROW('Model Data'!$N$6:$N$280)-ROW('Model Data'!$N$6)+1),ROWS('Model Data'!$N$6:'Model Data'!N8))),NA()) -> 1118.968801 | J110: =IFERROR(INDEX('Model Data'!$O$6:$O$280,SMALL(IF('Model Data'!$B$6:$B$280=$B$5,ROW('Model Data'!$O$6:$O$280)-ROW('Model Data'!$O$6)+1),ROWS('Model Data'!$O$6:'Model Data'!O8))),NA()) -> 0 | K110: =IFERROR(INDEX('Model Data'!$P$6:$P$280,SMALL(IF('Model Data'!$B$6:$B$280=$B$5,ROW('Model Data'!$P$6:$P$280)-ROW('Model Data'!$P$6)+1),ROWS('Model Data'!$P$6:'Model Data'!P8))),NA()) -> 0 | L110: =IFERROR(INDEX('Model Data'!$Q$6:$Q$280,SMALL(IF('Model Data'!$B$6:$B$280=$B$5,ROW('Model Data'!$Q$6:$Q$280)-ROW('Model Data'!$Q$6)+1),ROWS('Model Data'!$Q$6:'Model Data'!Q8))),NA()) -> 0 | M110: =IFERROR(INDEX('Model Data'!$R$6:$R$280,SMALL(IF('Model Data'!$B$6:$B$280=$B$5,ROW('Model Data'!$R$6:$R$280)-ROW('Model Data'!$R$6)+1),ROWS('Model Data'!$R$6:'Model Data'!R8))),NA()) -> 0 | N110: =IFERROR(INDEX('Model Data'!$S$6:$S$280,SMALL(IF('Model Data'!$B$6:$B$280=$B$5,ROW('Model Data'!$S$6:$S$280)-ROW('Model Data'!$S$6)+1),ROWS('Model Data'!$S$6:'Model Data'!S8))),NA()) -> 0 | O110: =IFERROR(INDEX('Model Data'!$T$6:$T$280,SMALL(IF('Model Data'!$B$6:$B$280=$B$5,ROW('Model Data'!$T$6:$T$280)-ROW('Model Data'!$T$6)+1),ROWS('Model Data'!$T$6:'Model Data'!T8))),NA()) -> 3.895822994 | P110: =IFERROR(INDEX('Model Data'!$U$6:$U$280,SMALL(IF('Model Data'!$B$6:$B$280=$B$5,ROW('Model Data'!$U$6:$U$280)-ROW('Model Data'!$U$6)+1),ROWS('Model Data'!$U$6:'Model Data'!U8))),NA()) -> 0 | Q110: =IFERROR(INDEX('Model Data'!$V$6:$V$280,SMALL(IF('Model Data'!$B$6:$B$280=$B$5,ROW('Model Data'!$V$6:$V$280)-ROW('Model Data'!$V$6)+1),ROWS('Model Data'!$V$6:'Model Data'!V8))),NA()) -> 0 | R110: =IFERROR(INDEX('Model Data'!$W$6:$W$280,SMALL(IF('Model Data'!$B$6:$B$280=$B$5,ROW('Model Data'!$W$6:$W$280)-ROW('Model Data'!$W$6)+1),ROWS('Model Data'!$W$6:'Model Data'!W8))),NA()) -> 1235.213425
A111: Sea Wall - Retaining - Concrete | B111: =IFERROR(INDEX('Model Data'!$B$6:$B$280,SMALL(IF('Model Data'!$B$6:$B$280=$B$5,ROW('Model Data'!$C$6:$C$280)-ROW('Model Data'!$B$6)+1),ROWS('Model Data'!$B$6:'Model Data'!B9))),NA()) -> Sea Wall - Retaining - Concrete | C111: =IFERROR(INDEX('Model Data'!$E$6:$E$280,SMALL(IF('Model Data'!$B$6:$B$280=$B$5,ROW('Model Data'!$E$6:$E$280)-ROW('Model Data'!$E$6)+1),ROWS('Model Data'!$E$6:'Model Data'!E9))),NA()) -> m3 | D111: =IFERROR(INDEX('Model Data'!$D$6:$D$280,SMALL(IF('Model Data'!$B$6:$B$280=$B$5,ROW('Model Data'!$D$6:$D$280)-ROW('Model Data'!$D$6)+1),ROWS('Model Data'!$D$6:'Model Data'!D9))),NA()) -> 156 | E111: =IFERROR(INDEX('Model Data'!$J$6:$J$280,SMALL(IF('Model Data'!$B$6:$B$280=$B$5,ROW('Model Data'!$J$6:$J$280)-ROW('Model Data'!$J$6)+1),ROWS('Model Data'!$J$6:'Model Data'!J9))),NA()) -> 72.70152 | F111: =IFERROR(INDEX('Model Data'!$K$6:$K$280,SMALL(IF('Model Data'!$B$6:$B$280=$B$5,ROW('Model Data'!$K$6:$K$280)-ROW('Model Data'!$K$6)+1),ROWS('Model Data'!$K$6:'Model Data'!K9))),NA()) -> 30.7664835 | G111: =IFERROR(INDEX('Model Data'!$L$6:$L$280,SMALL(IF('Model Data'!$B$6:$B$280=$B$5,ROW('Model Data'!$L$6:$L$280)-ROW('Model Data'!$L$6)+1),ROWS('Model Data'!$L$6:'Model Data'!L9))),NA()) -> 66.07777355 | H111: =IFERROR(INDEX('Model Data'!$M$6:$M$280,SMALL(IF('Model Data'!$B$6:$B$280=$B$5,ROW('Model Data'!$M$6:$M$280)-ROW('Model Data'!$M$6)+1),ROWS('Model Data'!$M$6:'Model Data'!M9))),NA()) -> 0 | I111: =IFERROR(INDEX('Model Data'!$N$6:$N$280,SMALL(IF('Model Data'!$B$6:$B$280=$B$5,ROW('Model Data'!$N$6:$N$280)-ROW('Model Data'!$N$6)+1),ROWS('Model Data'!$N$6:'Model Data'!N9))),NA()) -> 1983.564237 | J111: =IFERROR(INDEX('Model Data'!$O$6:$O$280,SMALL(IF('Model Data'!$B$6:$B$280=$B$5,ROW('Model Data'!$O$6:$O$280)-ROW('Model Data'!$O$6)+1),ROWS('Model Data'!$O$6:'Model Data'!O9))),NA()) -> 0 | K111: =IFERROR(INDEX('Model Data'!$P$6:$P$280,SMALL(IF('Model Data'!$B$6:$B$280=$B$5,ROW('Model Data'!$P$6:$P$280)-ROW('Model Data'!$P$6)+1),ROWS('Model Data'!$P$6:'Model Data'!P9))),NA()) -> 0 | L111: =IFERROR(INDEX('Model Data'!$Q$6:$Q$280,SMALL(IF('Model Data'!$B$6:$B$280=$B$5,ROW('Model Data'!$Q$6:$Q$280)-ROW('Model Data'!$Q$6)+1),ROWS('Model Data'!$Q$6:'Model Data'!Q9))),NA()) -> 0 | M111: =IFERROR(INDEX('Model Data'!$R$6:$R$280,SMALL(IF('Model Data'!$B$6:$B$280=$B$5,ROW('Model Data'!$R$6:$R$280)-ROW('Model Data'!$R$6)+1),ROWS('Model Data'!$R$6:'Model Data'!R9))),NA()) -> 0 | N111: =IFERROR(INDEX('Model Data'!$S$6:$S$280,SMALL(IF('Model Data'!$B$6:$B$280=$B$5,ROW('Model Data'!$S$6:$S$280)-ROW('Model Data'!$S$6)+1),ROWS('Model Data'!$S$6:'Model Data'!S9))),NA()) -> 0 | O111: =IFERROR(INDEX('Model Data'!$T$6:$T$280,SMALL(IF('Model Data'!$B$6:$B$280=$B$5,ROW('Model Data'!$T$6:$T$280)-ROW('Model Data'!$T$6)+1),ROWS('Model Data'!$T$6:'Model Data'!T9))),NA()) -> 5.879193503 | P111: =IFERROR(INDEX('Model Data'!$U$6:$U$280,SMALL(IF('Model Data'!$B$6:$B$280=$B$5,ROW('Model Data'!$U$6:$U$280)-ROW('Model Data'!$U$6)+1),ROWS('Model Data'!$U$6:'Model Data'!U9))),NA()) -> 0 | Q111: =IFERROR(INDEX('Model Data'!$V$6:$V$280,SMALL(IF('Model Data'!$B$6:$B$280=$B$5,ROW('Model Data'!$V$6:$V$280)-ROW('Model Data'!$V$6)+1),ROWS('Model Data'!$V$6:'Model Data'!V9))),NA()) -> 0 | R111: =IFERROR(INDEX('Model Data'!$W$6:$W$280,SMALL(IF('Model Data'!$B$6:$B$280=$B$5,ROW('Model Data'!$W$6:$W$280)-ROW('Model Data'!$W$6)+1),ROWS('Model Data'!$W$6:'Model Data'!W9))),NA()) -> 2158.989208
A112: Sea Wall - Retaining - Concrete | B112: =IFERROR(INDEX('Model Data'!$B$6:$B$280,SMALL(IF('Model Data'!$B$6:$B$280=$B$5,ROW('Model Data'!$C$6:$C$280)-ROW('Model Data'!$B$6)+1),ROWS('Model Data'!$B$6:'Model Data'!B10))),NA()) -> Sea Wall - Retaining - Concrete | C112: =IFERROR(INDEX('Model Data'!$E$6:$E$280,SMALL(IF('Model Data'!$B$6:$B$280=$B$5,ROW('Model Data'!$E$6:$E$280)-ROW('Model Data'!$E$6)+1),ROWS('Model Data'!$E$6:'Model Data'!E10))),NA()) -> m3 | D112: =IFERROR(INDEX('Model Data'!$D$6:$D$280,SMALL(IF('Model Data'!$B$6:$B$280=$B$5,ROW('Model Data'!$D$6:$D$280)-ROW('Model Data'!$D$6)+1),ROWS('Model Data'!$D$6:'Model Data'!D10))),NA()) -> 0 | E112: =IFERROR(INDEX('Model Data'!$J$6:$J$280,SMALL(IF('Model Data'!$B$6:$B$280=$B$5,ROW('Model Data'!$J$6:$J$280)-ROW('Model Data'!$J$6)+1),ROWS('Model Data'!$J$6:'Model Data'!J10))),NA()) -> 0 | F112: =IFERROR(INDEX('Model Data'!$K$6:$K$280,SMALL(IF('Model Data'!$B$6:$B$280=$B$5,ROW('Model Data'!$K$6:$K$280)-ROW('Model Data'!$K$6)+1),ROWS('Model Data'!$K$6:'Model Data'!K10))),NA()) -> 0 | G112: =IFERROR(INDEX('Model Data'!$L$6:$L$280,SMALL(IF('Model Data'!$B$6:$B$280=$B$5,ROW('Model Data'!$L$6:$L$280)-ROW('Model Data'!$L$6)+1),ROWS('Model Data'!$L$6:'Model Data'!L10))),NA()) -> 0 | H112: =IFERROR(INDEX('Model Data'!$M$6:$M$280,SMALL(IF('Model Data'!$B$6:$B$280=$B$5,ROW('Model Data'!$M$6:$M$280)-ROW('Model Data'!$M$6)+1),ROWS('Model Data'!$M$6:'Model Data'!M10))),NA()) -> 0 | I112: =IFERROR(INDEX('Model Data'!$N$6:$N$280,SMALL(IF('Model Data'!$B$6:$B$280=$B$5,ROW('Model Data'!$N$6:$N$280)-ROW('Model Data'!$N$6)+1),ROWS('Model Data'!$N$6:'Model Data'!N10))),NA()) -> 0 | J112: =IFERROR(INDEX('Model Data'!$O$6:$O$280,SMALL(IF('Model Data'!$B$6:$B$280=$B$5,ROW('Model Data'!$O$6:$O$280)-ROW('Model Data'!$O$6)+1),ROWS('Model Data'!$O$6:'Model Data'!O10))),NA()) -> 0 | K112: =IFERROR(INDEX('Model Data'!$P$6:$P$280,SMALL(IF('Model Data'!$B$6:$B$280=$B$5,ROW('Model Data'!$P$6:$P$280)-ROW('Model Data'!$P$6)+1),ROWS('Model Data'!$P$6:'Model Data'!P10))),NA()) -> 0 | L112: =IFERROR(INDEX('Model Data'!$Q$6:$Q$280,SMALL(IF('Model Data'!$B$6:$B$280=$B$5,ROW('Model Data'!$Q$6:$Q$280)-ROW('Model Data'!$Q$6)+1),ROWS('Model Data'!$Q$6:'Model Data'!Q10))),NA()) -> 0 | M112: =IFERROR(INDEX('Model Data'!$R$6:$R$280,SMALL(IF('Model Data'!$B$6:$B$280=$B$5,ROW('Model Data'!$R$6:$R$280)-ROW('Model Data'!$R$6)+1),ROWS('Model Data'!$R$6:'Model Data'!R10))),NA()) -> 0 | N112: =IFERROR(INDEX('Model Data'!$S$6:$S$280,SMALL(IF('Model Data'!$B$6:$B$280=$B$5,ROW('Model Data'!$S$6:$S$280)-ROW('Model Data'!$S$6)+1),ROWS('Model Data'!$S$6:'Model Data'!S10))),NA()) -> 0 | O112: =IFERROR(INDEX('Model Data'!$T$6:$T$280,SMALL(IF('Model Data'!$B$6:$B$280=$B$5,ROW('Model Data'!$T$6:$T$280)-ROW('Model Data'!$T$6)+1),ROWS('Model Data'!$T$6:'Model Data'!T10))),NA()) -> 0 | P112: =IFERROR(INDEX('Model Data'!$U$6:$U$280,SMALL(IF('Model Data'!$B$6:$B$280=$B$5,ROW('Model Data'!$U$6:$U$280)-ROW('Model Data'!$U$6)+1),ROWS('Model Data'!$U$6:'Model Data'!U10))),NA()) -> 0 | Q112: =IFERROR(INDEX('Model Data'!$V$6:$V$280,SMALL(IF('Model Data'!$B$6:$B$280=$B$5,ROW('Model Data'!$V$6:$V$280)-ROW('Model Data'!$V$6)+1),ROWS('Model Data'!$V$6:'Model Data'!V10))),NA()) -> 0 | R112: =IFERROR(INDEX('Model Data'!$W$6:$W$280,SMALL(IF('Model Data'!$B$6:$B$280=$B$5,ROW('Model Data'!$W$6:$W$280)-ROW('Model Data'!$W$6)+1),ROWS('Model Data'!$W$6:'Model Data'!W10))),NA()) -> 0
A113: 1 | B113: =IFERROR(INDEX('Model Data'!$B$6:$B$280,SMALL(IF('Model Data'!$B$6:$B$280=$B$5,ROW('Model Data'!$C$6:$C$280)-ROW('Model Data'!$B$6)+1),ROWS('Model Data'!$B$6:'Model Data'!B11))),NA()) ->  | C113: =IFERROR(INDEX('Model Data'!$E$6:$E$280,SMALL(IF('Model Data'!$B$6:$B$280=$B$5,ROW('Model Data'!$E$6:$E$280)-ROW('Model Data'!$E$6)+1),ROWS('Model Data'!$E$6:'Model Data'!E11))),NA()) ->  | D113: =IFERROR(INDEX('Model Data'!$D$6:$D$280,SMALL(IF('Model Data'!$B$6:$B$280=$B$5,ROW('Model Data'!$D$6:$D$280)-ROW('Model Data'!$D$6)+1),ROWS('Model Data'!$D$6:'Model Data'!D11))),NA()) ->  | E113: =IFERROR(INDEX('Model Data'!$J$6:$J$280,SMALL(IF('Model Data'!$B$6:$B$280=$B$5,ROW('Model Data'!$J$6:$J$280)-ROW('Model Data'!$J$6)+1),ROWS('Model Data'!$J$6:'Model Data'!J11))),NA()) ->  | F113: =IFERROR(INDEX('Model Data'!$K$6:$K$280,SMALL(IF('Model Data'!$B$6:$B$280=$B$5,ROW('Model Data'!$K$6:$K$280)-ROW('Model Data'!$K$6)+1),ROWS('Model Data'!$K$6:'Model Data'!K11))),NA()) ->  | G113: =IFERROR(INDEX('Model Data'!$L$6:$L$280,SMALL(IF('Model Data'!$B$6:$B$280=$B$5,ROW('Model Data'!$L$6:$L$280)-ROW('Model Data'!$L$6)+1),ROWS('Model Data'!$L$6:'Model Data'!L11))),NA()) ->  | H113: =IFERROR(INDEX('Model Data'!$M$6:$M$280,SMALL(IF('Model Data'!$B$6:$B$280=$B$5,ROW('Model Data'!$M$6:$M$280)-ROW('Model Data'!$M$6)+1),ROWS('Model Data'!$M$6:'Model Data'!M11))),NA()) ->  | I113: =IFERROR(INDEX('Model Data'!$N$6:$N$280,SMALL(IF('Model Data'!$B$6:$B$280=$B$5,ROW('Model Data'!$N$6:$N$280)-ROW('Model Data'!$N$6)+1),ROWS('Model Data'!$N$6:'Model Data'!N11))),NA()) ->  | J113: =IFERROR(INDEX('Model Data'!$O$6:$O$280,SMALL(IF('Model Data'!$B$6:$B$280=$B$5,ROW('Model Data'!$O$6:$O$280)-ROW('Model Data'!$O$6)+1),ROWS('Model Data'!$O$6:'Model Data'!O11))),NA()) ->  | K113: =IFERROR(INDEX('Model Data'!$P$6:$P$280,SMALL(IF('Model Data'!$B$6:$B$280=$B$5,ROW('Model Data'!$P$6:$P$280)-ROW('Model Data'!$P$6)+1),ROWS('Model Data'!$P$6:'Model Data'!P11))),NA()) ->  | L113: =IFERROR(INDEX('Model Data'!$Q$6:$Q$280,SMALL(IF('Model Data'!$B$6:$B$280=$B$5,ROW('Model Data'!$Q$6:$Q$280)-ROW('Model Data'!$Q$6)+1),ROWS('Model Data'!$Q$6:'Model Data'!Q11))),NA()) ->  | M113: =IFERROR(INDEX('Model Data'!$R$6:$R$280,SMALL(IF('Model Data'!$B$6:$B$280=$B$5,ROW('Model Data'!$R$6:$R$280)-ROW('Model Data'!$R$6)+1),ROWS('Model Data'!$R$6:'Model Data'!R11))),NA()) ->  | N113: =IFERROR(INDEX('Model Data'!$S$6:$S$280,SMALL(IF('Model Data'!$B$6:$B$280=$B$5,ROW('Model Data'!$S$6:$S$280)-ROW('Model Data'!$S$6)+1),ROWS('Model Data'!$S$6:'Model Data'!S11))),NA()) ->  | O113: =IFERROR(INDEX('Model Data'!$T$6:$T$280,SMALL(IF('Model Data'!$B$6:$B$280=$B$5,ROW('Model Data'!$T$6:$T$280)-ROW('Model Data'!$T$6)+1),ROWS('Model Data'!$T$6:'Model Data'!T11))),NA()) ->  | P113: =IFERROR(INDEX('Model Data'!$U$6:$U$280,SMALL(IF('Model Data'!$B$6:$B$280=$B$5,ROW('Model Data'!$U$6:$U$280)-ROW('Model Data'!$U$6)+1),ROWS('Model Data'!$U$6:'Model Data'!U11))),NA()) ->  | Q113: =IFERROR(INDEX('Model Data'!$V$6:$V$280,SMALL(IF('Model Data'!$B$6:$B$280=$B$5,ROW('Model Data'!$V$6:$V$280)-ROW('Model Data'!$V$6)+1),ROWS('Model Data'!$V$6:'Model Data'!V11))),NA()) ->  | R113: =IFERROR(INDEX('Model Data'!$W$6:$W$280,SMALL(IF('Model Data'!$B$6:$B$280=$B$5,ROW('Model Data'!$W$6:$W$280)-ROW('Model Data'!$W$6)+1),ROWS('Model Data'!$W$6:'Model Data'!W11))),NA()) -> 
A114: 1 | B114: =IFERROR(INDEX('Model Data'!$B$6:$B$280,SMALL(IF('Model Data'!$B$6:$B$280=$B$5,ROW('Model Data'!$C$6:$C$280)-ROW('Model Data'!$B$6)+1),ROWS('Model Data'!$B$6:'Model Data'!B12))),NA()) ->  | C114: =IFERROR(INDEX('Model Data'!$E$6:$E$280,SMALL(IF('Model Data'!$B$6:$B$280=$B$5,ROW('Model Data'!$E$6:$E$280)-ROW('Model Data'!$E$6)+1),ROWS('Model Data'!$E$6:'Model Data'!E12))),NA()) ->  | D114: =IFERROR(INDEX('Model Data'!$D$6:$D$280,SMALL(IF('Model Data'!$B$6:$B$280=$B$5,ROW('Model Data'!$D$6:$D$280)-ROW('Model Data'!$D$6)+1),ROWS('Model Data'!$D$6:'Model Data'!D12))),NA()) ->  | E114: =IFERROR(INDEX('Model Data'!$J$6:$J$280,SMALL(IF('Model Data'!$B$6:$B$280=$B$5,ROW('Model Data'!$J$6:$J$280)-ROW('Model Data'!$J$6)+1),ROWS('Model Data'!$J$6:'Model Data'!J12))),NA()) ->  | F114: =IFERROR(INDEX('Model Data'!$K$6:$K$280,SMALL(IF('Model Data'!$B$6:$B$280=$B$5,ROW('Model Data'!$K$6:$K$280)-ROW('Model Data'!$K$6)+1),ROWS('Model Data'!$K$6:'Model Data'!K12))),NA()) ->  | G114: =IFERROR(INDEX('Model Data'!$L$6:$L$280,SMALL(IF('Model Data'!$B$6:$B$280=$B$5,ROW('Model Data'!$L$6:$L$280)-ROW('Model Data'!$L$6)+1),ROWS('Model Data'!$L$6:'Model Data'!L12))),NA()) ->  | H114: =IFERROR(INDEX('Model Data'!$M$6:$M$280,SMALL(IF('Model Data'!$B$6:$B$280=$B$5,ROW('Model Data'!$M$6:$M$280)-ROW('Model Data'!$M$6)+1),ROWS('Model Data'!$M$6:'Model Data'!M12))),NA()) ->  | I114: =IFERROR(INDEX('Model Data'!$N$6:$N$280,SMALL(IF('Model Data'!$B$6:$B$280=$B$5,ROW('Model Data'!$N$6:$N$280)-ROW('Model Data'!$N$6)+1),ROWS('Model Data'!$N$6:'Model Data'!N12))),NA()) ->  | J114: =IFERROR(INDEX('Model Data'!$O$6:$O$280,SMALL(IF('Model Data'!$B$6:$B$280=$B$5,ROW('Model Data'!$O$6:$O$280)-ROW('Model Data'!$O$6)+1),ROWS('Model Data'!$O$6:'Model Data'!O12))),NA()) ->  | K114: =IFERROR(INDEX('Model Data'!$P$6:$P$280,SMALL(IF('Model Data'!$B$6:$B$280=$B$5,ROW('Model Data'!$P$6:$P$280)-ROW('Model Data'!$P$6)+1),ROWS('Model Data'!$P$6:'Model Data'!P12))),NA()) ->  | L114: =IFERROR(INDEX('Model Data'!$Q$6:$Q$280,SMALL(IF('Model Data'!$B$6:$B$280=$B$5,ROW('Model Data'!$Q$6:$Q$280)-ROW('Model Data'!$Q$6)+1),ROWS('Model Data'!$Q$6:'Model Data'!Q12))),NA()) ->  | M114: =IFERROR(INDEX('Model Data'!$R$6:$R$280,SMALL(IF('Model Data'!$B$6:$B$280=$B$5,ROW('Model Data'!$R$6:$R$280)-ROW('Model Data'!$R$6)+1),ROWS('Model Data'!$R$6:'Model Data'!R12))),NA()) ->  | N114: =IFERROR(INDEX('Model Data'!$S$6:$S$280,SMALL(IF('Model Data'!$B$6:$B$280=$B$5,ROW('Model Data'!$S$6:$S$280)-ROW('Model Data'!$S$6)+1),ROWS('Model Data'!$S$6:'Model Data'!S12))),NA()) ->  | O114: =IFERROR(INDEX('Model Data'!$T$6:$T$280,SMALL(IF('Model Data'!$B$6:$B$280=$B$5,ROW('Model Data'!$T$6:$T$280)-ROW('Model Data'!$T$6)+1),ROWS('Model Data'!$T$6:'Model Data'!T12))),NA()) ->  | P114: =IFERROR(INDEX('Model Data'!$U$6:$U$280,SMALL(IF('Model Data'!$B$6:$B$280=$B$5,ROW('Model Data'!$U$6:$U$280)-ROW('Model Data'!$U$6)+1),ROWS('Model Data'!$U$6:'Model Data'!U12))),NA()) ->  | Q114: =IFERROR(INDEX('Model Data'!$V$6:$V$280,SMALL(IF('Model Data'!$B$6:$B$280=$B$5,ROW('Model Data'!$V$6:$V$280)-ROW('Model Data'!$V$6)+1),ROWS('Model Data'!$V$6:'Model Data'!V12))),NA()) ->  | R114: =IFERROR(INDEX('Model Data'!$W$6:$W$280,SMALL(IF('Model Data'!$B$6:$B$280=$B$5,ROW('Model Data'!$W$6:$W$280)-ROW('Model Data'!$W$6)+1),ROWS('Model Data'!$W$6:'Model Data'!W12))),NA()) -> 
A115: 1 | B115: =IFERROR(INDEX('Model Data'!$B$6:$B$280,SMALL(IF('Model Data'!$B$6:$B$280=$B$5,ROW('Model Data'!$C$6:$C$280)-ROW('Model Data'!$B$6)+1),ROWS('Model Data'!$B$6:'Model Data'!B13))),NA()) ->  | C115: =IFERROR(INDEX('Model Data'!$E$6:$E$280,SMALL(IF('Model Data'!$B$6:$B$280=$B$5,ROW('Model Data'!$E$6:$E$280)-ROW('Model Data'!$E$6)+1),ROWS('Model Data'!$E$6:'Model Data'!E13))),NA()) ->  | D115: =IFERROR(INDEX('Model Data'!$D$6:$D$280,SMALL(IF('Model Data'!$B$6:$B$280=$B$5,ROW('Model Data'!$D$6:$D$280)-ROW('Model Data'!$D$6)+1),ROWS('Model Data'!$D$6:'Model Data'!D13))),NA()) ->  | E115: =IFERROR(INDEX('Model Data'!$J$6:$J$280,SMALL(IF('Model Data'!$B$6:$B$280=$B$5,ROW('Model Data'!$J$6:$J$280)-ROW('Model Data'!$J$6)+1),ROWS('Model Data'!$J$6:'Model Data'!J13))),NA()) ->  | F115: =IFERROR(INDEX('Model Data'!$K$6:$K$280,SMALL(IF('Model Data'!$B$6:$B$280=$B$5,ROW('Model Data'!$K$6:$K$280)-ROW('Model Data'!$K$6)+1),ROWS('Model Data'!$K$6:'Model Data'!K13))),NA()) ->  | G115: =IFERROR(INDEX('Model Data'!$L$6:$L$280,SMALL(IF('Model Data'!$B$6:$B$280=$B$5,ROW('Model Data'!$L$6:$L$280)-ROW('Model Data'!$L$6)+1),ROWS('Model Data'!$L$6:'Model Data'!L13))),NA()) ->  | H115: =IFERROR(INDEX('Model Data'!$M$6:$M$280,SMALL(IF('Model Data'!$B$6:$B$280=$B$5,ROW('Model Data'!$M$6:$M$280)-ROW('Model Data'!$M$6)+1),ROWS('Model Data'!$M$6:'Model Data'!M13))),NA()) ->  | I115: =IFERROR(INDEX('Model Data'!$N$6:$N$280,SMALL(IF('Model Data'!$B$6:$B$280=$B$5,ROW('Model Data'!$N$6:$N$280)-ROW('Model Data'!$N$6)+1),ROWS('Model Data'!$N$6:'Model Data'!N13))),NA()) ->  | J115: =IFERROR(INDEX('Model Data'!$O$6:$O$280,SMALL(IF('Model Data'!$B$6:$B$280=$B$5,ROW('Model Data'!$O$6:$O$280)-ROW('Model Data'!$O$6)+1),ROWS('Model Data'!$O$6:'Model Data'!O13))),NA()) ->  | K115: =IFERROR(INDEX('Model Data'!$P$6:$P$280,SMALL(IF('Model Data'!$B$6:$B$280=$B$5,ROW('Model Data'!$P$6:$P$280)-ROW('Model Data'!$P$6)+1),ROWS('Model Data'!$P$6:'Model Data'!P13))),NA()) ->  | L115: =IFERROR(INDEX('Model Data'!$Q$6:$Q$280,SMALL(IF('Model Data'!$B$6:$B$280=$B$5,ROW('Model Data'!$Q$6:$Q$280)-ROW('Model Data'!$Q$6)+1),ROWS('Model Data'!$Q$6:'Model Data'!Q13))),NA()) ->  | M115: =IFERROR(INDEX('Model Data'!$R$6:$R$280,SMALL(IF('Model Data'!$B$6:$B$280=$B$5,ROW('Model Data'!$R$6:$R$280)-ROW('Model Data'!$R$6)+1),ROWS('Model Data'!$R$6:'Model Data'!R13))),NA()) ->  | N115: =IFERROR(INDEX('Model Data'!$S$6:$S$280,SMALL(IF('Model Data'!$B$6:$B$280=$B$5,ROW('Model Data'!$S$6:$S$280)-ROW('Model Data'!$S$6)+1),ROWS('Model Data'!$S$6:'Model Data'!S13))),NA()) ->  | O115: =IFERROR(INDEX('Model Data'!$T$6:$T$280,SMALL(IF('Model Data'!$B$6:$B$280=$B$5,ROW('Model Data'!$T$6:$T$280)-ROW('Model Data'!$T$6)+1),ROWS('Model Data'!$T$6:'Model Data'!T13))),NA()) ->  | P115: =IFERROR(INDEX('Model Data'!$U$6:$U$280,SMALL(IF('Model Data'!$B$6:$B$280=$B$5,ROW('Model Data'!$U$6:$U$280)-ROW('Model Data'!$U$6)+1),ROWS('Model Data'!$U$6:'Model Data'!U13))),NA()) ->  | Q115: =IFERROR(INDEX('Model Data'!$V$6:$V$280,SMALL(IF('Model Data'!$B$6:$B$280=$B$5,ROW('Model Data'!$V$6:$V$280)-ROW('Model Data'!$V$6)+1),ROWS('Model Data'!$V$6:'Model Data'!V13))),NA()) ->  | R115: =IFERROR(INDEX('Model Data'!$W$6:$W$280,SMALL(IF('Model Data'!$B$6:$B$280=$B$5,ROW('Model Data'!$W$6:$W$280)-ROW('Model Data'!$W$6)+1),ROWS('Model Data'!$W$6:'Model Data'!W13))),NA()) -> 
A116: 1 | B116: =IFERROR(INDEX('Model Data'!$B$6:$B$280,SMALL(IF('Model Data'!$B$6:$B$280=$B$5,ROW('Model Data'!$C$6:$C$280)-ROW('Model Data'!$B$6)+1),ROWS('Model Data'!$B$6:'Model Data'!B14))),NA()) ->  | C116: =IFERROR(INDEX('Model Data'!$E$6:$E$280,SMALL(IF('Model Data'!$B$6:$B$280=$B$5,ROW('Model Data'!$E$6:$E$280)-ROW('Model Data'!$E$6)+1),ROWS('Model Data'!$E$6:'Model Data'!E14))),NA()) ->  | D116: =IFERROR(INDEX('Model Data'!$D$6:$D$280,SMALL(IF('Model Data'!$B$6:$B$280=$B$5,ROW('Model Data'!$D$6:$D$280)-ROW('Model Data'!$D$6)+1),ROWS('Model Data'!$D$6:'Model Data'!D14))),NA()) ->  | E116: =IFERROR(INDEX('Model Data'!$J$6:$J$280,SMALL(IF('Model Data'!$B$6:$B$280=$B$5,ROW('Model Data'!$J$6:$J$280)-ROW('Model Data'!$J$6)+1),ROWS('Model Data'!$J$6:'Model Data'!J14))),NA()) ->  | F116: =IFERROR(INDEX('Model Data'!$K$6:$K$280,SMALL(IF('Model Data'!$B$6:$B$280=$B$5,ROW('Model Data'!$K$6:$K$280)-ROW('Model Data'!$K$6)+1),ROWS('Model Data'!$K$6:'Model Data'!K14))),NA()) ->  | G116: =IFERROR(INDEX('Model Data'!$L$6:$L$280,SMALL(IF('Model Data'!$B$6:$B$280=$B$5,ROW('Model Data'!$L$6:$L$280)-ROW('Model Data'!$L$6)+1),ROWS('Model Data'!$L$6:'Model Data'!L14))),NA()) ->  | H116: =IFERROR(INDEX('Model Data'!$M$6:$M$280,SMALL(IF('Model Data'!$B$6:$B$280=$B$5,ROW('Model Data'!$M$6:$M$280)-ROW('Model Data'!$M$6)+1),ROWS('Model Data'!$M$6:'Model Data'!M14))),NA()) ->  | I116: =IFERROR(INDEX('Model Data'!$N$6:$N$280,SMALL(IF('Model Data'!$B$6:$B$280=$B$5,ROW('Model Data'!$N$6:$N$280)-ROW('Model Data'!$N$6)+1),ROWS('Model Data'!$N$6:'Model Data'!N14))),NA()) ->  | J116: =IFERROR(INDEX('Model Data'!$O$6:$O$280,SMALL(IF('Model Data'!$B$6:$B$280=$B$5,ROW('Model Data'!$O$6:$O$280)-ROW('Model Data'!$O$6)+1),ROWS('Model Data'!$O$6:'Model Data'!O14))),NA()) ->  | K116: =IFERROR(INDEX('Model Data'!$P$6:$P$280,SMALL(IF('Model Data'!$B$6:$B$280=$B$5,ROW('Model Data'!$P$6:$P$280)-ROW('Model Data'!$P$6)+1),ROWS('Model Data'!$P$6:'Model Data'!P14))),NA()) ->  | L116: =IFERROR(INDEX('Model Data'!$Q$6:$Q$280,SMALL(IF('Model Data'!$B$6:$B$280=$B$5,ROW('Model Data'!$Q$6:$Q$280)-ROW('Model Data'!$Q$6)+1),ROWS('Model Data'!$Q$6:'Model Data'!Q14))),NA()) ->  | M116: =IFERROR(INDEX('Model Data'!$R$6:$R$280,SMALL(IF('Model Data'!$B$6:$B$280=$B$5,ROW('Model Data'!$R$6:$R$280)-ROW('Model Data'!$R$6)+1),ROWS('Model Data'!$R$6:'Model Data'!R14))),NA()) ->  | N116: =IFERROR(INDEX('Model Data'!$S$6:$S$280,SMALL(IF('Model Data'!$B$6:$B$280=$B$5,ROW('Model Data'!$S$6:$S$280)-ROW('Model Data'!$S$6)+1),ROWS('Model Data'!$S$6:'Model Data'!S14))),NA()) ->  | O116: =IFERROR(INDEX('Model Data'!$T$6:$T$280,SMALL(IF('Model Data'!$B$6:$B$280=$B$5,ROW('Model Data'!$T$6:$T$280)-ROW('Model Data'!$T$6)+1),ROWS('Model Data'!$T$6:'Model Data'!T14))),NA()) ->  | P116: =IFERROR(INDEX('Model Data'!$U$6:$U$280,SMALL(IF('Model Data'!$B$6:$B$280=$B$5,ROW('Model Data'!$U$6:$U$280)-ROW('Model Data'!$U$6)+1),ROWS('Model Data'!$U$6:'Model Data'!U14))),NA()) ->  | Q116: =IFERROR(INDEX('Model Data'!$V$6:$V$280,SMALL(IF('Model Data'!$B$6:$B$280=$B$5,ROW('Model Data'!$V$6:$V$280)-ROW('Model Data'!$V$6)+1),ROWS('Model Data'!$V$6:'Model Data'!V14))),NA()) ->  | R116: =IFERROR(INDEX('Model Data'!$W$6:$W$280,SMALL(IF('Model Data'!$B$6:$B$280=$B$5,ROW('Model Data'!$W$6:$W$280)-ROW('Model Data'!$W$6)+1),ROWS('Model Data'!$W$6:'Model Data'!W14))),NA()) -> 
A117: 1 | B117: =IFERROR(INDEX('Model Data'!$B$6:$B$280,SMALL(IF('Model Data'!$B$6:$B$280=$B$5,ROW('Model Data'!$C$6:$C$280)-ROW('Model Data'!$B$6)+1),ROWS('Model Data'!$B$6:'Model Data'!B15))),NA()) ->  | C117: =IFERROR(INDEX('Model Data'!$E$6:$E$280,SMALL(IF('Model Data'!$B$6:$B$280=$B$5,ROW('Model Data'!$E$6:$E$280)-ROW('Model Data'!$E$6)+1),ROWS('Model Data'!$E$6:'Model Data'!E15))),NA()) ->  | D117: =IFERROR(INDEX('Model Data'!$D$6:$D$280,SMALL(IF('Model Data'!$B$6:$B$280=$B$5,ROW('Model Data'!$D$6:$D$280)-ROW('Model Data'!$D$6)+1),ROWS('Model Data'!$D$6:'Model Data'!D15))),NA()) ->  | E117: =IFERROR(INDEX('Model Data'!$J$6:$J$280,SMALL(IF('Model Data'!$B$6:$B$280=$B$5,ROW('Model Data'!$J$6:$J$280)-ROW('Model Data'!$J$6)+1),ROWS('Model Data'!$J$6:'Model Data'!J15))),NA()) ->  | F117: =IFERROR(INDEX('Model Data'!$K$6:$K$280,SMALL(IF('Model Data'!$B$6:$B$280=$B$5,ROW('Model Data'!$K$6:$K$280)-ROW('Model Data'!$K$6)+1),ROWS('Model Data'!$K$6:'Model Data'!K15))),NA()) ->  | G117: =IFERROR(INDEX('Model Data'!$L$6:$L$280,SMALL(IF('Model Data'!$B$6:$B$280=$B$5,ROW('Model Data'!$L$6:$L$280)-ROW('Model Data'!$L$6)+1),ROWS('Model Data'!$L$6:'Model Data'!L15))),NA()) ->  | H117: =IFERROR(INDEX('Model Data'!$M$6:$M$280,SMALL(IF('Model Data'!$B$6:$B$280=$B$5,ROW('Model Data'!$M$6:$M$280)-ROW('Model Data'!$M$6)+1),ROWS('Model Data'!$M$6:'Model Data'!M15))),NA()) ->  | I117: =IFERROR(INDEX('Model Data'!$N$6:$N$280,SMALL(IF('Model Data'!$B$6:$B$280=$B$5,ROW('Model Data'!$N$6:$N$280)-ROW('Model Data'!$N$6)+1),ROWS('Model Data'!$N$6:'Model Data'!N15))),NA()) ->  | J117: =IFERROR(INDEX('Model Data'!$O$6:$O$280,SMALL(IF('Model Data'!$B$6:$B$280=$B$5,ROW('Model Data'!$O$6:$O$280)-ROW('Model Data'!$O$6)+1),ROWS('Model Data'!$O$6:'Model Data'!O15))),NA()) ->  | K117: =IFERROR(INDEX('Model Data'!$P$6:$P$280,SMALL(IF('Model Data'!$B$6:$B$280=$B$5,ROW('Model Data'!$P$6:$P$280)-ROW('Model Data'!$P$6)+1),ROWS('Model Data'!$P$6:'Model Data'!P15))),NA()) ->  | L117: =IFERROR(INDEX('Model Data'!$Q$6:$Q$280,SMALL(IF('Model Data'!$B$6:$B$280=$B$5,ROW('Model Data'!$Q$6:$Q$280)-ROW('Model Data'!$Q$6)+1),ROWS('Model Data'!$Q$6:'Model Data'!Q15))),NA()) ->  | M117: =IFERROR(INDEX('Model Data'!$R$6:$R$280,SMALL(IF('Model Data'!$B$6:$B$280=$B$5,ROW('Model Data'!$R$6:$R$280)-ROW('Model Data'!$R$6)+1),ROWS('Model Data'!$R$6:'Model Data'!R15))),NA()) ->  | N117: =IFERROR(INDEX('Model Data'!$S$6:$S$280,SMALL(IF('Model Data'!$B$6:$B$280=$B$5,ROW('Model Data'!$S$6:$S$280)-ROW('Model Data'!$S$6)+1),ROWS('Model Data'!$S$6:'Model Data'!S15))),NA()) ->  | O117: =IFERROR(INDEX('Model Data'!$T$6:$T$280,SMALL(IF('Model Data'!$B$6:$B$280=$B$5,ROW('Model Data'!$T$6:$T$280)-ROW('Model Data'!$T$6)+1),ROWS('Model Data'!$T$6:'Model Data'!T15))),NA()) ->  | P117: =IFERROR(INDEX('Model Data'!$U$6:$U$280,SMALL(IF('Model Data'!$B$6:$B$280=$B$5,ROW('Model Data'!$U$6:$U$280)-ROW('Model Data'!$U$6)+1),ROWS('Model Data'!$U$6:'Model Data'!U15))),NA()) ->  | Q117: =IFERROR(INDEX('Model Data'!$V$6:$V$280,SMALL(IF('Model Data'!$B$6:$B$280=$B$5,ROW('Model Data'!$V$6:$V$280)-ROW('Model Data'!$V$6)+1),ROWS('Model Data'!$V$6:'Model Data'!V15))),NA()) ->  | R117: =IFERROR(INDEX('Model Data'!$W$6:$W$280,SMALL(IF('Model Data'!$B$6:$B$280=$B$5,ROW('Model Data'!$W$6:$W$280)-ROW('Model Data'!$W$6)+1),ROWS('Model Data'!$W$6:'Model Data'!W15))),NA()) -> 
A118: 1 | B118: =IFERROR(INDEX('Model Data'!$B$6:$B$280,SMALL(IF('Model Data'!$B$6:$B$280=$B$5,ROW('Model Data'!$C$6:$C$280)-ROW('Model Data'!$B$6)+1),ROWS('Model Data'!$B$6:'Model Data'!B16))),NA()) ->  | C118: =IFERROR(INDEX('Model Data'!$E$6:$E$280,SMALL(IF('Model Data'!$B$6:$B$280=$B$5,ROW('Model Data'!$E$6:$E$280)-ROW('Model Data'!$E$6)+1),ROWS('Model Data'!$E$6:'Model Data'!E16))),NA()) ->  | D118: =IFERROR(INDEX('Model Data'!$D$6:$D$280,SMALL(IF('Model Data'!$B$6:$B$280=$B$5,ROW('Model Data'!$D$6:$D$280)-ROW('Model Data'!$D$6)+1),ROWS('Model Data'!$D$6:'Model Data'!D16))),NA()) ->  | E118: =IFERROR(INDEX('Model Data'!$J$6:$J$280,SMALL(IF('Model Data'!$B$6:$B$280=$B$5,ROW('Model Data'!$J$6:$J$280)-ROW('Model Data'!$J$6)+1),ROWS('Model Data'!$J$6:'Model Data'!J16))),NA()) ->  | F118: =IFERROR(INDEX('Model Data'!$K$6:$K$280,SMALL(IF('Model Data'!$B$6:$B$280=$B$5,ROW('Model Data'!$K$6:$K$280)-ROW('Model Data'!$K$6)+1),ROWS('Model Data'!$K$6:'Model Data'!K16))),NA()) ->  | G118: =IFERROR(INDEX('Model Data'!$L$6:$L$280,SMALL(IF('Model Data'!$B$6:$B$280=$B$5,ROW('Model Data'!$L$6:$L$280)-ROW('Model Data'!$L$6)+1),ROWS('Model Data'!$L$6:'Model Data'!L16))),NA()) ->  | H118: =IFERROR(INDEX('Model Data'!$M$6:$M$280,SMALL(IF('Model Data'!$B$6:$B$280=$B$5,ROW('Model Data'!$M$6:$M$280)-ROW('Model Data'!$M$6)+1),ROWS('Model Data'!$M$6:'Model Data'!M16))),NA()) ->  | I118: =IFERROR(INDEX('Model Data'!$N$6:$N$280,SMALL(IF('Model Data'!$B$6:$B$280=$B$5,ROW('Model Data'!$N$6:$N$280)-ROW('Model Data'!$N$6)+1),ROWS('Model Data'!$N$6:'Model Data'!N16))),NA()) ->  | J118: =IFERROR(INDEX('Model Data'!$O$6:$O$280,SMALL(IF('Model Data'!$B$6:$B$280=$B$5,ROW('Model Data'!$O$6:$O$280)-ROW('Model Data'!$O$6)+1),ROWS('Model Data'!$O$6:'Model Data'!O16))),NA()) ->  | K118: =IFERROR(INDEX('Model Data'!$P$6:$P$280,SMALL(IF('Model Data'!$B$6:$B$280=$B$5,ROW('Model Data'!$P$6:$P$280)-ROW('Model Data'!$P$6)+1),ROWS('Model Data'!$P$6:'Model Data'!P16))),NA()) ->  | L118: =IFERROR(INDEX('Model Data'!$Q$6:$Q$280,SMALL(IF('Model Data'!$B$6:$B$280=$B$5,ROW('Model Data'!$Q$6:$Q$280)-ROW('Model Data'!$Q$6)+1),ROWS('Model Data'!$Q$6:'Model Data'!Q16))),NA()) ->  | M118: =IFERROR(INDEX('Model Data'!$R$6:$R$280,SMALL(IF('Model Data'!$B$6:$B$280=$B$5,ROW('Model Data'!$R$6:$R$280)-ROW('Model Data'!$R$6)+1),ROWS('Model Data'!$R$6:'Model Data'!R16))),NA()) ->  | N118: =IFERROR(INDEX('Model Data'!$S$6:$S$280,SMALL(IF('Model Data'!$B$6:$B$280=$B$5,ROW('Model Data'!$S$6:$S$280)-ROW('Model Data'!$S$6)+1),ROWS('Model Data'!$S$6:'Model Data'!S16))),NA()) ->  | O118: =IFERROR(INDEX('Model Data'!$T$6:$T$280,SMALL(IF('Model Data'!$B$6:$B$280=$B$5,ROW('Model Data'!$T$6:$T$280)-ROW('Model Data'!$T$6)+1),ROWS('Model Data'!$T$6:'Model Data'!T16))),NA()) ->  | P118: =IFERROR(INDEX('Model Data'!$U$6:$U$280,SMALL(IF('Model Data'!$B$6:$B$280=$B$5,ROW('Model Data'!$U$6:$U$280)-ROW('Model Data'!$U$6)+1),ROWS('Model Data'!$U$6:'Model Data'!U16))),NA()) ->  | Q118: =IFERROR(INDEX('Model Data'!$V$6:$V$280,SMALL(IF('Model Data'!$B$6:$B$280=$B$5,ROW('Model Data'!$V$6:$V$280)-ROW('Model Data'!$V$6)+1),ROWS('Model Data'!$V$6:'Model Data'!V16))),NA()) ->  | R118: =IFERROR(INDEX('Model Data'!$W$6:$W$280,SMALL(IF('Model Data'!$B$6:$B$280=$B$5,ROW('Model Data'!$W$6:$W$280)-ROW('Model Data'!$W$6)+1),ROWS('Model Data'!$W$6:'Model Data'!W16))),NA()) -> 
A119: 1 | B119: =IFERROR(INDEX('Model Data'!$B$6:$B$280,SMALL(IF('Model Data'!$B$6:$B$280=$B$5,ROW('Model Data'!$C$6:$C$280)-ROW('Model Data'!$B$6)+1),ROWS('Model Data'!$B$6:'Model Data'!B17))),NA()) ->  | C119: =IFERROR(INDEX('Model Data'!$E$6:$E$280,SMALL(IF('Model Data'!$B$6:$B$280=$B$5,ROW('Model Data'!$E$6:$E$280)-ROW('Model Data'!$E$6)+1),ROWS('Model Data'!$E$6:'Model Data'!E17))),NA()) ->  | D119: =IFERROR(INDEX('Model Data'!$D$6:$D$280,SMALL(IF('Model Data'!$B$6:$B$280=$B$5,ROW('Model Data'!$D$6:$D$280)-ROW('Model Data'!$D$6)+1),ROWS('Model Data'!$D$6:'Model Data'!D17))),NA()) ->  | E119: =IFERROR(INDEX('Model Data'!$J$6:$J$280,SMALL(IF('Model Data'!$B$6:$B$280=$B$5,ROW('Model Data'!$J$6:$J$280)-ROW('Model Data'!$J$6)+1),ROWS('Model Data'!$J$6:'Model Data'!J17))),NA()) ->  | F119: =IFERROR(INDEX('Model Data'!$K$6:$K$280,SMALL(IF('Model Data'!$B$6:$B$280=$B$5,ROW('Model Data'!$K$6:$K$280)-ROW('Model Data'!$K$6)+1),ROWS('Model Data'!$K$6:'Model Data'!K17))),NA()) ->  | G119: =IFERROR(INDEX('Model Data'!$L$6:$L$280,SMALL(IF('Model Data'!$B$6:$B$280=$B$5,ROW('Model Data'!$L$6:$L$280)-ROW('Model Data'!$L$6)+1),ROWS('Model Data'!$L$6:'Model Data'!L17))),NA()) ->  | H119: =IFERROR(INDEX('Model Data'!$M$6:$M$280,SMALL(IF('Model Data'!$B$6:$B$280=$B$5,ROW('Model Data'!$M$6:$M$280)-ROW('Model Data'!$M$6)+1),ROWS('Model Data'!$M$6:'Model Data'!M17))),NA()) ->  | I119: =IFERROR(INDEX('Model Data'!$N$6:$N$280,SMALL(IF('Model Data'!$B$6:$B$280=$B$5,ROW('Model Data'!$N$6:$N$280)-ROW('Model Data'!$N$6)+1),ROWS('Model Data'!$N$6:'Model Data'!N17))),NA()) ->  | J119: =IFERROR(INDEX('Model Data'!$O$6:$O$280,SMALL(IF('Model Data'!$B$6:$B$280=$B$5,ROW('Model Data'!$O$6:$O$280)-ROW('Model Data'!$O$6)+1),ROWS('Model Data'!$O$6:'Model Data'!O17))),NA()) ->  | K119: =IFERROR(INDEX('Model Data'!$P$6:$P$280,SMALL(IF('Model Data'!$B$6:$B$280=$B$5,ROW('Model Data'!$P$6:$P$280)-ROW('Model Data'!$P$6)+1),ROWS('Model Data'!$P$6:'Model Data'!P17))),NA()) ->  | L119: =IFERROR(INDEX('Model Data'!$Q$6:$Q$280,SMALL(IF('Model Data'!$B$6:$B$280=$B$5,ROW('Model Data'!$Q$6:$Q$280)-ROW('Model Data'!$Q$6)+1),ROWS('Model Data'!$Q$6:'Model Data'!Q17))),NA()) ->  | M119: =IFERROR(INDEX('Model Data'!$R$6:$R$280,SMALL(IF('Model Data'!$B$6:$B$280=$B$5,ROW('Model Data'!$R$6:$R$280)-ROW('Model Data'!$R$6)+1),ROWS('Model Data'!$R$6:'Model Data'!R17))),NA()) ->  | N119: =IFERROR(INDEX('Model Data'!$S$6:$S$280,SMALL(IF('Model Data'!$B$6:$B$280=$B$5,ROW('Model Data'!$S$6:$S$280)-ROW('Model Data'!$S$6)+1),ROWS('Model Data'!$S$6:'Model Data'!S17))),NA()) ->  | O119: =IFERROR(INDEX('Model Data'!$T$6:$T$280,SMALL(IF('Model Data'!$B$6:$B$280=$B$5,ROW('Model Data'!$T$6:$T$280)-ROW('Model Data'!$T$6)+1),ROWS('Model Data'!$T$6:'Model Data'!T17))),NA()) ->  | P119: =IFERROR(INDEX('Model Data'!$U$6:$U$280,SMALL(IF('Model Data'!$B$6:$B$280=$B$5,ROW('Model Data'!$U$6:$U$280)-ROW('Model Data'!$U$6)+1),ROWS('Model Data'!$U$6:'Model Data'!U17))),NA()) ->  | Q119: =IFERROR(INDEX('Model Data'!$V$6:$V$280,SMALL(IF('Model Data'!$B$6:$B$280=$B$5,ROW('Model Data'!$V$6:$V$280)-ROW('Model Data'!$V$6)+1),ROWS('Model Data'!$V$6:'Model Data'!V17))),NA()) ->  | R119: =IFERROR(INDEX('Model Data'!$W$6:$W$280,SMALL(IF('Model Data'!$B$6:$B$280=$B$5,ROW('Model Data'!$W$6:$W$280)-ROW('Model Data'!$W$6)+1),ROWS('Model Data'!$W$6:'Model Data'!W17))),NA()) -> 
A120: 1 | B120: =IFERROR(INDEX('Model Data'!$B$6:$B$280,SMALL(IF('Model Data'!$B$6:$B$280=$B$5,ROW('Model Data'!$C$6:$C$280)-ROW('Model Data'!$B$6)+1),ROWS('Model Data'!$B$6:'Model Data'!B18))),NA()) ->  | C120: =IFERROR(INDEX('Model Data'!$E$6:$E$280,SMALL(IF('Model Data'!$B$6:$B$280=$B$5,ROW('Model Data'!$E$6:$E$280)-ROW('Model Data'!$E$6)+1),ROWS('Model Data'!$E$6:'Model Data'!E18))),NA()) ->  | D120: =IFERROR(INDEX('Model Data'!$D$6:$D$280,SMALL(IF('Model Data'!$B$6:$B$280=$B$5,ROW('Model Data'!$D$6:$D$280)-ROW('Model Data'!$D$6)+1),ROWS('Model Data'!$D$6:'Model Data'!D18))),NA()) ->  | E120: =IFERROR(INDEX('Model Data'!$J$6:$J$280,SMALL(IF('Model Data'!$B$6:$B$280=$B$5,ROW('Model Data'!$J$6:$J$280)-ROW('Model Data'!$J$6)+1),ROWS('Model Data'!$J$6:'Model Data'!J18))),NA()) ->  | F120: =IFERROR(INDEX('Model Data'!$K$6:$K$280,SMALL(IF('Model Data'!$B$6:$B$280=$B$5,ROW('Model Data'!$K$6:$K$280)-ROW('Model Data'!$K$6)+1),ROWS('Model Data'!$K$6:'Model Data'!K18))),NA()) ->  | G120: =IFERROR(INDEX('Model Data'!$L$6:$L$280,SMALL(IF('Model Data'!$B$6:$B$280=$B$5,ROW('Model Data'!$L$6:$L$280)-ROW('Model Data'!$L$6)+1),ROWS('Model Data'!$L$6:'Model Data'!L18))),NA()) ->  | H120: =IFERROR(INDEX('Model Data'!$M$6:$M$280,SMALL(IF('Model Data'!$B$6:$B$280=$B$5,ROW('Model Data'!$M$6:$M$280)-ROW('Model Data'!$M$6)+1),ROWS('Model Data'!$M$6:'Model Data'!M18))),NA()) ->  | I120: =IFERROR(INDEX('Model Data'!$N$6:$N$280,SMALL(IF('Model Data'!$B$6:$B$280=$B$5,ROW('Model Data'!$N$6:$N$280)-ROW('Model Data'!$N$6)+1),ROWS('Model Data'!$N$6:'Model Data'!N18))),NA()) ->  | J120: =IFERROR(INDEX('Model Data'!$O$6:$O$280,SMALL(IF('Model Data'!$B$6:$B$280=$B$5,ROW('Model Data'!$O$6:$O$280)-ROW('Model Data'!$O$6)+1),ROWS('Model Data'!$O$6:'Model Data'!O18))),NA()) ->  | K120: =IFERROR(INDEX('Model Data'!$P$6:$P$280,SMALL(IF('Model Data'!$B$6:$B$280=$B$5,ROW('Model Data'!$P$6:$P$280)-ROW('Model Data'!$P$6)+1),ROWS('Model Data'!$P$6:'Model Data'!P18))),NA()) ->  | L120: =IFERROR(INDEX('Model Data'!$Q$6:$Q$280,SMALL(IF('Model Data'!$B$6:$B$280=$B$5,ROW('Model Data'!$Q$6:$Q$280)-ROW('Model Data'!$Q$6)+1),ROWS('Model Data'!$Q$6:'Model Data'!Q18))),NA()) ->  | M120: =IFERROR(INDEX('Model Data'!$R$6:$R$280,SMALL(IF('Model Data'!$B$6:$B$280=$B$5,ROW('Model Data'!$R$6:$R$280)-ROW('Model Data'!$R$6)+1),ROWS('Model Data'!$R$6:'Model Data'!R18))),NA()) ->  | N120: =IFERROR(INDEX('Model Data'!$S$6:$S$280,SMALL(IF('Model Data'!$B$6:$B$280=$B$5,ROW('Model Data'!$S$6:$S$280)-ROW('Model Data'!$S$6)+1),ROWS('Model Data'!$S$6:'Model Data'!S18))),NA()) ->  | O120: =IFERROR(INDEX('Model Data'!$T$6:$T$280,SMALL(IF('Model Data'!$B$6:$B$280=$B$5,ROW('Model Data'!$T$6:$T$280)-ROW('Model Data'!$T$6)+1),ROWS('Model Data'!$T$6:'Model Data'!T18))),NA()) ->  | P120: =IFERROR(INDEX('Model Data'!$U$6:$U$280,SMALL(IF('Model Data'!$B$6:$B$280=$B$5,ROW('Model Data'!$U$6:$U$280)-ROW('Model Data'!$U$6)+1),ROWS('Model Data'!$U$6:'Model Data'!U18))),NA()) ->  | Q120: =IFERROR(INDEX('Model Data'!$V$6:$V$280,SMALL(IF('Model Data'!$B$6:$B$280=$B$5,ROW('Model Data'!$V$6:$V$280)-ROW('Model Data'!$V$6)+1),ROWS('Model Data'!$V$6:'Model Data'!V18))),NA()) ->  | R120: =IFERROR(INDEX('Model Data'!$W$6:$W$280,SMALL(IF('Model Data'!$B$6:$B$280=$B$5,ROW('Model Data'!$W$6:$W$280)-ROW('Model Data'!$W$6)+1),ROWS('Model Data'!$W$6:'Model Data'!W18))),NA()) -> 
A121: 1 | B121: =IFERROR(INDEX('Model Data'!$B$6:$B$280,SMALL(IF('Model Data'!$B$6:$B$280=$B$5,ROW('Model Data'!$C$6:$C$280)-ROW('Model Data'!$B$6)+1),ROWS('Model Data'!$B$6:'Model Data'!B19))),NA()) ->  | C121: =IFERROR(INDEX('Model Data'!$E$6:$E$280,SMALL(IF('Model Data'!$B$6:$B$280=$B$5,ROW('Model Data'!$E$6:$E$280)-ROW('Model Data'!$E$6)+1),ROWS('Model Data'!$E$6:'Model Data'!E19))),NA()) ->  | D121: =IFERROR(INDEX('Model Data'!$D$6:$D$280,SMALL(IF('Model Data'!$B$6:$B$280=$B$5,ROW('Model Data'!$D$6:$D$280)-ROW('Model Data'!$D$6)+1),ROWS('Model Data'!$D$6:'Model Data'!D19))),NA()) ->  | E121: =IFERROR(INDEX('Model Data'!$J$6:$J$280,SMALL(IF('Model Data'!$B$6:$B$280=$B$5,ROW('Model Data'!$J$6:$J$280)-ROW('Model Data'!$J$6)+1),ROWS('Model Data'!$J$6:'Model Data'!J19))),NA()) ->  | F121: =IFERROR(INDEX('Model Data'!$K$6:$K$280,SMALL(IF('Model Data'!$B$6:$B$280=$B$5,ROW('Model Data'!$K$6:$K$280)-ROW('Model Data'!$K$6)+1),ROWS('Model Data'!$K$6:'Model Data'!K19))),NA()) ->  | G121: =IFERROR(INDEX('Model Data'!$L$6:$L$280,SMALL(IF('Model Data'!$B$6:$B$280=$B$5,ROW('Model Data'!$L$6:$L$280)-ROW('Model Data'!$L$6)+1),ROWS('Model Data'!$L$6:'Model Data'!L19))),NA()) ->  | H121: =IFERROR(INDEX('Model Data'!$M$6:$M$280,SMALL(IF('Model Data'!$B$6:$B$280=$B$5,ROW('Model Data'!$M$6:$M$280)-ROW('Model Data'!$M$6)+1),ROWS('Model Data'!$M$6:'Model Data'!M19))),NA()) ->  | I121: =IFERROR(INDEX('Model Data'!$N$6:$N$280,SMALL(IF('Model Data'!$B$6:$B$280=$B$5,ROW('Model Data'!$N$6:$N$280)-ROW('Model Data'!$N$6)+1),ROWS('Model Data'!$N$6:'Model Data'!N19))),NA()) ->  | J121: =IFERROR(INDEX('Model Data'!$O$6:$O$280,SMALL(IF('Model Data'!$B$6:$B$280=$B$5,ROW('Model Data'!$O$6:$O$280)-ROW('Model Data'!$O$6)+1),ROWS('Model Data'!$O$6:'Model Data'!O19))),NA()) ->  | K121: =IFERROR(INDEX('Model Data'!$P$6:$P$280,SMALL(IF('Model Data'!$B$6:$B$280=$B$5,ROW('Model Data'!$P$6:$P$280)-ROW('Model Data'!$P$6)+1),ROWS('Model Data'!$P$6:'Model Data'!P19))),NA()) ->  | L121: =IFERROR(INDEX('Model Data'!$Q$6:$Q$280,SMALL(IF('Model Data'!$B$6:$B$280=$B$5,ROW('Model Data'!$Q$6:$Q$280)-ROW('Model Data'!$Q$6)+1),ROWS('Model Data'!$Q$6:'Model Data'!Q19))),NA()) ->  | M121: =IFERROR(INDEX('Model Data'!$R$6:$R$280,SMALL(IF('Model Data'!$B$6:$B$280=$B$5,ROW('Model Data'!$R$6:$R$280)-ROW('Model Data'!$R$6)+1),ROWS('Model Data'!$R$6:'Model Data'!R19))),NA()) ->  | N121: =IFERROR(INDEX('Model Data'!$S$6:$S$280,SMALL(IF('Model Data'!$B$6:$B$280=$B$5,ROW('Model Data'!$S$6:$S$280)-ROW('Model Data'!$S$6)+1),ROWS('Model Data'!$S$6:'Model Data'!S19))),NA()) ->  | O121: =IFERROR(INDEX('Model Data'!$T$6:$T$280,SMALL(IF('Model Data'!$B$6:$B$280=$B$5,ROW('Model Data'!$T$6:$T$280)-ROW('Model Data'!$T$6)+1),ROWS('Model Data'!$T$6:'Model Data'!T19))),NA()) ->  | P121: =IFERROR(INDEX('Model Data'!$U$6:$U$280,SMALL(IF('Model Data'!$B$6:$B$280=$B$5,ROW('Model Data'!$U$6:$U$280)-ROW('Model Data'!$U$6)+1),ROWS('Model Data'!$U$6:'Model Data'!U19))),NA()) ->  | Q121: =IFERROR(INDEX('Model Data'!$V$6:$V$280,SMALL(IF('Model Data'!$B$6:$B$280=$B$5,ROW('Model Data'!$V$6:$V$280)-ROW('Model Data'!$V$6)+1),ROWS('Model Data'!$V$6:'Model Data'!V19))),NA()) ->  | R121: =IFERROR(INDEX('Model Data'!$W$6:$W$280,SMALL(IF('Model Data'!$B$6:$B$280=$B$5,ROW('Model Data'!$W$6:$W$280)-ROW('Model Data'!$W$6)+1),ROWS('Model Data'!$W$6:'Model Data'!W19))),NA()) -> 
A122: 1 | B122: =IFERROR(INDEX('Model Data'!$B$6:$B$280,SMALL(IF('Model Data'!$B$6:$B$280=$B$5,ROW('Model Data'!$C$6:$C$280)-ROW('Model Data'!$B$6)+1),ROWS('Model Data'!$B$6:'Model Data'!B20))),NA()) ->  | C122: =IFERROR(INDEX('Model Data'!$E$6:$E$280,SMALL(IF('Model Data'!$B$6:$B$280=$B$5,ROW('Model Data'!$E$6:$E$280)-ROW('Model Data'!$E$6)+1),ROWS('Model Data'!$E$6:'Model Data'!E20))),NA()) ->  | D122: =IFERROR(INDEX('Model Data'!$D$6:$D$280,SMALL(IF('Model Data'!$B$6:$B$280=$B$5,ROW('Model Data'!$D$6:$D$280)-ROW('Model Data'!$D$6)+1),ROWS('Model Data'!$D$6:'Model Data'!D20))),NA()) ->  | E122: =IFERROR(INDEX('Model Data'!$J$6:$J$280,SMALL(IF('Model Data'!$B$6:$B$280=$B$5,ROW('Model Data'!$J$6:$J$280)-ROW('Model Data'!$J$6)+1),ROWS('Model Data'!$J$6:'Model Data'!J20))),NA()) ->  | F122: =IFERROR(INDEX('Model Data'!$K$6:$K$280,SMALL(IF('Model Data'!$B$6:$B$280=$B$5,ROW('Model Data'!$K$6:$K$280)-ROW('Model Data'!$K$6)+1),ROWS('Model Data'!$K$6:'Model Data'!K20))),NA()) ->  | G122: =IFERROR(INDEX('Model Data'!$L$6:$L$280,SMALL(IF('Model Data'!$B$6:$B$280=$B$5,ROW('Model Data'!$L$6:$L$280)-ROW('Model Data'!$L$6)+1),ROWS('Model Data'!$L$6:'Model Data'!L20))),NA()) ->  | H122: =IFERROR(INDEX('Model Data'!$M$6:$M$280,SMALL(IF('Model Data'!$B$6:$B$280=$B$5,ROW('Model Data'!$M$6:$M$280)-ROW('Model Data'!$M$6)+1),ROWS('Model Data'!$M$6:'Model Data'!M20))),NA()) ->  | I122: =IFERROR(INDEX('Model Data'!$N$6:$N$280,SMALL(IF('Model Data'!$B$6:$B$280=$B$5,ROW('Model Data'!$N$6:$N$280)-ROW('Model Data'!$N$6)+1),ROWS('Model Data'!$N$6:'Model Data'!N20))),NA()) ->  | J122: =IFERROR(INDEX('Model Data'!$O$6:$O$280,SMALL(IF('Model Data'!$B$6:$B$280=$B$5,ROW('Model Data'!$O$6:$O$280)-ROW('Model Data'!$O$6)+1),ROWS('Model Data'!$O$6:'Model Data'!O20))),NA()) ->  | K122: =IFERROR(INDEX('Model Data'!$P$6:$P$280,SMALL(IF('Model Data'!$B$6:$B$280=$B$5,ROW('Model Data'!$P$6:$P$280)-ROW('Model Data'!$P$6)+1),ROWS('Model Data'!$P$6:'Model Data'!P20))),NA()) ->  | L122: =IFERROR(INDEX('Model Data'!$Q$6:$Q$280,SMALL(IF('Model Data'!$B$6:$B$280=$B$5,ROW('Model Data'!$Q$6:$Q$280)-ROW('Model Data'!$Q$6)+1),ROWS('Model Data'!$Q$6:'Model Data'!Q20))),NA()) ->  | M122: =IFERROR(INDEX('Model Data'!$R$6:$R$280,SMALL(IF('Model Data'!$B$6:$B$280=$B$5,ROW('Model Data'!$R$6:$R$280)-ROW('Model Data'!$R$6)+1),ROWS('Model Data'!$R$6:'Model Data'!R20))),NA()) ->  | N122: =IFERROR(INDEX('Model Data'!$S$6:$S$280,SMALL(IF('Model Data'!$B$6:$B$280=$B$5,ROW('Model Data'!$S$6:$S$280)-ROW('Model Data'!$S$6)+1),ROWS('Model Data'!$S$6:'Model Data'!S20))),NA()) ->  | O122: =IFERROR(INDEX('Model Data'!$T$6:$T$280,SMALL(IF('Model Data'!$B$6:$B$280=$B$5,ROW('Model Data'!$T$6:$T$280)-ROW('Model Data'!$T$6)+1),ROWS('Model Data'!$T$6:'Model Data'!T20))),NA()) ->  | P122: =IFERROR(INDEX('Model Data'!$U$6:$U$280,SMALL(IF('Model Data'!$B$6:$B$280=$B$5,ROW('Model Data'!$U$6:$U$280)-ROW('Model Data'!$U$6)+1),ROWS('Model Data'!$U$6:'Model Data'!U20))),NA()) ->  | Q122: =IFERROR(INDEX('Model Data'!$V$6:$V$280,SMALL(IF('Model Data'!$B$6:$B$280=$B$5,ROW('Model Data'!$V$6:$V$280)-ROW('Model Data'!$V$6)+1),ROWS('Model Data'!$V$6:'Model Data'!V20))),NA()) ->  | R122: =IFERROR(INDEX('Model Data'!$W$6:$W$280,SMALL(IF('Model Data'!$B$6:$B$280=$B$5,ROW('Model Data'!$W$6:$W$280)-ROW('Model Data'!$W$6)+1),ROWS('Model Data'!$W$6:'Model Data'!W20))),NA()) -> 
A123: 1 | B123: =IFERROR(INDEX('Model Data'!$B$6:$B$280,SMALL(IF('Model Data'!$B$6:$B$280=$B$5,ROW('Model Data'!$C$6:$C$280)-ROW('Model Data'!$B$6)+1),ROWS('Model Data'!$B$6:'Model Data'!B21))),NA()) ->  | C123: =IFERROR(INDEX('Model Data'!$E$6:$E$280,SMALL(IF('Model Data'!$B$6:$B$280=$B$5,ROW('Model Data'!$E$6:$E$280)-ROW('Model Data'!$E$6)+1),ROWS('Model Data'!$E$6:'Model Data'!E21))),NA()) ->  | D123: =IFERROR(INDEX('Model Data'!$D$6:$D$280,SMALL(IF('Model Data'!$B$6:$B$280=$B$5,ROW('Model Data'!$D$6:$D$280)-ROW('Model Data'!$D$6)+1),ROWS('Model Data'!$D$6:'Model Data'!D21))),NA()) ->  | E123: =IFERROR(INDEX('Model Data'!$J$6:$J$280,SMALL(IF('Model Data'!$B$6:$B$280=$B$5,ROW('Model Data'!$J$6:$J$280)-ROW('Model Data'!$J$6)+1),ROWS('Model Data'!$J$6:'Model Data'!J21))),NA()) ->  | F123: =IFERROR(INDEX('Model Data'!$K$6:$K$280,SMALL(IF('Model Data'!$B$6:$B$280=$B$5,ROW('Model Data'!$K$6:$K$280)-ROW('Model Data'!$K$6)+1),ROWS('Model Data'!$K$6:'Model Data'!K21))),NA()) ->  | G123: =IFERROR(INDEX('Model Data'!$L$6:$L$280,SMALL(IF('Model Data'!$B$6:$B$280=$B$5,ROW('Model Data'!$L$6:$L$280)-ROW('Model Data'!$L$6)+1),ROWS('Model Data'!$L$6:'Model Data'!L21))),NA()) ->  | H123: =IFERROR(INDEX('Model Data'!$M$6:$M$280,SMALL(IF('Model Data'!$B$6:$B$280=$B$5,ROW('Model Data'!$M$6:$M$280)-ROW('Model Data'!$M$6)+1),ROWS('Model Data'!$M$6:'Model Data'!M21))),NA()) ->  | I123: =IFERROR(INDEX('Model Data'!$N$6:$N$280,SMALL(IF('Model Data'!$B$6:$B$280=$B$5,ROW('Model Data'!$N$6:$N$280)-ROW('Model Data'!$N$6)+1),ROWS('Model Data'!$N$6:'Model Data'!N21))),NA()) ->  | J123: =IFERROR(INDEX('Model Data'!$O$6:$O$280,SMALL(IF('Model Data'!$B$6:$B$280=$B$5,ROW('Model Data'!$O$6:$O$280)-ROW('Model Data'!$O$6)+1),ROWS('Model Data'!$O$6:'Model Data'!O21))),NA()) ->  | K123: =IFERROR(INDEX('Model Data'!$P$6:$P$280,SMALL(IF('Model Data'!$B$6:$B$280=$B$5,ROW('Model Data'!$P$6:$P$280)-ROW('Model Data'!$P$6)+1),ROWS('Model Data'!$P$6:'Model Data'!P21))),NA()) ->  | L123: =IFERROR(INDEX('Model Data'!$Q$6:$Q$280,SMALL(IF('Model Data'!$B$6:$B$280=$B$5,ROW('Model Data'!$Q$6:$Q$280)-ROW('Model Data'!$Q$6)+1),ROWS('Model Data'!$Q$6:'Model Data'!Q21))),NA()) ->  | M123: =IFERROR(INDEX('Model Data'!$R$6:$R$280,SMALL(IF('Model Data'!$B$6:$B$280=$B$5,ROW('Model Data'!$R$6:$R$280)-ROW('Model Data'!$R$6)+1),ROWS('Model Data'!$R$6:'Model Data'!R21))),NA()) ->  | N123: =IFERROR(INDEX('Model Data'!$S$6:$S$280,SMALL(IF('Model Data'!$B$6:$B$280=$B$5,ROW('Model Data'!$S$6:$S$280)-ROW('Model Data'!$S$6)+1),ROWS('Model Data'!$S$6:'Model Data'!S21))),NA()) ->  | O123: =IFERROR(INDEX('Model Data'!$T$6:$T$280,SMALL(IF('Model Data'!$B$6:$B$280=$B$5,ROW('Model Data'!$T$6:$T$280)-ROW('Model Data'!$T$6)+1),ROWS('Model Data'!$T$6:'Model Data'!T21))),NA()) ->  | P123: =IFERROR(INDEX('Model Data'!$U$6:$U$280,SMALL(IF('Model Data'!$B$6:$B$280=$B$5,ROW('Model Data'!$U$6:$U$280)-ROW('Model Data'!$U$6)+1),ROWS('Model Data'!$U$6:'Model Data'!U21))),NA()) ->  | Q123: =IFERROR(INDEX('Model Data'!$V$6:$V$280,SMALL(IF('Model Data'!$B$6:$B$280=$B$5,ROW('Model Data'!$V$6:$V$280)-ROW('Model Data'!$V$6)+1),ROWS('Model Data'!$V$6:'Model Data'!V21))),NA()) ->  | R123: =IFERROR(INDEX('Model Data'!$W$6:$W$280,SMALL(IF('Model Data'!$B$6:$B$280=$B$5,ROW('Model Data'!$W$6:$W$280)-ROW('Model Data'!$W$6)+1),ROWS('Model Data'!$W$6:'Model Data'!W21))),NA()) -> 
A124: 1 | B124: =IFERROR(INDEX('Model Data'!$B$6:$B$280,SMALL(IF('Model Data'!$B$6:$B$280=$B$5,ROW('Model Data'!$C$6:$C$280)-ROW('Model Data'!$B$6)+1),ROWS('Model Data'!$B$6:'Model Data'!B22))),NA()) ->  | C124: =IFERROR(INDEX('Model Data'!$E$6:$E$280,SMALL(IF('Model Data'!$B$6:$B$280=$B$5,ROW('Model Data'!$E$6:$E$280)-ROW('Model Data'!$E$6)+1),ROWS('Model Data'!$E$6:'Model Data'!E22))),NA()) ->  | D124: =IFERROR(INDEX('Model Data'!$D$6:$D$280,SMALL(IF('Model Data'!$B$6:$B$280=$B$5,ROW('Model Data'!$D$6:$D$280)-ROW('Model Data'!$D$6)+1),ROWS('Model Data'!$D$6:'Model Data'!D22))),NA()) ->  | E124: =IFERROR(INDEX('Model Data'!$J$6:$J$280,SMALL(IF('Model Data'!$B$6:$B$280=$B$5,ROW('Model Data'!$J$6:$J$280)-ROW('Model Data'!$J$6)+1),ROWS('Model Data'!$J$6:'Model Data'!J22))),NA()) ->  | F124: =IFERROR(INDEX('Model Data'!$K$6:$K$280,SMALL(IF('Model Data'!$B$6:$B$280=$B$5,ROW('Model Data'!$K$6:$K$280)-ROW('Model Data'!$K$6)+1),ROWS('Model Data'!$K$6:'Model Data'!K22))),NA()) ->  | G124: =IFERROR(INDEX('Model Data'!$L$6:$L$280,SMALL(IF('Model Data'!$B$6:$B$280=$B$5,ROW('Model Data'!$L$6:$L$280)-ROW('Model Data'!$L$6)+1),ROWS('Model Data'!$L$6:'Model Data'!L22))),NA()) ->  | H124: =IFERROR(INDEX('Model Data'!$M$6:$M$280,SMALL(IF('Model Data'!$B$6:$B$280=$B$5,ROW('Model Data'!$M$6:$M$280)-ROW('Model Data'!$M$6)+1),ROWS('Model Data'!$M$6:'Model Data'!M22))),NA()) ->  | I124: =IFERROR(INDEX('Model Data'!$N$6:$N$280,SMALL(IF('Model Data'!$B$6:$B$280=$B$5,ROW('Model Data'!$N$6:$N$280)-ROW('Model Data'!$N$6)+1),ROWS('Model Data'!$N$6:'Model Data'!N22))),NA()) ->  | J124: =IFERROR(INDEX('Model Data'!$O$6:$O$280,SMALL(IF('Model Data'!$B$6:$B$280=$B$5,ROW('Model Data'!$O$6:$O$280)-ROW('Model Data'!$O$6)+1),ROWS('Model Data'!$O$6:'Model Data'!O22))),NA()) ->  | K124: =IFERROR(INDEX('Model Data'!$P$6:$P$280,SMALL(IF('Model Data'!$B$6:$B$280=$B$5,ROW('Model Data'!$P$6:$P$280)-ROW('Model Data'!$P$6)+1),ROWS('Model Data'!$P$6:'Model Data'!P22))),NA()) ->  | L124: =IFERROR(INDEX('Model Data'!$Q$6:$Q$280,SMALL(IF('Model Data'!$B$6:$B$280=$B$5,ROW('Model Data'!$Q$6:$Q$280)-ROW('Model Data'!$Q$6)+1),ROWS('Model Data'!$Q$6:'Model Data'!Q22))),NA()) ->  | M124: =IFERROR(INDEX('Model Data'!$R$6:$R$280,SMALL(IF('Model Data'!$B$6:$B$280=$B$5,ROW('Model Data'!$R$6:$R$280)-ROW('Model Data'!$R$6)+1),ROWS('Model Data'!$R$6:'Model Data'!R22))),NA()) ->  | N124: =IFERROR(INDEX('Model Data'!$S$6:$S$280,SMALL(IF('Model Data'!$B$6:$B$280=$B$5,ROW('Model Data'!$S$6:$S$280)-ROW('Model Data'!$S$6)+1),ROWS('Model Data'!$S$6:'Model Data'!S22))),NA()) ->  | O124: =IFERROR(INDEX('Model Data'!$T$6:$T$280,SMALL(IF('Model Data'!$B$6:$B$280=$B$5,ROW('Model Data'!$T$6:$T$280)-ROW('Model Data'!$T$6)+1),ROWS('Model Data'!$T$6:'Model Data'!T22))),NA()) ->  | P124: =IFERROR(INDEX('Model Data'!$U$6:$U$280,SMALL(IF('Model Data'!$B$6:$B$280=$B$5,ROW('Model Data'!$U$6:$U$280)-ROW('Model Data'!$U$6)+1),ROWS('Model Data'!$U$6:'Model Data'!U22))),NA()) ->  | Q124: =IFERROR(INDEX('Model Data'!$V$6:$V$280,SMALL(IF('Model Data'!$B$6:$B$280=$B$5,ROW('Model Data'!$V$6:$V$280)-ROW('Model Data'!$V$6)+1),ROWS('Model Data'!$V$6:'Model Data'!V22))),NA()) ->  | R124: =IFERROR(INDEX('Model Data'!$W$6:$W$280,SMALL(IF('Model Data'!$B$6:$B$280=$B$5,ROW('Model Data'!$W$6:$W$280)-ROW('Model Data'!$W$6)+1),ROWS('Model Data'!$W$6:'Model Data'!W22))),NA()) -> 

Sheet Instructions
B6: General instructions
B10: 1) Before starting, make sure that Macros are enabled in Microsoft Excel.
B12: 2) Complete the Details section at the top of the Optioneering Summary page.
B14: 3) In the Options page, use the Show All button to open the data entry fields. Build up each project solution option by asset by selecting models from the drop-down Asset list and entering an Asset Measure for the item. An Asset Description may also be added in order to identify the item within your project.
B16: 4) The Model Viewer can be used to view the data for individual asset models. In the Model Viewer sheet, select an Asset from the drop-down list at the top of the page and the charts and data table will refresh with all data relating to that Asset.
B18: NB. If you are using Microsoft Excel 2003 or older, some functionality may not work and you should seek further guidance how to proceed.

Sheet Model Data (hidden)
A5: Element ID | B5: Element class | C5: Element description | D5: Element measure | E5: Element unit | F5: Element value | G5: 1B1S Project ref. | H5: Version | I5: Gateway | J5: Capital - Materials | K5: Capital - Transport | L5: Capital - Installation | M5: Operational - Use | N5: Operational - Maintenance | O5: Operational -Repair | P5: Operational - Energy | Q5: Replacement - Materials | R5: Replacement - Transport | S5: Replacement - Installation | T5: Refurbishment | U5: Demolition | V5: Residual | W5: Whole Life Carbon
A6: FishEA21 | B6: Fish Pass - Larinier - Bypass Weir | C6: Fish Pass - Larinier - Bypass Weir | D6: 93.5 | E6: m3 | F6: 716628 | G6: IMNE960003 | H6: 1 | I6: G3 | J6: 35.0394876 | K6: 43.32093698 | L6: 83.51636777 | M6: 0 | N6: 555.541734 | O6: 0 | P6: 0 | Q6: 3.796731289 | R6: 4.694074263 | S6: 9.049481839 | T6: 6.868962042 | U6: 4.652698739 | V6: -22.83740746 | W6: 728.2957658
A7: Non-EA35 | B7: Non-tidal Wall - Retaining - Concrete | C7: Non-tidal Wall - Retaining - Concrete | D7: 55 | E7: m3 | F7: 25000 | G7: IMNW000473 | H7: 1 | I7: G3 | J7: 20.891832 | K7: 23.73131301 | L7: 41.77106946 | M7: 0 | N7: 222.8747077 | O7: 32.88004621 | P7: 0 | Q7: 0 | R7: 0 | S7: 0 | T7: 0 | U7: 0 | V7: 0 | W7: 342.1489684
A8: CulvEA07 | B8: Culvert | C8: Theoretical Culvert 1 (Embankment) | D8: 169 | E8: m3 | F8: 45000 | G8: IMNW000116 | H8: 1 | I8: G3 | J8: 26.496 | K8: 49.74538771 | L8: 118.0174225 | M8: 0 | N8: 2676.473888 | O8: 86.37006296 | P8: 0 | Q8: 0 | R8: 0 | S8: 0 | T8: 0 | U8: 0 | V8: 0 | W8: 2957.102761
A9: SoftEA60 | B9: Soft Landscaping - Shrubs/Tress | C9: S.L. Shrubs/Trees Theoretical 1 | D9: 618 | E9: m2 | F9: 7000 | G9: IMNW000116 | H9: 1 | I9: G3 | J9: 0 | K9: 0 | L9: 0 | M9: 0 | N9: 2.015094154 | O9: 0.005474856717 | P9: 0 | Q9: 0 | R9: 0 | S9: 0 | T9: 0 | U9: 0 | V9: 0 | W9: 2.020569011
A10: ErosEA19 | B10: Erosion Protection - Grasscrete | C10: E.P. Grasscrete Theoretical | D10: 1400 | E10: m2 | F10: 80000 | G10: IMNW000116 | H10: 1 | I10: G3 | J10: 23.8504 | K10: 88.6786491 | L10: 209.7514475 | M10: 0 | N10: 1790.796127 | O10: 126.8475889 | P10: 0 | Q10: 2.584328886 | R10: 9.608844901 | S10: 22.72778338 | T10: 13.67541614 | U10: 13.23382441 | V10: -45.4669932 | W10: 2269.521241
A11: ContEA06 | B11: Control Building | C11: Control Building Theoretical 1 | D11: 8 | E11: m2 | F11: 7000 | G11: IMNW000116 | H11: 1 | I11: G3 | J11: 14.0444024 | K11: 9.751783864 | L11: 20.16874707 | M11: 10.16415422 | N11: 259.3629583 | O11: 0 | P11: 0 | Q11: 4.516901773 | R11: 2.705779109 | S11: 6.10019425 | T11: 2.589732688 | U11: 6.933440027 | V11: -10.79367157 | W11: 332.4778622
A12: SoftEA60 | B12: Soft Landscaping - Shrubs/Tress | C12: S.L. Shrubs/Trees Theoretical 2 | D12: 2500 | E12: m2 | F12: 30000 | G12: IMNW000116 | H12: 1 | I12: G3 | J12: 0 | K12: 0 | L12: 0 | M12: 0 | N12: 2.015094154 | O12: 0.005474856717 | P12: 0 | Q12: 0 | R12: 0 | S12: 0 | T12: 0 | U12: 0 | V12: 0 | W12: 2.020569011
A13: ErosEA19 | B13: Erosion Protection - Grasscrete | C13: E.P. Grasscrete Theoretical 2 | D13: 800 | E13: m2 | F13: 50000 | G13: IMNW000116 | H13: 1 | I13: G3 | J13: 13.6288 | K13: 96.06400371 | L13: 227.7497302 | M13: 0 | N13: 1821.856128 | O13: 129.0486792 | P13: 0 | Q13: 1.476759363 | R13: 10.40909082 | S13: 24.67800148 | T13: 14.318791 | U13: 14.34394422 | V13: -46.17785634 | W13: 2321.740016
A14: Non-EA35 | B14: Non-tidal Wall - Retaining - Concrete | C14: Wall | D14: 205.2 | E14: m3 | F14: 342529 | G14: IMNW000116 | H14: 1 | I14: G3 | J14: 280.5252 | K14: 44.33037765 | L14: 61.79512315 | M14: 0 | N14: 1808.019994 | O14: 224.9972746 | P14: 0 | Q14: 0 | R14: 0 | S14: 0 | T14: 0 | U14: 0 | V14: 0 | W14: 2419.66797
A15: EmbaEA15 | B15: Embankment - New | C15: Embankment | D15: 36544 | E15: m3 | F15: 656872 | G15: IMNW000116 | H15: 1 | I15: G3 | J15: 88.6574 | K15: 47.1471689 | L15: 97.29950271 | M15: 0 | N15: 3215.76782 | O15: 0 | P15: 0 | Q15: 0 | R15: 0 | S15: 0 | T15: 0 | U15: 0 | V15: 0 | W15: 3448.871891
A16: CulvEA07 | B16: Culvert | C16: Culvert (Embankment) | D16: 523 | E16: m3 | F16: 278437 | G16: IMNW000116 | H16: 1 | I16: G3 | J16: 60.0576 | K16: 17.31310299 | L16: 40.50319896 | M16: 0 | N16: 2118.815085 | O16: 68.36129939 | P16: 0 | Q16: 0 | R16: 0 | S16: 0 | T16: 0 | U16: 0 | V16: 0 | W16: 2305.050287
A17: SoftEA60 | B17: Soft Landscaping - Shrubs/Tress | C17: S.L. Shrubs/Trees | D17: 1550 | E17: m2 | F17: 14696 | G17: IMNW000116 | H17: 1 | I17: G3 | J17: 0 | K17: 0 | L17: 0 | M17: 0 | N17: 2.015094154 | O17: 0.005474856717 | P17: 0 | Q17: 0 | R17: 0 | S17: 0 | T17: 0 | U17: 0 | V17: 0 | W17: 2.020569011
A18: SoftEA59 | B18: Soft Landscaping - Grassland | C18: S.L. Grassland | D18: 105985 | E18: m2 | F18: 195000 | G18: IMNW000116 | H18: 1 | I18: G3 | J18: 0 | K18: 0 | L18: 0 | M18: 0 | N18: 2.015094154 | O18: 0.0130048247 | P18: 0 | Q18: 0 | R18: 0 | S18: 0 | T18: 0 | U18: 0 | V18: 0 | W18: 2.028098979
A19: ErosEA19 | B19: Erosion Protection - Grasscrete | C19: E.P. Grasscrete | D19: 2119 | E19: m2 | F19: 105000 | G19: IMNW000116 | H19: 1 | I19: G3 | J19: 36.100844 | K19: 7.124436561 | L19: 15.35407254 | M19: 0 | N19: 475.0513006 | O19: 0 | P19: 0 | Q19: 3.911735398 | R19: 0.7719739375 | S19: 1.663702629 | T19: 2.485713653 | U19: 1.039980795 | V19: -8.26431347 | W19: 536.2794274
A20: PathEA41 | B20: Path/Track/Road | C20: Path | D20: 2951 | E20: m2 | F20: 656872 | G20: IMNW000116 | H20: 1 | I20: G3 | J20: 252.31296 | K20: 41.62679504 | L20: 96.74321223 | M20: 0 | N20: 3541.444618 | O20: 0 | P20: 0 | Q20: 27.3395696 | R20: 4.510504178 | S20: 10.48268699 | T20: 16.57795681 | U20: 8.158459735 | V20: -55.11714176 | W20: 3952.23808
A21: ContEA06 | B21: Control Building | C21: Control Building | D21: 9.05 | E21: m2 | F21: 7879 | G21: IMNW000116 | H21: 1 | I21: G3 | J21: 9.7928768 | K21: 2.064555086 | L21: 1.556804984 | M21: 10.16415422 | N21: 81.35858817 | O21: 0 | P21: 0 | Q21: 4.056224367 | R21: 0.3740834335 | S21: 0.5201108088 | T21: 0.8650743991 | U21: 1.119052726 | V21: -3.768243489 | W21: 109.2223342
A22: FielEA20 | B22: Field Drainage | C22: Field Drainage | D22: 21.2 | E22: m3 | F22: 12000 | G22: IMNW000116 | H22: 1 | I22: G3 | J22: 2.3211 | K22: 1.096137934 | L22: 1.745595548 | M22: 0 | N22: 19.32713587 | O22: 0 | P22: 0 | Q22: 0.2515046195 | R22: 0.1187728896 | S22: 0.1891453811 | T22: 0.21907592 | U22: 0.1097230041 | V22: -0.7283671128 | W22: 24.75954706
A23: PipeEA44 | B23: Pipes & Drains - Plastic | C23: Pipes & Drains - Plastic | D23: 2.74 | E23: m3 | F23: 5000 | G23: IMNW000116 | H23: 1 | I23: G3 | J23: 1.33685 | K23: 0.5269139852 | L23: 0.7273314783 | M23: 0 | N23: 10.48789272 | O23: 0 | P23: 0 | Q23: 0.1448554352 | R23: 0.05709418007 | S23: 0.07881057545 | T23: 0.1099486599 | U23: 0.04571791838 | V23: -0.3655490204 | W23: 13.19558385
A24: SluiEA58 | B24: Sluices/penstocks | C24: Sluices/penstocks | D24: 4.4 | E24: m2 | F24: 230427 | G24: IMNW000116 | H24: 1 | I24: G3 | J24: 4.246985 | K24: 14.1236981 | L24: 33.51936211 | M24: 10.16415422 | N24: 410.3008731 | O24: 0 | P24: 0 | Q24: 0.8417096817 | R24: 2.800832094 | S24: 6.643200202 | T24: 5.454757006 | U24: 3.853712308 | V24: -5.568197643 | W24: 490.2347985
A25: ErosEA18 | B25: Erosion Protection - Geotextile | C25: Erosion Protection - Geotextile | D25: 2100 | E25: m2 | F25: 15000 | G25: Theoretical | H25: 1 | I25: G3 | J25: 7.938 | K25: 69.04482207 | L25: 116.3627022 | M25: 0 | N25: 142.2009299 | O25: 0 | P25: 0 | Q25: 1.347341269 | R25: 11.719191 | S25: 19.75060101 | T25: 0 | U25: 6.459641768 | V25: -27.27698304 | W25: 354.005888
A26: ErosEA18 | B26: Erosion Protection - Geotextile | C26: Erosion Protection - Geotextile | D26: 3200 | E26: m2 | F26: 20000 | G26: Theoretical | H26: 1 | I26: G3 | J26: 12.096 | K26: 69.05304127 | L26: 119.4322173 | M26: 0 | N26: 210.2511543 | O26: 0 | P26: 0 | Q26: 2.053091457 | R26: 11.72058607 | S26: 20.2715993 | T26: 0 | U26: 6.720838445 | V26: -28.29779282 | W26: 430.0215738
A27: TidaEA71 | B27: Sea Wall - Retaining - Concrete | C27: Sea Wall | D27: 43 | E27: m3 | F27: 47000 | G27: IMNW000800 | H27: 1 | I27: G3 | J27: 22.466328 | K27: 30.5179424 | L27: 41.44141347 | M27: 0 | N27: 742.0956274 | O27: 0 | P27: 0 | Q27: 0 | R27: 0 | S27: 0 | T27: 3.274318457 | U27: 0 | V27: 0 | W27: 839.7956297
A28: TidaEA71 | B28: Sea Wall - Retaining - Concrete | C28: Sea Wall | D28: 133 | E28: m3 | F28: 175000 | G28: IMNW000800 | H28: 1 | I28: G3 | J28: 61.260864 | K28: 30.77752977 | L28: 54.31106473 | M28: 0 | N28: 1833.563178 | O28: 0 | P28: 0 | Q28: 0 | R28: 0 | S28: 0 | T28: 5.074834658 | U28: 0 | V28: 0 | W28: 1984.987471
A29: TidaEA71 | B29: Sea Wall - Retaining - Concrete | C29: Sea Wall | D29: 81 | E29: m3 | F29: 110000 | G29: IMNW000800 | H29: 1 | I29: G3 | J29: 37.366944 | K29: 30.5952663 | L29: 44.38659 | M29: 0 | N29: 1118.968801 | O29: 0 | P29: 0 | Q29: 0 | R29: 0 | S29: 0 | T29: 3.895822994 | U29: 0 | V29: 0 | W29: 1235.213425
A30: TidaEA71 | B30: Sea Wall - Retaining - Concrete | C30: Sea Wall | D30: 156 | E30: m3 | F30: 150000 | G30: IMNW000800 | H30: 1 | I30: G3 | J30: 72.70152 | K30: 30.7664835 | L30: 66.07777355 | M30: 0 | N30: 1983.564237 | O30: 0 | P30: 0 | Q30: 0 | R30: 0 | S30: 0 | T30: 5.879193503 | U30: 0 | V30: 0 | W30: 2158.989208
A31: CulvEA10 | B31: Culvert Inlet/outlet Works | C31: Culvert Inlet/outlet Works | D31: 8.68 | E31: m2 | F31: 50000 | G31: Theoretical | H31: 1 | I31: G3 | J31: 150.5390212 | K31: 69.92843194 | L31: 127.1727337 | M31: 0 | N31: 1327.111501 | O31: 0 | P31: 0 | Q31: 16.31177426 | R31: 7.577150345 | S31: 13.77990177 | T31: 5.900604313 | U31: 4.712268635 | V31: -49.04471161 | W31: 1678.700945
A32: CulvEA10 | B32: Culvert Inlet/outlet Works | C32: Culvert Inlet/outlet Works | D32: 4.34 | E32: m2 | F32: 25000 | G32: Theoretical | H32: 1 | I32: G3 | J32: 72.4694468 | K32: 69.47291742 | L32: 117.2969025 | M32: 0 | N32: 634.5081861 | O32: 0 | P32: 0 | Q32: 7.852484013 | R32: 7.52779271 | S32: 12.7097983 | T32: 4.400148179 | U32: 4.175130084 | V32: -36.57320285 | W32: 898.0147333
A33: SluiEA58 | B33: Sluices/penstocks | C33: Sluices/penstocks | D33: 2.25 | E33: m2 | F33: 200000 | G33: Theoretical | H33: 1 | I33: G3 | J33: 2.7841 | K33: 69.32830685 | L33: 113.5601015 | M33: 0 | N33: 100.4894741 | O33: 0 | P33: 0 | Q33: 0.7548850279 | R33: 18.79750051 | S33: 30.79085535 | T33: 9.262912165 | U33: 9.977488349 | V33: -28.00838584 | W33: 337.7147263
A34: SluiEA58 | B34: Sluices/penstocks | C34: Sluices/penstocks | D34: 2.25 | E34: m2 | F34: 150000 | G34: Theoretical | H34: 1 | I34: G3 | J34: 2.1339 | K34: 69.26231753 | L34: 113.5601015 | M34: 0 | N34: 91.05750582 | O34: 0 | P34: 0 | Q34: 0.6445245728 | R34: 20.92034559 | S34: 34.29976845 | T34: 9.834099351 | U34: 11.10288484 | V34: -31.27252133 | W34: 332.6458111
A35: PipeEA43 | B35: Pipes & Drains - Concrete | C35: Pipes & Drains - Concrete | D35: 82.22 | E35: m3 | F35: 35000 | G35: Theoretical | H35: 1 | I35: G3 | J35: 17.4558852 | K35: 69.40356386 | L35: 121.7009894 | M35: 0 | N35: 2.694576592 | O35: 0 | P35: 0 | Q35: 2.962841334 | R35: 11.78008135 | S35: 20.65668499 | T35: 0 | U35: 6.915473895 | V35: -29.42348711 | W35: 231.0620834
A36: PipeEA43 | B36: Pipes & Drains - Concrete | C36: Pipes & Drains - Concrete | D36: 41.95 | E36: m3 | F36: 15000 | G36: Theoretical | H36: 1 | I36: G3 | J36: 24.9368684 | K36: 69.41211057 | L36: 117.6118614 | M36: 0 | N36: 1.717299678 | O36: 0 | P36: 0 | Q36: 4.232611729 | R36: 11.78153201 | S36: 19.96262466 | T36: 0 | U36: 6.565653593 | V36: -29.00611587 | W36: 233.7800998
A37: PumpEA47 | B37: Pumping Station - Surface Water | C37: Pumping Station - Surface Water | D37: 20 | E37: kWh | F37: 850000 | G37: IMTH000550 | H37: 1 | I37: G3 | J37: 107.34256 | K37: 45.65086011 | L37: 67.48261791 | M37: 11.73977137 | N37: 2732.060263 | O37: 0.1701190379 | P37: 271.7746 | Q37: 12.20134343 | R37: 5.187791764 | S37: 7.668966317 | T37: 4.183099344 | U37: 4.286135711 | V37: -30.77705337 | W37: 3243.25721
A38: PumpEA47 | B38: Pumping Station - Surface Water | C38: Pumping Station - Surface Water | D38: 15 | E38: kWh | F38: 750000 | G38: IMTH000550 | H38: 1 | I38: G3 | J38: 89.56744 | K38: 36.63690538 | L38: 105.3538726 | M38: 11.73977137 | N38: 2924.228999 | O38: 0.239480119 | P38: 305.746425 | Q38: 10.2753063 | R38: 4.201705831 | S38: 12.08468127 | T38: 4.485465082 | U38: 6.322970011 | V38: -32.45058013 | W38: 3484.755412
A39: PumpEA47 | B39: Pumping Station - Surface Water | C39: Pumping Station - Surface Water | D39: 10 | E39: kWh | F39: 500000 | G39: IMTH000550 | H39: 1 | I39: G3 | J39: 54.85448 | K39: 25.51169576 | L39: 77.34004956 | M39: 11.73977137 | N39: 1952.336529 | O39: 0.271001367 | P39: 158.5351833 | Q39: 6.513956163 | R39: 3.028332223 | S39: 9.182539178 | T39: 3.294382561 | U39: 4.982798065 | V39: -22.42994969 | W39: 2290.143567
A40: ReveEA49 | B40: Revetment Works - Rock Armour | C40: Revetment Works - Rock Armour | D40: 1262 | E40: tonnes | F40: 65000 | G40: IMNW000800 | H40: 1 | I40: G3 | J40: 322.63556 | K40: 28.57350401 | L40: 53.89906945 | M40: 0 | N40: 1407.496059 | O40: 0 | P40: 0 | Q40: 0 | R40: 0 | S40: 0 | T40: 0 | U40: 0 | V40: 0 | W40: 1812.604193
A41: ReveEA49 | B41: Revetment Works - Rock Armour | C41: Revetment Works - Rock Armour | D41: 2450 | E41: tonnes | F41: 120000 | G41: IMNW000800 2 | H41: 1 | I41: G3 | J41: 626.0758 | K41: 29.94662564 | L41: 73.88607693 | M41: 0 | N41: 2706.953346 | O41: 0 | P41: 0 | Q41: 0 | R41: 0 | S41: 0 | T41: 0 | U41: 0 | V41: 0 | W41: 3436.861848
A42: ReveEA49 | B42: Revetment Works - Rock Armour | C42: Revetment Works - Rock Armour | D42: 3800 | E42: tonnes | F42: 180000 | G42: IMNW000800 3 | H42: 1 | I42: G3 | J42: 971.4858384 | K42: 32.2747255 | L42: 97.10887643 | M42: 0 | N42: 4189.290864 | O42: 0 | P42: 0 | Q42: 0 | R42: 0 | S42: 0 | T42: 0 | U42: 0 | V42: 0 | W42: 5290.160304
A43: FishEA22 | B43: Fish Pass - Larinier - Through Weir | C43: Fish Pass - Larinier - Through Weir | D43: 4.93 | E43: m3 | F43: 40000 | G43: Theoretical | H43: 1 | I43: G3 | J43: 5.459448 | K43: 5.161914357 | L43: 17.92384585 | M43: 0 | N43: 108.5284782 | O43: 0 | P43: 0 | Q43: 0.59156279 | R43: 0.5593232977 | S43: 1.94215244 | T43: 1.211266598 | U43: 0.7916072409 | V43: -4.027127924 | W43: 138.9340781
A44: EmbaEA15 | B44: Embankment - New | C44: Embankment | D44: 196000 | E44: m3 | F44: 2303291 | G44: IMNW000471 | H44: 1 | I44: G3 | J44: 59.60944757 | K44: 183.8454422 | L44: 667.6842335 | M44: 0 | N44: 13245.82353 | O44: 0 | P44: 0 | Q44: 0 | R44: 0 | S44: 0 | T44: 0 | U44: 0 | V44: 0 | W44: 14156.96265
A45: CulvEA07 | B45: Culvert | C45: Culvert | D45: 159 | E45: m3 | F45: 45000 | G45: IMNW000471 | H45: 1 | I45: G3 | J45: 122.9281306 | K45: 4.638200991 | L45: 13.21123705 | M45: 0 | N45: 3167.167909 | O45: 102.2162983 | P45: 0 | Q45: 0 | R45: 0 | S45: 0 | T45: 0 | U45: 0 | V45: 0 | W45: 3410.161776
A46: SoftEA59 | B46: Soft Landscaping - Grassland | C46: Soft Landscaping - Grassland | D46: 92506 | E46: m2 | F46: 100000 | G46: IMNW000471 | H46: 1 | I46: G3 | J46: 21.25258543 | K46: 11.44978866 | L46: 30.77239426 | M46: 0 | N46: 1038.270877 | O46: 66.88990371 | P46: 0 | Q46: 0 | R46: 0 | S46: 0 | T46: 0 | U46: 0 | V46: 0 | W46: 1168.635549
A47: ErosEA18 | B47: Erosion Protection - Geotextile | C47: Erosion Protection - Geotextile | D47: 4331 | E47: m2 | F47: 27137 | G47: IMNW000471 | H47: 1 | I47: G3 | J47: 16.46272908 | K47: 2.187966963 | L47: 7.869832293 | M47: 0 | N47: 235.958796 | O47: 33.32575067 | P47: 0 | Q47: 1.783831982 | R47: 0.2370788844 | S47: 0.8527418794 | T47: 1.125352806 | U47: 0.5052093364 | V47: -3.74148822 | W47: 297.073011
A48: PathEA41 | B48: Path/Track/Road | C48: Path | D48: 34202 | E48: m2 | F48: 526910 | G48: IMNW000471 | H48: 1 | I48: G3 | J48: 1870.629513 | K48: 91.41431637 | L48: 169.3260361 | M48: 0 | N48: 22003.72309 | O48: 0 | P48: 0 | Q48: 202.6935349 | R48: 9.905270283 | S48: 18.34745607 | T48: 90.44099831 | U48: 35.3674702 | V48: -300.691417 | W48: 24226.52374
A49: TrasEA66 | B49: Trash Screen | C49: Trash Screen | D49: 3.3 | E49: tonnes | F49: 45000 | G49: IMNW000471 | H49: 1 | I49: G3 | J49: 36.32273438 | K49: 3.616420936 | L49: 13.04494418 | M49: 0 | N49: 4375.726185 | O49: 0 | P49: 0 | Q49: 6.165169945 | R49: 0.6138263003 | S49: 2.214158684 | T49: 5.181900685 | U49: 1.29487949 | V49: -4.822542569 | W49: 4440.652557
A50: ContEA06 | B50: Control Building | C50: Control Building | D50: 16.65 | E50: m2 | F50: 40000 | G50: IMNW000471 | H50: 1 | I50: G3 | J50: 12.23747247 | K50: 3.222881091 | L50: 11.6031509 | M50: 10.16415422 | N50: 307.8431577 | O50: 0 | P50: 0 | Q50: 1.326000972 | R50: 0.3492178202 | S50: 1.257268559 | T50: 1.14839306 | U50: 0.7468390293 | V50: -3.81809072 | W50: 346.8272842
A51: FielEA20 | B51: Field Drainage | C51: Field Drainage | D51: 161.6 | E51: m3 | F51: 475000 | G51: IMNW000471 | H51: 1 | I51: G3 | J51: 114.3666567 | K51: 45.59366455 | L51: 145.5046331 | M51: 0 | N51: 1160.374265 | O51: 0 | P51: 0 | Q51: 12.39228921 | R51: 4.94033745 | S51: 15.76626918 | T51: 5.18475106 | U51: 24.79307108 | V51: -43.0946742 | W51: 1510.614334
A52: PipeEA43 | B52: Pipes & Drains - Concrete | C52: Pipes & Drains - Concrete | D52: 176.77 | E52: m3 | F52: 75000 | G52: IMNW000471 | H52: 1 | I52: G3 | J52: 33.42997618 | K52: 6.256578347 | L52: 21.96821272 | M52: 0 | N52: 277.5862453 | O52: 0 | P52: 0 | Q52: 3.622331411 | R52: 0.6779364769 | S52: 2.380383 | T52: 1.046485416 | U52: 1.808200064 | V52: -8.69818966 | W52: 341.8863593
A53: PipeEA44 | B53: Pipes & Drains - Plastic | C53: Pipes & Drains - Plastic | D53: 120.8 | E53: m3 | F53: 60000 | G53: IMNW000471 | H53: 1 | I53: G3 | J53: 44.00010778 | K53: 6.8903088 | L53: 17.39650172 | M53: 0 | N53: 187.1827495 | O53: 0 | P53: 0 | Q53: 4.76766635 | R53: 0.7466048394 | S53: 1.885011652 | T53: 1.159054965 | U53: 1.109351821 | V53: -9.633846549 | W53: 256.6128627
A54: SoftEA59 | B54: Soft Landscaping - Grassland | C54: Soft Landscaping - Grassland | D54: 45000 | E54: m2 | F54: 500000 | G54: Theoretical | H54: 1 | I54: G3 | J54: 0 | K54: 0 | L54: 0 | M54: 0 | N54: 2.015094154 | O54: 0 | P54: 0 | Q54: 0 | R54: 0 | S54: 0 | T54: 0 | U54: 0 | V54: 0 | W54: 2.015094154
A55: FishEA22 | B55: Fish Pass - Larinier - Through Weir | C55: Fish Pass - Larinier - Through Weir | D55: 26.8 | E55: m3 | F55: 100000 | G55: Theoretical | H55: 1 | I55: G3 | J55: 11.0375736 | K55: 10.39286791 | L55: 31.38903825 | M55: 0 | N55: 217.2533785 | O55: 0 | P55: 0 | Q55: 1.195984985 | R55: 1.126127391 | S55: 3.401183973 | T55: 2.241303378 | U55: 1.607816945 | V55: -7.451716602 | W55: 273.8013752
A56: FishEA22 | B56: Fish Pass - Larinier - Through Weir | C56: Fish Pass - Larinier - Through Weir | D56: 12.7 | E56: m3 | F56: 50000 | G56: Theoretical | H56: 1 | I56: G3 | J56: 6.610512 | K56: 9.211567446 | L56: 25.6617607 | M56: 0 | N56: 149.9820999 | O56: 0 | P56: 0 | Q56: 0.7162872367 | R56: 0.9981266492 | S56: 2.780600301 | T56: 1.760295093 | U56: 1.269885561 | V56: -5.852496498 | W56: 194.4085239
A57: Non-EA35 | B57: Non-tidal Wall - Retaining - Concrete | C57: Concrete Wall | D57: 54 | E57: m3 | F57: 78715 | G57: IMNW000104 | H57: 1 | I57: G3 | J57: 34.79388882 | K57: 15.40384316 | L57: 25.96228014 | M57: 0 | N57: 312.2331176 | O57: 38.80712865 | P57: 0 | Q57: 0 | R57: 0 | S57: 0 | T57: 0 | U57: 0 | V57: 0 | W57: 427.2002584
A58: ChanEA05 | B58: Channel - RC | C58: RC 1 | D58: 181.44 | E58: m3 | F58: 263525 | G58: IMNW000104 | H58: 1 | I58: G3 | J58: 77.46665275 | K58: 51.76022435 | L58: 86.87277039 | M58: 0 | N58: 3393.54185 | O58: 109.5267088 | P58: 0 | Q58: 0 | R58: 0 | S58: 0 | T58: 0 | U58: 0 | V58: 0 | W58: 3719.168206
A59: EmbaEA15 | B59: Embankment - New | C59: Embankment | D59: 1560 | E59: m3 | F59: 90000 | G59: IMNW000104 | H59: 1 | I59: G3 | J59: 52.97482862 | K59: 18.56368455 | L59: 30.12879126 | M59: 0 | N59: 1530.383034 | O59: 0 | P59: 0 | Q59: 0 | R59: 0 | S59: 0 | T59: 0 | U59: 0 | V59: 0 | W59: 1632.050339
A60: HeadEA32 | B60: Headwall | C60: Headwall | D60: 1000 | E60: mm dia | F60: 30000 | G60: IMNW000104 | H60: 1 | I60: G3 | J60: 26.0293596 | K60: 10.73232638 | L60: 18.09266775 | M60: 0 | N60: 1511.897518 | O60: 28.34186981 | P60: 0 | Q60: 2.820431771 | R60: 1.162909682 | S60: 1.960445271 | T60: 2.32764974 | U60: 1.339607019 | V60: -7.738794481 | W60: 1598.305597
D61: 600 | E61: mm dia | F61: 25000 | G61: IMNW000104 | H61: 1 | I61: G3 | J61: 26.0293596 | K61: 10.73232638 | L61: 18.09266775 | M61: 0 | N61: 1511.897518 | O61: 28.34186981 | P61: 0 | Q61: 2.820431771 | R61: 1.162909682 | S61: 1.960445271 | T61: 2.32764974 | U61: 1.339607019 | V61: -7.738794481 | W61: 1598.305597
A62: FlapEA24 | B62: Flap Valve | C62: Flap Valve | D62: 500 | E62: mm dia | F62: 1500 | G62: IMNW000104 | H62: 1 | I62: G3 | J62: 0.004010206557 | K62: 0.3452951227 | L62: 0.4933544236 | M62: 0 | N62: 0 | O62: 0 | P62: 0 | Q62: 0.0006806647505 | R62: 0.05860800815 | S62: 0.08373857079 | T62: 0.03296520422 | U62: 0.05696521093 | V62: -0.07669777476 | W62: 1.055884848
A63: Non-EA35 | B63: Non-tidal Wall - Retaining - Concrete | C63: Concrete Wall | D63: 54 | E63: m3 | F63: 78715 | G63: IMNW000104 | H63: 1 | I63: G3 | J63: 34.39317467 | K63: 19.41320831 | L63: 32.78160143 | M63: 0 | N63: 339.8606594 | O63: 42.24610522 | P63: 0 | Q63: 0 | R63: 0 | S63: 0 | T63: 0 | U63: 0 | V63: 0 | W63: 468.694749
A64: ChanEA05 | B64: Channel - RC | C64: RC 2 | D64: 128 | E64: m3 | F64: 162130 | G64: IMNW000104 | H64: 1 | I64: G3 | J64: 100.5654718 | K64: 40.03543307 | L64: 67.45977105 | M64: 0 | N64: 3587.145235 | O64: 115.7788429 | P64: 0 | Q64: 0 | R64: 0 | S64: 0 | T64: 0 | U64: 0 | V64: 0 | W64: 3910.984754
A65: EmbaEA15 | B65: Embankment - New | C65: Embankment | D65: 1560 | E65: m3 | F65: 90000 | G65: IMNW000104 | H65: 1 | I65: G3 | J65: 52.36472828 | K65: 23.14785356 | L65: 37.92576664 | M65: 0 | N65: 1639.20679 | O65: 0 | P65: 0 | Q65: 0 | R65: 0 | S65: 0 | T65: 0 | U65: 0 | V65: 0 | W65: 1752.645139
D66: 1000 | E66: mm dia | F66: 30000 | G66: IMNW000104 | H66: 1 | I66: G3 | J66: 25.72958476 | K66: 13.533763 | L66: 22.85748604 | M66: 0 | N66: 1638.807504 | O66: 30.7307356 | P66: 0 | Q66: 2.787949431 | R66: 1.466461554 | S66: 2.476740911 | T66: 2.635990269 | U66: 1.690829756 | V66: -8.763941838 | W66: 1735.643933
A67: HeadEA32 | B67: Headwall | C67: Headwall Theoretical | D67: 600 | E67: mm dia | F67: 25000 | G67: IMNW000104 | H67: 1 | I67: G3 | J67: 25.72958476 | K67: 13.533763 | L67: 22.85748604 | M67: 0 | N67: 1638.807504 | O67: 30.7307356 | P67: 0 | Q67: 2.787949431 | R67: 1.466461554 | S67: 2.476740911 | T67: 2.635990269 | U67: 1.690829756 | V67: -8.763941838 | W67: 1735.643933
A68: FlapEA24 | B68: Flap Valve | C68: Flap Valve Theoretical | D68: 300 | E68: mm dia | F68: 1000 | G68: IMNW000104 | H68: 1 | I68: G3 | J68: 0.0004404468692 | K68: 0.2995424111 | L68: 0.4155360088 | M68: 0 | N68: 0 | O68: 0 | P68: 0 | Q68: 7.475840809e-05 | R68: 0.05084225903 | S68: 0.07053021079 | T68: 0.02799139924 | U68: 0.04797990097 | V68: -0.06512557969 | W68: 0.8957917166
A69: Non-EA35 | B69: Non-tidal Wall - Retaining - Concrete | C69: Concrete Wall | D69: 54 | E69: m3 | F69: 78715 | G69: IMNW000104 | H69: 1 | I69: G3 | J69: 35.71678602 | K69: 22.99955344 | L69: 38.88142991 | M69: 0 | N69: 374.1528809 | O69: 46.51467705 | P69: 0 | Q69: 0 | R69: 0 | S69: 0 | T69: 0 | U69: 0 | V69: 0 | W69: 518.2653273
A70: ChanEA05 | B70: Channel - RC | C70: RC 4 | D70: 52.78 | E70: m3 | F70: 102327 | G70: IMNW000104 | H70: 1 | I70: G3 | J70: 39.09624797 | K70: 29.8992471 | L70: 50.58746625 | M70: 0 | N70: 1835.202765 | O70: 59.20246032 | P70: 0 | Q70: 0 | R70: 0 | S70: 0 | T70: 0 | U70: 0 | V70: 0 | W70: 2013.988186
A71: EmbaEA15 | B71: Embankment - New | C71: Embankment | D71: 1560 | E71: m3 | F71: 90000 | G71: IMNW000104 | H71: 1 | I71: G3 | J71: 54.37996965 | K71: 27.24835615 | L71: 44.90009889 | M71: 0 | N71: 1788.211046 | O71: 0 | P71: 0 | Q71: 0 | R71: 0 | S71: 0 | T71: 0 | U71: 0 | V71: 0 | W71: 1914.739471
A72: HeadEA32 | B72: Headwall | C72: Headwall | D72: 1000 | E72: mm dia | F72: 30000 | G72: IMNW000104 | H72: 1 | I72: G3 | J72: 26.71978036 | K72: 16.03962569 | L72: 27.11957797 | M72: 0 | N72: 1799.718833 | O72: 33.75961918 | P72: 0 | Q72: 2.895242856 | R72: 1.737986281 | S72: 2.938563241 | T72: 2.965193971 | U72: 2.004995692 | V72: -9.858453505 | W72: 1908.04596
D73: 600 | E73: mm dia | F73: 25000 | G73: IMNW000104 | H73: 1 | I73: G3 | J73: 26.71978036 | K73: 16.03962569 | L73: 27.11957797 | M73: 0 | N73: 1799.718833 | O73: 33.75961918 | P73: 0 | Q73: 2.895242856 | R73: 1.737986281 | S73: 2.938563241 | T73: 2.965193971 | U73: 2.004995692 | V73: -9.858453505 | W73: 1908.04596
A74: TidaEA63 | B74: Tidal Wall - Retaining - Concrete | C74: Tidal Wall - Retaining - Concrete | D74: 113 | E74: m3 | F74: 241917 | G74: IMNW000699 | H74: 1 | I74: G3 | J74: 52.22147401 | K74: 38.0491831 | L74: 105.6428475 | M74: 0 | N74: 758.7865537 | O74: 101.1155918 | P74: 0 | Q74: 0 | R74: 0 | S74: 0 | T74: 0 | U74: 0 | V74: 0 | W74: 1055.81565
A75: TidaEA65 | B75: Tidal Wall - Retaining - Sheetpiled | C75: Tidal Wall - Retaining - Sheetpiled | D75: 2006.1 | E75: m2 | F75: 132700 | G75: IMNW000699 | H75: 1 | I75: G3 | J75: 90.57321887 | K75: 21.12202095 | L75: 57.91017556 | M75: 0 | N75: 769.1492236 | O75: 80.56200883 | P75: 0 | Q75: 0 | R75: 0 | S75: 0 | T75: 0 | U75: 0 | V75: 0 | W75: 1019.316648
A76: EmbaEA15 | B76: Embankment - New | C76: Embankment | D76: 20462 | E76: m3 | F76: 356937 | G76: IMNW000699 | H76: 1 | I76: G3 | J76: 582.1093469 | K76: 75.68172194 | L76: 167.5778984 | M76: 0 | N76: 941.5706272 | O76: 0 | P76: 0 | Q76: 0 | R76: 0 | S76: 0 | T76: 0 | U76: 0 | V76: 0 | W76: 1766.939595
D77: 0.15 | E77: mm dia | F77: 15000 | G77: IMNW000699 | H77: 1 | I77: G3 | J77: 0.1353918894 | K77: 2.340288686 | L77: 6.54618181 | M77: 0 | N77: 38.21730099 | O77: 0.3130388939 | P77: 0 | Q77: 0.01467049486 | R77: 0.2535838247 | S77: 0.7093166883 | T77: 0.3828271451 | U77: 0.3987182076 | V77: -1.272794848 | W77: 48.43724199
A78: PathEA41 | B78: Path/Track/Road | C78: Path | D78: 450 | E78: m2 | F78: 80000 | G78: IMNW000699 | H78: 1 | I78: G3 | J78: 47.90990539 | K78: 16.18480196 | L78: 34.91166495 | M78: 0 | N78: 819.5295834 | O78: 0 | P78: 0 | Q78: 5.191315551 | R78: 1.75371697 | S78: 3.782880965 | T78: 4.201164376 | U78: 2.123811035 | V78: -13.96771478 | W78: 923.7449408
A79: TrasEA66 | B79: Trash Screen | C79: Trash Screen | D79: 1.84 | E79: tonnes | F79: 70000 | G79: IMNW000699 | H79: 1 | I79: G3 | J79: 2.699961761 | K79: 10.88820839 | L79: 30.54740165 | M79: 0 | N79: 2385.173593 | O79: 0 | P79: 0 | Q79: 0.4582728526 | R79: 1.848089255 | S79: 5.184904874 | T79: 4.316505365 | U79: 2.909989818 | V79: -4.017161296 | W79: 2442.919756
A80: FlapEA24 | B80: Flap Valve | C80: Flap Valve | D80: 900 | E80: mm dia | F80: 3000 | G80: IMNW000699 | H80: 1 | I80: G3 | J80: 0.09710004811 | K80: 0.4691623643 | L80: 1.309174356 | M80: 0 | N80: 49.34743478 | O80: 0 | P80: 0 | Q80: 0.01648109121 | R80: 0.07963237781 | S80: 0.2222102089 | T80: 0.1834196895 | U80: 0.1247138494 | V80: -0.170699771 | W80: 51.80334285
A81: FielEA20 | B81: Field Drainage | C81: Field Drainage | D81: 2.7 | E81: m3 | F81: 200 | G81: IMNW000699 | H81: 1 | I81: G3 | J81: 0.1759308572 | K81: 0.05318592816 | L81: 0.08727829042 | M81: 0 | N81: 1.620448449 | O81: 0 | P81: 0 | Q81: 0.01906312666 | R81: 0.005763003155 | S81: 0.009457107932 | T81: 0.01342567847 | U81: 0.00530773244 | V81: -0.04463668423 | W81: 1.950531222
A82: PipeEA44 | B82: Pipes & Drains - Plastic | C82: Pipes & Drains - Plastic | D82: 5.7 | E82: m3 | F82: 30000 | G82: IMNW000699 | H82: 1 | I82: G3 | J82: 14.26322922 | K82: 5.451054764 | L82: 13.09174356 | M82: 0 | N82: 125.1096692 | O82: 0 | P82: 0 | Q82: 1.545503441 | R82: 0.5906533343 | S82: 1.41856619 | T82: 1.392067107 | U82: 0.796159866 | V82: -4.628239831 | W82: 159.8265667
A83: TidaEA63 | B83: Tidal Wall - Retaining - Concrete | C83: Tidal Wall - Retaining - Concrete 2 | D83: 309 | E83: m3 | F83: 1291857 | G83: IMNW000699 | H83: 1 | I83: G3 | J83: 102.589733 | K83: 130.8651679 | L83: 365.8115094 | M83: 0 | N83: 2180.385195 | O83: 290.6747072 | P83: 0 | Q83: 0 | R83: 0 | S83: 0 | T83: 0 | U83: 0 | V83: 0 | W83: 3070.326313
A84: TidaEA65 | B84: Tidal Wall - Retaining - Sheetpiled | C84: Tidal Wall - Retaining - Sheetpiled 2 | D84: 2003.4 | E84: m2 | F84: 142164 | G84: IMNW000699 | H84: 1 | I84: G3 | J84: 92.0881812 | K84: 14.81860007 | L84: 40.22439616 | M84: 0 | N84: 700.5726595 | O84: 73.3747887 | P84: 0 | Q84: 0 | R84: 0 | S84: 0 | T84: 0 | U84: 0 | V84: 0 | W84: 921.0786257
A85: TidaEA63 | B85: Tidal Wall - Retaining - Concrete | C85: Tidal Wall - Retaining - Concrete 3 | D85: 89 | E85: m3 | F85: 128615 | G85: IMNW000699 | H85: 1 | I85: G3 | J85: 48.68464889 | K85: 109.9304216 | L85: 307.8841836 | M85: 0 | N85: 1621.43067 | O85: 216.1424713 | P85: 0 | Q85: 0 | R85: 0 | S85: 0 | T85: 0 | U85: 0 | V85: 0 | W85: 2304.072396
A86: TidaEA65 | B86: Tidal Wall - Retaining - Sheetpiled | C86: Tidal Wall - Retaining - Sheetpiled 3 | D86: 515.25 | E86: m2 | F86: 40925 | G86: IMNW000699 | H86: 1 | I86: G3 | J86: 27.45080451 | K86: 35.02429251 | L86: 97.94118778 | M86: 0 | N86: 584.4033096 | O86: 61.19956964 | P86: 0 | Q86: 0 | R86: 0 | S86: 0 | T86: 0 | U86: 0 | V86: 0 | W86: 806.019164
A87: FishEA21 | B87: Fish Pass - Larinier - Bypass Weir | C87: Fish Pass - Larinier - Bypass Weir | D87: 11.72 | E87: m3 | F87: 60000 | G87: IMMI001434 | H87: 1 | I87: G3 | J87: 23.3265288 | K87: 10.45086083 | L87: 42.8595753 | M87: 0 | N87: 390.4412757 | O87: 0 | P87: 0 | Q87: 2.527564409 | R87: 1.13241126 | S87: 4.644083055 | T87: 3.251957217 | U87: 2.213701151 | V87: -10.81186234 | W87: 472.2497965
A88: FishEA21 | B88: Fish Pass - Larinier - Bypass Weir | C88: Fish Pass - Larinier - Bypass Weir | D88: 143.89 | E88: m3 | F88: 640000 | G88: IMMI001436 | H88: 1 | I88: G3 | J88: 78.5638016 | K88: 33.97235163 | L88: 65.09115378 | M88: 0 | N88: 792.9624154 | O88: 0 | P88: 0 | Q88: 8.512842629 | R88: 3.68110093 | S88: 7.053003258 | T88: 7.537307923 | U88: 3.512903463 | V88: -25.05947349 | W88: 979.3403106
A89: CulvEA10 | B89: Culvert Inlet/outlet Works | C89: Culvert Inlet/outlet Works | D89: 13.8 | E89: m2 | F89: 75000 | G89: Theoretical | H89: 1 | I89: G3 | J89: 109.5146663 | K89: 70.40327744 | L89: 134.6463357 | M89: 0 | N89: 1062.886639 | O89: 0 | P89: 0 | Q89: 11.86654796 | R89: 7.628602603 | S89: 14.58970981 | T89: 5.339196716 | U89: 5.119259466 | V89: -44.3783974 | W89: 1382.735097
A90: FishEA21 | B90: Fish Pass - Larinier - Bypass Weir | C90: Fish Pass - Larinier - Bypass Weir - Zero | D90: 0 | E90: m3 | F90: 0 | G90: N/A | H90: N/A | I90: N/A | J90: 0 | K90: 0 | L90: 0 | M90: 0 | N90: 0 | O90: 0 | P90: 0 | Q90: 0 | R90: 0 | S90: 0 | T90: 0 | U90: 0 | V90: 0 | W90: 0
A91: Non-EA35 | B91: Non-tidal Wall - Retaining - Concrete | C91: Non-tidal Wall - Retaining - Concrete - Zero | D91: 0 | E91: m3 | F91: 0 | G91: N/A | H91: N/A | I91: N/A | J91: 0 | K91: 0 | L91: 0 | M91: 0 | N91: 0 | O91: 0 | P91: 0 | Q91: 0 | R91: 0 | S91: 0 | T91: 0 | U91: 0 | V91: 0 | W91: 0
A92: CulvEA07 | B92: Culvert | C92: Culvert - Zero | D92: 0 | E92: m3 | F92: 0 | G92: N/A | H92: N/A | I92: N/A | J92: 0 | K92: 0 | L92: 0 | M92: 0 | N92: 0 | O92: 0 | P92: 0 | Q92: 0 | R92: 0 | S92: 0 | T92: 0 | U92: 0 | V92: 0 | W92: 0
A93: SoftEA60 | B93: Soft Landscaping - Shrubs/Tress | C93: Soft Landscaping - Shrubs/Tress - Zero | D93: 0 | E93: m2 | F93: 0 | G93: N/A | H93: N/A | I93: N/A | J93: 0 | K93: 0 | L93: 0 | M93: 0 | N93: 0 | O93: 0 | P93: 0 | Q93: 0 | R93: 0 | S93: 0 | T93: 0 | U93: 0 | V93: 0 | W93: 0
A94: ErosEA19 | B94: Erosion Protection - Grasscrete | C94: Erosion Protection - Grasscrete - Zero | D94: 0 | E94: m2 | F94: 0 | G94: N/A | H94: N/A | I94: N/A | J94: 0 | K94: 0 | L94: 0 | M94: 0 | N94: 0 | O94: 0 | P94: 0 | Q94: 0 | R94: 0 | S94: 0 | T94: 0 | U94: 0 | V94: 0 | W94: 0
A95: ContEA06 | B95: Control Building | C95: Control Building - Zero | D95: 0 | E95: m2 | F95: 0 | G95: N/A | H95: N/A | I95: N/A | J95: 0 | K95: 0 | L95: 0 | M95: 0 | N95: 0 | O95: 0 | P95: 0 | Q95: 0 | R95: 0 | S95: 0 | T95: 0 | U95: 0 | V95: 0 | W95: 0
A96: EmbaEA15 | B96: Embankment - New | C96: Embankment - New - Zero | D96: 0 | E96: m3 | F96: 0 | G96: N/A | H96: N/A | I96: N/A | J96: 0 | K96: 0 | L96: 0 | M96: 0 | N96: 0 | O96: 0 | P96: 0 | Q96: 0 | R96: 0 | S96: 0 | T96: 0 | U96: 0 | V96: 0 | W96: 0
A97: SoftEA59 | B97: Soft Landscaping - Grassland | C97: Soft Landscaping - Grassland - Zero | D97: 0 | E97: m2 | F97: 0 | G97: N/A | H97: N/A | I97: N/A | J97: 0 | K97: 0 | L97: 0 | M97: 0 | N97: 0 | O97: 0 | P97: 0 | Q97: 0 | R97: 0 | S97: 0 | T97: 0 | U97: 0 | V97: 0 | W97: 0
A98: PathEA41 | B98: Path/Track/Road | C98: Path/Track/Road - Zero | D98: 0 | E98: m2 | F98: 0 | G98: N/A | H98: N/A | I98: N/A | J98: 0 | K98: 0 | L98: 0 | M98: 0 | N98: 0 | O98: 0 | P98: 0 | Q98: 0 | R98: 0 | S98: 0 | T98: 0 | U98: 0 | V98: 0 | W98: 0
A99: FielEA20 | B99: Field Drainage | C99: Field Drainage - Zero | D99: 0 | E99: m3 | F99: 0 | G99: N/A | H99: N/A | I99: N/A | J99: 0 | K99: 0 | L99: 0 | M99: 0 | N99: 0 | O99: 0 | P99: 0 | Q99: 0 | R99: 0 | S99: 0 | T99: 0 | U99: 0 | V99: 0 | W99: 0
A100: PipeEA44 | B100: Pipes & Drains - Plastic | C100: Pipes & Drains - Plastic - Zero | D100: 0 | E100: m3 | F100: 0 | G100: N/A | H100: N/A | I100: N/A | J100: 0 | K100: 0 | L100: 0 | M100: 0 | N100: 0 | O100: 0 | P100: 0 | Q100: 0 | R100: 0 | S100: 0 | T100: 0 | U100: 0 | V100: 0 | W100: 0
A101: SluiEA58 | B101: Sluices/penstocks | C101: Sluices/penstocks - Zero | D101: 0 | E101: m2 | F101: 0 | G101: N/A | H101: N/A | I101: N/A | J101: 0 | K101: 0 | L101: 0 | M101: 0 | N101: 0 | O101: 0 | P101: 0 | Q101: 0 | R101: 0 | S101: 0 | T101: 0 | U101: 0 | V101: 0 | W101: 0
A102: ErosEA18 | B102: Erosion Protection - Geotextile | C102: Erosion Protection - Geotextile - Zero | D102: 0 | E102: m2 | F102: 0 | G102: N/A | H102: N/A | I102: N/A | J102: 0 | K102: 0 | L102: 0 | M102: 0 | N102: 0 | O102: 0 | P102: 0 | Q102: 0 | R102: 0 | S102: 0 | T102: 0 | U102: 0 | V102: 0 | W102: 0
A103: TidaEA71 | B103: Sea Wall - Retaining - Concrete | C103: Sea Wall - Retaining - Concrete - Zero | D103: 0 | E103: m3 | F103: 0 | G103: N/A | H103: N/A | I103: N/A | J103: 0 | K103: 0 | L103: 0 | M103: 0 | N103: 0 | O103: 0 | P103: 0 | Q103: 0 | R103: 0 | S103: 0 | T103: 0 | U103: 0 | V103: 0 | W103: 0
A104: CulvEA10 | B104: Culvert Inlet/outlet Works | C104: Culvert Inlet/outlet Works - Zero | D104: 0 | E104: m2 | F104: 0 | G104: N/A | H104: N/A | I104: N/A | J104: 0 | K104: 0 | L104: 0 | M104: 0 | N104: 0 | O104: 0 | P104: 0 | Q104: 0 | R104: 0 | S104: 0 | T104: 0 | U104: 0 | V104: 0 | W104: 0
A105: PipeEA43 | B105: Pipes & Drains - Concrete | C105: Pipes & Drains - Concrete - Zero | D105: 0 | E105: m3 | F105: 0 | G105: N/A | H105: N/A | I105: N/A | J105: 0 | K105: 0 | L105: 0 | M105: 0 | N105: 0 | O105: 0 | P105: 0 | Q105: 0 | R105: 0 | S105: 0 | T105: 0 | U105: 0 | V105: 0 | W105: 0
A106: PumpEA47 | B106: Pumping Station - Surface Water | C106: Pumping Station - Surface Water - Zero | D106: 0 | E106: kWh | F106: 0 | G106: N/A | H106: N/A | I106: N/A | J106: 0 | K106: 0 | L106: 0 | M106: 0 | N106: 0 | O106: 0 | P106: 0 | Q106: 0 | R106: 0 | S106: 0 | T106: 0 | U106: 0 | V106: 0 | W106: 0
A107: ReveEA49 | B107: Revetment Works - Rock Armour | C107: Revetment Works - Rock Armour - Zero | D107: 0 | E107: tonnes | F107: 0 | G107: N/A | H107: N/A | I107: N/A | J107: 0 | K107: 0 | L107: 0 | M107: 0 | N107: 0 | O107: 0 | P107: 0 | Q107: 0 | R107: 0 | S107: 0 | T107: 0 | U107: 0 | V107: 0 | W107: 0
A108: FishEA22 | B108: Fish Pass - Larinier - Through Weir | C108: Fish Pass - Larinier - Through Weir - Zero | D108: 0 | E108: m3 | F108: 0 | G108: N/A | H108: N/A | I108: N/A | J108: 0 | K108: 0 | L108: 0 | M108: 0 | N108: 0 | O108: 0 | P108: 0 | Q108: 0 | R108: 0 | S108: 0 | T108: 0 | U108: 0 | V108: 0 | W108: 0
A109: TrasEA66 | B109: Trash Screen | C109: Trash Screen - Zero | D109: 0 | E109: tonnes | F109: 0 | G109: N/A | H109: N/A | I109: N/A | J109: 0 | K109: 0 | L109: 0 | M109: 0 | N109: 0 | O109: 0 | P109: 0 | Q109: 0 | R109: 0 | S109: 0 | T109: 0 | U109: 0 | V109: 0 | W109: 0
A110: ChanEA05 | B110: Channel - RC | C110: Channel - RC - Zero | D110: 0 | E110: m3 | F110: 0 | G110: N/A | H110: N/A | I110: N/A | J110: 0 | K110: 0 | L110: 0 | M110: 0 | N110: 0 | O110: 0 | P110: 0 | Q110: 0 | R110: 0 | S110: 0 | T110: 0 | U110: 0 | V110: 0 | W110: 0
A111: HeadEA32 | B111: Headwall | C111: Headwall - Zero | D111: 0 | E111: mm dia | F111: 0 | G111: N/A | H111: N/A | I111: N/A | J111: 0 | K111: 0 | L111: 0 | M111: 0 | N111: 0 | O111: 0 | P111: 0 | Q111: 0 | R111: 0 | S111: 0 | T111: 0 | U111: 0 | V111: 0 | W111: 0
A112: FlapEA24 | B112: Flap Valve | C112: Flap Valve - Zero | D112: 0 | E112: mm dia | F112: 0 | G112: N/A | H112: N/A | I112: N/A | J112: 0 | K112: 0 | L112: 0 | M112: 0 | N112: 0 | O112: 0 | P112: 0 | Q112: 0 | R112: 0 | S112: 0 | T112: 0 | U112: 0 | V112: 0 | W112: 0
A113: TidaEA63 | B113: Tidal Wall - Retaining - Concrete | C113: Tidal Wall - Retaining - Concrete - Zero | D113: 0 | E113: m3 | F113: 0 | G113: N/A | H113: N/A | I113: N/A | J113: 0 | K113: 0 | L113: 0 | M113: 0 | N113: 0 | O113: 0 | P113: 0 | Q113: 0 | R113: 0 | S113: 0 | T113: 0 | U113: 0 | V113: 0 | W113: 0
A114: TidaEA65 | B114: Tidal Wall - Retaining - Sheetpiled | C114: Tidal Wall - Retaining - Sheetpiled - Zero | D114: 0 | E114: m2 | F114: 0 | G114: N/A | H114: N/A | I114: N/A | J114: 0 | K114: 0 | L114: 0 | M114: 0 | N114: 0 | O114: 0 | P114: 0 | Q114: 0 | R114: 0 | S114: 0 | T114: 0 | U114: 0 | V114: 0 | W114: 0

Sheet Carbon Curve Data (hidden)
A1: Used | B1: Table Name | C1: Unique Model Ref | D1: Element Category | E1: Element measure | F1: Intecept - New Build - Materials | G1: Slope - New Build - Materials | H1: Intercept New Build - Transport | I1: Slope - New Build - Transport | J1: Intercept - New Build - Installation | K1: Slope - New Build - Installation | L1: Intercept - Operational - Use | M1: Slope - Operational - Use | N1: Intercept - Operational - Maintenance | O1: Slope - Operational - Maintenance | P1: Intercept - Operational -Repair | Q1: Slope - Operational -Repair | R1: Intercept - Operational - Energy | S1: Slope - Operational - Energy | T1: Intercept - Replacement - Materials | U1: Slope - Replacement - Materials | V1: Intercept - Replacement - Transport | W1: Slope - Replacement - Transport | X1: Intercept - Replacement - Installation | Y1: Slope - Replacement - Installation | Z1: Intercept - Refurbishment | AA1: Slope - Refurbishment | AB1: Intercept - Demolition | AC1: Slope - Demolition | AD1: Intercept - Residual | AE1: Slope - Residual | AF1: Intercept -Whole Life Carbon | AG1: Slope - Whole Life Carbon
A2: =IFERROR(IF(VLOOKUP(C2,'Model Data'!A:A,1,FALSE)=C2,1,0),0) -> 0 | B2: EA_01 | C2: BarrEA01 | D2: Barrier | E2: m2 | F2: 0 | G2: =IFERROR(SLOPE(EA_01[Capital - Materials],EA_01[Element measure]),"") ->  | H2: 0 | I2: =IFERROR(SLOPE(EA_01[Capital - Transport],EA_01[Element measure]),"") ->  | J2: 0 | K2: =IFERROR(SLOPE(EA_01[Capital - Installation],EA_01[Element measure]),"") ->  | L2: 0 | M2: =IFERROR(SLOPE(EA_01[Operational - Use],EA_01[Element measure]),"") ->  | N2: 0 | O2: =IFERROR(SLOPE(EA_01[Operational - Maintenance],EA_01[Element measure]),"") ->  | P2: 0 | Q2: =IFERROR(SLOPE(EA_01[Operational -Repair],EA_01[Element measure]),"") ->  | R2: 0 | S2: =IFERROR(SLOPE(EA_01[Operational - Energy],EA_01[Element measure]),"") ->  | T2: 0 | U2: =IFERROR(SLOPE(EA_01[Replacement - Materials],EA_01[Element measure]),"") ->  | V2: 0 | W2: =IFERROR(SLOPE(EA_01[Replacement - Transport],EA_01[Element measure]),"") ->  | X2: 0 | Y2: =IFERROR(SLOPE(EA_01[Replacement - Installation],EA_01[Element measure]),"") ->  | Z2: 0 | AA2: =IFERROR(SLOPE(EA_01[Refurbishment],EA_01[Element measure]),"") ->  | AB2: 0 | AC2: =IFERROR(SLOPE(EA_01[Demolition],EA_01[Element measure]),"") ->  | AD2: 0 | AE2: =IFERROR(SLOPE(EA_01[Residual],EA_01[Element measure]),"") ->  | AF2: 0 | AG2: =IFERROR(SLOPE(EA_01[Whole Life Carbon],EA_01[Element measure]),"") -> 
A3: =IFERROR(IF(VLOOKUP(C3,'Model Data'!A:A,1,FALSE)=C3,1,0),0) -> 0 | B3: EA_02 | C3: BeacEA02 | D3: Beach Recharge | E3: m3 | F3: 0 | G3: =IFERROR(SLOPE(EA_02[Capital - Materials],EA_02[Element measure]),"") ->  | H3: 0 | I3: =IFERROR(SLOPE(EA_02[Capital - Transport],EA_02[Element measure]),"") ->  | J3: 0 | K3: =IFERROR(SLOPE(EA_02[Capital - Installation],EA_02[Element measure]),"") ->  | L3: 0 | M3: =IFERROR(SLOPE(EA_02[Operational - Use],EA_02[Element measure]),"") ->  | N3: 0 | O3: =IFERROR(SLOPE(EA_02[Operational - Maintenance],EA_02[Element measure]),"") ->  | P3: 0 | Q3: =IFERROR(SLOPE(EA_02[Operational -Repair],EA_02[Element measure]),"") ->  | R3: 0 | S3: =IFERROR(SLOPE(EA_02[Operational - Energy],EA_02[Element measure]),"") ->  | T3: 0 | U3: =IFERROR(SLOPE(EA_02[Replacement - Materials],EA_02[Element measure]),"") ->  | V3: 0 | W3: =IFERROR(SLOPE(EA_02[Replacement - Transport],EA_02[Element measure]),"") ->  | X3: 0 | Y3: =IFERROR(SLOPE(EA_02[Replacement - Installation],EA_02[Element measure]),"") ->  | Z3: 0 | AA3: =IFERROR(SLOPE(EA_02[Refurbishment],EA_02[Element measure]),"") ->  | AB3: 0 | AC3: =IFERROR(SLOPE(EA_02[Demolition],EA_02[Element measure]),"") ->  | AD3: 0 | AE3: =IFERROR(SLOPE(EA_02[Residual],EA_02[Element measure]),"") ->  | AF3: 0 | AG3: =IFERROR(SLOPE(EA_02[Whole Life Carbon],EA_02[Element measure]),"") -> 
A4: =IFERROR(IF(VLOOKUP(C4,'Model Data'!A:A,1,FALSE)=C4,1,0),0) -> 0 | B4: EA_03 | C4: BridEA03 | D4: Bridge - Pedestrian | E4: m2 | F4: 0 | G4: =IFERROR(SLOPE(EA_03[Capital - Materials],EA_03[Element measure]),"") ->  | H4: 0 | I4: =IFERROR(SLOPE(EA_03[Capital - Transport],EA_03[Element measure]),"") ->  | J4: 0 | K4: =IFERROR(SLOPE(EA_03[Capital - Installation],EA_03[Element measure]),"") ->  | L4: 0 | M4: =IFERROR(SLOPE(EA_03[Operational - Use],EA_03[Element measure]),"") ->  | N4: 0 | O4: =IFERROR(SLOPE(EA_03[Operational - Maintenance],EA_03[Element measure]),"") ->  | P4: 0 | Q4: =IFERROR(SLOPE(EA_03[Operational -Repair],EA_03[Element measure]),"") ->  | R4: 0 | S4: =IFERROR(SLOPE(EA_03[Operational - Energy],EA_03[Element measure]),"") ->  | T4: 0 | U4: =IFERROR(SLOPE(EA_03[Replacement - Materials],EA_03[Element measure]),"") ->  | V4: 0 | W4: =IFERROR(SLOPE(EA_03[Replacement - Transport],EA_03[Element measure]),"") ->  | X4: 0 | Y4: =IFERROR(SLOPE(EA_03[Replacement - Installation],EA_03[Element measure]),"") ->  | Z4: 0 | AA4: =IFERROR(SLOPE(EA_03[Refurbishment],EA_03[Element measure]),"") ->  | AB4: 0 | AC4: =IFERROR(SLOPE(EA_03[Demolition],EA_03[Element measure]),"") ->  | AD4: 0 | AE4: =IFERROR(SLOPE(EA_03[Residual],EA_03[Element measure]),"") ->  | AF4: 0 | AG4: =IFERROR(SLOPE(EA_03[Whole Life Carbon],EA_03[Element measure]),"") -> 
A5: =IFERROR(IF(VLOOKUP(C5,'Model Data'!A:A,1,FALSE)=C5,1,0),0) -> 0 | B5: EA_04 | C5: BridEA04 | D5: Bridge - Vehicle Access | E5: m2 | F5: 0 | G5: =IFERROR(SLOPE(EA_04[Capital - Materials],EA_04[Element measure]),"") ->  | H5: 0 | I5: =IFERROR(SLOPE(EA_04[Capital - Transport],EA_04[Element measure]),"") ->  | J5: 0 | K5: =IFERROR(SLOPE(EA_04[Capital - Installation],EA_04[Element measure]),"") ->  | L5: 0 | M5: =IFERROR(SLOPE(EA_04[Operational - Use],EA_04[Element measure]),"") ->  | N5: 0 | O5: =IFERROR(SLOPE(EA_04[Operational - Maintenance],EA_04[Element measure]),"") ->  | P5: 0 | Q5: =IFERROR(SLOPE(EA_04[Operational -Repair],EA_04[Element measure]),"") ->  | R5: 0 | S5: =IFERROR(SLOPE(EA_04[Operational - Energy],EA_04[Element measure]),"") ->  | T5: 0 | U5: =IFERROR(SLOPE(EA_04[Replacement - Materials],EA_04[Element measure]),"") ->  | V5: 0 | W5: =IFERROR(SLOPE(EA_04[Replacement - Transport],EA_04[Element measure]),"") ->  | X5: 0 | Y5: =IFERROR(SLOPE(EA_04[Replacement - Installation],EA_04[Element measure]),"") ->  | Z5: 0 | AA5: =IFERROR(SLOPE(EA_04[Refurbishment],EA_04[Element measure]),"") ->  | AB5: 0 | AC5: =IFERROR(SLOPE(EA_04[Demolition],EA_04[Element measure]),"") ->  | AD5: 0 | AE5: =IFERROR(SLOPE(EA_04[Residual],EA_04[Element measure]),"") ->  | AF5: 0 | AG5: =IFERROR(SLOPE(EA_04[Whole Life Carbon],EA_04[Element measure]),"") -> 
A6: =IFERROR(IF(VLOOKUP(C6,'Model Data'!A:A,1,FALSE)=C6,1,0),0) -> 1 | B6: EA_05 | C6: ChanEA05 | D6: Channel - RC | E6: m3 | F6: 0 | G6: =IFERROR(SLOPE(EA_05[Capital - Materials],EA_05[Element measure]),"") -> 0.4836534376 | H6: 0 | I6: =IFERROR(SLOPE(EA_05[Capital - Transport],EA_05[Element measure]),"") -> 0.2630418074 | J6: 0 | K6: =IFERROR(SLOPE(EA_05[Capital - Installation],EA_05[Element measure]),"") -> 0.4412026609 | L6: 0 | M6: =IFERROR(SLOPE(EA_05[Operational - Use],EA_05[Element measure]),"") -> 0 | N6: 0 | O6: =IFERROR(SLOPE(EA_05[Operational - Maintenance],EA_05[Element measure]),"") -> 19.3587412 | P6: 0 | Q6: =IFERROR(SLOPE(EA_05[Operational -Repair],EA_05[Element measure]),"") -> 0.6248675217 | R6: 0 | S6: =IFERROR(SLOPE(EA_05[Operational - Energy],EA_05[Element measure]),"") -> 0 | T6: 0 | U6: =IFERROR(SLOPE(EA_05[Replacement - Materials],EA_05[Element measure]),"") -> 0 | V6: 0 | W6: =IFERROR(SLOPE(EA_05[Replacement - Transport],EA_05[Element measure]),"") -> 0 | X6: 0 | Y6: =IFERROR(SLOPE(EA_05[Replacement - Installation],EA_05[Element measure]),"") -> 0 | Z6: 0 | AA6: =IFERROR(SLOPE(EA_05[Refurbishment],EA_05[Element measure]),"") -> 0 | AB6: 0 | AC6: =IFERROR(SLOPE(EA_05[Demolition],EA_05[Element measure]),"") -> 0 | AD6: 0 | AE6: =IFERROR(SLOPE(EA_05[Residual],EA_05[Element measure]),"") -> 0 | AF6: 0 | AG6: =IFERROR(SLOPE(EA_05[Whole Life Carbon],EA_05[Element measure]),"") -> 21.17150663
A7: =IFERROR(IF(VLOOKUP(C7,'Model Data'!A:A,1,FALSE)=C7,1,0),0) -> 1 | B7: EA_06 | C7: ContEA06 | D7: Control Building | E7: m2 | F7: 0 | G7: =IFERROR(SLOPE(EA_06[Capital - Materials],EA_06[Element measure]),"") -> 0.7241600405 | H7: 0 | I7: =IFERROR(SLOPE(EA_06[Capital - Transport],EA_06[Element measure]),"") -> 0.169925366 | J7: 0 | K7: =IFERROR(SLOPE(EA_06[Capital - Installation],EA_06[Element measure]),"") -> 0.6310030477 | L7: 0 | M7: =IFERROR(SLOPE(EA_06[Operational - Use],EA_06[Element measure]),"") -> 0.6151685446 | N7: 0 | O7: =IFERROR(SLOPE(EA_06[Operational - Maintenance],EA_06[Element measure]),"") -> 17.76282633 | P7: 0 | Q7: =IFERROR(SLOPE(EA_06[Operational -Repair],EA_06[Element measure]),"") -> 0 | R7: 0 | S7: =IFERROR(SLOPE(EA_06[Operational - Energy],EA_06[Element measure]),"") -> 0 | T7: 0 | U7: =IFERROR(SLOPE(EA_06[Replacement - Materials],EA_06[Element measure]),"") -> 0.08277017275 | V7: 0 | W7: =IFERROR(SLOPE(EA_06[Replacement - Transport],EA_06[Element measure]),"") -> 0.01405263983 | X7: 0 | Y7: =IFERROR(SLOPE(EA_06[Replacement - Installation],EA_06[Element measure]),"") -> 0.05799838792 | Z7: 0 | AA7: =IFERROR(SLOPE(EA_06[Refurbishment],EA_06[Element measure]),"") -> 0.0638319572 | AB7: 0 | AC7: =IFERROR(SLOPE(EA_06[Demolition],EA_06[Element measure]),"") -> 0.02798403016 | AD7: 0 | AE7: =IFERROR(SLOPE(EA_06[Residual],EA_06[Element measure]),"") -> -0.2095626007 | AF7: 0 | AG7: =IFERROR(SLOPE(EA_06[Whole Life Carbon],EA_06[Element measure]),"") -> 19.96814195
A8: =IFERROR(IF(VLOOKUP(C8,'Model Data'!A:A,1,FALSE)=C8,1,0),0) -> 1 | B8: EA_07 | C8: CulvEA07 | D8: Culvert | E8: m3 | F8: 0 | G8: =IFERROR(SLOPE(EA_07[Capital - Materials],EA_07[Element measure]),"") -> 0.07426344781 | H8: 0 | I8: =IFERROR(SLOPE(EA_07[Capital - Transport],EA_07[Element measure]),"") -> 0.02013197845 | J8: 0 | K8: =IFERROR(SLOPE(EA_07[Capital - Installation],EA_07[Element measure]),"") -> 0.04574027437 | L8: 0 | M8: =IFERROR(SLOPE(EA_07[Operational - Use],EA_07[Element measure]),"") -> 0 | N8: 0 | O8: =IFERROR(SLOPE(EA_07[Operational - Maintenance],EA_07[Element measure]),"") -> 2.528905658 | P8: 0 | Q8: =IFERROR(SLOPE(EA_07[Operational -Repair],EA_07[Element measure]),"") -> 0.08157610488 | R8: 0 | S8: =IFERROR(SLOPE(EA_07[Operational - Energy],EA_07[Element measure]),"") -> 0 | T8: 0 | U8: =IFERROR(SLOPE(EA_07[Replacement - Materials],EA_07[Element measure]),"") -> 0 | V8: 0 | W8: =IFERROR(SLOPE(EA_07[Replacement - Transport],EA_07[Element measure]),"") -> 0 | X8: 0 | Y8: =IFERROR(SLOPE(EA_07[Replacement - Installation],EA_07[Element measure]),"") -> 0 | Z8: 0 | AA8: =IFERROR(SLOPE(EA_07[Refurbishment],EA_07[Element measure]),"") -> 0 | AB8: 0 | AC8: =IFERROR(SLOPE(EA_07[Demolition],EA_07[Element measure]),"") -> 0 | AD8: 0 | AE8: =IFERROR(SLOPE(EA_07[Residual],EA_07[Element measure]),"") -> 0 | AF8: 0 | AG8: =IFERROR(SLOPE(EA_07[Whole Life Carbon],EA_07[Element measure]),"") -> 2.750617463
A9: =IFERROR(IF(VLOOKUP(C9,'Model Data'!A:A,1,FALSE)=C9,1,0),0) -> 1 | B9: EA_10 | C9: CulvEA10 | D9: Culvert Inlet/outlet Works | E9: m2 | F9: 0 | G9: =IFERROR(SLOPE(EA_010[Capital - Materials],EA_010[Element measure]),"") -> 8.616583108 | H9: 0 | I9: =IFERROR(SLOPE(EA_010[Capital - Transport],EA_010[Element measure]),"") -> 4.516813708 | J9: 0 | K9: =IFERROR(SLOPE(EA_010[Capital - Installation],EA_010[Element measure]),"") -> 8.866071318 | L9: 0 | M9: =IFERROR(SLOPE(EA_010[Operational - Use],EA_010[Element measure]),"") -> 0 | N9: 0 | O9: =IFERROR(SLOPE(EA_010[Operational - Maintenance],EA_010[Element measure]),"") -> 82.65695509 | P9: 0 | Q9: =IFERROR(SLOPE(EA_010[Operational -Repair],EA_010[Element measure]),"") -> 0 | R9: 0 | S9: =IFERROR(SLOPE(EA_010[Operational - Energy],EA_010[Element measure]),"") -> 0 | T9: 0 | U9: =IFERROR(SLOPE(EA_010[Replacement - Materials],EA_010[Element measure]),"") -> 0.9336566524 | V9: 0 | W9: =IFERROR(SLOPE(EA_010[Replacement - Transport],EA_010[Element measure]),"") -> 0.4894229085 | X9: 0 | Y9: =IFERROR(SLOPE(EA_010[Replacement - Installation],EA_010[Element measure]),"") -> 0.9606901439 | Z9: 0 | AA9: =IFERROR(SLOPE(EA_010[Refurbishment],EA_010[Element measure]),"") -> 0.3734037705 | AB9: 0 | AC9: =IFERROR(SLOPE(EA_010[Demolition],EA_010[Element measure]),"") -> 0.3411940828 | AD9: 0 | AE9: =IFERROR(SLOPE(EA_010[Residual],EA_010[Element measure]),"") -> -3.103661806 | AF9: 0 | AG9: =IFERROR(SLOPE(EA_010[Whole Life Carbon],EA_010[Element measure]),"") -> 104.9923231
A10: =IFERROR(IF(VLOOKUP(C10,'Model Data'!A:A,1,FALSE)=C10,1,0),0) -> 0 | B10: EA_11 | C10: DredEA11 | D10: Dredging Works | E10: m3 | F10: 0 | G10: =IFERROR(SLOPE(EA_011[Capital - Materials],EA_011[Element measure]),"") ->  | H10: 0 | I10: =IFERROR(SLOPE(EA_011[Capital - Transport],EA_011[Element measure]),"") ->  | J10: 0 | K10: =IFERROR(SLOPE(EA_011[Capital - Installation],EA_011[Element measure]),"") ->  | L10: 0 | M10: =IFERROR(SLOPE(EA_011[Operational - Use],EA_011[Element measure]),"") ->  | N10: 0 | O10: =IFERROR(SLOPE(EA_011[Operational - Maintenance],EA_011[Element measure]),"") ->  | P10: 0 | Q10: =IFERROR(SLOPE(EA_011[Operational -Repair],EA_011[Element measure]),"") ->  | R10: 0 | S10: =IFERROR(SLOPE(EA_011[Operational - Energy],EA_011[Element measure]),"") ->  | T10: 0 | U10: =IFERROR(SLOPE(EA_011[Replacement - Materials],EA_011[Element measure]),"") ->  | V10: 0 | W10: =IFERROR(SLOPE(EA_011[Replacement - Transport],EA_011[Element measure]),"") ->  | X10: 0 | Y10: =IFERROR(SLOPE(EA_011[Replacement - Installation],EA_011[Element measure]),"") ->  | Z10: 0 | AA10: =IFERROR(SLOPE(EA_011[Refurbishment],EA_011[Element measure]),"") ->  | AB10: 0 | AC10: =IFERROR(SLOPE(EA_011[Demolition],EA_011[Element measure]),"") ->  | AD10: 0 | AE10: =IFERROR(SLOPE(EA_011[Residual],EA_011[Element measure]),"") ->  | AF10: 0 | AG10: =IFERROR(SLOPE(EA_011[Whole Life Carbon],EA_011[Element measure]),"") -> 
A11: =IFERROR(IF(VLOOKUP(C11,'Model Data'!A:A,1,FALSE)=C11,1,0),0) -> 0 | B11: EA_12 | C11: DuneEA12 | D11: Dune Stabilisation | E11: m3 | F11: 0 | G11: =IFERROR(SLOPE(EA_012[Capital - Materials],EA_012[Element measure]),"") ->  | H11: 0 | I11: =IFERROR(SLOPE(EA_012[Capital - Transport],EA_012[Element measure]),"") ->  | J11: 0 | K11: =IFERROR(SLOPE(EA_012[Capital - Installation],EA_012[Element measure]),"") ->  | L11: 0 | M11: =IFERROR(SLOPE(EA_012[Operational - Use],EA_012[Element measure]),"") ->  | N11: 0 | O11: =IFERROR(SLOPE(EA_012[Operational - Maintenance],EA_012[Element measure]),"") ->  | P11: 0 | Q11: =IFERROR(SLOPE(EA_012[Operational -Repair],EA_012[Element measure]),"") ->  | R11: 0 | S11: =IFERROR(SLOPE(EA_012[Operational - Energy],EA_012[Element measure]),"") ->  | T11: 0 | U11: =IFERROR(SLOPE(EA_012[Replacement - Materials],EA_012[Element measure]),"") ->  | V11: 0 | W11: =IFERROR(SLOPE(EA_012[Replacement - Transport],EA_012[Element measure]),"") ->  | X11: 0 | Y11: =IFERROR(SLOPE(EA_012[Replacement - Installation],EA_012[Element measure]),"") ->  | Z11: 0 | AA11: =IFERROR(SLOPE(EA_012[Refurbishment],EA_012[Element measure]),"") ->  | AB11: 0 | AC11: =IFERROR(SLOPE(EA_012[Demolition],EA_012[Element measure]),"") ->  | AD11: 0 | AE11: =IFERROR(SLOPE(EA_012[Residual],EA_012[Element measure]),"") ->  | AF11: 0 | AG11: =IFERROR(SLOPE(EA_012[Whole Life Carbon],EA_012[Element measure]),"") -> 
A12: =IFERROR(IF(VLOOKUP(C12,'Model Data'!A:A,1,FALSE)=C12,1,0),0) -> 0 | B12: EA_13 | C12: ElecEA13 | D12: Electricity Supply | E12: kWh | F12: 0 | G12: =IFERROR(SLOPE(EA_013[Capital - Materials],EA_013[Element measure]),"") ->  | H12: 0 | I12: =IFERROR(SLOPE(EA_013[Capital - Transport],EA_013[Element measure]),"") ->  | J12: 0 | K12: =IFERROR(SLOPE(EA_013[Capital - Installation],EA_013[Element measure]),"") ->  | L12: 0 | M12: =IFERROR(SLOPE(EA_013[Operational - Use],EA_013[Element measure]),"") ->  | N12: 0 | O12: =IFERROR(SLOPE(EA_013[Operational - Maintenance],EA_013[Element measure]),"") ->  | P12: 0 | Q12: =IFERROR(SLOPE(EA_013[Operational -Repair],EA_013[Element measure]),"") ->  | R12: 0 | S12: =IFERROR(SLOPE(EA_013[Operational - Energy],EA_013[Element measure]),"") ->  | T12: 0 | U12: =IFERROR(SLOPE(EA_013[Replacement - Materials],EA_013[Element measure]),"") ->  | V12: 0 | W12: =IFERROR(SLOPE(EA_013[Replacement - Transport],EA_013[Element measure]),"") ->  | X12: 0 | Y12: =IFERROR(SLOPE(EA_013[Replacement - Installation],EA_013[Element measure]),"") ->  | Z12: 0 | AA12: =IFERROR(SLOPE(EA_013[Refurbishment],EA_013[Element measure]),"") ->  | AB12: 0 | AC12: =IFERROR(SLOPE(EA_013[Demolition],EA_013[Element measure]),"") ->  | AD12: 0 | AE12: =IFERROR(SLOPE(EA_013[Residual],EA_013[Element measure]),"") ->  | AF12: 0 | AG12: =IFERROR(SLOPE(EA_013[Whole Life Carbon],EA_013[Element measure]),"") -> 
A13: =IFERROR(IF(VLOOKUP(C13,'Model Data'!A:A,1,FALSE)=C13,1,0),0) -> 0 | B13: EA_14 | C13: EmbaEA14 | D13: Embankment - Modify | E13: m3 | F13: 0 | G13: =IFERROR(SLOPE(EA_014[Capital - Materials],EA_014[Element measure]),"") ->  | H13: 0 | I13: =IFERROR(SLOPE(EA_014[Capital - Transport],EA_014[Element measure]),"") ->  | J13: 0 | K13: =IFERROR(SLOPE(EA_014[Capital - Installation],EA_014[Element measure]),"") ->  | L13: 0 | M13: =IFERROR(SLOPE(EA_014[Operational - Use],EA_014[Element measure]),"") ->  | N13: 0 | O13: =IFERROR(SLOPE(EA_014[Operational - Maintenance],EA_014[Element measure]),"") ->  | P13: 0 | Q13: =IFERROR(SLOPE(EA_014[Operational -Repair],EA_014[Element measure]),"") ->  | R13: 0 | S13: =IFERROR(SLOPE(EA_014[Operational - Energy],EA_014[Element measure]),"") ->  | T13: 0 | U13: =IFERROR(SLOPE(EA_014[Replacement - Materials],EA_014[Element measure]),"") ->  | V13: 0 | W13: =IFERROR(SLOPE(EA_014[Replacement - Transport],EA_014[Element measure]),"") ->  | X13: 0 | Y13: =IFERROR(SLOPE(EA_014[Replacement - Installation],EA_014[Element measure]),"") ->  | Z13: 0 | AA13: =IFERROR(SLOPE(EA_014[Refurbishment],EA_014[Element measure]),"") ->  | AB13: 0 | AC13: =IFERROR(SLOPE(EA_014[Demolition],EA_014[Element measure]),"") ->  | AD13: 0 | AE13: =IFERROR(SLOPE(EA_014[Residual],EA_014[Element measure]),"") ->  | AF13: 0 | AG13: =IFERROR(SLOPE(EA_014[Whole Life Carbon],EA_014[Element measure]),"") -> 
A14: =IFERROR(IF(VLOOKUP(C14,'Model Data'!A:A,1,FALSE)=C14,1,0),0) -> 1 | B14: EA_15 | C14: EmbaEA15 | D14: Embankment - New | E14: m3 | F14: 0 | G14: =IFERROR(SLOPE(EA_015[Capital - Materials],EA_015[Element measure]),"") -> 0.000123907112 | H14: 0 | I14: =IFERROR(SLOPE(EA_015[Capital - Transport],EA_015[Element measure]),"") -> 0.0008897372069 | J14: 0 | K14: =IFERROR(SLOPE(EA_015[Capital - Installation],EA_015[Element measure]),"") -> 0.003375234711 | L14: 0 | M14: =IFERROR(SLOPE(EA_015[Operational - Use],EA_015[Element measure]),"") -> 0 | N14: 0 | O14: =IFERROR(SLOPE(EA_015[Operational - Maintenance],EA_015[Element measure]),"") -> 0.06383544981 | P14: 0 | Q14: =IFERROR(SLOPE(EA_015[Operational -Repair],EA_015[Element measure]),"") -> 0 | R14: 0 | S14: =IFERROR(SLOPE(EA_015[Operational - Energy],EA_015[Element measure]),"") -> 0 | T14: 0 | U14: =IFERROR(SLOPE(EA_015[Replacement - Materials],EA_015[Element measure]),"") -> 0 | V14: 0 | W14: =IFERROR(SLOPE(EA_015[Replacement - Transport],EA_015[Element measure]),"") -> 0 | X14: 0 | Y14: =IFERROR(SLOPE(EA_015[Replacement - Installation],EA_015[Element measure]),"") -> 0 | Z14: 0 | AA14: =IFERROR(SLOPE(EA_015[Refurbishment],EA_015[Element measure]),"") -> 0 | AB14: 0 | AC14: =IFERROR(SLOPE(EA_015[Demolition],EA_015[Element measure]),"") -> 0 | AD14: 0 | AE14: =IFERROR(SLOPE(EA_015[Residual],EA_015[Element measure]),"") -> 0 | AF14: 0 | AG14: =IFERROR(SLOPE(EA_015[Whole Life Carbon],EA_015[Element measure]),"") -> 0.06822432884
A15: =IFERROR(IF(VLOOKUP(C15,'Model Data'!A:A,1,FALSE)=C15,1,0),0) -> 0 | B15: EA_16 | C15: EnhaEA16 | D15: Enhanced Siltation | E15: m3 | F15: 0 | G15: =IFERROR(SLOPE(EA_016[Capital - Materials],EA_016[Element measure]),"") ->  | H15: 0 | I15: =IFERROR(SLOPE(EA_016[Capital - Transport],EA_016[Element measure]),"") ->  | J15: 0 | K15: =IFERROR(SLOPE(EA_016[Capital - Installation],EA_016[Element measure]),"") ->  | L15: 0 | M15: =IFERROR(SLOPE(EA_016[Operational - Use],EA_016[Element measure]),"") ->  | N15: 0 | O15: =IFERROR(SLOPE(EA_016[Operational - Maintenance],EA_016[Element measure]),"") ->  | P15: 0 | Q15: =IFERROR(SLOPE(EA_016[Operational -Repair],EA_016[Element measure]),"") ->  | R15: 0 | S15: =IFERROR(SLOPE(EA_016[Operational - Energy],EA_016[Element measure]),"") ->  | T15: 0 | U15: =IFERROR(SLOPE(EA_016[Replacement - Materials],EA_016[Element measure]),"") ->  | V15: 0 | W15: =IFERROR(SLOPE(EA_016[Replacement - Transport],EA_016[Element measure]),"") ->  | X15: 0 | Y15: =IFERROR(SLOPE(EA_016[Replacement - Installation],EA_016[Element measure]),"") ->  | Z15: 0 | AA15: =IFERROR(SLOPE(EA_016[Refurbishment],EA_016[Element measure]),"") ->  | AB15: 0 | AC15: =IFERROR(SLOPE(EA_016[Demolition],EA_016[Element measure]),"") ->  | AD15: 0 | AE15: =IFERROR(SLOPE(EA_016[Residual],EA_016[Element measure]),"") ->  | AF15: 0 | AG15: =IFERROR(SLOPE(EA_016[Whole Life Carbon],EA_016[Element measure]),"") -> 
A16: =IFERROR(IF(VLOOKUP(C16,'Model Data'!A:A,1,FALSE)=C16,1,0),0) -> 0 | B16: EA_17 | C16: ErosEA17 | D16: Erosion Protection | E16: m2 | F16: 0 | G16: =IFERROR(SLOPE(EA_017[Capital - Materials],EA_017[Element measure]),"") ->  | H16: 0 | I16: =IFERROR(SLOPE(EA_017[Capital - Transport],EA_017[Element measure]),"") ->  | J16: 0 | K16: =IFERROR(SLOPE(EA_017[Capital - Installation],EA_017[Element measure]),"") ->  | L16: 0 | M16: =IFERROR(SLOPE(EA_017[Operational - Use],EA_017[Element measure]),"") ->  | N16: 0 | O16: =IFERROR(SLOPE(EA_017[Operational - Maintenance],EA_017[Element measure]),"") ->  | P16: 0 | Q16: =IFERROR(SLOPE(EA_017[Operational -Repair],EA_017[Element measure]),"") ->  | R16: 0 | S16: =IFERROR(SLOPE(EA_017[Operational - Energy],EA_017[Element measure]),"") ->  | T16: 0 | U16: =IFERROR(SLOPE(EA_017[Replacement - Materials],EA_017[Element measure]),"") ->  | V16: 0 | W16: =IFERROR(SLOPE(EA_017[Replacement - Transport],EA_017[Element measure]),"") ->  | X16: 0 | Y16: =IFERROR(SLOPE(EA_017[Replacement - Installation],EA_017[Element measure]),"") ->  | Z16: 0 | AA16: =IFERROR(SLOPE(EA_017[Refurbishment],EA_017[Element measure]),"") ->  | AB16: 0 | AC16: =IFERROR(SLOPE(EA_017[Demolition],EA_017[Element measure]),"") ->  | AD16: 0 | AE16: =IFERROR(SLOPE(EA_017[Residual],EA_017[Element measure]),"") ->  | AF16: 0 | AG16: =IFERROR(SLOPE(EA_017[Whole Life Carbon],EA_017[Element measure]),"") -> 
A17: =IFERROR(IF(VLOOKUP(C17,'Model Data'!A:A,1,FALSE)=C17,1,0),0) -> 1 | B17: EA_18 | C17: ErosEA18 | D17: Erosion Protection - Geotextile | E17: m2 | F17: 0 | G17: =IFERROR(SLOPE(EA_018[Capital - Materials],EA_018[Element measure]),"") -> 0.003797230651 | H17: 0 | I17: =IFERROR(SLOPE(EA_018[Capital - Transport],EA_018[Element measure]),"") -> 0.003686124082 | J17: 0 | K17: =IFERROR(SLOPE(EA_018[Capital - Installation],EA_018[Element measure]),"") -> 0.007236390604 | L17: 0 | M17: =IFERROR(SLOPE(EA_018[Operational - Use],EA_018[Element measure]),"") -> 0 | N17: 0 | O17: =IFERROR(SLOPE(EA_018[Operational - Maintenance],EA_018[Element measure]),"") -> 0.05642860736 | P17: 0 | Q17: =IFERROR(SLOPE(EA_018[Operational -Repair],EA_018[Element measure]),"") -> 0.006272311966 | R17: 0 | S17: =IFERROR(SLOPE(EA_018[Operational - Energy],EA_018[Element measure]),"") -> 0 | T17: 0 | U17: =IFERROR(SLOPE(EA_018[Replacement - Materials],EA_018[Element measure]),"") -> 0.0004543389796 | V17: 0 | W17: =IFERROR(SLOPE(EA_018[Replacement - Transport],EA_018[Element measure]),"") -> 0.0006003819337 | X17: 0 | Y17: =IFERROR(SLOPE(EA_018[Replacement - Installation],EA_018[Element measure]),"") -> 0.001137342986 | Z17: 0 | AA17: =IFERROR(SLOPE(EA_018[Refurbishment],EA_018[Element measure]),"") -> 0.0002118050975 | AB17: 0 | AC17: =IFERROR(SLOPE(EA_018[Demolition],EA_018[Element measure]),"") -> 0.0004216141911 | AD17: 0 | AE17: =IFERROR(SLOPE(EA_018[Residual],EA_018[Element measure]),"") -> -0.002076646177 | AF17: 0 | AG17: =IFERROR(SLOPE(EA_018[Whole Life Carbon],EA_018[Element measure]),"") -> 0.07859111587
A18: =IFERROR(IF(VLOOKUP(C18,'Model Data'!A:A,1,FALSE)=C18,1,0),0) -> 1 | B18: EA_19 | C18: ErosEA19 | D18: Erosion Protection - Grasscrete | E18: m2 | F18: 0 | G18: =IFERROR(SLOPE(EA_019[Capital - Materials],EA_019[Element measure]),"") -> 0.01703666807 | H18: 0 | I18: =IFERROR(SLOPE(EA_019[Capital - Transport],EA_019[Element measure]),"") -> 0.003679658252 | J18: 0 | K18: =IFERROR(SLOPE(EA_019[Capital - Installation],EA_019[Element measure]),"") -> 0.008001181813 | L18: 0 | M18: =IFERROR(SLOPE(EA_019[Operational - Use],EA_019[Element measure]),"") -> 0 | N18: 0 | O18: =IFERROR(SLOPE(EA_019[Operational - Maintenance],EA_019[Element measure]),"") -> 0.2297484257 | P18: 0 | Q18: =IFERROR(SLOPE(EA_019[Operational -Repair],EA_019[Element measure]),"") -> 0.001863243777 | R18: 0 | S18: =IFERROR(SLOPE(EA_019[Operational - Energy],EA_019[Element measure]),"") -> 0 | T18: 0 | U18: =IFERROR(SLOPE(EA_019[Replacement - Materials],EA_019[Element measure]),"") -> 0.001846021594 | V18: 0 | W18: =IFERROR(SLOPE(EA_019[Replacement - Transport],EA_019[Element measure]),"") -> 0.0003987122694 | X18: 0 | Y18: =IFERROR(SLOPE(EA_019[Replacement - Installation],EA_019[Element measure]),"") -> 0.0008669743601 | Z18: 0 | AA18: =IFERROR(SLOPE(EA_019[Refurbishment],EA_019[Element measure]),"") -> 0.001218577848 | AB18: 0 | AC18: =IFERROR(SLOPE(EA_019[Demolition],EA_019[Element measure]),"") -> 0.0005382629672 | AD18: 0 | AE18: =IFERROR(SLOPE(EA_019[Residual],EA_019[Element measure]),"") -> -0.004216075144 | AF18: 0 | AG18: =IFERROR(SLOPE(EA_019[Whole Life Carbon],EA_019[Element measure]),"") -> 0.2615199144
A19: =IFERROR(IF(VLOOKUP(C19,'Model Data'!A:A,1,FALSE)=C19,1,0),0) -> 1 | B19: EA_20 | C19: FielEA20 | D19: Field Drainage | E19: m3 | F19: 0 | G19: =IFERROR(SLOPE(EA_020[Capital - Materials],EA_020[Element measure]),"") -> 0.7297000049 | H19: 0 | I19: =IFERROR(SLOPE(EA_020[Capital - Transport],EA_020[Element measure]),"") -> 0.290705718 | J19: 0 | K19: =IFERROR(SLOPE(EA_020[Capital - Installation],EA_020[Element measure]),"") -> 0.9303949934 | L19: 0 | M19: =IFERROR(SLOPE(EA_020[Operational - Use],EA_020[Element measure]),"") -> 0 | N19: 0 | O19: =IFERROR(SLOPE(EA_020[Operational - Maintenance],EA_020[Element measure]),"") -> 7.409917643 | P19: 0 | Q19: =IFERROR(SLOPE(EA_020[Operational -Repair],EA_020[Element measure]),"") -> 0 | R19: 0 | S19: =IFERROR(SLOPE(EA_020[Operational - Energy],EA_020[Element measure]),"") -> 0 | T19: 0 | U19: =IFERROR(SLOPE(EA_020[Replacement - Materials],EA_020[Element measure]),"") -> 0.07906721902 | V19: 0 | W19: =IFERROR(SLOPE(EA_020[Replacement - Transport],EA_020[Element measure]),"") -> 0.03149964715 | X19: 0 | Y19: =IFERROR(SLOPE(EA_020[Replacement - Installation],EA_020[Element measure]),"") -> 0.1008136826 | Z19: 0 | AA19: =IFERROR(SLOPE(EA_020[Refurbishment],EA_020[Element measure]),"") -> 0.03290780263 | AB19: 0 | AC19: =IFERROR(SLOPE(EA_020[Demolition],EA_020[Element measure]),"") -> 0.1588196784 | AD19: 0 | AE19: =IFERROR(SLOPE(EA_020[Residual],EA_020[Element measure]),"") -> -0.2752169115 | AF19: 0 | AG19: =IFERROR(SLOPE(EA_020[Whole Life Carbon],EA_020[Element measure]),"") -> 9.647429156
A20: =IFERROR(IF(VLOOKUP(C20,'Model Data'!A:A,1,FALSE)=C20,1,0),0) -> 1 | B20: EA_21 | C20: FishEA21 | D20: Fish Pass - Larinier - Bypass Weir | E20: m3 | F20: 0 | G20: =IFERROR(SLOPE(EA_021[Capital - Materials],EA_021[Element measure]),"") -> 0.4496432881 | H20: 0 | I20: =IFERROR(SLOPE(EA_021[Capital - Transport],EA_021[Element measure]),"") -> 0.2556353255 | J20: 0 | K20: =IFERROR(SLOPE(EA_021[Capital - Installation],EA_021[Element measure]),"") -> 0.4088821378 | L20: 0 | M20: =IFERROR(SLOPE(EA_021[Operational - Use],EA_021[Element measure]),"") -> 0 | N20: 0 | O20: =IFERROR(SLOPE(EA_021[Operational - Maintenance],EA_021[Element measure]),"") -> 4.429377786 | P20: 0 | Q20: =IFERROR(SLOPE(EA_021[Operational -Repair],EA_021[Element measure]),"") -> 0 | R20: 0 | S20: =IFERROR(SLOPE(EA_021[Operational - Energy],EA_021[Element measure]),"") -> 0 | T20: 0 | U20: =IFERROR(SLOPE(EA_021[Replacement - Materials],EA_021[Element measure]),"") -> 0.04872145279 | V20: 0 | W20: =IFERROR(SLOPE(EA_021[Replacement - Transport],EA_021[Element measure]),"") -> 0.02769956713 | X20: 0 | Y20: =IFERROR(SLOPE(EA_021[Replacement - Installation],EA_021[Element measure]),"") -> 0.04430474623 | Z20: 0 | AA20: =IFERROR(SLOPE(EA_021[Refurbishment],EA_021[Element measure]),"") -> 0.04727748678 | AB20: 0 | AC20: =IFERROR(SLOPE(EA_021[Demolition],EA_021[Element measure]),"") -> 0.02274674452 | AD20: 0 | AE20: =IFERROR(SLOPE(EA_021[Residual],EA_021[Element measure]),"") -> -0.1571846259 | AF20: 0 | AG20: =IFERROR(SLOPE(EA_021[Whole Life Carbon],EA_021[Element measure]),"") -> 5.599850653
A21: =IFERROR(IF(VLOOKUP(C21,'Model Data'!A:A,1,FALSE)=C21,1,0),0) -> 1 | B21: EA_22 | C21: FishEA22 | D21: Fish Pass - Larinier - Through Weir | E21: m3 | F21: 0 | G21: =IFERROR(SLOPE(EA_022[Capital - Materials],EA_022[Element measure]),"") -> 0.3655816257 | H21: 0 | I21: =IFERROR(SLOPE(EA_022[Capital - Transport],EA_022[Element measure]),"") -> 0.3554998316 | J21: 0 | K21: =IFERROR(SLOPE(EA_022[Capital - Installation],EA_022[Element measure]),"") -> 1.030184593 | L21: 0 | M21: =IFERROR(SLOPE(EA_022[Operational - Use],EA_022[Element measure]),"") -> 0 | N21: 0 | O21: =IFERROR(SLOPE(EA_022[Operational - Maintenance],EA_022[Element measure]),"") -> 7.256769128 | P21: 0 | Q21: =IFERROR(SLOPE(EA_022[Operational -Repair],EA_022[Element measure]),"") -> 0 | R21: 0 | S21: =IFERROR(SLOPE(EA_022[Operational - Energy],EA_022[Element measure]),"") -> 0 | T21: 0 | U21: =IFERROR(SLOPE(EA_022[Replacement - Materials],EA_022[Element measure]),"") -> 0.03961288512 | V21: 0 | W21: =IFERROR(SLOPE(EA_022[Replacement - Transport],EA_022[Element measure]),"") -> 0.03852046438 | X21: 0 | Y21: =IFERROR(SLOPE(EA_022[Replacement - Installation],EA_022[Element measure]),"") -> 0.1116264633 | Z21: 0 | AA21: =IFERROR(SLOPE(EA_022[Refurbishment],EA_022[Element measure]),"") -> 0.07431194952 | AB21: 0 | AC21: =IFERROR(SLOPE(EA_022[Demolition],EA_022[Element measure]),"") -> 0.05449974082 | AD21: 0 | AE21: =IFERROR(SLOPE(EA_022[Residual],EA_022[Element measure]),"") -> -0.2470667708 | AF21: 0 | AG21: =IFERROR(SLOPE(EA_022[Whole Life Carbon],EA_022[Element measure]),"") -> 9.134039652
A22: =IFERROR(IF(VLOOKUP(C22,'Model Data'!A:A,1,FALSE)=C22,1,0),0) -> 0 | B22: EA_23 | C22: FishEA23 | D22: Fish Pass - Pool & Traverse | E22: m3 | F22: 0 | G22: =IFERROR(SLOPE(EA_023[Capital - Materials],EA_023[Element measure]),"") ->  | H22: 0 | I22: =IFERROR(SLOPE(EA_023[Capital - Transport],EA_023[Element measure]),"") ->  | J22: 0 | K22: =IFERROR(SLOPE(EA_023[Capital - Installation],EA_023[Element measure]),"") ->  | L22: 0 | M22: =IFERROR(SLOPE(EA_023[Operational - Use],EA_023[Element measure]),"") ->  | N22: 0 | O22: =IFERROR(SLOPE(EA_023[Operational - Maintenance],EA_023[Element measure]),"") ->  | P22: 0 | Q22: =IFERROR(SLOPE(EA_023[Operational -Repair],EA_023[Element measure]),"") ->  | R22: 0 | S22: =IFERROR(SLOPE(EA_023[Operational - Energy],EA_023[Element measure]),"") ->  | T22: 0 | U22: =IFERROR(SLOPE(EA_023[Replacement - Materials],EA_023[Element measure]),"") ->  | V22: 0 | W22: =IFERROR(SLOPE(EA_023[Replacement - Transport],EA_023[Element measure]),"") ->  | X22: 0 | Y22: =IFERROR(SLOPE(EA_023[Replacement - Installation],EA_023[Element measure]),"") ->  | Z22: 0 | AA22: =IFERROR(SLOPE(EA_023[Refurbishment],EA_023[Element measure]),"") ->  | AB22: 0 | AC22: =IFERROR(SLOPE(EA_023[Demolition],EA_023[Element measure]),"") ->  | AD22: 0 | AE22: =IFERROR(SLOPE(EA_023[Residual],EA_023[Element measure]),"") ->  | AF22: 0 | AG22: =IFERROR(SLOPE(EA_023[Whole Life Carbon],EA_023[Element measure]),"") -> 
A23: =IFERROR(IF(VLOOKUP(C23,'Model Data'!A:A,1,FALSE)=C23,1,0),0) -> 1 | B23: EA_24 | C23: FlapEA24 | D23: Flap Valve | E23: mm dia | F23: 0 | G23: =IFERROR(SLOPE(EA_024[Capital - Materials],EA_024[Element measure]),"") -> 0.0001084637017 | H23: 0 | I23: =IFERROR(SLOPE(EA_024[Capital - Transport],EA_024[Element measure]),"") -> 0.0004942841072 | J23: 0 | K23: =IFERROR(SLOPE(EA_024[Capital - Installation],EA_024[Element measure]),"") -> 0.001419689824 | L23: 0 | M23: =IFERROR(SLOPE(EA_024[Operational - Use],EA_024[Element measure]),"") -> 0 | N23: 0 | O23: =IFERROR(SLOPE(EA_024[Operational - Maintenance],EA_024[Element measure]),"") -> 0.05483048309 | P23: 0 | Q23: =IFERROR(SLOPE(EA_024[Operational -Repair],EA_024[Element measure]),"") -> 0 | R23: 0 | S23: =IFERROR(SLOPE(EA_024[Operational - Energy],EA_024[Element measure]),"") -> 0 | T23: 0 | U23: =IFERROR(SLOPE(EA_024[Replacement - Materials],EA_024[Element measure]),"") -> 1.840987925e-05 | V23: 0 | W23: =IFERROR(SLOPE(EA_024[Replacement - Transport],EA_024[Element measure]),"") -> 8.389636887e-05 | X23: 0 | Y23: =IFERROR(SLOPE(EA_024[Replacement - Installation],EA_024[Element measure]),"") -> 0.0002409683408 | Z23: 0 | AA23: =IFERROR(SLOPE(EA_024[Refurbishment],EA_024[Element measure]),"") -> 0.0002013984045 | AB23: 0 | AC23: =IFERROR(SLOPE(EA_024[Demolition],EA_024[Element measure]),"") -> 0.0001345356296 | AD23: 0 | AE23: =IFERROR(SLOPE(EA_024[Residual],EA_024[Element measure]),"") -> -0.000184079595 | AF23: 0 | AG23: =IFERROR(SLOPE(EA_024[Whole Life Carbon],EA_024[Element measure]),"") -> 0.05748258538
A24: =IFERROR(IF(VLOOKUP(C24,'Model Data'!A:A,1,FALSE)=C24,1,0),0) -> 0 | B24: EA_25 | C24: FlooEA25 | D24: Flood Storage Reservoir | E24: m3 | F24: 0 | G24: =IFERROR(SLOPE(EA_025[Capital - Materials],EA_025[Element measure]),"") ->  | H24: 0 | I24: =IFERROR(SLOPE(EA_025[Capital - Transport],EA_025[Element measure]),"") ->  | J24: 0 | K24: =IFERROR(SLOPE(EA_025[Capital - Installation],EA_025[Element measure]),"") ->  | L24: 0 | M24: =IFERROR(SLOPE(EA_025[Operational - Use],EA_025[Element measure]),"") ->  | N24: 0 | O24: =IFERROR(SLOPE(EA_025[Operational - Maintenance],EA_025[Element measure]),"") ->  | P24: 0 | Q24: =IFERROR(SLOPE(EA_025[Operational -Repair],EA_025[Element measure]),"") ->  | R24: 0 | S24: =IFERROR(SLOPE(EA_025[Operational - Energy],EA_025[Element measure]),"") ->  | T24: 0 | U24: =IFERROR(SLOPE(EA_025[Replacement - Materials],EA_025[Element measure]),"") ->  | V24: 0 | W24: =IFERROR(SLOPE(EA_025[Replacement - Transport],EA_025[Element measure]),"") ->  | X24: 0 | Y24: =IFERROR(SLOPE(EA_025[Replacement - Installation],EA_025[Element measure]),"") ->  | Z24: 0 | AA24: =IFERROR(SLOPE(EA_025[Refurbishment],EA_025[Element measure]),"") ->  | AB24: 0 | AC24: =IFERROR(SLOPE(EA_025[Demolition],EA_025[Element measure]),"") ->  | AD24: 0 | AE24: =IFERROR(SLOPE(EA_025[Residual],EA_025[Element measure]),"") ->  | AF24: 0 | AG24: =IFERROR(SLOPE(EA_025[Whole Life Carbon],EA_025[Element measure]),"") -> 
A25: =IFERROR(IF(VLOOKUP(C25,'Model Data'!A:A,1,FALSE)=C25,1,0),0) -> 0 | B25: EA_26 | C25: FlowEA26 | D25: Flow Measurement - Control Channel Section | E25: m3 | F25: 0 | G25: =IFERROR(SLOPE(EA_026[Capital - Materials],EA_026[Element measure]),"") ->  | H25: 0 | I25: =IFERROR(SLOPE(EA_026[Capital - Transport],EA_026[Element measure]),"") ->  | J25: 0 | K25: =IFERROR(SLOPE(EA_026[Capital - Installation],EA_026[Element measure]),"") ->  | L25: 0 | M25: =IFERROR(SLOPE(EA_026[Operational - Use],EA_026[Element measure]),"") ->  | N25: 0 | O25: =IFERROR(SLOPE(EA_026[Operational - Maintenance],EA_026[Element measure]),"") ->  | P25: 0 | Q25: =IFERROR(SLOPE(EA_026[Operational -Repair],EA_026[Element measure]),"") ->  | R25: 0 | S25: =IFERROR(SLOPE(EA_026[Operational - Energy],EA_026[Element measure]),"") ->  | T25: 0 | U25: =IFERROR(SLOPE(EA_026[Replacement - Materials],EA_026[Element measure]),"") ->  | V25: 0 | W25: =IFERROR(SLOPE(EA_026[Replacement - Transport],EA_026[Element measure]),"") ->  | X25: 0 | Y25: =IFERROR(SLOPE(EA_026[Replacement - Installation],EA_026[Element measure]),"") ->  | Z25: 0 | AA25: =IFERROR(SLOPE(EA_026[Refurbishment],EA_026[Element measure]),"") ->  | AB25: 0 | AC25: =IFERROR(SLOPE(EA_026[Demolition],EA_026[Element measure]),"") ->  | AD25: 0 | AE25: =IFERROR(SLOPE(EA_026[Residual],EA_026[Element measure]),"") ->  | AF25: 0 | AG25: =IFERROR(SLOPE(EA_026[Whole Life Carbon],EA_026[Element measure]),"") -> 
A26: =IFERROR(IF(VLOOKUP(C26,'Model Data'!A:A,1,FALSE)=C26,1,0),0) -> 0 | B26: EA_27 | C26: FlowEA27 | D26: Flow Measurement - Weir | E26: m3 | F26: 0 | G26: =IFERROR(SLOPE(EA_027[Capital - Materials],EA_027[Element measure]),"") ->  | H26: 0 | I26: =IFERROR(SLOPE(EA_027[Capital - Transport],EA_027[Element measure]),"") ->  | J26: 0 | K26: =IFERROR(SLOPE(EA_027[Capital - Installation],EA_027[Element measure]),"") ->  | L26: 0 | M26: =IFERROR(SLOPE(EA_027[Operational - Use],EA_027[Element measure]),"") ->  | N26: 0 | O26: =IFERROR(SLOPE(EA_027[Operational - Maintenance],EA_027[Element measure]),"") ->  | P26: 0 | Q26: =IFERROR(SLOPE(EA_027[Operational -Repair],EA_027[Element measure]),"") ->  | R26: 0 | S26: =IFERROR(SLOPE(EA_027[Operational - Energy],EA_027[Element measure]),"") ->  | T26: 0 | U26: =IFERROR(SLOPE(EA_027[Replacement - Materials],EA_027[Element measure]),"") ->  | V26: 0 | W26: =IFERROR(SLOPE(EA_027[Replacement - Transport],EA_027[Element measure]),"") ->  | X26: 0 | Y26: =IFERROR(SLOPE(EA_027[Replacement - Installation],EA_027[Element measure]),"") ->  | Z26: 0 | AA26: =IFERROR(SLOPE(EA_027[Refurbishment],EA_027[Element measure]),"") ->  | AB26: 0 | AC26: =IFERROR(SLOPE(EA_027[Demolition],EA_027[Element measure]),"") ->  | AD26: 0 | AE26: =IFERROR(SLOPE(EA_027[Residual],EA_027[Element measure]),"") ->  | AF26: 0 | AG26: =IFERROR(SLOPE(EA_027[Whole Life Carbon],EA_027[Element measure]),"") -> 
A27: =IFERROR(IF(VLOOKUP(C27,'Model Data'!A:A,1,FALSE)=C27,1,0),0) -> 0 | B27: EA_29 | C27: GrouEA29 | D27: Groundwater Monitoring Boreholes | E27: m3 | F27: 0 | G27: =IFERROR(SLOPE(EA_029[Capital - Materials],EA_029[Element measure]),"") ->  | H27: 0 | I27: =IFERROR(SLOPE(EA_029[Capital - Transport],EA_029[Element measure]),"") ->  | J27: 0 | K27: =IFERROR(SLOPE(EA_029[Capital - Installation],EA_029[Element measure]),"") ->  | L27: 0 | M27: =IFERROR(SLOPE(EA_029[Operational - Use],EA_029[Element measure]),"") ->  | N27: 0 | O27: =IFERROR(SLOPE(EA_029[Operational - Maintenance],EA_029[Element measure]),"") ->  | P27: 0 | Q27: =IFERROR(SLOPE(EA_029[Operational -Repair],EA_029[Element measure]),"") ->  | R27: 0 | S27: =IFERROR(SLOPE(EA_029[Operational - Energy],EA_029[Element measure]),"") ->  | T27: 0 | U27: =IFERROR(SLOPE(EA_029[Replacement - Materials],EA_029[Element measure]),"") ->  | V27: 0 | W27: =IFERROR(SLOPE(EA_029[Replacement - Transport],EA_029[Element measure]),"") ->  | X27: 0 | Y27: =IFERROR(SLOPE(EA_029[Replacement - Installation],EA_029[Element measure]),"") ->  | Z27: 0 | AA27: =IFERROR(SLOPE(EA_029[Refurbishment],EA_029[Element measure]),"") ->  | AB27: 0 | AC27: =IFERROR(SLOPE(EA_029[Demolition],EA_029[Element measure]),"") ->  | AD27: 0 | AE27: =IFERROR(SLOPE(EA_029[Residual],EA_029[Element measure]),"") ->  | AF27: 0 | AG27: =IFERROR(SLOPE(EA_029[Whole Life Carbon],EA_029[Element measure]),"") -> 
A28: =IFERROR(IF(VLOOKUP(C28,'Model Data'!A:A,1,FALSE)=C28,1,0),0) -> 0 | B28: EA_30 | C28: HabiEA30 | D28: Habitat Creation | E28: m2 | F28: 0 | G28: =IFERROR(SLOPE(EA_030[Capital - Materials],EA_030[Element measure]),"") ->  | H28: 0 | I28: =IFERROR(SLOPE(EA_030[Capital - Transport],EA_030[Element measure]),"") ->  | J28: 0 | K28: =IFERROR(SLOPE(EA_030[Capital - Installation],EA_030[Element measure]),"") ->  | L28: 0 | M28: =IFERROR(SLOPE(EA_030[Operational - Use],EA_030[Element measure]),"") ->  | N28: 0 | O28: =IFERROR(SLOPE(EA_030[Operational - Maintenance],EA_030[Element measure]),"") ->  | P28: 0 | Q28: =IFERROR(SLOPE(EA_030[Operational -Repair],EA_030[Element measure]),"") ->  | R28: 0 | S28: =IFERROR(SLOPE(EA_030[Operational - Energy],EA_030[Element measure]),"") ->  | T28: 0 | U28: =IFERROR(SLOPE(EA_030[Replacement - Materials],EA_030[Element measure]),"") ->  | V28: 0 | W28: =IFERROR(SLOPE(EA_030[Replacement - Transport],EA_030[Element measure]),"") ->  | X28: 0 | Y28: =IFERROR(SLOPE(EA_030[Replacement - Installation],EA_030[Element measure]),"") ->  | Z28: 0 | AA28: =IFERROR(SLOPE(EA_030[Refurbishment],EA_030[Element measure]),"") ->  | AB28: 0 | AC28: =IFERROR(SLOPE(EA_030[Demolition],EA_030[Element measure]),"") ->  | AD28: 0 | AE28: =IFERROR(SLOPE(EA_030[Residual],EA_030[Element measure]),"") ->  | AF28: 0 | AG28: =IFERROR(SLOPE(EA_030[Whole Life Carbon],EA_030[Element measure]),"") -> 
A29: =IFERROR(IF(VLOOKUP(C29,'Model Data'!A:A,1,FALSE)=C29,1,0),0) -> 0 | B29: EA_31 | C29: HardEA31 | D29: Hard Landscaping | E29: m2 | F29: 0 | G29: =IFERROR(SLOPE(EA_031[Capital - Materials],EA_031[Element measure]),"") ->  | H29: 0 | I29: =IFERROR(SLOPE(EA_031[Capital - Transport],EA_031[Element measure]),"") ->  | J29: 0 | K29: =IFERROR(SLOPE(EA_031[Capital - Installation],EA_031[Element measure]),"") ->  | L29: 0 | M29: =IFERROR(SLOPE(EA_031[Operational - Use],EA_031[Element measure]),"") ->  | N29: 0 | O29: =IFERROR(SLOPE(EA_031[Operational - Maintenance],EA_031[Element measure]),"") ->  | P29: 0 | Q29: =IFERROR(SLOPE(EA_031[Operational -Repair],EA_031[Element measure]),"") ->  | R29: 0 | S29: =IFERROR(SLOPE(EA_031[Operational - Energy],EA_031[Element measure]),"") ->  | T29: 0 | U29: =IFERROR(SLOPE(EA_031[Replacement - Materials],EA_031[Element measure]),"") ->  | V29: 0 | W29: =IFERROR(SLOPE(EA_031[Replacement - Transport],EA_031[Element measure]),"") ->  | X29: 0 | Y29: =IFERROR(SLOPE(EA_031[Replacement - Installation],EA_031[Element measure]),"") ->  | Z29: 0 | AA29: =IFERROR(SLOPE(EA_031[Refurbishment],EA_031[Element measure]),"") ->  | AB29: 0 | AC29: =IFERROR(SLOPE(EA_031[Demolition],EA_031[Element measure]),"") ->  | AD29: 0 | AE29: =IFERROR(SLOPE(EA_031[Residual],EA_031[Element measure]),"") ->  | AF29: 0 | AG29: =IFERROR(SLOPE(EA_031[Whole Life Carbon],EA_031[Element measure]),"") -> 
A30: =IFERROR(IF(VLOOKUP(C30,'Model Data'!A:A,1,FALSE)=C30,1,0),0) -> 1 | B30: EA_32 | C30: HeadEA32 | D30: Headwall | E30: mm dia | F30: 0 | G30: =IFERROR(SLOPE(EA_032[Capital - Materials],EA_032[Element measure]),"") -> 0.02563540261 | H30: 0 | I30: =IFERROR(SLOPE(EA_032[Capital - Transport],EA_032[Element measure]),"") -> 0.01297536578 | J30: 0 | K30: =IFERROR(SLOPE(EA_032[Capital - Installation],EA_032[Element measure]),"") -> 0.02191255478 | L30: 0 | M30: =IFERROR(SLOPE(EA_032[Operational - Use],EA_032[Element measure]),"") -> 0 | N30: 0 | O30: =IFERROR(SLOPE(EA_032[Operational - Maintenance],EA_032[Element measure]),"") -> 1.607649773 | P30: 0 | Q30: =IFERROR(SLOPE(EA_032[Operational -Repair],EA_032[Element measure]),"") -> 0.03014773786 | R30: 0 | S30: =IFERROR(SLOPE(EA_032[Operational - Energy],EA_032[Element measure]),"") -> 0 | T30: 0 | U30: =IFERROR(SLOPE(EA_032[Replacement - Materials],EA_032[Element measure]),"") -> 0.00277774425 | V30: 0 | W30: =IFERROR(SLOPE(EA_032[Replacement - Transport],EA_032[Element measure]),"") -> 0.001405955984 | X30: 0 | Y30: =IFERROR(SLOPE(EA_032[Replacement - Installation],EA_032[Element measure]),"") -> 0.00237435214 | Z30: 0 | AA30: =IFERROR(SLOPE(EA_032[Refurbishment],EA_032[Element measure]),"") -> 0.002568202665 | AB30: 0 | AC30: =IFERROR(SLOPE(EA_032[Demolition],EA_032[Element measure]),"") -> 0.001620999195 | AD30: 0 | AE30: =IFERROR(SLOPE(EA_032[Residual],EA_032[Element measure]),"") -> -0.008538566721 | AF30: 0 | AG30: =IFERROR(SLOPE(EA_032[Whole Life Carbon],EA_032[Element measure]),"") -> 1.70215052
A31: =IFERROR(IF(VLOOKUP(C31,'Model Data'!A:A,1,FALSE)=C31,1,0),0) -> 0 | B31: EA_33 | C31: LandEA33 | D31: Land Remediation | E31: m3 | F31: 0 | G31: =IFERROR(SLOPE(EA_033[Capital - Materials],EA_033[Element measure]),"") ->  | H31: 0 | I31: =IFERROR(SLOPE(EA_033[Capital - Transport],EA_033[Element measure]),"") ->  | J31: 0 | K31: =IFERROR(SLOPE(EA_033[Capital - Installation],EA_033[Element measure]),"") ->  | L31: 0 | M31: =IFERROR(SLOPE(EA_033[Operational - Use],EA_033[Element measure]),"") ->  | N31: 0 | O31: =IFERROR(SLOPE(EA_033[Operational - Maintenance],EA_033[Element measure]),"") ->  | P31: 0 | Q31: =IFERROR(SLOPE(EA_033[Operational -Repair],EA_033[Element measure]),"") ->  | R31: 0 | S31: =IFERROR(SLOPE(EA_033[Operational - Energy],EA_033[Element measure]),"") ->  | T31: 0 | U31: =IFERROR(SLOPE(EA_033[Replacement - Materials],EA_033[Element measure]),"") ->  | V31: 0 | W31: =IFERROR(SLOPE(EA_033[Replacement - Transport],EA_033[Element measure]),"") ->  | X31: 0 | Y31: =IFERROR(SLOPE(EA_033[Replacement - Installation],EA_033[Element measure]),"") ->  | Z31: 0 | AA31: =IFERROR(SLOPE(EA_033[Refurbishment],EA_033[Element measure]),"") ->  | AB31: 0 | AC31: =IFERROR(SLOPE(EA_033[Demolition],EA_033[Element measure]),"") ->  | AD31: 0 | AE31: =IFERROR(SLOPE(EA_033[Residual],EA_033[Element measure]),"") ->  | AF31: 0 | AG31: =IFERROR(SLOPE(EA_033[Whole Life Carbon],EA_033[Element measure]),"") -> 
A32: =IFERROR(IF(VLOOKUP(C32,'Model Data'!A:A,1,FALSE)=C32,1,0),0) -> 0 | B32: EA_34 | C32: NaviEA34 | D32: Navigation Lock | E32: m2 | F32: 0 | G32: =IFERROR(SLOPE(EA_034[Capital - Materials],EA_034[Element measure]),"") ->  | H32: 0 | I32: =IFERROR(SLOPE(EA_034[Capital - Transport],EA_034[Element measure]),"") ->  | J32: 0 | K32: =IFERROR(SLOPE(EA_034[Capital - Installation],EA_034[Element measure]),"") ->  | L32: 0 | M32: =IFERROR(SLOPE(EA_034[Operational - Use],EA_034[Element measure]),"") ->  | N32: 0 | O32: =IFERROR(SLOPE(EA_034[Operational - Maintenance],EA_034[Element measure]),"") ->  | P32: 0 | Q32: =IFERROR(SLOPE(EA_034[Operational -Repair],EA_034[Element measure]),"") ->  | R32: 0 | S32: =IFERROR(SLOPE(EA_034[Operational - Energy],EA_034[Element measure]),"") ->  | T32: 0 | U32: =IFERROR(SLOPE(EA_034[Replacement - Materials],EA_034[Element measure]),"") ->  | V32: 0 | W32: =IFERROR(SLOPE(EA_034[Replacement - Transport],EA_034[Element measure]),"") ->  | X32: 0 | Y32: =IFERROR(SLOPE(EA_034[Replacement - Installation],EA_034[Element measure]),"") ->  | Z32: 0 | AA32: =IFERROR(SLOPE(EA_034[Refurbishment],EA_034[Element measure]),"") ->  | AB32: 0 | AC32: =IFERROR(SLOPE(EA_034[Demolition],EA_034[Element measure]),"") ->  | AD32: 0 | AE32: =IFERROR(SLOPE(EA_034[Residual],EA_034[Element measure]),"") ->  | AF32: 0 | AG32: =IFERROR(SLOPE(EA_034[Whole Life Carbon],EA_034[Element measure]),"") -> 
A33: =IFERROR(IF(VLOOKUP(C33,'Model Data'!A:A,1,FALSE)=C33,1,0),0) -> 1 | B33: EA_35 | C33: Non-EA35 | D33: Non-tidal Wall - Retaining - Concrete | E33: m3 | F33: 0 | G33: =IFERROR(SLOPE(EA_035[Capital - Materials],EA_035[Element measure]),"") -> 1.462806625 | H33: 0 | I33: =IFERROR(SLOPE(EA_035[Capital - Transport],EA_035[Element measure]),"") -> 0.2001660228 | J33: 0 | K33: =IFERROR(SLOPE(EA_035[Capital - Installation],EA_035[Element measure]),"") -> 0.265549809 | L33: 0 | M33: =IFERROR(SLOPE(EA_035[Operational - Use],EA_035[Element measure]),"") -> 0 | N33: 0 | O33: =IFERROR(SLOPE(EA_035[Operational - Maintenance],EA_035[Element measure]),"") -> 9.246624919 | P33: 0 | Q33: =IFERROR(SLOPE(EA_035[Operational -Repair],EA_035[Element measure]),"") -> 1.14555326 | R33: 0 | S33: =IFERROR(SLOPE(EA_035[Operational - Energy],EA_035[Element measure]),"") -> 0 | T33: 0 | U33: =IFERROR(SLOPE(EA_035[Replacement - Materials],EA_035[Element measure]),"") -> 0 | V33: 0 | W33: =IFERROR(SLOPE(EA_035[Replacement - Transport],EA_035[Element measure]),"") -> 0 | X33: 0 | Y33: =IFERROR(SLOPE(EA_035[Replacement - Installation],EA_035[Element measure]),"") -> 0 | Z33: 0 | AA33: =IFERROR(SLOPE(EA_035[Refurbishment],EA_035[Element measure]),"") -> 0 | AB33: 0 | AC33: =IFERROR(SLOPE(EA_035[Demolition],EA_035[Element measure]),"") -> 0 | AD33: 0 | AE33: =IFERROR(SLOPE(EA_035[Residual],EA_035[Element measure]),"") -> 0 | AF33: 0 | AG33: =IFERROR(SLOPE(EA_035[Whole Life Carbon],EA_035[Element measure]),"") -> 12.32070064
A34: =IFERROR(IF(VLOOKUP(C34,'Model Data'!A:A,1,FALSE)=C34,1,0),0) -> 0 | B34: EA_36 | C34: Non-EA36 | D34: Non-tidal Wall - Retaining - Masonry | E34: m3 | F34: 0 | G34: =IFERROR(SLOPE(EA_036[Capital - Materials],EA_036[Element measure]),"") ->  | H34: 0 | I34: =IFERROR(SLOPE(EA_036[Capital - Transport],EA_036[Element measure]),"") ->  | J34: 0 | K34: =IFERROR(SLOPE(EA_036[Capital - Installation],EA_036[Element measure]),"") ->  | L34: 0 | M34: =IFERROR(SLOPE(EA_036[Operational - Use],EA_036[Element measure]),"") ->  | N34: 0 | O34: =IFERROR(SLOPE(EA_036[Operational - Maintenance],EA_036[Element measure]),"") ->  | P34: 0 | Q34: =IFERROR(SLOPE(EA_036[Operational -Repair],EA_036[Element measure]),"") ->  | R34: 0 | S34: =IFERROR(SLOPE(EA_036[Operational - Energy],EA_036[Element measure]),"") ->  | T34: 0 | U34: =IFERROR(SLOPE(EA_036[Replacement - Materials],EA_036[Element measure]),"") ->  | V34: 0 | W34: =IFERROR(SLOPE(EA_036[Replacement - Transport],EA_036[Element measure]),"") ->  | X34: 0 | Y34: =IFERROR(SLOPE(EA_036[Replacement - Installation],EA_036[Element measure]),"") ->  | Z34: 0 | AA34: =IFERROR(SLOPE(EA_036[Refurbishment],EA_036[Element measure]),"") ->  | AB34: 0 | AC34: =IFERROR(SLOPE(EA_036[Demolition],EA_036[Element measure]),"") ->  | AD34: 0 | AE34: =IFERROR(SLOPE(EA_036[Residual],EA_036[Element measure]),"") ->  | AF34: 0 | AG34: =IFERROR(SLOPE(EA_036[Whole Life Carbon],EA_036[Element measure]),"") -> 
A35: =IFERROR(IF(VLOOKUP(C35,'Model Data'!A:A,1,FALSE)=C35,1,0),0) -> 0 | B35: EA_37 | C35: Non-EA37 | D35: Non-tidal Wall - Retaining - Sheetpiled | E35: m3 | F35: 0 | G35: =IFERROR(SLOPE(EA_037[Capital - Materials],EA_037[Element measure]),"") ->  | H35: 0 | I35: =IFERROR(SLOPE(EA_037[Capital - Transport],EA_037[Element measure]),"") ->  | J35: 0 | K35: =IFERROR(SLOPE(EA_037[Capital - Installation],EA_037[Element measure]),"") ->  | L35: 0 | M35: =IFERROR(SLOPE(EA_037[Operational - Use],EA_037[Element measure]),"") ->  | N35: 0 | O35: =IFERROR(SLOPE(EA_037[Operational - Maintenance],EA_037[Element measure]),"") ->  | P35: 0 | Q35: =IFERROR(SLOPE(EA_037[Operational -Repair],EA_037[Element measure]),"") ->  | R35: 0 | S35: =IFERROR(SLOPE(EA_037[Operational - Energy],EA_037[Element measure]),"") ->  | T35: 0 | U35: =IFERROR(SLOPE(EA_037[Replacement - Materials],EA_037[Element measure]),"") ->  | V35: 0 | W35: =IFERROR(SLOPE(EA_037[Replacement - Transport],EA_037[Element measure]),"") ->  | X35: 0 | Y35: =IFERROR(SLOPE(EA_037[Replacement - Installation],EA_037[Element measure]),"") ->  | Z35: 0 | AA35: =IFERROR(SLOPE(EA_037[Refurbishment],EA_037[Element measure]),"") ->  | AB35: 0 | AC35: =IFERROR(SLOPE(EA_037[Demolition],EA_037[Element measure]),"") ->  | AD35: 0 | AE35: =IFERROR(SLOPE(EA_037[Residual],EA_037[Element measure]),"") ->  | AF35: 0 | AG35: =IFERROR(SLOPE(EA_037[Whole Life Carbon],EA_037[Element measure]),"") -> 
A36: =IFERROR(IF(VLOOKUP(C36,'Model Data'!A:A,1,FALSE)=C36,1,0),0) -> 0 | B36: EA_38 | C36: OffsEA38 | D36: Offshore Breakwater - Submerged | E36: tonnes | F36: 0 | G36: =IFERROR(SLOPE(EA_038[Capital - Materials],EA_038[Element measure]),"") ->  | H36: 0 | I36: =IFERROR(SLOPE(EA_038[Capital - Transport],EA_038[Element measure]),"") ->  | J36: 0 | K36: =IFERROR(SLOPE(EA_038[Capital - Installation],EA_038[Element measure]),"") ->  | L36: 0 | M36: =IFERROR(SLOPE(EA_038[Operational - Use],EA_038[Element measure]),"") ->  | N36: 0 | O36: =IFERROR(SLOPE(EA_038[Operational - Maintenance],EA_038[Element measure]),"") ->  | P36: 0 | Q36: =IFERROR(SLOPE(EA_038[Operational -Repair],EA_038[Element measure]),"") ->  | R36: 0 | S36: =IFERROR(SLOPE(EA_038[Operational - Energy],EA_038[Element measure]),"") ->  | T36: 0 | U36: =IFERROR(SLOPE(EA_038[Replacement - Materials],EA_038[Element measure]),"") ->  | V36: 0 | W36: =IFERROR(SLOPE(EA_038[Replacement - Transport],EA_038[Element measure]),"") ->  | X36: 0 | Y36: =IFERROR(SLOPE(EA_038[Replacement - Installation],EA_038[Element measure]),"") ->  | Z36: 0 | AA36: =IFERROR(SLOPE(EA_038[Refurbishment],EA_038[Element measure]),"") ->  | AB36: 0 | AC36: =IFERROR(SLOPE(EA_038[Demolition],EA_038[Element measure]),"") ->  | AD36: 0 | AE36: =IFERROR(SLOPE(EA_038[Residual],EA_038[Element measure]),"") ->  | AF36: 0 | AG36: =IFERROR(SLOPE(EA_038[Whole Life Carbon],EA_038[Element measure]),"") -> 
A37: =IFERROR(IF(VLOOKUP(C37,'Model Data'!A:A,1,FALSE)=C37,1,0),0) -> 0 | B37: EA_39 | C37: OffsEA39 | D37: Offshore Breakwater - Unsubmerged | E37: tonnes | F37: 0 | G37: =IFERROR(SLOPE(EA_039[Capital - Materials],EA_039[Element measure]),"") ->  | H37: 0 | I37: =IFERROR(SLOPE(EA_039[Capital - Transport],EA_039[Element measure]),"") ->  | J37: 0 | K37: =IFERROR(SLOPE(EA_039[Capital - Installation],EA_039[Element measure]),"") ->  | L37: 0 | M37: =IFERROR(SLOPE(EA_039[Operational - Use],EA_039[Element measure]),"") ->  | N37: 0 | O37: =IFERROR(SLOPE(EA_039[Operational - Maintenance],EA_039[Element measure]),"") ->  | P37: 0 | Q37: =IFERROR(SLOPE(EA_039[Operational -Repair],EA_039[Element measure]),"") ->  | R37: 0 | S37: =IFERROR(SLOPE(EA_039[Operational - Energy],EA_039[Element measure]),"") ->  | T37: 0 | U37: =IFERROR(SLOPE(EA_039[Replacement - Materials],EA_039[Element measure]),"") ->  | V37: 0 | W37: =IFERROR(SLOPE(EA_039[Replacement - Transport],EA_039[Element measure]),"") ->  | X37: 0 | Y37: =IFERROR(SLOPE(EA_039[Replacement - Installation],EA_039[Element measure]),"") ->  | Z37: 0 | AA37: =IFERROR(SLOPE(EA_039[Refurbishment],EA_039[Element measure]),"") ->  | AB37: 0 | AC37: =IFERROR(SLOPE(EA_039[Demolition],EA_039[Element measure]),"") ->  | AD37: 0 | AE37: =IFERROR(SLOPE(EA_039[Residual],EA_039[Element measure]),"") ->  | AF37: 0 | AG37: =IFERROR(SLOPE(EA_039[Whole Life Carbon],EA_039[Element measure]),"") -> 
A38: =IFERROR(IF(VLOOKUP(C38,'Model Data'!A:A,1,FALSE)=C38,1,0),0) -> 0 | B38: EA_40 | C38: OutfEA40 | D38: Outfall Structure | E38: mm dia | F38: 0 | G38: =IFERROR(SLOPE(EA_040[Capital - Materials],EA_040[Element measure]),"") ->  | H38: 0 | I38: =IFERROR(SLOPE(EA_040[Capital - Transport],EA_040[Element measure]),"") ->  | J38: 0 | K38: =IFERROR(SLOPE(EA_040[Capital - Installation],EA_040[Element measure]),"") ->  | L38: 0 | M38: =IFERROR(SLOPE(EA_040[Operational - Use],EA_040[Element measure]),"") ->  | N38: 0 | O38: =IFERROR(SLOPE(EA_040[Operational - Maintenance],EA_040[Element measure]),"") ->  | P38: 0 | Q38: =IFERROR(SLOPE(EA_040[Operational -Repair],EA_040[Element measure]),"") ->  | R38: 0 | S38: =IFERROR(SLOPE(EA_040[Operational - Energy],EA_040[Element measure]),"") ->  | T38: 0 | U38: =IFERROR(SLOPE(EA_040[Replacement - Materials],EA_040[Element measure]),"") ->  | V38: 0 | W38: =IFERROR(SLOPE(EA_040[Replacement - Transport],EA_040[Element measure]),"") ->  | X38: 0 | Y38: =IFERROR(SLOPE(EA_040[Replacement - Installation],EA_040[Element measure]),"") ->  | Z38: 0 | AA38: =IFERROR(SLOPE(EA_040[Refurbishment],EA_040[Element measure]),"") ->  | AB38: 0 | AC38: =IFERROR(SLOPE(EA_040[Demolition],EA_040[Element measure]),"") ->  | AD38: 0 | AE38: =IFERROR(SLOPE(EA_040[Residual],EA_040[Element measure]),"") ->  | AF38: 0 | AG38: =IFERROR(SLOPE(EA_040[Whole Life Carbon],EA_040[Element measure]),"") -> 
A39: =IFERROR(IF(VLOOKUP(C39,'Model Data'!A:A,1,FALSE)=C39,1,0),0) -> 1 | B39: EA_41 | C39: PathEA41 | D39: Path/Track/Road | E39: m2 | F39: 0 | G39: =IFERROR(SLOPE(EA_041[Capital - Materials],EA_041[Element measure]),"") -> 0.0537302865 | H39: 0 | I39: =IFERROR(SLOPE(EA_041[Capital - Transport],EA_041[Element measure]),"") -> 0.002246558792 | J39: 0 | K39: =IFERROR(SLOPE(EA_041[Capital - Installation],EA_041[Element measure]),"") -> 0.003954285781 | L39: 0 | M39: =IFERROR(SLOPE(EA_041[Operational - Use],EA_041[Element measure]),"") -> 0 | N39: 0 | O39: =IFERROR(SLOPE(EA_041[Operational - Maintenance],EA_041[Element measure]),"") -> 0.624755737 | P39: 0 | Q39: =IFERROR(SLOPE(EA_041[Operational -Repair],EA_041[Element measure]),"") -> 0 | R39: 0 | S39: =IFERROR(SLOPE(EA_041[Operational - Energy],EA_041[Element measure]),"") -> 0 | T39: 0 | U39: =IFERROR(SLOPE(EA_041[Replacement - Materials],EA_041[Element measure]),"") -> 0.005821987532 | V39: 0 | W39: =IFERROR(SLOPE(EA_041[Replacement - Transport],EA_041[Element measure]),"") -> 0.0002434276482 | X39: 0 | Y39: =IFERROR(SLOPE(EA_041[Replacement - Installation],EA_041[Element measure]),"") -> 0.0004284697518 | Z39: 0 | AA39: =IFERROR(SLOPE(EA_041[Refurbishment],EA_041[Element measure]),"") -> 0.002543074016 | AB39: 0 | AC39: =IFERROR(SLOPE(EA_041[Demolition],EA_041[Element measure]),"") -> 0.0009761709078 | AD39: 0 | AE39: =IFERROR(SLOPE(EA_041[Residual],EA_041[Element measure]),"") -> -0.008455020883 | AF39: 0 | AG39: =IFERROR(SLOPE(EA_041[Whole Life Carbon],EA_041[Element measure]),"") -> 0.6872211479
A40: =IFERROR(IF(VLOOKUP(C40,'Model Data'!A:A,1,FALSE)=C40,1,0),0) -> 0 | B40: EA_42 | C40: PipeEA42 | D40: Pipes & Drains - Clay | E40: m3 | F40: 0 | G40: =IFERROR(SLOPE(EA_042[Capital - Materials],EA_042[Element measure]),"") ->  | H40: 0 | I40: =IFERROR(SLOPE(EA_042[Capital - Transport],EA_042[Element measure]),"") ->  | J40: 0 | K40: =IFERROR(SLOPE(EA_042[Capital - Installation],EA_042[Element measure]),"") ->  | L40: 0 | M40: =IFERROR(SLOPE(EA_042[Operational - Use],EA_042[Element measure]),"") ->  | N40: 0 | O40: =IFERROR(SLOPE(EA_042[Operational - Maintenance],EA_042[Element measure]),"") ->  | P40: 0 | Q40: =IFERROR(SLOPE(EA_042[Operational -Repair],EA_042[Element measure]),"") ->  | R40: 0 | S40: =IFERROR(SLOPE(EA_042[Operational - Energy],EA_042[Element measure]),"") ->  | T40: 0 | U40: =IFERROR(SLOPE(EA_042[Replacement - Materials],EA_042[Element measure]),"") ->  | V40: 0 | W40: =IFERROR(SLOPE(EA_042[Replacement - Transport],EA_042[Element measure]),"") ->  | X40: 0 | Y40: =IFERROR(SLOPE(EA_042[Replacement - Installation],EA_042[Element measure]),"") ->  | Z40: 0 | AA40: =IFERROR(SLOPE(EA_042[Refurbishment],EA_042[Element measure]),"") ->  | AB40: 0 | AC40: =IFERROR(SLOPE(EA_042[Demolition],EA_042[Element measure]),"") ->  | AD40: 0 | AE40: =IFERROR(SLOPE(EA_042[Residual],EA_042[Element measure]),"") ->  | AF40: 0 | AG40: =IFERROR(SLOPE(EA_042[Whole Life Carbon],EA_042[Element measure]),"") -> 
A41: =IFERROR(IF(VLOOKUP(C41,'Model Data'!A:A,1,FALSE)=C41,1,0),0) -> 1 | B41: EA_43 | C41: PipeEA43 | D41: Pipes & Drains - Concrete | E41: m3 | F41: 0 | G41: =IFERROR(SLOPE(EA_043[Capital - Materials],EA_043[Element measure]),"") -> 0.2149625799 | H41: 0 | I41: =IFERROR(SLOPE(EA_043[Capital - Transport],EA_043[Element measure]),"") -> 0.8497526676 | J41: 0 | K41: =IFERROR(SLOPE(EA_043[Capital - Installation],EA_043[Element measure]),"") -> 1.489383969 | L41: 0 | M41: =IFERROR(SLOPE(EA_043[Operational - Use],EA_043[Element measure]),"") -> 0 | N41: 0 | O41: =IFERROR(SLOPE(EA_043[Operational - Maintenance],EA_043[Element measure]),"") -> 0.03282949687 | P41: 0 | Q41: =IFERROR(SLOPE(EA_043[Operational -Repair],EA_043[Element measure]),"") -> 0 | R41: 0 | S41: =IFERROR(SLOPE(EA_043[Operational - Energy],EA_043[Element measure]),"") -> 0 | T41: 0 | U41: =IFERROR(SLOPE(EA_043[Replacement - Materials],EA_043[Element measure]),"") -> 0.03648626292 | V41: 0 | W41: =IFERROR(SLOPE(EA_043[Replacement - Transport],EA_043[Element measure]),"") -> 0.144231146 | X41: 0 | Y41: =IFERROR(SLOPE(EA_043[Replacement - Installation],EA_043[Element measure]),"") -> 0.2527977432 | Z41: 0 | AA41: =IFERROR(SLOPE(EA_043[Refurbishment],EA_043[Element measure]),"") -> 0 | AB41: 0 | AC41: =IFERROR(SLOPE(EA_043[Demolition],EA_043[Element measure]),"") -> 0.08461252405 | AD41: 0 | AE41: =IFERROR(SLOPE(EA_043[Residual],EA_043[Element measure]),"") -> -0.3601810209 | AF41: 0 | AG41: =IFERROR(SLOPE(EA_043[Whole Life Carbon],EA_043[Element measure]),"") -> 2.829487892
A42: =IFERROR(IF(VLOOKUP(C42,'Model Data'!A:A,1,FALSE)=C42,1,0),0) -> 1 | B42: EA_44 | C42: PipeEA44 | D42: Pipes & Drains - Plastic | E42: m3 | F42: 0 | G42: =IFERROR(SLOPE(EA_044[Capital - Materials],EA_044[Element measure]),"") -> 0.3322683217 | H42: 0 | I42: =IFERROR(SLOPE(EA_044[Capital - Transport],EA_044[Element measure]),"") -> 0.04294679149 | J42: 0 | K42: =IFERROR(SLOPE(EA_044[Capital - Installation],EA_044[Element measure]),"") -> 0.1118437309 | L42: 0 | M42: =IFERROR(SLOPE(EA_044[Operational - Use],EA_044[Element measure]),"") -> 0 | N42: 0 | O42: =IFERROR(SLOPE(EA_044[Operational - Maintenance],EA_044[Element measure]),"") -> 1.235979556 | P42: 0 | Q42: =IFERROR(SLOPE(EA_044[Operational -Repair],EA_044[Element measure]),"") -> 0 | R42: 0 | S42: =IFERROR(SLOPE(EA_044[Operational - Energy],EA_044[Element measure]),"") -> 0 | T42: 0 | U42: =IFERROR(SLOPE(EA_044[Replacement - Materials],EA_044[Element measure]),"") -> 0.03600319582 | V42: 0 | W42: =IFERROR(SLOPE(EA_044[Replacement - Transport],EA_044[Element measure]),"") -> 0.004653533433 | X42: 0 | Y42: =IFERROR(SLOPE(EA_044[Replacement - Installation],EA_044[Element measure]),"") -> 0.01211891559 | Z42: 0 | AA42: =IFERROR(SLOPE(EA_044[Refurbishment],EA_044[Element measure]),"") -> 0.00595498922 | AB42: 0 | AC42: =IFERROR(SLOPE(EA_044[Demolition],EA_044[Element measure]),"") -> 0.007232439723 | AD42: 0 | AE42: =IFERROR(SLOPE(EA_044[Residual],EA_044[Element measure]),"") -> -0.068713749 | AF42: 0 | AG42: =IFERROR(SLOPE(EA_044[Whole Life Carbon],EA_044[Element measure]),"") -> 1.727520165
A43: =IFERROR(IF(VLOOKUP(C43,'Model Data'!A:A,1,FALSE)=C43,1,0),0) -> 0 | B43: EA_45 | C43: PumpEA45 | D43: Pumping Station - Land Drainage | E43: kWh | F43: 0 | G43: =IFERROR(SLOPE(EA_045[Capital - Materials],EA_045[Element measure]),"") ->  | H43: 0 | I43: =IFERROR(SLOPE(EA_045[Capital - Transport],EA_045[Element measure]),"") ->  | J43: 0 | K43: =IFERROR(SLOPE(EA_045[Capital - Installation],EA_045[Element measure]),"") ->  | L43: 0 | M43: =IFERROR(SLOPE(EA_045[Operational - Use],EA_045[Element measure]),"") ->  | N43: 0 | O43: =IFERROR(SLOPE(EA_045[Operational - Maintenance],EA_045[Element measure]),"") ->  | P43: 0 | Q43: =IFERROR(SLOPE(EA_045[Operational -Repair],EA_045[Element measure]),"") ->  | R43: 0 | S43: =IFERROR(SLOPE(EA_045[Operational - Energy],EA_045[Element measure]),"") ->  | T43: 0 | U43: =IFERROR(SLOPE(EA_045[Replacement - Materials],EA_045[Element measure]),"") ->  | V43: 0 | W43: =IFERROR(SLOPE(EA_045[Replacement - Transport],EA_045[Element measure]),"") ->  | X43: 0 | Y43: =IFERROR(SLOPE(EA_045[Replacement - Installation],EA_045[Element measure]),"") ->  | Z43: 0 | AA43: =IFERROR(SLOPE(EA_045[Refurbishment],EA_045[Element measure]),"") ->  | AB43: 0 | AC43: =IFERROR(SLOPE(EA_045[Demolition],EA_045[Element measure]),"") ->  | AD43: 0 | AE43: =IFERROR(SLOPE(EA_045[Residual],EA_045[Element measure]),"") ->  | AF43: 0 | AG43: =IFERROR(SLOPE(EA_045[Whole Life Carbon],EA_045[Element measure]),"") -> 
A44: =IFERROR(IF(VLOOKUP(C44,'Model Data'!A:A,1,FALSE)=C44,1,0),0) -> 0 | B44: EA_46 | C44: PumpEA46 | D44: Pumping Station - Sewerage | E44: kWh | F44: 0 | G44: =IFERROR(SLOPE(EA_046[Capital - Materials],EA_046[Element measure]),"") ->  | H44: 0 | I44: =IFERROR(SLOPE(EA_046[Capital - Transport],EA_046[Element measure]),"") ->  | J44: 0 | K44: =IFERROR(SLOPE(EA_046[Capital - Installation],EA_046[Element measure]),"") ->  | L44: 0 | M44: =IFERROR(SLOPE(EA_046[Operational - Use],EA_046[Element measure]),"") ->  | N44: 0 | O44: =IFERROR(SLOPE(EA_046[Operational - Maintenance],EA_046[Element measure]),"") ->  | P44: 0 | Q44: =IFERROR(SLOPE(EA_046[Operational -Repair],EA_046[Element measure]),"") ->  | R44: 0 | S44: =IFERROR(SLOPE(EA_046[Operational - Energy],EA_046[Element measure]),"") ->  | T44: 0 | U44: =IFERROR(SLOPE(EA_046[Replacement - Materials],EA_046[Element measure]),"") ->  | V44: 0 | W44: =IFERROR(SLOPE(EA_046[Replacement - Transport],EA_046[Element measure]),"") ->  | X44: 0 | Y44: =IFERROR(SLOPE(EA_046[Replacement - Installation],EA_046[Element measure]),"") ->  | Z44: 0 | AA44: =IFERROR(SLOPE(EA_046[Refurbishment],EA_046[Element measure]),"") ->  | AB44: 0 | AC44: =IFERROR(SLOPE(EA_046[Demolition],EA_046[Element measure]),"") ->  | AD44: 0 | AE44: =IFERROR(SLOPE(EA_046[Residual],EA_046[Element measure]),"") ->  | AF44: 0 | AG44: =IFERROR(SLOPE(EA_046[Whole Life Carbon],EA_046[Element measure]),"") -> 
A45: =IFERROR(IF(VLOOKUP(C45,'Model Data'!A:A,1,FALSE)=C45,1,0),0) -> 1 | B45: EA_47 | C45: PumpEA47 | D45: Pumping Station - Surface Water | E45: kWh | F45: 0 | G45: =IFERROR(SLOPE(EA_047[Capital - Materials],EA_047[Element measure]),"") -> 5.515690057 | H45: 0 | I45: =IFERROR(SLOPE(EA_047[Capital - Transport],EA_047[Element measure]),"") -> 2.308314521 | J45: 0 | K45: =IFERROR(SLOPE(EA_047[Capital - Installation],EA_047[Element measure]),"") -> 4.063427964 | L45: 0 | M45: =IFERROR(SLOPE(EA_047[Operational - Use],EA_047[Element measure]),"") -> 0.6037596706 | N45: 0 | O45: =IFERROR(SLOPE(EA_047[Operational - Maintenance],EA_047[Element measure]),"") -> 148.2558418 | P45: 0 | Q45: =IFERROR(SLOPE(EA_047[Operational -Repair],EA_047[Element measure]),"") -> 0.009361555746 | R45: 0 | S45: =IFERROR(SLOPE(EA_047[Operational - Energy],EA_047[Element measure]),"") -> 15.20643595 | T45: 0 | U45: =IFERROR(SLOPE(EA_047[Replacement - Materials],EA_047[Element measure]),"") -> 0.6269792385 | V45: 0 | W45: =IFERROR(SLOPE(EA_047[Replacement - Transport],EA_047[Element measure]),"") -> 0.2622361578 | X45: 0 | Y45: =IFERROR(SLOPE(EA_047[Replacement - Installation],EA_047[Element measure]),"") -> 0.4614529648 | Z45: 0 | AA45: =IFERROR(SLOPE(EA_047[Refurbishment],EA_047[Element measure]),"") -> 0.2253926177 | AB45: 0 | AC45: =IFERROR(SLOPE(EA_047[Demolition],EA_047[Element measure]),"") -> 0.2513660683 | AD45: 0 | AE45: =IFERROR(SLOPE(EA_047[Residual],EA_047[Element measure]),"") -> -1.659206653 | AF45: 0 | AG45: =IFERROR(SLOPE(EA_047[Whole Life Carbon],EA_047[Element measure]),"") -> 176.3824179
A46: =IFERROR(IF(VLOOKUP(C46,'Model Data'!A:A,1,FALSE)=C46,1,0),0) -> 0 | B46: EA_48 | C46: ReveEA48 | D46: Revetment Works - PCC | E46: tonnes | F46: 0 | G46: =IFERROR(SLOPE(EA_048[Capital - Materials],EA_048[Element measure]),"") ->  | H46: 0 | I46: =IFERROR(SLOPE(EA_048[Capital - Transport],EA_048[Element measure]),"") ->  | J46: 0 | K46: =IFERROR(SLOPE(EA_048[Capital - Installation],EA_048[Element measure]),"") ->  | L46: 0 | M46: =IFERROR(SLOPE(EA_048[Operational - Use],EA_048[Element measure]),"") ->  | N46: 0 | O46: =IFERROR(SLOPE(EA_048[Operational - Maintenance],EA_048[Element measure]),"") ->  | P46: 0 | Q46: =IFERROR(SLOPE(EA_048[Operational -Repair],EA_048[Element measure]),"") ->  | R46: 0 | S46: =IFERROR(SLOPE(EA_048[Operational - Energy],EA_048[Element measure]),"") ->  | T46: 0 | U46: =IFERROR(SLOPE(EA_048[Replacement - Materials],EA_048[Element measure]),"") ->  | V46: 0 | W46: =IFERROR(SLOPE(EA_048[Replacement - Transport],EA_048[Element measure]),"") ->  | X46: 0 | Y46: =IFERROR(SLOPE(EA_048[Replacement - Installation],EA_048[Element measure]),"") ->  | Z46: 0 | AA46: =IFERROR(SLOPE(EA_048[Refurbishment],EA_048[Element measure]),"") ->  | AB46: 0 | AC46: =IFERROR(SLOPE(EA_048[Demolition],EA_048[Element measure]),"") ->  | AD46: 0 | AE46: =IFERROR(SLOPE(EA_048[Residual],EA_048[Element measure]),"") ->  | AF46: 0 | AG46: =IFERROR(SLOPE(EA_048[Whole Life Carbon],EA_048[Element measure]),"") -> 
A47: =IFERROR(IF(VLOOKUP(C47,'Model Data'!A:A,1,FALSE)=C47,1,0),0) -> 1 | B47: EA_49 | C47: ReveEA49 | D47: Revetment Works - Rock Armour | E47: tonnes | F47: 0 | G47: =IFERROR(SLOPE(EA_049[Capital - Materials],EA_049[Element measure]),"") -> 0.255634188 | H47: 0 | I47: =IFERROR(SLOPE(EA_049[Capital - Transport],EA_049[Element measure]),"") -> 0.00776529488 | J47: 0 | K47: =IFERROR(SLOPE(EA_049[Capital - Installation],EA_049[Element measure]),"") -> 0.02468642114 | L47: 0 | M47: =IFERROR(SLOPE(EA_049[Operational - Use],EA_049[Element measure]),"") -> 0 | N47: 0 | O47: =IFERROR(SLOPE(EA_049[Operational - Maintenance],EA_049[Element measure]),"") -> 1.101615617 | P47: 0 | Q47: =IFERROR(SLOPE(EA_049[Operational -Repair],EA_049[Element measure]),"") -> 0 | R47: 0 | S47: =IFERROR(SLOPE(EA_049[Operational - Energy],EA_049[Element measure]),"") -> 0 | T47: 0 | U47: =IFERROR(SLOPE(EA_049[Replacement - Materials],EA_049[Element measure]),"") -> 0 | V47: 0 | W47: =IFERROR(SLOPE(EA_049[Replacement - Transport],EA_049[Element measure]),"") -> 0 | X47: 0 | Y47: =IFERROR(SLOPE(EA_049[Replacement - Installation],EA_049[Element measure]),"") -> 0 | Z47: 0 | AA47: =IFERROR(SLOPE(EA_049[Refurbishment],EA_049[Element measure]),"") -> 0 | AB47: 0 | AC47: =IFERROR(SLOPE(EA_049[Demolition],EA_049[Element measure]),"") -> 0 | AD47: 0 | AE47: =IFERROR(SLOPE(EA_049[Residual],EA_049[Element measure]),"") -> 0 | AF47: 0 | AG47: =IFERROR(SLOPE(EA_049[Whole Life Carbon],EA_049[Element measure]),"") -> 1.389701521
A48: =IFERROR(IF(VLOOKUP(C48,'Model Data'!A:A,1,FALSE)=C48,1,0),0) -> 0 | B48: EA_50 | C48: ReveEA50 | D48: Revetment Works - Soft/geotextile | E48: m2 | F48: 0 | G48: =IFERROR(SLOPE(EA_050[Capital - Materials],EA_050[Element measure]),"") ->  | H48: 0 | I48: =IFERROR(SLOPE(EA_050[Capital - Transport],EA_050[Element measure]),"") ->  | J48: 0 | K48: =IFERROR(SLOPE(EA_050[Capital - Installation],EA_050[Element measure]),"") ->  | L48: 0 | M48: =IFERROR(SLOPE(EA_050[Operational - Use],EA_050[Element measure]),"") ->  | N48: 0 | O48: =IFERROR(SLOPE(EA_050[Operational - Maintenance],EA_050[Element measure]),"") ->  | P48: 0 | Q48: =IFERROR(SLOPE(EA_050[Operational -Repair],EA_050[Element measure]),"") ->  | R48: 0 | S48: =IFERROR(SLOPE(EA_050[Operational - Energy],EA_050[Element measure]),"") ->  | T48: 0 | U48: =IFERROR(SLOPE(EA_050[Replacement - Materials],EA_050[Element measure]),"") ->  | V48: 0 | W48: =IFERROR(SLOPE(EA_050[Replacement - Transport],EA_050[Element measure]),"") ->  | X48: 0 | Y48: =IFERROR(SLOPE(EA_050[Replacement - Installation],EA_050[Element measure]),"") ->  | Z48: 0 | AA48: =IFERROR(SLOPE(EA_050[Refurbishment],EA_050[Element measure]),"") ->  | AB48: 0 | AC48: =IFERROR(SLOPE(EA_050[Demolition],EA_050[Element measure]),"") ->  | AD48: 0 | AE48: =IFERROR(SLOPE(EA_050[Residual],EA_050[Element measure]),"") ->  | AF48: 0 | AG48: =IFERROR(SLOPE(EA_050[Whole Life Carbon],EA_050[Element measure]),"") -> 
A49: =IFERROR(IF(VLOOKUP(C49,'Model Data'!A:A,1,FALSE)=C49,1,0),0) -> 0 | B49: EA_51 | C49: RiveEA51 | D49: River Gauging Station | E49: m2 | F49: 0 | G49: =IFERROR(SLOPE(EA_051[Capital - Materials],EA_051[Element measure]),"") ->  | H49: 0 | I49: =IFERROR(SLOPE(EA_051[Capital - Transport],EA_051[Element measure]),"") ->  | J49: 0 | K49: =IFERROR(SLOPE(EA_051[Capital - Installation],EA_051[Element measure]),"") ->  | L49: 0 | M49: =IFERROR(SLOPE(EA_051[Operational - Use],EA_051[Element measure]),"") ->  | N49: 0 | O49: =IFERROR(SLOPE(EA_051[Operational - Maintenance],EA_051[Element measure]),"") ->  | P49: 0 | Q49: =IFERROR(SLOPE(EA_051[Operational -Repair],EA_051[Element measure]),"") ->  | R49: 0 | S49: =IFERROR(SLOPE(EA_051[Operational - Energy],EA_051[Element measure]),"") ->  | T49: 0 | U49: =IFERROR(SLOPE(EA_051[Replacement - Materials],EA_051[Element measure]),"") ->  | V49: 0 | W49: =IFERROR(SLOPE(EA_051[Replacement - Transport],EA_051[Element measure]),"") ->  | X49: 0 | Y49: =IFERROR(SLOPE(EA_051[Replacement - Installation],EA_051[Element measure]),"") ->  | Z49: 0 | AA49: =IFERROR(SLOPE(EA_051[Refurbishment],EA_051[Element measure]),"") ->  | AB49: 0 | AC49: =IFERROR(SLOPE(EA_051[Demolition],EA_051[Element measure]),"") ->  | AD49: 0 | AE49: =IFERROR(SLOPE(EA_051[Residual],EA_051[Element measure]),"") ->  | AF49: 0 | AG49: =IFERROR(SLOPE(EA_051[Whole Life Carbon],EA_051[Element measure]),"") -> 
A50: =IFERROR(IF(VLOOKUP(C50,'Model Data'!A:A,1,FALSE)=C50,1,0),0) -> 0 | B50: EA_52 | C50: RiveEA52 | D50: River Restoration | E50: m2 | F50: 0 | G50: =IFERROR(SLOPE(EA_052[Capital - Materials],EA_052[Element measure]),"") ->  | H50: 0 | I50: =IFERROR(SLOPE(EA_052[Capital - Transport],EA_052[Element measure]),"") ->  | J50: 0 | K50: =IFERROR(SLOPE(EA_052[Capital - Installation],EA_052[Element measure]),"") ->  | L50: 0 | M50: =IFERROR(SLOPE(EA_052[Operational - Use],EA_052[Element measure]),"") ->  | N50: 0 | O50: =IFERROR(SLOPE(EA_052[Operational - Maintenance],EA_052[Element measure]),"") ->  | P50: 0 | Q50: =IFERROR(SLOPE(EA_052[Operational -Repair],EA_052[Element measure]),"") ->  | R50: 0 | S50: =IFERROR(SLOPE(EA_052[Operational - Energy],EA_052[Element measure]),"") ->  | T50: 0 | U50: =IFERROR(SLOPE(EA_052[Replacement - Materials],EA_052[Element measure]),"") ->  | V50: 0 | W50: =IFERROR(SLOPE(EA_052[Replacement - Transport],EA_052[Element measure]),"") ->  | X50: 0 | Y50: =IFERROR(SLOPE(EA_052[Replacement - Installation],EA_052[Element measure]),"") ->  | Z50: 0 | AA50: =IFERROR(SLOPE(EA_052[Refurbishment],EA_052[Element measure]),"") ->  | AB50: 0 | AC50: =IFERROR(SLOPE(EA_052[Demolition],EA_052[Element measure]),"") ->  | AD50: 0 | AE50: =IFERROR(SLOPE(EA_052[Residual],EA_052[Element measure]),"") ->  | AF50: 0 | AG50: =IFERROR(SLOPE(EA_052[Whole Life Carbon],EA_052[Element measure]),"") -> 
A51: =IFERROR(IF(VLOOKUP(C51,'Model Data'!A:A,1,FALSE)=C51,1,0),0) -> 1 | B51: EA_71 | C51: TidaEA71 | D51: Sea Wall - Retaining - Concrete | E51: m3 | F51: 0 | G51: =IFERROR(SLOPE(EA_71[Capital - Materials],EA_71[Element measure]),"") -> 0.4579556291 | H51: 0 | I51: =IFERROR(SLOPE(EA_71[Capital - Transport],EA_71[Element measure]),"") -> 0.1563600988 | J51: 0 | K51: =IFERROR(SLOPE(EA_71[Capital - Installation],EA_71[Element measure]),"") -> 0.3599789062 | L51: 0 | M51: =IFERROR(SLOPE(EA_71[Operational - Use],EA_71[Element measure]),"") -> 0 | N51: 0 | O51: =IFERROR(SLOPE(EA_71[Operational - Maintenance],EA_71[Element measure]),"") -> 12.67234408 | P51: 0 | Q51: =IFERROR(SLOPE(EA_71[Operational -Repair],EA_71[Element measure]),"") -> 0 | R51: 0 | S51: =IFERROR(SLOPE(EA_71[Operational - Energy],EA_71[Element measure]),"") -> 0 | T51: 0 | U51: =IFERROR(SLOPE(EA_71[Replacement - Materials],EA_71[Element measure]),"") -> 0 | V51: 0 | W51: =IFERROR(SLOPE(EA_71[Replacement - Transport],EA_71[Element measure]),"") -> 0 | X51: 0 | Y51: =IFERROR(SLOPE(EA_71[Replacement - Installation],EA_71[Element measure]),"") -> 0 | Z51: 0 | AA51: =IFERROR(SLOPE(EA_71[Refurbishment],EA_71[Element measure]),"") -> 0.03378477944 | AB51: 0 | AC51: =IFERROR(SLOPE(EA_71[Demolition],EA_71[Element measure]),"") -> 0 | AD51: 0 | AE51: =IFERROR(SLOPE(EA_71[Residual],EA_71[Element measure]),"") -> 0 | AF51: 0 | AG51: =IFERROR(SLOPE(EA_71[Whole Life Carbon],EA_71[Element measure]),"") -> 13.6804235
A52: =IFERROR(IF(VLOOKUP(C52,'Model Data'!A:A,1,FALSE)=C52,1,0),0) -> 0 | B52: EA_53 | C52: ServEA53 | D52: Service Diversion - Electricity | E52: m | F52: 0 | G52: =IFERROR(SLOPE(EA_053[Capital - Materials],EA_053[Element measure]),"") ->  | H52: 0 | I52: =IFERROR(SLOPE(EA_053[Capital - Transport],EA_053[Element measure]),"") ->  | J52: 0 | K52: =IFERROR(SLOPE(EA_053[Capital - Installation],EA_053[Element measure]),"") ->  | L52: 0 | M52: =IFERROR(SLOPE(EA_053[Operational - Use],EA_053[Element measure]),"") ->  | N52: 0 | O52: =IFERROR(SLOPE(EA_053[Operational - Maintenance],EA_053[Element measure]),"") ->  | P52: 0 | Q52: =IFERROR(SLOPE(EA_053[Operational -Repair],EA_053[Element measure]),"") ->  | R52: 0 | S52: =IFERROR(SLOPE(EA_053[Operational - Energy],EA_053[Element measure]),"") ->  | T52: 0 | U52: =IFERROR(SLOPE(EA_053[Replacement - Materials],EA_053[Element measure]),"") ->  | V52: 0 | W52: =IFERROR(SLOPE(EA_053[Replacement - Transport],EA_053[Element measure]),"") ->  | X52: 0 | Y52: =IFERROR(SLOPE(EA_053[Replacement - Installation],EA_053[Element measure]),"") ->  | Z52: 0 | AA52: =IFERROR(SLOPE(EA_053[Refurbishment],EA_053[Element measure]),"") ->  | AB52: 0 | AC52: =IFERROR(SLOPE(EA_053[Demolition],EA_053[Element measure]),"") ->  | AD52: 0 | AE52: =IFERROR(SLOPE(EA_053[Residual],EA_053[Element measure]),"") ->  | AF52: 0 | AG52: =IFERROR(SLOPE(EA_053[Whole Life Carbon],EA_053[Element measure]),"") -> 
A53: =IFERROR(IF(VLOOKUP(C53,'Model Data'!A:A,1,FALSE)=C53,1,0),0) -> 0 | B53: EA_54 | C53: ServEA54 | D53: Service Diversion - Gas Main | E53: m | F53: 0 | G53: =IFERROR(SLOPE(EA_054[Capital - Materials],EA_054[Element measure]),"") ->  | H53: 0 | I53: =IFERROR(SLOPE(EA_054[Capital - Transport],EA_054[Element measure]),"") ->  | J53: 0 | K53: =IFERROR(SLOPE(EA_054[Capital - Installation],EA_054[Element measure]),"") ->  | L53: 0 | M53: =IFERROR(SLOPE(EA_054[Operational - Use],EA_054[Element measure]),"") ->  | N53: 0 | O53: =IFERROR(SLOPE(EA_054[Operational - Maintenance],EA_054[Element measure]),"") ->  | P53: 0 | Q53: =IFERROR(SLOPE(EA_054[Operational -Repair],EA_054[Element measure]),"") ->  | R53: 0 | S53: =IFERROR(SLOPE(EA_054[Operational - Energy],EA_054[Element measure]),"") ->  | T53: 0 | U53: =IFERROR(SLOPE(EA_054[Replacement - Materials],EA_054[Element measure]),"") ->  | V53: 0 | W53: =IFERROR(SLOPE(EA_054[Replacement - Transport],EA_054[Element measure]),"") ->  | X53: 0 | Y53: =IFERROR(SLOPE(EA_054[Replacement - Installation],EA_054[Element measure]),"") ->  | Z53: 0 | AA53: =IFERROR(SLOPE(EA_054[Refurbishment],EA_054[Element measure]),"") ->  | AB53: 0 | AC53: =IFERROR(SLOPE(EA_054[Demolition],EA_054[Element measure]),"") ->  | AD53: 0 | AE53: =IFERROR(SLOPE(EA_054[Residual],EA_054[Element measure]),"") ->  | AF53: 0 | AG53: =IFERROR(SLOPE(EA_054[Whole Life Carbon],EA_054[Element measure]),"") -> 
A54: =IFERROR(IF(VLOOKUP(C54,'Model Data'!A:A,1,FALSE)=C54,1,0),0) -> 0 | B54: EA_55 | C54: ServEA55 | D54: Service Diversion - Sewer | E54: m | F54: 0 | G54: =IFERROR(SLOPE(EA_055[Capital - Materials],EA_055[Element measure]),"") ->  | H54: 0 | I54: =IFERROR(SLOPE(EA_055[Capital - Transport],EA_055[Element measure]),"") ->  | J54: 0 | K54: =IFERROR(SLOPE(EA_055[Capital - Installation],EA_055[Element measure]),"") ->  | L54: 0 | M54: =IFERROR(SLOPE(EA_055[Operational - Use],EA_055[Element measure]),"") ->  | N54: 0 | O54: =IFERROR(SLOPE(EA_055[Operational - Maintenance],EA_055[Element measure]),"") ->  | P54: 0 | Q54: =IFERROR(SLOPE(EA_055[Operational -Repair],EA_055[Element measure]),"") ->  | R54: 0 | S54: =IFERROR(SLOPE(EA_055[Operational - Energy],EA_055[Element measure]),"") ->  | T54: 0 | U54: =IFERROR(SLOPE(EA_055[Replacement - Materials],EA_055[Element measure]),"") ->  | V54: 0 | W54: =IFERROR(SLOPE(EA_055[Replacement - Transport],EA_055[Element measure]),"") ->  | X54: 0 | Y54: =IFERROR(SLOPE(EA_055[Replacement - Installation],EA_055[Element measure]),"") ->  | Z54: 0 | AA54: =IFERROR(SLOPE(EA_055[Refurbishment],EA_055[Element measure]),"") ->  | AB54: 0 | AC54: =IFERROR(SLOPE(EA_055[Demolition],EA_055[Element measure]),"") ->  | AD54: 0 | AE54: =IFERROR(SLOPE(EA_055[Residual],EA_055[Element measure]),"") ->  | AF54: 0 | AG54: =IFERROR(SLOPE(EA_055[Whole Life Carbon],EA_055[Element measure]),"") -> 
A55: =IFERROR(IF(VLOOKUP(C55,'Model Data'!A:A,1,FALSE)=C55,1,0),0) -> 0 | B55: EA_56 | C55: ServEA56 | D55: Service Diversion - Telecoms | E55: m | F55: 0 | G55: =IFERROR(SLOPE(EA_056[Capital - Materials],EA_056[Element measure]),"") ->  | H55: 0 | I55: =IFERROR(SLOPE(EA_056[Capital - Transport],EA_056[Element measure]),"") ->  | J55: 0 | K55: =IFERROR(SLOPE(EA_056[Capital - Installation],EA_056[Element measure]),"") ->  | L55: 0 | M55: =IFERROR(SLOPE(EA_056[Operational - Use],EA_056[Element measure]),"") ->  | N55: 0 | O55: =IFERROR(SLOPE(EA_056[Operational - Maintenance],EA_056[Element measure]),"") ->  | P55: 0 | Q55: =IFERROR(SLOPE(EA_056[Operational -Repair],EA_056[Element measure]),"") ->  | R55: 0 | S55: =IFERROR(SLOPE(EA_056[Operational - Energy],EA_056[Element measure]),"") ->  | T55: 0 | U55: =IFERROR(SLOPE(EA_056[Replacement - Materials],EA_056[Element measure]),"") ->  | V55: 0 | W55: =IFERROR(SLOPE(EA_056[Replacement - Transport],EA_056[Element measure]),"") ->  | X55: 0 | Y55: =IFERROR(SLOPE(EA_056[Replacement - Installation],EA_056[Element measure]),"") ->  | Z55: 0 | AA55: =IFERROR(SLOPE(EA_056[Refurbishment],EA_056[Element measure]),"") ->  | AB55: 0 | AC55: =IFERROR(SLOPE(EA_056[Demolition],EA_056[Element measure]),"") ->  | AD55: 0 | AE55: =IFERROR(SLOPE(EA_056[Residual],EA_056[Element measure]),"") ->  | AF55: 0 | AG55: =IFERROR(SLOPE(EA_056[Whole Life Carbon],EA_056[Element measure]),"") -> 
A56: =IFERROR(IF(VLOOKUP(C56,'Model Data'!A:A,1,FALSE)=C56,1,0),0) -> 0 | B56: EA_57 | C56: ServEA57 | D56: Service Diversion - Water | E56: m | F56: 0 | G56: =IFERROR(SLOPE(EA_057[Capital - Materials],EA_057[Element measure]),"") ->  | H56: 0 | I56: =IFERROR(SLOPE(EA_057[Capital - Transport],EA_057[Element measure]),"") ->  | J56: 0 | K56: =IFERROR(SLOPE(EA_057[Capital - Installation],EA_057[Element measure]),"") ->  | L56: 0 | M56: =IFERROR(SLOPE(EA_057[Operational - Use],EA_057[Element measure]),"") ->  | N56: 0 | O56: =IFERROR(SLOPE(EA_057[Operational - Maintenance],EA_057[Element measure]),"") ->  | P56: 0 | Q56: =IFERROR(SLOPE(EA_057[Operational -Repair],EA_057[Element measure]),"") ->  | R56: 0 | S56: =IFERROR(SLOPE(EA_057[Operational - Energy],EA_057[Element measure]),"") ->  | T56: 0 | U56: =IFERROR(SLOPE(EA_057[Replacement - Materials],EA_057[Element measure]),"") ->  | V56: 0 | W56: =IFERROR(SLOPE(EA_057[Replacement - Transport],EA_057[Element measure]),"") ->  | X56: 0 | Y56: =IFERROR(SLOPE(EA_057[Replacement - Installation],EA_057[Element measure]),"") ->  | Z56: 0 | AA56: =IFERROR(SLOPE(EA_057[Refurbishment],EA_057[Element measure]),"") ->  | AB56: 0 | AC56: =IFERROR(SLOPE(EA_057[Demolition],EA_057[Element measure]),"") ->  | AD56: 0 | AE56: =IFERROR(SLOPE(EA_057[Residual],EA_057[Element measure]),"") ->  | AF56: 0 | AG56: =IFERROR(SLOPE(EA_057[Whole Life Carbon],EA_057[Element measure]),"") -> 
A57: =IFERROR(IF(VLOOKUP(C57,'Model Data'!A:A,1,FALSE)=C57,1,0),0) -> 1 | B57: EA_58 | C57: SluiEA58 | D57: Sluices/penstocks | E57: m2 | F57: 0 | G57: =IFERROR(SLOPE(EA_058[Capital - Materials],EA_058[Element measure]),"") -> 0.9667071908 | H57: 0 | I57: =IFERROR(SLOPE(EA_058[Capital - Transport],EA_058[Element measure]),"") -> 3.530473428 | J57: 0 | K57: =IFERROR(SLOPE(EA_058[Capital - Installation],EA_058[Element measure]),"") -> 8.115942955 | L57: 0 | M57: =IFERROR(SLOPE(EA_058[Operational - Use],EA_058[Element measure]),"") -> 2.283194984 | N57: 0 | O57: =IFERROR(SLOPE(EA_058[Operational - Maintenance],EA_058[Element measure]),"") -> 92.66130374 | P57: 0 | Q57: =IFERROR(SLOPE(EA_058[Operational -Repair],EA_058[Element measure]),"") -> 0 | R57: 0 | S57: =IFERROR(SLOPE(EA_058[Operational - Energy],EA_058[Element measure]),"") -> 0 | T57: 0 | U57: =IFERROR(SLOPE(EA_058[Replacement - Materials],EA_058[Element measure]),"") -> 0.1926882311 | V57: 0 | W57: =IFERROR(SLOPE(EA_058[Replacement - Transport],EA_058[Element measure]),"") -> 0.7317073026 | X57: 0 | Y57: =IFERROR(SLOPE(EA_058[Replacement - Installation],EA_058[Element measure]),"") -> 1.660338346 | Z57: 0 | AA57: =IFERROR(SLOPE(EA_058[Refurbishment],EA_058[Element measure]),"") -> 1.274621407 | AB57: 0 | AC57: =IFERROR(SLOPE(EA_058[Demolition],EA_058[Element measure]),"") -> 0.9200964213 | AD57: 0 | AE57: =IFERROR(SLOPE(EA_058[Residual],EA_058[Element measure]),"") -> -1.403857739 | AF57: 0 | AG57: =IFERROR(SLOPE(EA_058[Whole Life Carbon],EA_058[Element measure]),"") -> 111.8533127
A58: =IFERROR(IF(VLOOKUP(C58,'Model Data'!A:A,1,FALSE)=C58,1,0),0) -> 1 | B58: EA_59 | C58: SoftEA59 | D58: Soft Landscaping - Grassland | E58: m2 | F58: 0 | G58: =IFERROR(SLOPE(EA_059[Capital - Materials],EA_059[Element measure]),"") -> 9.613439499e-05 | H58: 0 | I58: =IFERROR(SLOPE(EA_059[Capital - Transport],EA_059[Element measure]),"") -> 5.179221652e-05 | J58: 0 | K58: =IFERROR(SLOPE(EA_059[Capital - Installation],EA_059[Element measure]),"") -> 0.0001391964999 | L58: 0 | M58: =IFERROR(SLOPE(EA_059[Operational - Use],EA_059[Element measure]),"") -> 0 | N58: 0 | O58: =IFERROR(SLOPE(EA_059[Operational - Maintenance],EA_059[Element measure]),"") -> 0.004704961835 | P58: 0 | Q58: =IFERROR(SLOPE(EA_059[Operational -Repair],EA_059[Element measure]),"") -> 0.0003026550993 | R58: 0 | S58: =IFERROR(SLOPE(EA_059[Operational - Energy],EA_059[Element measure]),"") -> 0 | T58: 0 | U58: =IFERROR(SLOPE(EA_059[Replacement - Materials],EA_059[Element measure]),"") -> 0 | V58: 0 | W58: =IFERROR(SLOPE(EA_059[Replacement - Transport],EA_059[Element measure]),"") -> 0 | X58: 0 | Y58: =IFERROR(SLOPE(EA_059[Replacement - Installation],EA_059[Element measure]),"") -> 0 | Z58: 0 | AA58: =IFERROR(SLOPE(EA_059[Refurbishment],EA_059[Element measure]),"") -> 0 | AB58: 0 | AC58: =IFERROR(SLOPE(EA_059[Demolition],EA_059[Element measure]),"") -> 0 | AD58: 0 | AE58: =IFERROR(SLOPE(EA_059[Residual],EA_059[Element measure]),"") -> 0 | AF58: 0 | AG58: =IFERROR(SLOPE(EA_059[Whole Life Carbon],EA_059[Element measure]),"") -> 0.005294740046
A59: =IFERROR(IF(VLOOKUP(C59,'Model Data'!A:A,1,FALSE)=C59,1,0),0) -> 1 | B59: EA_60 | C59: SoftEA60 | D59: Soft Landscaping - Shrubs/Tress | E59: m2 | F59: 0 | G59: =IFERROR(SLOPE(EA_060[Capital - Materials],EA_060[Element measure]),"") -> 0 | H59: 0 | I59: =IFERROR(SLOPE(EA_060[Capital - Transport],EA_060[Element measure]),"") -> 0 | J59: 0 | K59: =IFERROR(SLOPE(EA_060[Capital - Installation],EA_060[Element measure]),"") -> 0 | L59: 0 | M59: =IFERROR(SLOPE(EA_060[Operational - Use],EA_060[Element measure]),"") -> 0 | N59: 0 | O59: =IFERROR(SLOPE(EA_060[Operational - Maintenance],EA_060[Element measure]),"") -> 0.0006556179035 | P59: 0 | Q59: =IFERROR(SLOPE(EA_060[Operational -Repair],EA_060[Element measure]),"") -> 1.781263707e-06 | R59: 0 | S59: =IFERROR(SLOPE(EA_060[Operational - Energy],EA_060[Element measure]),"") -> 0 | T59: 0 | U59: =IFERROR(SLOPE(EA_060[Replacement - Materials],EA_060[Element measure]),"") -> 0 | V59: 0 | W59: =IFERROR(SLOPE(EA_060[Replacement - Transport],EA_060[Element measure]),"") -> 0 | X59: 0 | Y59: =IFERROR(SLOPE(EA_060[Replacement - Installation],EA_060[Element measure]),"") -> 0 | Z59: 0 | AA59: =IFERROR(SLOPE(EA_060[Refurbishment],EA_060[Element measure]),"") -> 0 | AB59: 0 | AC59: =IFERROR(SLOPE(EA_060[Demolition],EA_060[Element measure]),"") -> 0 | AD59: 0 | AE59: =IFERROR(SLOPE(EA_060[Residual],EA_060[Element measure]),"") -> 0 | AF59: 0 | AG59: =IFERROR(SLOPE(EA_060[Whole Life Carbon],EA_060[Element measure]),"") -> 0.0006573991672
A60: =IFERROR(IF(VLOOKUP(C60,'Model Data'!A:A,1,FALSE)=C60,1,0),0) -> 0 | B60: EA_61 | C60: TeleEA61 | D60: Telemetry Link | E60: m | F60: 0 | G60: =IFERROR(SLOPE(EA_061[Capital - Materials],EA_061[Element measure]),"") ->  | H60: 0 | I60: =IFERROR(SLOPE(EA_061[Capital - Transport],EA_061[Element measure]),"") ->  | J60: 0 | K60: =IFERROR(SLOPE(EA_061[Capital - Installation],EA_061[Element measure]),"") ->  | L60: 0 | M60: =IFERROR(SLOPE(EA_061[Operational - Use],EA_061[Element measure]),"") ->  | N60: 0 | O60: =IFERROR(SLOPE(EA_061[Operational - Maintenance],EA_061[Element measure]),"") ->  | P60: 0 | Q60: =IFERROR(SLOPE(EA_061[Operational -Repair],EA_061[Element measure]),"") ->  | R60: 0 | S60: =IFERROR(SLOPE(EA_061[Operational - Energy],EA_061[Element measure]),"") ->  | T60: 0 | U60: =IFERROR(SLOPE(EA_061[Replacement - Materials],EA_061[Element measure]),"") ->  | V60: 0 | W60: =IFERROR(SLOPE(EA_061[Replacement - Transport],EA_061[Element measure]),"") ->  | X60: 0 | Y60: =IFERROR(SLOPE(EA_061[Replacement - Installation],EA_061[Element measure]),"") ->  | Z60: 0 | AA60: =IFERROR(SLOPE(EA_061[Refurbishment],EA_061[Element measure]),"") ->  | AB60: 0 | AC60: =IFERROR(SLOPE(EA_061[Demolition],EA_061[Element measure]),"") ->  | AD60: 0 | AE60: =IFERROR(SLOPE(EA_061[Residual],EA_061[Element measure]),"") ->  | AF60: 0 | AG60: =IFERROR(SLOPE(EA_061[Whole Life Carbon],EA_061[Element measure]),"") -> 
A61: =IFERROR(IF(VLOOKUP(C61,'Model Data'!A:A,1,FALSE)=C61,1,0),0) -> 0 | B61: EA_62 | C61: TidaEA62 | D61: Tidal Gate | E61: m2 | F61: 0 | G61: =IFERROR(SLOPE(EA_062[Capital - Materials],EA_062[Element measure]),"") ->  | H61: 0 | I61: =IFERROR(SLOPE(EA_062[Capital - Transport],EA_062[Element measure]),"") ->  | J61: 0 | K61: =IFERROR(SLOPE(EA_062[Capital - Installation],EA_062[Element measure]),"") ->  | L61: 0 | M61: =IFERROR(SLOPE(EA_062[Operational - Use],EA_062[Element measure]),"") ->  | N61: 0 | O61: =IFERROR(SLOPE(EA_062[Operational - Maintenance],EA_062[Element measure]),"") ->  | P61: 0 | Q61: =IFERROR(SLOPE(EA_062[Operational -Repair],EA_062[Element measure]),"") ->  | R61: 0 | S61: =IFERROR(SLOPE(EA_062[Operational - Energy],EA_062[Element measure]),"") ->  | T61: 0 | U61: =IFERROR(SLOPE(EA_062[Replacement - Materials],EA_062[Element measure]),"") ->  | V61: 0 | W61: =IFERROR(SLOPE(EA_062[Replacement - Transport],EA_062[Element measure]),"") ->  | X61: 0 | Y61: =IFERROR(SLOPE(EA_062[Replacement - Installation],EA_062[Element measure]),"") ->  | Z61: 0 | AA61: =IFERROR(SLOPE(EA_062[Refurbishment],EA_062[Element measure]),"") ->  | AB61: 0 | AC61: =IFERROR(SLOPE(EA_062[Demolition],EA_062[Element measure]),"") ->  | AD61: 0 | AE61: =IFERROR(SLOPE(EA_062[Residual],EA_062[Element measure]),"") ->  | AF61: 0 | AG61: =IFERROR(SLOPE(EA_062[Whole Life Carbon],EA_062[Element measure]),"") -> 
A62: =IFERROR(IF(VLOOKUP(C62,'Model Data'!A:A,1,FALSE)=C62,1,0),0) -> 1 | B62: EA_63 | C62: TidaEA63 | D62: Tidal Wall - Retaining - Concrete | E62: m3 | F62: 0 | G62: =IFERROR(SLOPE(EA_063[Capital - Materials],EA_063[Element measure]),"") -> 0.3131726732 | H62: 0 | I62: =IFERROR(SLOPE(EA_063[Capital - Transport],EA_063[Element measure]),"") -> 0.3713500468 | J62: 0 | K62: =IFERROR(SLOPE(EA_063[Capital - Installation],EA_063[Element measure]),"") -> 1.037803372 | L62: 0 | M62: =IFERROR(SLOPE(EA_063[Operational - Use],EA_063[Element measure]),"") -> 0 | N62: 0 | O62: =IFERROR(SLOPE(EA_063[Operational - Maintenance],EA_063[Element measure]),"") -> 6.311014802 | P62: 0 | Q62: =IFERROR(SLOPE(EA_063[Operational -Repair],EA_063[Element measure]),"") -> 0.8413673396 | R62: 0 | S62: =IFERROR(SLOPE(EA_063[Operational - Energy],EA_063[Element measure]),"") -> 0 | T62: 0 | U62: =IFERROR(SLOPE(EA_063[Replacement - Materials],EA_063[Element measure]),"") -> 0 | V62: 0 | W62: =IFERROR(SLOPE(EA_063[Replacement - Transport],EA_063[Element measure]),"") -> 0 | X62: 0 | Y62: =IFERROR(SLOPE(EA_063[Replacement - Installation],EA_063[Element measure]),"") -> 0 | Z62: 0 | AA62: =IFERROR(SLOPE(EA_063[Refurbishment],EA_063[Element measure]),"") -> 0 | AB62: 0 | AC62: =IFERROR(SLOPE(EA_063[Demolition],EA_063[Element measure]),"") -> 0 | AD62: 0 | AE62: =IFERROR(SLOPE(EA_063[Residual],EA_063[Element measure]),"") -> 0 | AF62: 0 | AG62: =IFERROR(SLOPE(EA_063[Whole Life Carbon],EA_063[Element measure]),"") -> 8.874708234
A63: =IFERROR(IF(VLOOKUP(C63,'Model Data'!A:A,1,FALSE)=C63,1,0),0) -> 0 | B63: EA_64 | C63: TidaEA64 | D63: Tidal Wall - Retaining - Masonry | E63: m3 | F63: 0 | G63: =IFERROR(SLOPE(EA_064[Capital - Materials],EA_064[Element measure]),"") ->  | H63: 0 | I63: =IFERROR(SLOPE(EA_064[Capital - Transport],EA_064[Element measure]),"") ->  | J63: 0 | K63: =IFERROR(SLOPE(EA_064[Capital - Installation],EA_064[Element measure]),"") ->  | L63: 0 | M63: =IFERROR(SLOPE(EA_064[Operational - Use],EA_064[Element measure]),"") ->  | N63: 0 | O63: =IFERROR(SLOPE(EA_064[Operational - Maintenance],EA_064[Element measure]),"") ->  | P63: 0 | Q63: =IFERROR(SLOPE(EA_064[Operational -Repair],EA_064[Element measure]),"") ->  | R63: 0 | S63: =IFERROR(SLOPE(EA_064[Operational - Energy],EA_064[Element measure]),"") ->  | T63: 0 | U63: =IFERROR(SLOPE(EA_064[Replacement - Materials],EA_064[Element measure]),"") ->  | V63: 0 | W63: =IFERROR(SLOPE(EA_064[Replacement - Transport],EA_064[Element measure]),"") ->  | X63: 0 | Y63: =IFERROR(SLOPE(EA_064[Replacement - Installation],EA_064[Element measure]),"") ->  | Z63: 0 | AA63: =IFERROR(SLOPE(EA_064[Refurbishment],EA_064[Element measure]),"") ->  | AB63: 0 | AC63: =IFERROR(SLOPE(EA_064[Demolition],EA_064[Element measure]),"") ->  | AD63: 0 | AE63: =IFERROR(SLOPE(EA_064[Residual],EA_064[Element measure]),"") ->  | AF63: 0 | AG63: =IFERROR(SLOPE(EA_064[Whole Life Carbon],EA_064[Element measure]),"") -> 
A64: =IFERROR(IF(VLOOKUP(C64,'Model Data'!A:A,1,FALSE)=C64,1,0),0) -> 1 | B64: EA_65 | C64: TidaEA65 | D64: Tidal Wall - Retaining - Sheetpiled | E64: m2 | F64: 0 | G64: =IFERROR(SLOPE(EA_065[Capital - Materials],EA_065[Element measure]),"") -> 0.0447873104 | H64: 0 | I64: =IFERROR(SLOPE(EA_065[Capital - Transport],EA_065[Element measure]),"") -> 0.003086820903 | J64: 0 | K64: =IFERROR(SLOPE(EA_065[Capital - Installation],EA_065[Element measure]),"") -> 0.007982224528 | L64: 0 | M64: =IFERROR(SLOPE(EA_065[Operational - Use],EA_065[Element measure]),"") -> 0 | N64: 0 | O64: =IFERROR(SLOPE(EA_065[Operational - Maintenance],EA_065[Element measure]),"") -> 0.2901021247 | P64: 0 | Q64: =IFERROR(SLOPE(EA_065[Operational -Repair],EA_065[Element measure]),"") -> 0.03038687974 | R64: 0 | S64: =IFERROR(SLOPE(EA_065[Operational - Energy],EA_065[Element measure]),"") -> 0 | T64: 0 | U64: =IFERROR(SLOPE(EA_065[Replacement - Materials],EA_065[Element measure]),"") -> 0 | V64: 0 | W64: =IFERROR(SLOPE(EA_065[Replacement - Transport],EA_065[Element measure]),"") -> 0 | X64: 0 | Y64: =IFERROR(SLOPE(EA_065[Replacement - Installation],EA_065[Element measure]),"") -> 0 | Z64: 0 | AA64: =IFERROR(SLOPE(EA_065[Refurbishment],EA_065[Element measure]),"") -> 0 | AB64: 0 | AC64: =IFERROR(SLOPE(EA_065[Demolition],EA_065[Element measure]),"") -> 0 | AD64: 0 | AE64: =IFERROR(SLOPE(EA_065[Residual],EA_065[Element measure]),"") -> 0 | AF64: 0 | AG64: =IFERROR(SLOPE(EA_065[Whole Life Carbon],EA_065[Element measure]),"") -> 0.3763453603
A65: =IFERROR(IF(VLOOKUP(C65,'Model Data'!A:A,1,FALSE)=C65,1,0),0) -> 1 | B65: EA_66 | C65: TrasEA66 | D65: Trash Screen | E65: tonnes | F65: 0 | G65: =IFERROR(SLOPE(EA_066[Capital - Materials],EA_066[Element measure]),"") -> 10.60035845 | H65: 0 | I65: =IFERROR(SLOPE(EA_066[Capital - Transport],EA_066[Element measure]),"") -> 1.301360552 | J65: 0 | K65: =IFERROR(SLOPE(EA_066[Capital - Installation],EA_066[Element measure]),"") -> 4.492049034 | L65: 0 | M65: =IFERROR(SLOPE(EA_066[Operational - Use],EA_066[Element measure]),"") -> 0 | N65: 0 | O65: =IFERROR(SLOPE(EA_066[Operational - Maintenance],EA_066[Element measure]),"") -> 1324.71248 | P65: 0 | Q65: =IFERROR(SLOPE(EA_066[Operational -Repair],EA_066[Element measure]),"") -> 0 | R65: 0 | S65: =IFERROR(SLOPE(EA_066[Operational - Energy],EA_066[Element measure]),"") -> 0 | T65: 0 | U65: =IFERROR(SLOPE(EA_066[Replacement - Materials],EA_066[Element measure]),"") -> 1.799231595 | V65: 0 | W65: =IFERROR(SLOPE(EA_066[Replacement - Transport],EA_066[Element measure]),"") -> 0.2208839477 | X65: 0 | Y65: =IFERROR(SLOPE(EA_066[Replacement - Installation],EA_066[Element measure]),"") -> 0.7624493631 | Z65: 0 | AA65: =IFERROR(SLOPE(EA_066[Refurbishment],EA_066[Element measure]),"") -> 1.603327765 | AB65: 0 | AC65: =IFERROR(SLOPE(EA_066[Demolition],EA_066[Element measure]),"") -> 0.4430629542 | AD65: 0 | AE65: =IFERROR(SLOPE(EA_066[Residual],EA_066[Element measure]),"") -> -1.492139056 | AF65: 0 | AG65: =IFERROR(SLOPE(EA_066[Whole Life Carbon],EA_066[Element measure]),"") -> 1344.886128
A66: =IFERROR(IF(VLOOKUP(C66,'Model Data'!A:A,1,FALSE)=C66,1,0),0) -> 0 | B66: EA_67 | C66: TunnEA67 | D66: Tunnelling | E66: m3 | F66: 0 | G66: =IFERROR(SLOPE(EA_067[Capital - Materials],EA_067[Element measure]),"") ->  | H66: 0 | I66: =IFERROR(SLOPE(EA_067[Capital - Transport],EA_067[Element measure]),"") ->  | J66: 0 | K66: =IFERROR(SLOPE(EA_067[Capital - Installation],EA_067[Element measure]),"") ->  | L66: 0 | M66: =IFERROR(SLOPE(EA_067[Operational - Use],EA_067[Element measure]),"") ->  | N66: 0 | O66: =IFERROR(SLOPE(EA_067[Operational - Maintenance],EA_067[Element measure]),"") ->  | P66: 0 | Q66: =IFERROR(SLOPE(EA_067[Operational -Repair],EA_067[Element measure]),"") ->  | R66: 0 | S66: =IFERROR(SLOPE(EA_067[Operational - Energy],EA_067[Element measure]),"") ->  | T66: 0 | U66: =IFERROR(SLOPE(EA_067[Replacement - Materials],EA_067[Element measure]),"") ->  | V66: 0 | W66: =IFERROR(SLOPE(EA_067[Replacement - Transport],EA_067[Element measure]),"") ->  | X66: 0 | Y66: =IFERROR(SLOPE(EA_067[Replacement - Installation],EA_067[Element measure]),"") ->  | Z66: 0 | AA66: =IFERROR(SLOPE(EA_067[Refurbishment],EA_067[Element measure]),"") ->  | AB66: 0 | AC66: =IFERROR(SLOPE(EA_067[Demolition],EA_067[Element measure]),"") ->  | AD66: 0 | AE66: =IFERROR(SLOPE(EA_067[Residual],EA_067[Element measure]),"") ->  | AF66: 0 | AG66: =IFERROR(SLOPE(EA_067[Whole Life Carbon],EA_067[Element measure]),"") -> 
A67: =IFERROR(IF(VLOOKUP(C67,'Model Data'!A:A,1,FALSE)=C67,1,0),0) -> 0 | B67: EA_68 | C67: WallEA68 | D67: Wall Raising | E67: m2 | F67: 0 | G67: =IFERROR(SLOPE(EA_068[Capital - Materials],EA_068[Element measure]),"") ->  | H67: 0 | I67: =IFERROR(SLOPE(EA_068[Capital - Transport],EA_068[Element measure]),"") ->  | J67: 0 | K67: =IFERROR(SLOPE(EA_068[Capital - Installation],EA_068[Element measure]),"") ->  | L67: 0 | M67: =IFERROR(SLOPE(EA_068[Operational - Use],EA_068[Element measure]),"") ->  | N67: 0 | O67: =IFERROR(SLOPE(EA_068[Operational - Maintenance],EA_068[Element measure]),"") ->  | P67: 0 | Q67: =IFERROR(SLOPE(EA_068[Operational -Repair],EA_068[Element measure]),"") ->  | R67: 0 | S67: =IFERROR(SLOPE(EA_068[Operational - Energy],EA_068[Element measure]),"") ->  | T67: 0 | U67: =IFERROR(SLOPE(EA_068[Replacement - Materials],EA_068[Element measure]),"") ->  | V67: 0 | W67: =IFERROR(SLOPE(EA_068[Replacement - Transport],EA_068[Element measure]),"") ->  | X67: 0 | Y67: =IFERROR(SLOPE(EA_068[Replacement - Installation],EA_068[Element measure]),"") ->  | Z67: 0 | AA67: =IFERROR(SLOPE(EA_068[Refurbishment],EA_068[Element measure]),"") ->  | AB67: 0 | AC67: =IFERROR(SLOPE(EA_068[Demolition],EA_068[Element measure]),"") ->  | AD67: 0 | AE67: =IFERROR(SLOPE(EA_068[Residual],EA_068[Element measure]),"") ->  | AF67: 0 | AG67: =IFERROR(SLOPE(EA_068[Whole Life Carbon],EA_068[Element measure]),"") -> 
A68: =IFERROR(IF(VLOOKUP(C68,'Model Data'!A:A,1,FALSE)=C68,1,0),0) -> 0 | B68: EA_69 | C68: WeirEA69 | D68: Weir | E68: m2 | F68: 0 | G68: =IFERROR(SLOPE(EA_069[Capital - Materials],EA_069[Element measure]),"") ->  | H68: 0 | I68: =IFERROR(SLOPE(EA_069[Capital - Transport],EA_069[Element measure]),"") ->  | J68: 0 | K68: =IFERROR(SLOPE(EA_069[Capital - Installation],EA_069[Element measure]),"") ->  | L68: 0 | M68: =IFERROR(SLOPE(EA_069[Operational - Use],EA_069[Element measure]),"") ->  | N68: 0 | O68: =IFERROR(SLOPE(EA_069[Operational - Maintenance],EA_069[Element measure]),"") ->  | P68: 0 | Q68: =IFERROR(SLOPE(EA_069[Operational -Repair],EA_069[Element measure]),"") ->  | R68: 0 | S68: =IFERROR(SLOPE(EA_069[Operational - Energy],EA_069[Element measure]),"") ->  | T68: 0 | U68: =IFERROR(SLOPE(EA_069[Replacement - Materials],EA_069[Element measure]),"") ->  | V68: 0 | W68: =IFERROR(SLOPE(EA_069[Replacement - Transport],EA_069[Element measure]),"") ->  | X68: 0 | Y68: =IFERROR(SLOPE(EA_069[Replacement - Installation],EA_069[Element measure]),"") ->  | Z68: 0 | AA68: =IFERROR(SLOPE(EA_069[Refurbishment],EA_069[Element measure]),"") ->  | AB68: 0 | AC68: =IFERROR(SLOPE(EA_069[Demolition],EA_069[Element measure]),"") ->  | AD68: 0 | AE68: =IFERROR(SLOPE(EA_069[Residual],EA_069[Element measure]),"") ->  | AF68: 0 | AG68: =IFERROR(SLOPE(EA_069[Whole Life Carbon],EA_069[Element measure]),"") -> 
A69: =IFERROR(IF(VLOOKUP(C69,'Model Data'!A:A,1,FALSE)=C69,1,0),0) -> 0 | B69: ea_8 | D69: Other | E69: Enter Unit
A70: =IFERROR(IF(VLOOKUP(C70,'Model Data'!A:A,1,FALSE)=C70,1,0),0) -> 0 | B70: EA_070 | C70: FlooEA70 | D70: Flood gates | E70: m2 | F70: 0 | G70: =IFERROR(SLOPE(EA_070[Capital - Materials],EA_070[Element measure]),"") ->  | H70: 0 | I70: =IFERROR(SLOPE(EA_070[Capital - Transport],EA_070[Element measure]),"") ->  | J70: 0 | K70: =IFERROR(SLOPE(EA_070[Capital - Installation],EA_070[Element measure]),"") ->  | L70: 0 | M70: =IFERROR(SLOPE(EA_070[Operational - Use],EA_070[Element measure]),"") ->  | N70: 0 | O70: =IFERROR(SLOPE(EA_070[Operational - Maintenance],EA_070[Element measure]),"") ->  | P70: 0 | Q70: =IFERROR(SLOPE(EA_070[Operational -Repair],EA_070[Element measure]),"") ->  | R70: 0 | S70: =IFERROR(SLOPE(EA_070[Operational - Energy],EA_070[Element measure]),"") ->  | T70: 0 | U70: =IFERROR(SLOPE(EA_070[Replacement - Materials],EA_070[Element measure]),"") ->  | V70: 0 | W70: =IFERROR(SLOPE(EA_070[Replacement - Transport],EA_070[Element measure]),"") ->  | X70: 0 | Y70: =IFERROR(SLOPE(EA_070[Replacement - Installation],EA_070[Element measure]),"") ->  | Z70: 0 | AA70: =IFERROR(SLOPE(EA_070[Refurbishment],EA_070[Element measure]),"") ->  | AB70: 0 | AC70: =IFERROR(SLOPE(EA_070[Demolition],EA_070[Element measure]),"") ->  | AD70: 0 | AE70: =IFERROR(SLOPE(EA_070[Residual],EA_070[Element measure]),"") ->  | AF70: 0 | AG70: =IFERROR(SLOPE(EA_070[Whole Life Carbon],EA_070[Element measure]),"") -> 
A71: =IFERROR(IF(VLOOKUP(C71,'Model Data'!A:A,1,FALSE)=C71,1,0),0) -> 0 | B71: EA_072 | C71: BeacEA71 | D71: Beach control structures | E71: m2 | F71: 0 | G71: =IFERROR(SLOPE(EA_071[Capital - Materials],EA_071[Element measure]),"") ->  | H71: 0 | I71: =IFERROR(SLOPE(EA_071[Capital - Transport],EA_071[Element measure]),"") ->  | J71: 0 | K71: =IFERROR(SLOPE(EA_071[Capital - Installation],EA_071[Element measure]),"") ->  | L71: 0 | M71: =IFERROR(SLOPE(EA_071[Operational - Use],EA_071[Element measure]),"") ->  | N71: 0 | O71: =IFERROR(SLOPE(EA_071[Operational - Maintenance],EA_071[Element measure]),"") ->  | P71: 0 | Q71: =IFERROR(SLOPE(EA_071[Operational -Repair],EA_071[Element measure]),"") ->  | R71: 0 | S71: =IFERROR(SLOPE(EA_071[Operational - Energy],EA_071[Element measure]),"") ->  | T71: 0 | U71: =IFERROR(SLOPE(EA_071[Replacement - Materials],EA_071[Element measure]),"") ->  | V71: 0 | W71: =IFERROR(SLOPE(EA_071[Replacement - Transport],EA_071[Element measure]),"") ->  | X71: 0 | Y71: =IFERROR(SLOPE(EA_071[Replacement - Installation],EA_071[Element measure]),"") ->  | Z71: 0 | AA71: =IFERROR(SLOPE(EA_071[Refurbishment],EA_071[Element measure]),"") ->  | AB71: 0 | AC71: =IFERROR(SLOPE(EA_071[Demolition],EA_071[Element measure]),"") ->  | AD71: 0 | AE71: =IFERROR(SLOPE(EA_071[Residual],EA_071[Element measure]),"") ->  | AF71: 0 | AG71: =IFERROR(SLOPE(EA_071[Whole Life Carbon],EA_071[Element measure]),"") -> 
A72: =IFERROR(IF(VLOOKUP(C72,'Model Data'!A:A,1,FALSE)=C72,1,0),0) -> 0 | B72: EA_073 | C72: EnviEA72 | D72: Environmental Enhancements | E72: m2 | F72: 0 | G72: =IFERROR(SLOPE(EA_073[Capital - Materials],EA_073[Element measure]),"") ->  | H72: 0 | I72: =IFERROR(SLOPE(EA_073[Capital - Transport],EA_073[Element measure]),"") ->  | J72: 0 | K72: =IFERROR(SLOPE(EA_073[Capital - Installation],EA_073[Element measure]),"") ->  | L72: 0 | M72: =IFERROR(SLOPE(EA_073[Operational - Use],EA_073[Element measure]),"") ->  | N72: 0 | O72: =IFERROR(SLOPE(EA_073[Operational - Maintenance],EA_073[Element measure]),"") ->  | P72: 0 | Q72: =IFERROR(SLOPE(EA_073[Operational -Repair],EA_073[Element measure]),"") ->  | R72: 0 | S72: =IFERROR(SLOPE(EA_073[Operational - Energy],EA_073[Element measure]),"") ->  | T72: 0 | U72: =IFERROR(SLOPE(EA_073[Replacement - Materials],EA_073[Element measure]),"") ->  | V72: 0 | W72: =IFERROR(SLOPE(EA_073[Replacement - Transport],EA_073[Element measure]),"") ->  | X72: 0 | Y72: =IFERROR(SLOPE(EA_073[Replacement - Installation],EA_073[Element measure]),"") ->  | Z72: 0 | AA72: =IFERROR(SLOPE(EA_073[Refurbishment],EA_073[Element measure]),"") ->  | AB72: 0 | AC72: =IFERROR(SLOPE(EA_073[Demolition],EA_073[Element measure]),"") ->  | AD72: 0 | AE72: =IFERROR(SLOPE(EA_073[Residual],EA_073[Element measure]),"") ->  | AF72: 0 | AG72: =IFERROR(SLOPE(EA_073[Whole Life Carbon],EA_073[Element measure]),"") -> 
A73: =IFERROR(IF(VLOOKUP(C73,'Model Data'!A:A,1,FALSE)=C73,1,0),0) -> 0 | B73: EA_074 | C73: MotoEA73 | D73: Motor Control Centre | E73: kW | F73: 0 | G73: =IFERROR(SLOPE(EA_074[Capital - Materials],EA_074[Element measure]),"") ->  | H73: 0 | I73: =IFERROR(SLOPE(EA_074[Capital - Transport],EA_074[Element measure]),"") ->  | J73: 0 | K73: =IFERROR(SLOPE(EA_074[Capital - Installation],EA_074[Element measure]),"") ->  | L73: 0 | M73: =IFERROR(SLOPE(EA_074[Operational - Use],EA_074[Element measure]),"") ->  | N73: 0 | O73: =IFERROR(SLOPE(EA_074[Operational - Maintenance],EA_074[Element measure]),"") ->  | P73: 0 | Q73: =IFERROR(SLOPE(EA_074[Operational -Repair],EA_074[Element measure]),"") ->  | R73: 0 | S73: =IFERROR(SLOPE(EA_074[Operational - Energy],EA_074[Element measure]),"") ->  | T73: 0 | U73: =IFERROR(SLOPE(EA_074[Replacement - Materials],EA_074[Element measure]),"") ->  | V73: 0 | W73: =IFERROR(SLOPE(EA_074[Replacement - Transport],EA_074[Element measure]),"") ->  | X73: 0 | Y73: =IFERROR(SLOPE(EA_074[Replacement - Installation],EA_074[Element measure]),"") ->  | Z73: 0 | AA73: =IFERROR(SLOPE(EA_074[Refurbishment],EA_074[Element measure]),"") ->  | AB73: 0 | AC73: =IFERROR(SLOPE(EA_074[Demolition],EA_074[Element measure]),"") ->  | AD73: 0 | AE73: =IFERROR(SLOPE(EA_074[Residual],EA_074[Element measure]),"") ->  | AF73: 0 | AG73: =IFERROR(SLOPE(EA_074[Whole Life Carbon],EA_074[Element measure]),"") -> 
A74: =IFERROR(IF(VLOOKUP(C74,'Model Data'!A:A,1,FALSE)=C74,1,0),0) -> 0 | B74: EA_075 | C74: SiltEA74 | D74: Silt removal | E74: m3 | F74: 0 | G74: =IFERROR(SLOPE(EA_075[Capital - Materials],EA_075[Element measure]),"") ->  | H74: 0 | I74: =IFERROR(SLOPE(EA_075[Capital - Transport],EA_075[Element measure]),"") ->  | J74: 0 | K74: =IFERROR(SLOPE(EA_075[Capital - Installation],EA_075[Element measure]),"") ->  | L74: 0 | M74: =IFERROR(SLOPE(EA_075[Operational - Use],EA_075[Element measure]),"") ->  | N74: 0 | O74: =IFERROR(SLOPE(EA_075[Operational - Maintenance],EA_075[Element measure]),"") ->  | P74: 0 | Q74: =IFERROR(SLOPE(EA_075[Operational -Repair],EA_075[Element measure]),"") ->  | R74: 0 | S74: =IFERROR(SLOPE(EA_075[Operational - Energy],EA_075[Element measure]),"") ->  | T74: 0 | U74: =IFERROR(SLOPE(EA_075[Replacement - Materials],EA_075[Element measure]),"") ->  | V74: 0 | W74: =IFERROR(SLOPE(EA_075[Replacement - Transport],EA_075[Element measure]),"") ->  | X74: 0 | Y74: =IFERROR(SLOPE(EA_075[Replacement - Installation],EA_075[Element measure]),"") ->  | Z74: 0 | AA74: =IFERROR(SLOPE(EA_075[Refurbishment],EA_075[Element measure]),"") ->  | AB74: 0 | AC74: =IFERROR(SLOPE(EA_075[Demolition],EA_075[Element measure]),"") ->  | AD74: 0 | AE74: =IFERROR(SLOPE(EA_075[Residual],EA_075[Element measure]),"") ->  | AF74: 0 | AG74: =IFERROR(SLOPE(EA_075[Whole Life Carbon],EA_075[Element measure]),"") -> 
A75: =IFERROR(IF(VLOOKUP(C75,'Model Data'!A:A,1,FALSE)=C75,1,0),0) -> 0 | B75: EA_076 | C75: SingEA75 | D75: Single Property Protection Measures | E75: nr. | F75: 0 | G75: =IFERROR(SLOPE(EA_076[Capital - Materials],EA_076[Element measure]),"") ->  | H75: 0 | I75: =IFERROR(SLOPE(EA_076[Capital - Transport],EA_076[Element measure]),"") ->  | J75: 0 | K75: =IFERROR(SLOPE(EA_076[Capital - Installation],EA_076[Element measure]),"") ->  | L75: 0 | M75: =IFERROR(SLOPE(EA_076[Operational - Use],EA_076[Element measure]),"") ->  | N75: 0 | O75: =IFERROR(SLOPE(EA_076[Operational - Maintenance],EA_076[Element measure]),"") ->  | P75: 0 | Q75: =IFERROR(SLOPE(EA_076[Operational -Repair],EA_076[Element measure]),"") ->  | R75: 0 | S75: =IFERROR(SLOPE(EA_076[Operational - Energy],EA_076[Element measure]),"") ->  | T75: 0 | U75: =IFERROR(SLOPE(EA_076[Replacement - Materials],EA_076[Element measure]),"") ->  | V75: 0 | W75: =IFERROR(SLOPE(EA_076[Replacement - Transport],EA_076[Element measure]),"") ->  | X75: 0 | Y75: =IFERROR(SLOPE(EA_076[Replacement - Installation],EA_076[Element measure]),"") ->  | Z75: 0 | AA75: =IFERROR(SLOPE(EA_076[Refurbishment],EA_076[Element measure]),"") ->  | AB75: 0 | AC75: =IFERROR(SLOPE(EA_076[Demolition],EA_076[Element measure]),"") ->  | AD75: 0 | AE75: =IFERROR(SLOPE(EA_076[Residual],EA_076[Element measure]),"") ->  | AF75: 0 | AG75: =IFERROR(SLOPE(EA_076[Whole Life Carbon],EA_076[Element measure]),"") -> 

Sheet ElementsUsed (hidden)
A1: Element Used
A2: Other
A3: =IFERROR(INDEX('Carbon Curve Data'!$D$2:$D$69,SMALL(IF('Carbon Curve Data'!$A$2:$A$69=1,ROW('Carbon Curve Data'!$D$2:$D$69)-ROW('Carbon Curve Data'!$D$2)+1),ROWS('Carbon Curve Data'!$D$2:'Carbon Curve Data'!D2))),"") -> Channel - RC
A4: =IFERROR(INDEX('Carbon Curve Data'!$D$2:$D$69,SMALL(IF('Carbon Curve Data'!$A$2:$A$69=1,ROW('Carbon Curve Data'!$D$2:$D$69)-ROW('Carbon Curve Data'!$D$2)+1),ROWS('Carbon Curve Data'!$D$2:'Carbon Curve Data'!D3))),"") -> Control Building
A5: =IFERROR(INDEX('Carbon Curve Data'!$D$2:$D$69,SMALL(IF('Carbon Curve Data'!$A$2:$A$69=1,ROW('Carbon Curve Data'!$D$2:$D$69)-ROW('Carbon Curve Data'!$D$2)+1),ROWS('Carbon Curve Data'!$D$2:'Carbon Curve Data'!D4))),"") -> Culvert
A6: =IFERROR(INDEX('Carbon Curve Data'!$D$2:$D$69,SMALL(IF('Carbon Curve Data'!$A$2:$A$69=1,ROW('Carbon Curve Data'!$D$2:$D$69)-ROW('Carbon Curve Data'!$D$2)+1),ROWS('Carbon Curve Data'!$D$2:'Carbon Curve Data'!D5))),"") -> Culvert Inlet/outlet Works
A7: =IFERROR(INDEX('Carbon Curve Data'!$D$2:$D$69,SMALL(IF('Carbon Curve Data'!$A$2:$A$69=1,ROW('Carbon Curve Data'!$D$2:$D$69)-ROW('Carbon Curve Data'!$D$2)+1),ROWS('Carbon Curve Data'!$D$2:'Carbon Curve Data'!D6))),"") -> Embankment - New
A8: =IFERROR(INDEX('Carbon Curve Data'!$D$2:$D$69,SMALL(IF('Carbon Curve Data'!$A$2:$A$69=1,ROW('Carbon Curve Data'!$D$2:$D$69)-ROW('Carbon Curve Data'!$D$2)+1),ROWS('Carbon Curve Data'!$D$2:'Carbon Curve Data'!D7))),"") -> Erosion Protection - Geotextile
A9: =IFERROR(INDEX('Carbon Curve Data'!$D$2:$D$69,SMALL(IF('Carbon Curve Data'!$A$2:$A$69=1,ROW('Carbon Curve Data'!$D$2:$D$69)-ROW('Carbon Curve Data'!$D$2)+1),ROWS('Carbon Curve Data'!$D$2:'Carbon Curve Data'!D8))),"") -> Erosion Protection - Grasscrete
A10: =IFERROR(INDEX('Carbon Curve Data'!$D$2:$D$69,SMALL(IF('Carbon Curve Data'!$A$2:$A$69=1,ROW('Carbon Curve Data'!$D$2:$D$69)-ROW('Carbon Curve Data'!$D$2)+1),ROWS('Carbon Curve Data'!$D$2:'Carbon Curve Data'!D9))),"") -> Field Drainage
A11: =IFERROR(INDEX('Carbon Curve Data'!$D$2:$D$69,SMALL(IF('Carbon Curve Data'!$A$2:$A$69=1,ROW('Carbon Curve Data'!$D$2:$D$69)-ROW('Carbon Curve Data'!$D$2)+1),ROWS('Carbon Curve Data'!$D$2:'Carbon Curve Data'!D10))),"") -> Fish Pass - Larinier - Bypass Weir
A12: =IFERROR(INDEX('Carbon Curve Data'!$D$2:$D$69,SMALL(IF('Carbon Curve Data'!$A$2:$A$69=1,ROW('Carbon Curve Data'!$D$2:$D$69)-ROW('Carbon Curve Data'!$D$2)+1),ROWS('Carbon Curve Data'!$D$2:'Carbon Curve Data'!D11))),"") -> Fish Pass - Larinier - Through Weir
A13: =IFERROR(INDEX('Carbon Curve Data'!$D$2:$D$69,SMALL(IF('Carbon Curve Data'!$A$2:$A$69=1,ROW('Carbon Curve Data'!$D$2:$D$69)-ROW('Carbon Curve Data'!$D$2)+1),ROWS('Carbon Curve Data'!$D$2:'Carbon Curve Data'!D12))),"") -> Flap Valve
A14: =IFERROR(INDEX('Carbon Curve Data'!$D$2:$D$69,SMALL(IF('Carbon Curve Data'!$A$2:$A$69=1,ROW('Carbon Curve Data'!$D$2:$D$69)-ROW('Carbon Curve Data'!$D$2)+1),ROWS('Carbon Curve Data'!$D$2:'Carbon Curve Data'!D13))),"") -> Headwall
A15: =IFERROR(INDEX('Carbon Curve Data'!$D$2:$D$69,SMALL(IF('Carbon Curve Data'!$A$2:$A$69=1,ROW('Carbon Curve Data'!$D$2:$D$69)-ROW('Carbon Curve Data'!$D$2)+1),ROWS('Carbon Curve Data'!$D$2:'Carbon Curve Data'!D14))),"") -> Non-tidal Wall - Retaining - Concrete
A16: =IFERROR(INDEX('Carbon Curve Data'!$D$2:$D$69,SMALL(IF('Carbon Curve Data'!$A$2:$A$69=1,ROW('Carbon Curve Data'!$D$2:$D$69)-ROW('Carbon Curve Data'!$D$2)+1),ROWS('Carbon Curve Data'!$D$2:'Carbon Curve Data'!D15))),"") -> Path/Track/Road
A17: =IFERROR(INDEX('Carbon Curve Data'!$D$2:$D$69,SMALL(IF('Carbon Curve Data'!$A$2:$A$69=1,ROW('Carbon Curve Data'!$D$2:$D$69)-ROW('Carbon Curve Data'!$D$2)+1),ROWS('Carbon Curve Data'!$D$2:'Carbon Curve Data'!D16))),"") -> Pipes & Drains - Concrete
A18: =IFERROR(INDEX('Carbon Curve Data'!$D$2:$D$69,SMALL(IF('Carbon Curve Data'!$A$2:$A$69=1,ROW('Carbon Curve Data'!$D$2:$D$69)-ROW('Carbon Curve Data'!$D$2)+1),ROWS('Carbon Curve Data'!$D$2:'Carbon Curve Data'!D17))),"") -> Pipes & Drains - Plastic
A19: =IFERROR(INDEX('Carbon Curve Data'!$D$2:$D$69,SMALL(IF('Carbon Curve Data'!$A$2:$A$69=1,ROW('Carbon Curve Data'!$D$2:$D$69)-ROW('Carbon Curve Data'!$D$2)+1),ROWS('Carbon Curve Data'!$D$2:'Carbon Curve Data'!D18))),"") -> Pumping Station - Surface Water
A20: =IFERROR(INDEX('Carbon Curve Data'!$D$2:$D$69,SMALL(IF('Carbon Curve Data'!$A$2:$A$69=1,ROW('Carbon Curve Data'!$D$2:$D$69)-ROW('Carbon Curve Data'!$D$2)+1),ROWS('Carbon Curve Data'!$D$2:'Carbon Curve Data'!D19))),"") -> Revetment Works - Rock Armour
A21: =IFERROR(INDEX('Carbon Curve Data'!$D$2:$D$69,SMALL(IF('Carbon Curve Data'!$A$2:$A$69=1,ROW('Carbon Curve Data'!$D$2:$D$69)-ROW('Carbon Curve Data'!$D$2)+1),ROWS('Carbon Curve Data'!$D$2:'Carbon Curve Data'!D20))),"") -> Sea Wall - Retaining - Concrete
A22: =IFERROR(INDEX('Carbon Curve Data'!$D$2:$D$69,SMALL(IF('Carbon Curve Data'!$A$2:$A$69=1,ROW('Carbon Curve Data'!$D$2:$D$69)-ROW('Carbon Curve Data'!$D$2)+1),ROWS('Carbon Curve Data'!$D$2:'Carbon Curve Data'!D21))),"") -> Sluices/penstocks
A23: =IFERROR(INDEX('Carbon Curve Data'!$D$2:$D$69,SMALL(IF('Carbon Curve Data'!$A$2:$A$69=1,ROW('Carbon Curve Data'!$D$2:$D$69)-ROW('Carbon Curve Data'!$D$2)+1),ROWS('Carbon Curve Data'!$D$2:'Carbon Curve Data'!D22))),"") -> Soft Landscaping - Grassland
A24: =IFERROR(INDEX('Carbon Curve Data'!$D$2:$D$69,SMALL(IF('Carbon Curve Data'!$A$2:$A$69=1,ROW('Carbon Curve Data'!$D$2:$D$69)-ROW('Carbon Curve Data'!$D$2)+1),ROWS('Carbon Curve Data'!$D$2:'Carbon Curve Data'!D23))),"") -> Soft Landscaping - Shrubs/Tress
A25: =IFERROR(INDEX('Carbon Curve Data'!$D$2:$D$69,SMALL(IF('Carbon Curve Data'!$A$2:$A$69=1,ROW('Carbon Curve Data'!$D$2:$D$69)-ROW('Carbon Curve Data'!$D$2)+1),ROWS('Carbon Curve Data'!$D$2:'Carbon Curve Data'!D24))),"") -> Tidal Wall - Retaining - Concrete
A26: =IFERROR(INDEX('Carbon Curve Data'!$D$2:$D$69,SMALL(IF('Carbon Curve Data'!$A$2:$A$69=1,ROW('Carbon Curve Data'!$D$2:$D$69)-ROW('Carbon Curve Data'!$D$2)+1),ROWS('Carbon Curve Data'!$D$2:'Carbon Curve Data'!D25))),"") -> Tidal Wall - Retaining - Sheetpiled
A27: =IFERROR(INDEX('Carbon Curve Data'!$D$2:$D$69,SMALL(IF('Carbon Curve Data'!$A$2:$A$69=1,ROW('Carbon Curve Data'!$D$2:$D$69)-ROW('Carbon Curve Data'!$D$2)+1),ROWS('Carbon Curve Data'!$D$2:'Carbon Curve Data'!D26))),"") -> Trash Screen

Sheet Unique Model Ref (hidden)
A1: Element ID | B1: Element class | C1: Element description | D1: Element measure | E1: Element unit | F1: Element value | G1: 1B1S Project ref. | H1: Version | I1: Gateway | J1: New Build - Materials | K1: New Build - Transport | L1: New Build - Installation | M1: Operational - Use | N1: Operational - Maintenance | O1: Operational -Repair | P1: Operational - Energy | Q1: Replacement - Materials | R1: Replacement - Transport | S1: Replacement - Installation | T1: Refurbishment | U1: Demolition | V1: Residual | W1: Whole Life Carbon

Sheet BarrEA01 (hidden)
A1: Element ID | B1: Element class | C1: Element description | D1: Element measure | E1: Element unit | F1: Element value | G1: 1B1S Project ref. | H1: Version | I1: Gateway | J1: Capital - Materials | K1: Capital - Transport | L1: Capital - Installation | M1: Operational - Use | N1: Operational - Maintenance | O1: Operational -Repair | P1: Operational - Energy | Q1: Replacement - Materials | R1: Replacement - Transport | S1: Replacement - Installation | T1: Refurbishment | U1: Demolition | V1: Residual | W1: Whole Life Carbon

Sheet BeacEA02 (hidden)
A1: Element ID | B1: Element class | C1: Element description | D1: Element measure | E1: Element unit | F1: Element value | G1: 1B1S Project ref. | H1: Version | I1: Gateway | J1: Capital - Materials | K1: Capital - Transport | L1: Capital - Installation | M1: Operational - Use | N1: Operational - Maintenance | O1: Operational -Repair | P1: Operational - Energy | Q1: Replacement - Materials | R1: Replacement - Transport | S1: Replacement - Installation | T1: Refurbishment | U1: Demolition | V1: Residual | W1: Whole Life Carbon

Sheet BridEA03 (hidden)
A1: Element ID | B1: Element class | C1: Element description | D1: Element measure | E1: Element unit | F1: Element value | G1: 1B1S Project ref. | H1: Version | I1: Gateway | J1: Capital - Materials | K1: Capital - Transport | L1: Capital - Installation | M1: Operational - Use | N1: Operational - Maintenance | O1: Operational -Repair | P1: Operational - Energy | Q1: Replacement - Materials | R1: Replacement - Transport | S1: Replacement - Installation | T1: Refurbishment | U1: Demolition | V1: Residual | W1: Whole Life Carbon

Sheet BridEA04 (hidden)
A1: Element ID | B1: Element class | C1: Element description | D1: Element measure | E1: Element unit | F1: Element value | G1: 1B1S Project ref. | H1: Version | I1: Gateway | J1: Capital - Materials | K1: Capital - Transport | L1: Capital - Installation | M1: Operational - Use | N1: Operational - Maintenance | O1: Operational -Repair | P1: Operational - Energy | Q1: Replacement - Materials | R1: Replacement - Transport | S1: Replacement - Installation | T1: Refurbishment | U1: Demolition | V1: Residual | W1: Whole Life Carbon

Sheet DredEA11 (hidden)
A1: Element ID | B1: Element class | C1: Element description | D1: Element measure | E1: Element unit | F1: Element value | G1: 1B1S Project ref. | H1: Version | I1: Gateway | J1: Capital - Materials | K1: Capital - Transport | L1: Capital - Installation | M1: Operational - Use | N1: Operational - Maintenance | O1: Operational -Repair | P1: Operational - Energy | Q1: Replacement - Materials | R1: Replacement - Transport | S1: Replacement - Installation | T1: Refurbishment | U1: Demolition | V1: Residual | W1: Whole Life Carbon

Sheet DuneEA12 (hidden)
A1: Element ID | B1: Element class | C1: Element description | D1: Element measure | E1: Element unit | F1: Element value | G1: 1B1S Project ref. | H1: Version | I1: Gateway | J1: Capital - Materials | K1: Capital - Transport | L1: Capital - Installation | M1: Operational - Use | N1: Operational - Maintenance | O1: Operational -Repair | P1: Operational - Energy | Q1: Replacement - Materials | R1: Replacement - Transport | S1: Replacement - Installation | T1: Refurbishment | U1: Demolition | V1: Residual | W1: Whole Life Carbon

Sheet ElecEA13 (hidden)
A1: Element ID | B1: Element class | C1: Element description | D1: Element measure | E1: Element unit | F1: Element value | G1: 1B1S Project ref. | H1: Version | I1: Gateway | J1: Capital - Materials | K1: Capital - Transport | L1: Capital - Installation | M1: Operational - Use | N1: Operational - Maintenance | O1: Operational -Repair | P1: Operational - Energy | Q1: Replacement - Materials | R1: Replacement - Transport | S1: Replacement - Installation | T1: Refurbishment | U1: Demolition | V1: Residual | W1: Whole Life Carbon

Sheet EmbaEA14 (hidden)
A1: Element ID | B1: Element class | C1: Element description | D1: Element measure | E1: Element unit | F1: Element value | G1: 1B1S Project ref. | H1: Version | I1: Gateway | J1: Capital - Materials | K1: Capital - Transport | L1: Capital - Installation | M1: Operational - Use | N1: Operational - Maintenance | O1: Operational -Repair | P1: Operational - Energy | Q1: Replacement - Materials | R1: Replacement - Transport | S1: Replacement - Installation | T1: Refurbishment | U1: Demolition | V1: Residual | W1: Whole Life Carbon

Sheet EnhaEA16 (hidden)
A1: Element ID | B1: Element class | C1: Element description | D1: Element measure | E1: Element unit | F1: Element value | G1: 1B1S Project ref. | H1: Version | I1: Gateway | J1: Capital - Materials | K1: Capital - Transport | L1: Capital - Installation | M1: Operational - Use | N1: Operational - Maintenance | O1: Operational -Repair | P1: Operational - Energy | Q1: Replacement - Materials | R1: Replacement - Transport | S1: Replacement - Installation | T1: Refurbishment | U1: Demolition | V1: Residual | W1: Whole Life Carbon

Sheet ErosEA17 (hidden)
A1: Element ID | B1: Element class | C1: Element description | D1: Element measure | E1: Element unit | F1: Element value | G1: 1B1S Project ref. | H1: Version | I1: Gateway | J1: Capital - Materials | K1: Capital - Transport | L1: Capital - Installation | M1: Operational - Use | N1: Operational - Maintenance | O1: Operational -Repair | P1: Operational - Energy | Q1: Replacement - Materials | R1: Replacement - Transport | S1: Replacement - Installation | T1: Refurbishment | U1: Demolition | V1: Residual | W1: Whole Life Carbon

Sheet FishEA23 (hidden)
A1: Element ID | B1: Element class | C1: Element description | D1: Element measure | E1: Element unit | F1: Element value | G1: 1B1S Project ref. | H1: Version | I1: Gateway | J1: Capital - Materials | K1: Capital - Transport | L1: Capital - Installation | M1: Operational - Use | N1: Operational - Maintenance | O1: Operational -Repair | P1: Operational - Energy | Q1: Replacement - Materials | R1: Replacement - Transport | S1: Replacement - Installation | T1: Refurbishment | U1: Demolition | V1: Residual | W1: Whole Life Carbon

Sheet FlooEA25 (hidden)
A1: Element ID | B1: Element class | C1: Element description | D1: Element measure | E1: Element unit | F1: Element value | G1: 1B1S Project ref. | H1: Version | I1: Gateway | J1: Capital - Materials | K1: Capital - Transport | L1: Capital - Installation | M1: Operational - Use | N1: Operational - Maintenance | O1: Operational -Repair | P1: Operational - Energy | Q1: Replacement - Materials | R1: Replacement - Transport | S1: Replacement - Installation | T1: Refurbishment | U1: Demolition | V1: Residual | W1: Whole Life Carbon

Sheet FlowEA26 (hidden)
A1: Element ID | B1: Element class | C1: Element description | D1: Element measure | E1: Element unit | F1: Element value | G1: 1B1S Project ref. | H1: Version | I1: Gateway | J1: Capital - Materials | K1: Capital - Transport | L1: Capital - Installation | M1: Operational - Use | N1: Operational - Maintenance | O1: Operational -Repair | P1: Operational - Energy | Q1: Replacement - Materials | R1: Replacement - Transport | S1: Replacement - Installation | T1: Refurbishment | U1: Demolition | V1: Residual | W1: Whole Life Carbon

Sheet FlowEA27 (hidden)
A1: Element ID | B1: Element class | C1: Element description | D1: Element measure | E1: Element unit | F1: Element value | G1: 1B1S Project ref. | H1: Version | I1: Gateway | J1: Capital - Materials | K1: Capital - Transport | L1: Capital - Installation | M1: Operational - Use | N1: Operational - Maintenance | O1: Operational -Repair | P1: Operational - Energy | Q1: Replacement - Materials | R1: Replacement - Transport | S1: Replacement - Installation | T1: Refurbishment | U1: Demolition | V1: Residual | W1: Whole Life Carbon

Sheet GrouEA29 (hidden)
A1: Element ID | B1: Element class | C1: Element description | D1: Element measure | E1: Element unit | F1: Element value | G1: 1B1S Project ref. | H1: Version | I1: Gateway | J1: Capital - Materials | K1: Capital - Transport | L1: Capital - Installation | M1: Operational - Use | N1: Operational - Maintenance | O1: Operational -Repair | P1: Operational - Energy | Q1: Replacement - Materials | R1: Replacement - Transport | S1: Replacement - Installation | T1: Refurbishment | U1: Demolition | V1: Residual | W1: Whole Life Carbon

Sheet HabiEA30 (hidden)
A1: Element ID | B1: Element class | C1: Element description | D1: Element measure | E1: Element unit | F1: Element value | G1: 1B1S Project ref. | H1: Version | I1: Gateway | J1: Capital - Materials | K1: Capital - Transport | L1: Capital - Installation | M1: Operational - Use | N1: Operational - Maintenance | O1: Operational -Repair | P1: Operational - Energy | Q1: Replacement - Materials | R1: Replacement - Transport | S1: Replacement - Installation | T1: Refurbishment | U1: Demolition | V1: Residual | W1: Whole Life Carbon

Sheet HardEA31 (hidden)
A1: Element ID | B1: Element class | C1: Element description | D1: Element measure | E1: Element unit | F1: Element value | G1: 1B1S Project ref. | H1: Version | I1: Gateway | J1: Capital - Materials | K1: Capital - Transport | L1: Capital - Installation | M1: Operational - Use | N1: Operational - Maintenance | O1: Operational -Repair | P1: Operational - Energy | Q1: Replacement - Materials | R1: Replacement - Transport | S1: Replacement - Installation | T1: Refurbishment | U1: Demolition | V1: Residual | W1: Whole Life Carbon

Sheet LandEA33 (hidden)
A1: Element ID | B1: Element class | C1: Element description | D1: Element measure | E1: Element unit | F1: Element value | G1: 1B1S Project ref. | H1: Version | I1: Gateway | J1: Capital - Materials | K1: Capital - Transport | L1: Capital - Installation | M1: Operational - Use | N1: Operational - Maintenance | O1: Operational -Repair | P1: Operational - Energy | Q1: Replacement - Materials | R1: Replacement - Transport | S1: Replacement - Installation | T1: Refurbishment | U1: Demolition | V1: Residual | W1: Whole Life Carbon

Sheet NaviEA34 (hidden)
A1: Element ID | B1: Element class | C1: Element description | D1: Element measure | E1: Element unit | F1: Element value | G1: 1B1S Project ref. | H1: Version | I1: Gateway | J1: Capital - Materials | K1: Capital - Transport | L1: Capital - Installation | M1: Operational - Use | N1: Operational - Maintenance | O1: Operational -Repair | P1: Operational - Energy | Q1: Replacement - Materials | R1: Replacement - Transport | S1: Replacement - Installation | T1: Refurbishment | U1: Demolition | V1: Residual | W1: Whole Life Carbon

Sheet Non-EA36 (hidden)
A1: Element ID | B1: Element class | C1: Element description | D1: Element measure | E1: Element unit | F1: Element value | G1: 1B1S Project ref. | H1: Version | I1: Gateway | J1: Capital - Materials | K1: Capital - Transport | L1: Capital - Installation | M1: Operational - Use | N1: Operational - Maintenance | O1: Operational -Repair | P1: Operational - Energy | Q1: Replacement - Materials | R1: Replacement - Transport | S1: Replacement - Installation | T1: Refurbishment | U1: Demolition | V1: Residual | W1: Whole Life Carbon

Sheet Non-EA37 (hidden)
A1: Element ID | B1: Element class | C1: Element description | D1: Element measure | E1: Element unit | F1: Element value | G1: 1B1S Project ref. | H1: Version | I1: Gateway | J1: Capital - Materials | K1: Capital - Transport | L1: Capital - Installation | M1: Operational - Use | N1: Operational - Maintenance | O1: Operational -Repair | P1: Operational - Energy | Q1: Replacement - Materials | R1: Replacement - Transport | S1: Replacement - Installation | T1: Refurbishment | U1: Demolition | V1: Residual | W1: Whole Life Carbon

Sheet OffsEA38 (hidden)
A1: Element ID | B1: Element class | C1: Element description | D1: Element measure | E1: Element unit | F1: Element value | G1: 1B1S Project ref. | H1: Version | I1: Gateway | J1: Capital - Materials | K1: Capital - Transport | L1: Capital - Installation | M1: Operational - Use | N1: Operational - Maintenance | O1: Operational -Repair | P1: Operational - Energy | Q1: Replacement - Materials | R1: Replacement - Transport | S1: Replacement - Installation | T1: Refurbishment | U1: Demolition | V1: Residual | W1: Whole Life Carbon

Sheet OffsEA39 (hidden)
A1: Element ID | B1: Element class | C1: Element description | D1: Element measure | E1: Element unit | F1: Element value | G1: 1B1S Project ref. | H1: Version | I1: Gateway | J1: Capital - Materials | K1: Capital - Transport | L1: Capital - Installation | M1: Operational - Use | N1: Operational - Maintenance | O1: Operational -Repair | P1: Operational - Energy | Q1: Replacement - Materials | R1: Replacement - Transport | S1: Replacement - Installation | T1: Refurbishment | U1: Demolition | V1: Residual | W1: Whole Life Carbon

Sheet OutfEA40 (hidden)
A1: Element ID | B1: Element class | C1: Element description | D1: Element measure | E1: Element unit | F1: Element value | G1: 1B1S Project ref. | H1: Version | I1: Gateway | J1: Capital - Materials | K1: Capital - Transport | L1: Capital - Installation | M1: Operational - Use | N1: Operational - Maintenance | O1: Operational -Repair | P1: Operational - Energy | Q1: Replacement - Materials | R1: Replacement - Transport | S1: Replacement - Installation | T1: Refurbishment | U1: Demolition | V1: Residual | W1: Whole Life Carbon

Sheet PipeEA42 (hidden)
A1: Element ID | B1: Element class | C1: Element description | D1: Element measure | E1: Element unit | F1: Element value | G1: 1B1S Project ref. | H1: Version | I1: Gateway | J1: Capital - Materials | K1: Capital - Transport | L1: Capital - Installation | M1: Operational - Use | N1: Operational - Maintenance | O1: Operational -Repair | P1: Operational - Energy | Q1: Replacement - Materials | R1: Replacement - Transport | S1: Replacement - Installation | T1: Refurbishment | U1: Demolition | V1: Residual | W1: Whole Life Carbon

Sheet PumpEA45 (hidden)
A1: Element ID | B1: Element class | C1: Element description | D1: Element measure | E1: Element unit | F1: Element value | G1: 1B1S Project ref. | H1: Version | I1: Gateway | J1: Capital - Materials | K1: Capital - Transport | L1: Capital - Installation | M1: Operational - Use | N1: Operational - Maintenance | O1: Operational -Repair | P1: Operational - Energy | Q1: Replacement - Materials | R1: Replacement - Transport | S1: Replacement - Installation | T1: Refurbishment | U1: Demolition | V1: Residual | W1: Whole Life Carbon

Sheet PumpEA46 (hidden)
A1: Element ID | B1: Element class | C1: Element description | D1: Element measure | E1: Element unit | F1: Element value | G1: 1B1S Project ref. | H1: Version | I1: Gateway | J1: Capital - Materials | K1: Capital - Transport | L1: Capital - Installation | M1: Operational - Use | N1: Operational - Maintenance | O1: Operational -Repair | P1: Operational - Energy | Q1: Replacement - Materials | R1: Replacement - Transport | S1: Replacement - Installation | T1: Refurbishment | U1: Demolition | V1: Residual | W1: Whole Life Carbon

Sheet ReveEA48 (hidden)
A1: Element ID | B1: Element class | C1: Element description | D1: Element measure | E1: Element unit | F1: Element value | G1: 1B1S Project ref. | H1: Version | I1: Gateway | J1: Capital - Materials | K1: Capital - Transport | L1: Capital - Installation | M1: Operational - Use | N1: Operational - Maintenance | O1: Operational -Repair | P1: Operational - Energy | Q1: Replacement - Materials | R1: Replacement - Transport | S1: Replacement - Installation | T1: Refurbishment | U1: Demolition | V1: Residual | W1: Whole Life Carbon

Sheet ReveEA50 (hidden)
A1: Element ID | B1: Element class | C1: Element description | D1: Element measure | E1: Element unit | F1: Element value | G1: 1B1S Project ref. | H1: Version | I1: Gateway | J1: Capital - Materials | K1: Capital - Transport | L1: Capital - Installation | M1: Operational - Use | N1: Operational - Maintenance | O1: Operational -Repair | P1: Operational - Energy | Q1: Replacement - Materials | R1: Replacement - Transport | S1: Replacement - Installation | T1: Refurbishment | U1: Demolition | V1: Residual | W1: Whole Life Carbon

Sheet RiveEA51 (hidden)
A1: Element ID | B1: Element class | C1: Element description | D1: Element measure | E1: Element unit | F1: Element value | G1: 1B1S Project ref. | H1: Version | I1: Gateway | J1: Capital - Materials | K1: Capital - Transport | L1: Capital - Installation | M1: Operational - Use | N1: Operational - Maintenance | O1: Operational -Repair | P1: Operational - Energy | Q1: Replacement - Materials | R1: Replacement - Transport | S1: Replacement - Installation | T1: Refurbishment | U1: Demolition | V1: Residual | W1: Whole Life Carbon

Sheet RiveEA52 (hidden)
A1: Element ID | B1: Element class | C1: Element description | D1: Element measure | E1: Element unit | F1: Element value | G1: 1B1S Project ref. | H1: Version | I1: Gateway | J1: Capital - Materials | K1: Capital - Transport | L1: Capital - Installation | M1: Operational - Use | N1: Operational - Maintenance | O1: Operational -Repair | P1: Operational - Energy | Q1: Replacement - Materials | R1: Replacement - Transport | S1: Replacement - Installation | T1: Refurbishment | U1: Demolition | V1: Residual | W1: Whole Life Carbon

Sheet ServEA53 (hidden)
A1: Element ID | B1: Element class | C1: Element description | D1: Element measure | E1: Element unit | F1: Element value | G1: 1B1S Project ref. | H1: Version | I1: Gateway | J1: Capital - Materials | K1: Capital - Transport | L1: Capital - Installation | M1: Operational - Use | N1: Operational - Maintenance | O1: Operational -Repair | P1: Operational - Energy | Q1: Replacement - Materials | R1: Replacement - Transport | S1: Replacement - Installation | T1: Refurbishment | U1: Demolition | V1: Residual | W1: Whole Life Carbon

Sheet ServEA54 (hidden)
A1: Element ID | B1: Element class | C1: Element description | D1: Element measure | E1: Element unit | F1: Element value | G1: 1B1S Project ref. | H1: Version | I1: Gateway | J1: Capital - Materials | K1: Capital - Transport | L1: Capital - Installation | M1: Operational - Use | N1: Operational - Maintenance | O1: Operational -Repair | P1: Operational - Energy | Q1: Replacement - Materials | R1: Replacement - Transport | S1: Replacement - Installation | T1: Refurbishment | U1: Demolition | V1: Residual | W1: Whole Life Carbon

Sheet ServEA55 (hidden)
A1: Element ID | B1: Element class | C1: Element description | D1: Element measure | E1: Element unit | F1: Element value | G1: 1B1S Project ref. | H1: Version | I1: Gateway | J1: Capital - Materials | K1: Capital - Transport | L1: Capital - Installation | M1: Operational - Use | N1: Operational - Maintenance | O1: Operational -Repair | P1: Operational - Energy | Q1: Replacement - Materials | R1: Replacement - Transport | S1: Replacement - Installation | T1: Refurbishment | U1: Demolition | V1: Residual | W1: Whole Life Carbon

Sheet ServEA56 (hidden)
A1: Element ID | B1: Element class | C1: Element description | D1: Element measure | E1: Element unit | F1: Element value | G1: 1B1S Project ref. | H1: Version | I1: Gateway | J1: Capital - Materials | K1: Capital - Transport | L1: Capital - Installation | M1: Operational - Use | N1: Operational - Maintenance | O1: Operational -Repair | P1: Operational - Energy | Q1: Replacement - Materials | R1: Replacement - Transport | S1: Replacement - Installation | T1: Refurbishment | U1: Demolition | V1: Residual | W1: Whole Life Carbon

Sheet ServEA57 (hidden)
A1: Element ID | B1: Element class | C1: Element description | D1: Element measure | E1: Element unit | F1: Element value | G1: 1B1S Project ref. | H1: Version | I1: Gateway | J1: Capital - Materials | K1: Capital - Transport | L1: Capital - Installation | M1: Operational - Use | N1: Operational - Maintenance | O1: Operational -Repair | P1: Operational - Energy | Q1: Replacement - Materials | R1: Replacement - Transport | S1: Replacement - Installation | T1: Refurbishment | U1: Demolition | V1: Residual | W1: Whole Life Carbon

Sheet TeleEA61 (hidden)
A1: Element ID | B1: Element class | C1: Element description | D1: Element measure | E1: Element unit | F1: Element value | G1: 1B1S Project ref. | H1: Version | I1: Gateway | J1: Capital - Materials | K1: Capital - Transport | L1: Capital - Installation | M1: Operational - Use | N1: Operational - Maintenance | O1: Operational -Repair | P1: Operational - Energy | Q1: Replacement - Materials | R1: Replacement - Transport | S1: Replacement - Installation | T1: Refurbishment | U1: Demolition | V1: Residual | W1: Whole Life Carbon

Sheet TidaEA62 (hidden)
A1: Element ID | B1: Element class | C1: Element description | D1: Element measure | E1: Element unit | F1: Element value | G1: 1B1S Project ref. | H1: Version | I1: Gateway | J1: Capital - Materials | K1: Capital - Transport | L1: Capital - Installation | M1: Operational - Use | N1: Operational - Maintenance | O1: Operational -Repair | P1: Operational - Energy | Q1: Replacement - Materials | R1: Replacement - Transport | S1: Replacement - Installation | T1: Refurbishment | U1: Demolition | V1: Residual | W1: Whole Life Carbon

Sheet TidaEA64 (hidden)
A1: Element ID | B1: Element class | C1: Element description | D1: Element measure | E1: Element unit | F1: Element value | G1: 1B1S Project ref. | H1: Version | I1: Gateway | J1: Capital - Materials | K1: Capital - Transport | L1: Capital - Installation | M1: Operational - Use | N1: Operational - Maintenance | O1: Operational -Repair | P1: Operational - Energy | Q1: Replacement - Materials | R1: Replacement - Transport | S1: Replacement - Installation | T1: Refurbishment | U1: Demolition | V1: Residual | W1: Whole Life Carbon

Sheet TunnEA67 (hidden)
A1: Element ID | B1: Element class | C1: Element description | D1: Element measure | E1: Element unit | F1: Element value | G1: 1B1S Project ref. | H1: Version | I1: Gateway | J1: Capital - Materials | K1: Capital - Transport | L1: Capital - Installation | M1: Operational - Use | N1: Operational - Maintenance | O1: Operational -Repair | P1: Operational - Energy | Q1: Replacement - Materials | R1: Replacement - Transport | S1: Replacement - Installation | T1: Refurbishment | U1: Demolition | V1: Residual | W1: Whole Life Carbon

Sheet WallEA68 (hidden)
A1: Element ID | B1: Element class | C1: Element description | D1: Element measure | E1: Element unit | F1: Element value | G1: 1B1S Project ref. | H1: Version | I1: Gateway | J1: Capital - Materials | K1: Capital - Transport | L1: Capital - Installation | M1: Operational - Use | N1: Operational - Maintenance | O1: Operational -Repair | P1: Operational - Energy | Q1: Replacement - Materials | R1: Replacement - Transport | S1: Replacement - Installation | T1: Refurbishment | U1: Demolition | V1: Residual | W1: Whole Life Carbon

Sheet WeirEA69 (hidden)
A1: Element ID | B1: Element class | C1: Element description | D1: Element measure | E1: Element unit | F1: Element value | G1: 1B1S Project ref. | H1: Version | I1: Gateway | J1: Capital - Materials | K1: Capital - Transport | L1: Capital - Installation | M1: Operational - Use | N1: Operational - Maintenance | O1: Operational -Repair | P1: Operational - Energy | Q1: Replacement - Materials | R1: Replacement - Transport | S1: Replacement - Installation | T1: Refurbishment | U1: Demolition | V1: Residual | W1: Whole Life Carbon

Sheet TidaEA70 (hidden)
A1: Element ID | B1: Element class | C1: Element description | D1: Element measure | E1: Element unit | F1: Element value | G1: 1B1S Project ref. | H1: Version | I1: Gateway | J1: Capital - Materials | K1: Capital - Transport | L1: Capital - Installation | M1: Operational - Use | N1: Operational - Maintenance | O1: Operational -Repair | P1: Operational - Energy | Q1: Replacement - Materials | R1: Replacement - Transport | S1: Replacement - Installation | T1: Refurbishment | U1: Demolition | V1: Residual | W1: Whole Life Carbon

Sheet Element ID (hidden)
A1: Element ID | B1: Element class | C1: Element description | D1: Element measure | E1: Element unit | F1: Element value | G1: 1B1S Project ref. | H1: Version | I1: Gateway | J1: Capital - Materials | K1: Capital - Transport | L1: Capital - Installation | M1: Operational - Use | N1: Operational - Maintenance | O1: Operational -Repair | P1: Operational - Energy | Q1: Replacement - Materials | R1: Replacement - Transport | S1: Replacement - Installation | T1: Refurbishment | U1: Demolition | V1: Residual | W1: Whole Life Carbon

Sheet FishEA21 (hidden)
A1: Element ID | B1: Element class | C1: Element description | D1: Element measure | E1: Element unit | F1: Element value | G1: 1B1S Project ref. | H1: Version | I1: Gateway | J1: Capital - Materials | K1: Capital - Transport | L1: Capital - Installation | M1: Operational - Use | N1: Operational - Maintenance | O1: Operational -Repair | P1: Operational - Energy | Q1: Replacement - Materials | R1: Replacement - Transport | S1: Replacement - Installation | T1: Refurbishment | U1: Demolition | V1: Residual | W1: Whole Life Carbon
A2: FishEA21 | B2: Fish Pass - Larinier - Bypass Weir | C2: Fish Pass - Larinier - Bypass Weir | D2: 93.5 | E2: m3 | F2: 716628 | G2: IMNE960003 | H2: 1 | I2: G3 | J2: 35.0394876 | K2: 43.32093698 | L2: 83.51636777 | M2: 0 | N2: 555.541734 | O2: 0 | P2: 0 | Q2: 3.796731289 | R2: 4.694074263 | S2: 9.049481839 | T2: 6.868962042 | U2: 4.652698739 | V2: -22.83740746 | W2: 728.2957658
A3: FishEA21 | B3: Fish Pass - Larinier - Bypass Weir | C3: Fish Pass - Larinier - Bypass Weir | D3: 11.72 | E3: m3 | F3: 60000 | G3: IMMI001434 | H3: 1 | I3: G3 | J3: 23.3265288 | K3: 10.45086083 | L3: 42.8595753 | M3: 0 | N3: 390.4412757 | O3: 0 | P3: 0 | Q3: 2.527564409 | R3: 1.13241126 | S3: 4.644083055 | T3: 3.251957217 | U3: 2.213701151 | V3: -10.81186234 | W3: 472.2497965
A4: FishEA21 | B4: Fish Pass - Larinier - Bypass Weir | C4: Fish Pass - Larinier - Bypass Weir | D4: 143.89 | E4: m3 | F4: 640000 | G4: IMMI001436 | H4: 1 | I4: G3 | J4: 78.5638016 | K4: 33.97235163 | L4: 65.09115378 | M4: 0 | N4: 792.9624154 | O4: 0 | P4: 0 | Q4: 8.512842629 | R4: 3.68110093 | S4: 7.053003258 | T4: 7.537307923 | U4: 3.512903463 | V4: -25.05947349 | W4: 979.3403106
A5: FishEA21 | B5: Fish Pass - Larinier - Bypass Weir | C5: Fish Pass - Larinier - Bypass Weir - Zero | D5: 0 | E5: m3 | F5: 0 | G5: N/A | H5: N/A | I5: N/A | J5: 0 | K5: 0 | L5: 0 | M5: 0 | N5: 0 | O5: 0 | P5: 0 | Q5: 0 | R5: 0 | S5: 0 | T5: 0 | U5: 0 | V5: 0 | W5: 0

Sheet Non-EA35 (hidden)
A1: Element ID | B1: Element class | C1: Element description | D1: Element measure | E1: Element unit | F1: Element value | G1: 1B1S Project ref. | H1: Version | I1: Gateway | J1: Capital - Materials | K1: Capital - Transport | L1: Capital - Installation | M1: Operational - Use | N1: Operational - Maintenance | O1: Operational -Repair | P1: Operational - Energy | Q1: Replacement - Materials | R1: Replacement - Transport | S1: Replacement - Installation | T1: Refurbishment | U1: Demolition | V1: Residual | W1: Whole Life Carbon
A2: Non-EA35 | B2: Non-tidal Wall - Retaining - Concrete | C2: Non-tidal Wall - Retaining - Concrete | D2: 55 | E2: m3 | F2: 25000 | G2: IMNW000473 | H2: 1 | I2: G3 | J2: 20.891832 | K2: 23.73131301 | L2: 41.77106946 | M2: 0 | N2: 222.8747077 | O2: 32.88004621 | P2: 0 | Q2: 0 | R2: 0 | S2: 0 | T2: 0 | U2: 0 | V2: 0 | W2: 342.1489684
A3: Non-EA35 | B3: Non-tidal Wall - Retaining - Concrete | C3: Wall | D3: 205.2 | E3: m3 | F3: 342529 | G3: IMNW000116 | H3: 1 | I3: G3 | J3: 280.5252 | K3: 44.33037765 | L3: 61.79512315 | M3: 0 | N3: 1808.019994 | O3: 224.9972746 | P3: 0 | Q3: 0 | R3: 0 | S3: 0 | T3: 0 | U3: 0 | V3: 0 | W3: 2419.66797
